Workbook

Sheet ELD metalog
B2: Metalog distributions. Prepared by Thomas Keelin, July, 2022. | AB2: reference probabilities y in use for quantile parameters q
C3: To generate metalog distributions, To generate metalog distributions, paste your x-data into the yellow-highlighed cells in C34:C10033 below. Your data may contain 2-10,000 entries (all cells below your last entry must be blank). The metalog panel dispalys feasible metalog distributions for 2-16 terms (a blank graph is infeasible or not applicable). This workbook is licensed under the Creative Commons Attribution 4.0. International License, CC-BY. So long as you provide attribution to Thomas Keelin and www.metalogs.org, you may copy it, make derivative works, and use it freely, including for commercial purposes. This workbook contains no macros or named ranges. This worksheet may be safely copied into other Excel workbooks while retaining its full functionality by right clicking "ELD metalog" sheet name at bottom. While we believe all calculations are correct, we assume no liability for errors. | AB3: n=2 | AC3: n=3 | AD3: n=4 | AE3: n=5 | AF3: n=6 | AG3: n=7 | AH3: n=8 | AI3: n=9 | AJ3: n=10 | AK3: n=11 | AL3: n=12 | AM3: n=13 | AN3: n=14 | AO3: n=15 | AP3: n=16
AB4: 0.25 | AC4: 0.1 | AD4: 0.1 | AE4: 0.1 | AF4: 0.01 | AG4: 0.01 | AH4: 0.001 | AI4: 0.001 | AJ4: 0.001 | AK4: 0.001 | AL4: 0.001 | AM4: 0.001 | AN4: 0.001 | AO4: 0.001 | AP4: 0.001
AB5: 0.75 | AC5: 0.5 | AD5: 0.25 | AE5: 0.25 | AF5: 0.1 | AG5: 0.1 | AH5: 0.02 | AI5: 0.02 | AJ5: 0.01 | AK5: 0.01 | AL5: 0.01 | AM5: 0.01 | AN5: 0.01 | AO5: 0.005 | AP5: 0.005
B6: light yellow: required inputs | J6: light blue: optional inputs | S6: light green: do not modify cell contents | AC6: 0.9 | AD6: 0.5 | AE6: 0.5 | AF6: 0.25 | AG6: 0.25 | AH6: 0.1 | AI6: 0.1 | AJ6: 0.05 | AK6: 0.05 | AL6: 0.05 | AM6: 0.05 | AN6: 0.03 | AO6: 0.01 | AP6: 0.01
AD7: 0.75 | AE7: 0.75 | AF7: 0.5 | AG7: 0.5 | AH7: 0.25 | AI7: 0.25 | AJ7: 0.1 | AK7: 0.1 | AL7: 0.1 | AM7: 0.1 | AN7: 0.05 | AO7: 0.05 | AP7: 0.05
B8: bounds (u = unbounded, sl = semibounded lower, su = semibounded upper, b = bounded). | N8: messages | X8: information | AE8: 0.9 | AF8: 0.75 | AG8: 0.75 | AH8: 0.5 | AI8: 0.5 | AJ8: 0.25 | AK8: 0.25 | AL8: 0.25 | AM8: 0.25 | AN8: 0.1 | AO8: 0.1 | AP8: 0.1
N9: =ED40 -> (none) | X9: quantile parameters | AF9: 0.99 | AG9: 0.9 | AH9: 0.75 | AI9: 0.75 | AJ9: 0.5 | AK9: 0.5 | AL9: 0.35 | AM9: 0.35 | AN9: 0.25 | AO9: 0.25 | AP9: 0.25
X10: y | Y10: x | AG10: 0.99 | AH10: 0.9 | AI10: 0.9 | AJ10: 0.75 | AK10: 0.66 | AL10: 0.5 | AM10: 0.5 | AN10: 0.35 | AO10: 0.35 | AP10: 0.35
B11: u | N11: metalog panel | X11: =IF(ROW()-ROW(X$10)>$C$17,"",INDEX($AB$4:$AP$19,ROW()-ROW(X$10),$C$17-1)) -> 0.001 | Y11: =IF(Z11="","",IF($B$11="u",Z11,IF($B$11="sl",$C$19+EXP(Z11),IF($B$11="su",$C$20-EXP(-Z11),IF($B$11="b",($C$19+$C$20*EXP(Z11))/(1+EXP(Z11)),""))))) -> 2.749356523 | Z11: =IF(OR($N$9<>"(none)",ROW()-ROW(Z$10)>$C$17),"",$Y$28+$Y$29*LN(X11/(1-X11))+$Y$30*(X11-0.5)*LN(X11/(1-X11))+$Y$31*(X11-0.5)+$Y$32*(X11-0.5)^2+$Y$33*(X11-0.5)^2*LN(X11/(1-X11))+$Y$34*(X11-0.5)^3+$Y$35*(X11-0.5)^3*LN(X11/(1-X11))+$Y$36*(X11-0.5)^4+$Y$37*(X11-0.5)^4*LN(X11/(1-X11))+$Y$38*(X11-0.5)^5+Y$39*(X11-0.5)^5*LN(X11/(1-X11))+$Y$40*(X11-0.5)^6+$Y$41*(X11-0.5)^6*LN(X11/(1-X11))+$Y$42*(X11-0.5)^7+$Y$43*(X11-0.5)^7*LN(X11/(1-X11))) -> 2.749356523 | AH11: 0.99 | AI11: 0.98 | AJ11: 0.9 | AK11: 0.75 | AL11: 0.65 | AM11: 0.65 | AN11: 0.5 | AO11: 0.5 | AP11: 0.5
B12: boundedness | X12: =IF(ROW()-ROW(X$10)>$C$17,"",INDEX($AB$4:$AP$19,ROW()-ROW(X$10),$C$17-1)) -> 0.01 | Y12: 3.686140996 | Z12: 3.686140996 | AI12: 0.999 | AJ12: 0.95 | AK12: 0.9 | AL12: 0.75 | AM12: 0.75 | AN12: 0.65 | AO12: 0.65 | AP12: 0.65
B13: metalog specifications | X13: =IF(ROW()-ROW(X$10)>$C$17,"",INDEX($AB$4:$AP$19,ROW()-ROW(X$10),$C$17-1)) -> 0.05 | Y13: 4.521183937 | Z13: 4.521183937 | AJ13: 0.999 | AK13: 0.95 | AL13: 0.9 | AM13: 0.9 | AN13: 0.75 | AO13: 0.75 | AP13: 0.75
B14: m | C14: n terms | X14: =IF(ROW()-ROW(X$10)>$C$17,"",INDEX($AB$4:$AP$19,ROW()-ROW(X$10),$C$17-1)) -> 0.1 | Y14: 5.116408939 | Z14: 5.116408939 | AK14: 0.999 | AL14: 0.95 | AM14: 0.95 | AN14: 0.8 | AO14: 0.9 | AP14: 0.9
B15: parameters | C15: for display | X15: =IF(ROW()-ROW(X$10)>$C$17,"",INDEX($AB$4:$AP$19,ROW()-ROW(X$10),$C$17-1)) -> 0.25 | Y15: 7.262775522 | Z15: 7.262775522 | AL15: 0.999 | AM15: 0.98 | AN15: 0.9 | AO15: 0.95 | AP15: 0.95
B16: ="(2-" & ROWS(AB28:AC10027) & ")" -> (2-10000) | C16: (2-16) | X16: =IF(ROW()-ROW(X$10)>$C$17,"",INDEX($AB$4:$AP$19,ROW()-ROW(X$10),$C$17-1)) -> 0.5 | Y16: 9.810050439 | Z16: 9.810050439 | AM16: 0.999 | AN16: 0.95 | AO16: 0.97 | AP16: 0.97
B17: =SUM(IF(ISNUMBER(C34:C10033),1,0)) -> 3474 | C17: 10 | X17: =IF(ROW()-ROW(X$10)>$C$17,"",INDEX($AB$4:$AP$19,ROW()-ROW(X$10),$C$17-1)) -> 0.75 | Y17: 12.10784247 | Z17: 12.10784247 | AN17: 0.999 | AO17: 0.99 | AP17: 0.99
X18: =IF(ROW()-ROW(X$10)>$C$17,"",INDEX($AB$4:$AP$19,ROW()-ROW(X$10),$C$17-1)) -> 0.9 | Y18: 15.24372472 | Z18: 15.24372472 | AO18: 0.999 | AP18: 0.995
B19: =IF(OR(B11="b",B11="sl"),"lower bound","") ->  | C19: 0 | D19: bl | X19: =IF(ROW()-ROW(X$10)>$C$17,"",INDEX($AB$4:$AP$19,ROW()-ROW(X$10),$C$17-1)) -> 0.95 | Y19: 18.03454766 | Z19: 18.03454766 | AP19: 0.999
B20: =IF(OR(B11="su",B11="b"),"upper bound","") ->  | C20: 40 | D20: bu | X20: =IF(ROW()-ROW(X$10)>$C$17,"",INDEX($AB$4:$AP$19,ROW()-ROW(X$10),$C$17-1)) -> 0.999 | Y20: 31.16550664 | Z20: 31.16550664
X21: =IF(ROW()-ROW(X$10)>$C$17,"",INDEX($AB$4:$AP$19,ROW()-ROW(X$10),$C$17-1)) ->  | AB21: intermediate calcualations (do not modify)
B22: regularization | X22: =IF(ROW()-ROW(X$10)>$C$17,"",INDEX($AB$4:$AP$19,ROW()-ROW(X$10),$C$17-1)) -> 
B23: (0,1, …, 10) | C23: 0 | X23: =IF(ROW()-ROW(X$10)>$C$17,"",INDEX($AB$4:$AP$19,ROW()-ROW(X$10),$C$17-1)) -> 
X24: =IF(ROW()-ROW(X$10)>$C$17,"",INDEX($AB$4:$AP$19,ROW()-ROW(X$10),$C$17-1)) ->  | AB24: metalog distributions (y = probability, Mn = x = quantile function, mn = y' = probability density function)
B25: source | C25: Tom Keelin | X25: =IF(ROW()-ROW(X$10)>$C$17,"",INDEX($AB$4:$AP$19,ROW()-ROW(X$10),$C$17-1)) ->  | AB25: input parameters | AG25: metalog quantile functions Mn and density functions mn with user-specified bounds | BL25: unbounded metalog | CQ25: feasibility requirement (mn>0 for all yi) satisfied | DH25: matrix inversion successful | DY25: validity of input data | EB25: messages
B26: field | C26: fish biology | X26: =IF(ROW()-ROW(X$10)>$C$17,"",INDEX($AB$4:$AP$19,ROW()-ROW(X$10),$C$17-1)) ->  | AB26: y | AC26: x | AE26: ="large plots (n = " & C17 & ")" -> large plots (n = 10) | AG26: =IF($B$11="u","",IF($B$11="sl"," log",IF($B$11="b"," logit",""))) ->  | BL26: quantile functons | CA26: density functions | CQ26: =IF(OR(DH26="",DH26="no"),"",IF(AND(DH26="yes",MIN(CQ31:CQ135)>0),"yes","no")) -> yes | CR26: yes | CS26: yes | CT26: yes | CU26: no | CV26: no | CW26: yes | CX26: yes | CY26: yes | CZ26: yes | DA26: yes | DB26: yes | DC26: yes | DD26: yes | DE26: yes | DH26: =IF(EC90="","",IF(OR(EC90="determ",EC90="error"),"no","yes")) -> yes | DI26: yes | DJ26: yes | DK26: yes | DL26: yes | DM26: yes | DN26: yes | DO26: yes | DP26: yes | DQ26: yes | DR26: yes | DS26: =IF(EN90="","",IF(OR(EN90="determ",EN90="error"),"no","yes")) -> yes | DT26: =IF(EO90="","",IF(OR(EO90="determ",EO90="error"),"no","yes")) -> yes | DU26: =IF(EP90="","",IF(OR(EP90="determ",EP90="error"),"no","yes")) -> yes | DV26: =IF(EQ90="","",IF(OR(EQ90="determ",EQ90="error"),"no","yes")) -> yes | DY26: (values below should be equal) | EB26: condition | EC26: global | ED26: content
B27: short name | C27: steelhead weight | X27: coefficients | AC27: (sorted) | AD27: y | AE27: cdf | AF27: pdf | AG27: M2 | AH27: M3 | AI27: M4 | AJ27: M5 | AK27: M6 | AL27: M7 | AM27: M8 | AN27: M9 | AO27: M10 | AP27: M11 | AQ27: M12 | AR27: M13 | AS27: M14 | AT27: M15 | AU27: M16 | AV27: m2 | AW27: m3 | AX27: m4 | AY27: m5 | AZ27: m6 | BA27: m7 | BB27: m8 | BC27: m9 | BD27: m10 | BE27: m11 | BF27: m12 | BG27: m13 | BH27: m14 | BI27: m15 | BJ27: m16 | BL27: M2 | BM27: M3 | BN27: M4 | BO27: M5 | BP27: M6 | BQ27: M7 | BR27: M8 | BS27: M9 | BT27: M10 | BU27: M11 | BV27: M12 | BW27: M13 | BX27: M14 | BY27: M15 | BZ27: M16 | CA27: m2 | CB27: m3 | CC27: m4 | CD27: m5 | CE27: m6 | CF27: m7 | CG27: m8 | CH27: m9 | CI27: m10 | CJ27: m11 | CK27: m12 | CL27: m13 | CM27: m14 | CN27: m15 | CO27: m16 | CQ27: (if "no", inputs (x,y) are not feasible for this n) | DG27: dererminant | DH27: =MDETERM(MMULT(TRANSPOSE(INDEX($DG$30:$DP$10029,1,1):INDEX($DG$30:$DP$10029,$B$17,EC89)),INDEX($DG$30:$DP$10029,1,1):INDEX($DG$30:$DP$10029,$B$17,EC89))) -> 39366788.55 | DI27: =MDETERM(MMULT(TRANSPOSE(INDEX($DG$30:$DP$10029,1,1):INDEX($DG$30:$DP$10029,$B$17,ED89)),INDEX($DG$30:$DP$10029,1,1):INDEX($DG$30:$DP$10029,$B$17,ED89))) -> 4.810243029e+10 | DJ27: =MDETERM(MMULT(TRANSPOSE(INDEX($DG$30:$DP$10029,1,1):INDEX($DG$30:$DP$10029,$B$17,EE89)),INDEX($DG$30:$DP$10029,1,1):INDEX($DG$30:$DP$10029,$B$17,EE89))) -> 1.17627879e+12 | DK27: =MDETERM(MMULT(TRANSPOSE(INDEX($DG$30:$DP$10029,1,1):INDEX($DG$30:$DP$10029,$B$17,EF89)),INDEX($DG$30:$DP$10029,1,1):INDEX($DG$30:$DP$10029,$B$17,EF89))) -> 2.702537679e+12 | DL27: =MDETERM(MMULT(TRANSPOSE(INDEX($DG$30:$DP$10029,1,1):INDEX($DG$30:$DP$10029,$B$17,EG89)),INDEX($DG$30:$DP$10029,1,1):INDEX($DG$30:$DP$10029,$B$17,EG89))) -> 1.083869199e+13 | DM27: =MDETERM(MMULT(TRANSPOSE(INDEX($DG$30:$DP$10029,1,1):INDEX($DG$30:$DP$10029,$B$17,EH89)),INDEX($DG$30:$DP$10029,1,1):INDEX($DG$30:$DP$10029,$B$17,EH89))) -> 6.874717156e+10 | DN27: =MDETERM(MMULT(TRANSPOSE(INDEX($DG$30:$DP$10029,1,1):INDEX($DG$30:$DP$10029,$B$17,EI89)),INDEX($DG$30:$DP$10029,1,1):INDEX($DG$30:$DP$10029,$B$17,EI89))) -> 2.52110972e+10 | DO27: =MDETERM(MMULT(TRANSPOSE(INDEX($DG$30:$DP$10029,1,1):INDEX($DG$30:$DP$10029,$B$17,EJ89)),INDEX($DG$30:$DP$10029,1,1):INDEX($DG$30:$DP$10029,$B$17,EJ89))) -> 14476098.39 | DP27: =MDETERM(MMULT(TRANSPOSE(INDEX($DG$30:$DV$10029,1,1):INDEX($DG$30:$DV$10029,$B$17,EK89)),INDEX($DG$30:$DV$10029,1,1):INDEX($DG$30:$DV$10029,$B$17,EK89))) -> 13788.90276 | DQ27: =MDETERM(MMULT(TRANSPOSE(INDEX($DG$30:$DV$10029,1,1):INDEX($DG$30:$DV$10029,$B$17,EL89)),INDEX($DG$30:$DV$10029,1,1):INDEX($DG$30:$DV$10029,$B$17,EL89))) -> 0.01998704624 | DR27: =MDETERM(MMULT(TRANSPOSE(INDEX($DG$30:$DV$10029,1,1):INDEX($DG$30:$DV$10029,$B$17,EM89)),INDEX($DG$30:$DV$10029,1,1):INDEX($DG$30:$DV$10029,$B$17,EM89))) -> 1.715281321e-06 | DS27: =MDETERM(MMULT(TRANSPOSE(INDEX($DG$30:$DV$10029,1,1):INDEX($DG$30:$DV$10029,$B$17,EN89)),INDEX($DG$30:$DV$10029,1,1):INDEX($DG$30:$DV$10029,$B$17,EN89))) -> 2.233923907e-13 | DT27: =MDETERM(MMULT(TRANSPOSE(INDEX($DG$30:$DV$10029,1,1):INDEX($DG$30:$DV$10029,$B$17,EO89)),INDEX($DG$30:$DV$10029,1,1):INDEX($DG$30:$DV$10029,$B$17,EO89))) -> 4.761802646e-20 | DU27: =MDETERM(MMULT(TRANSPOSE(INDEX($DG$30:$DV$10029,1,1):INDEX($DG$30:$DV$10029,$B$17,EP89)),INDEX($DG$30:$DV$10029,1,1):INDEX($DG$30:$DV$10029,$B$17,EP89))) -> 1.5235233e-29 | DV27: =MDETERM(MMULT(TRANSPOSE(INDEX($DG$30:$DV$10029,1,1):INDEX($DG$30:$DV$10029,$B$17,EQ89)),INDEX($DG$30:$DV$10029,1,1):INDEX($DG$30:$DV$10029,$B$17,EQ89))) -> 2.912453488e-37 | DZ27: x data | EB27: =IF(AND(B11<>"u",B11<>"sl",B11<>"su",B11<>"b"),1,0) -> 0 | EC27: =EB27 -> 0 | ED27: you must enter either u, sl, sb, or b for metalog bounds.
B28: description | C28: Catch-and-release steelhead weights during 2010-2014, Babine River, B.C. | X28: a1 | Y28: =INDEX(EC90:EQ90,C$17-1) -> 9.810050439 | AB28: =IF(AC28="","",(ROW()-ROW($AB$27))/($B$17+1)) -> 0.0002877697842 | AC28: =IF(C$34="","",IF(ROW()-ROW(S$27)>B$17,"",SMALL(INDEX($C$34:$C$10033,1,1):INDEX($C$34:$C$10033,B$17,1),ROW()-ROW(S$27)))) -> 2 | AD28: =IF(OR($B$11="b",$B$11="sl"),0,NA()) ->  | AE28: =IF(OR($B$11="b",$B$11="sl"),IF(INDEX(AG28:AU28,1,$C$17-1)="",NA(),INDEX(AG28:AU28,1,$C$17-1)),NA()) ->  | AF28: =IF(OR($B$11="b",$B$11="sl"),IF(INDEX(AV28:BJ28,1,$C$17-1)="",NA(),INDEX(AV28:BJ28,1,$C$17-1)),NA()) ->  | AG28: =IF(OR($B$11="b",$B$11="sl"),IF(BL29="",NA(),$C$19),NA()) ->  | AV28: =IF(OR($B$11="b",$B$11="sl"),IF(CA29="",NA(),0),NA()) ->  | DY28: total | DZ28: =COUNTA(INDEX(AC28:AC10027,1,1):INDEX(AC28:AC10027,B17,1)) -> 3474 | EB28: =IF(AND(OR(B11="sl",B11="b"),NOT(ISNUMBER(C19))),1,0) -> 0 | EC28: 0 | ED28: you must enter a numeric lower bound | EM28: regularization
X29: a2 | Y29: =INDEX(EC91:EQ91,C$17-1) -> -20.88613523 | AB29: 0.0005755395683 | AC29: =IF(C$34="","",IF(ROW()-ROW(S$27)>B$17,"",SMALL(INDEX($C$34:$C$10033,1,1):INDEX($C$34:$C$10033,B$17,1),ROW()-ROW(S$27)))) -> 3 | AD29: 0.001 | AE29: =INDEX(AG29:AU29,1,$C$17-1) -> 2.749356523 | AF29: =INDEX(AV29:BJ29,1,$C$17-1) -> 0.003111584461 | AG29: =IF(BL29="",NA(),IF($B$11="u",BL29,IF($B$11="sl",$C$19+EXP(BL29),IF($B$11="su",$C$20-EXP(-BL29),IF($B$11="b",($C$19+$C$20*EXP(BL29))/(1+EXP(BL29)),NA()))))) -> -5.413837211 | AH29: =IF(BM29="",NA(),IF($B$11="u",BM29,IF($B$11="sl",$C$19+EXP(BM29),IF($B$11="su",$C$20-EXP(-BM29),IF($B$11="b",($C$19+$C$20*EXP(BM29))/(1+EXP(BM29)),NA()))))) -> -0.5797145626 | AI29: =IF(BN29="",NA(),IF($B$11="u",BN29,IF($B$11="sl",$C$19+EXP(BN29),IF($B$11="su",$C$20-EXP(-BN29),IF($B$11="b",($C$19+$C$20*EXP(BN29))/(1+EXP(BN29)),NA()))))) -> -0.3607798432 | AJ29: =IF(BO29="",NA(),IF($B$11="u",BO29,IF($B$11="sl",$C$19+EXP(BO29),IF($B$11="su",$C$20-EXP(-BO29),IF($B$11="b",($C$19+$C$20*EXP(BO29))/(1+EXP(BO29)),NA()))))) -> 2.679499127 | AK29: =IF(BP29="",NA(),IF($B$11="u",BP29,IF($B$11="sl",$C$19+EXP(BP29),IF($B$11="su",$C$20-EXP(-BP29),IF($B$11="b",($C$19+$C$20*EXP(BP29))/(1+EXP(BP29)),NA()))))) ->  | AL29: =IF(BQ29="",NA(),IF($B$11="u",BQ29,IF($B$11="sl",$C$19+EXP(BQ29),IF($B$11="su",$C$20-EXP(-BQ29),IF($B$11="b",($C$19+$C$20*EXP(BQ29))/(1+EXP(BQ29)),NA()))))) ->  | AM29: =IF(BR29="",NA(),IF($B$11="u",BR29,IF($B$11="sl",$C$19+EXP(BR29),IF($B$11="su",$C$20-EXP(-BR29),IF($B$11="b",($C$19+$C$20*EXP(BR29))/(1+EXP(BR29)),NA()))))) -> 2.85446191 | AN29: =IF(BS29="",NA(),IF($B$11="u",BS29,IF($B$11="sl",$C$19+EXP(BS29),IF($B$11="su",$C$20-EXP(-BS29),IF($B$11="b",($C$19+$C$20*EXP(BS29))/(1+EXP(BS29)),NA()))))) -> 2.512248801 | AO29: =IF(BT29="",NA(),IF($B$11="u",BT29,IF($B$11="sl",$C$19+EXP(BT29),IF($B$11="su",$C$20-EXP(-BT29),IF($B$11="b",($C$19+$C$20*EXP(BT29))/(1+EXP(BT29)),NA()))))) -> 2.749356523 | AP29: =IF(BU29="",NA(),IF($B$11="u",BU29,IF($B$11="sl",$C$19+EXP(BU29),IF($B$11="su",$C$20-EXP(-BU29),IF($B$11="b",($C$19+$C$20*EXP(BU29))/(1+EXP(BU29)),NA()))))) -> 2.734130653 | AQ29: =IF(BV29="",NA(),IF($B$11="u",BV29,IF($B$11="sl",$C$19+EXP(BV29),IF($B$11="su",$C$20-EXP(-BV29),IF($B$11="b",($C$19+$C$20*EXP(BV29))/(1+EXP(BV29)),NA()))))) -> 2.76075578 | AR29: =IF(BW29="",NA(),IF($B$11="u",BW29,IF($B$11="sl",$C$19+EXP(BW29),IF($B$11="su",$C$20-EXP(-BW29),IF($B$11="b",($C$19+$C$20*EXP(BW29))/(1+EXP(BW29)),NA()))))) -> 2.766050525 | AS29: =IF(BX29="",NA(),IF($B$11="u",BX29,IF($B$11="sl",$C$19+EXP(BX29),IF($B$11="su",$C$20-EXP(-BX29),IF($B$11="b",($C$19+$C$20*EXP(BX29))/(1+EXP(BX29)),NA()))))) -> 2.775737679 | AT29: =IF(BY29="",NA(),IF($B$11="u",BY29,IF($B$11="sl",$C$19+EXP(BY29),IF($B$11="su",$C$20-EXP(-BY29),IF($B$11="b",($C$19+$C$20*EXP(BY29))/(1+EXP(BY29)),NA()))))) -> 2.813873772 | AU29: =IF(BZ29="",NA(),IF($B$11="u",BZ29,IF($B$11="sl",$C$19+EXP(BZ29),IF($B$11="su",$C$20-EXP(-BZ29),IF($B$11="b",($C$19+$C$20*EXP(BZ29))/(1+EXP(BZ29)),NA()))))) -> 2.927741894 | AV29: =IF(CA29="",NA(),IF($B$11="u",CA29,IF($B$11="sl",CA29*EXP(-BL29),IF($B$11="su",CA29*EXP(BL29),IF($B$11="b",CA29*(1+EXP(BL29))^2/(($C$20-$C$19)*EXP(BL29)),NA()))))) -> 0.0004425897428 | AW29: =IF(CB29="",NA(),IF($B$11="u",CB29,IF($B$11="sl",CB29*EXP(-BM29),IF($B$11="su",CB29*EXP(BM29),IF($B$11="b",CB29*(1+EXP(BM29))^2/(($C$20-$C$19)*EXP(BM29)),NA()))))) -> 0.0006998102368 | AX29: =IF(CC29="",NA(),IF($B$11="u",CC29,IF($B$11="sl",CC29*EXP(-BN29),IF($B$11="su",CC29*EXP(BN29),IF($B$11="b",CC29*(1+EXP(BN29))^2/(($C$20-$C$19)*EXP(BN29)),NA()))))) -> 0.0007303570746 | AY29: =IF(CD29="",NA(),IF($B$11="u",CD29,IF($B$11="sl",CD29*EXP(-BO29),IF($B$11="su",CD29*EXP(BO29),IF($B$11="b",CD29*(1+EXP(BO29))^2/(($C$20-$C$19)*EXP(BO29)),NA()))))) -> 0.002581067344 | AZ29: =IF(CE29="",NA(),IF($B$11="u",CE29,IF($B$11="sl",CE29*EXP(-BP29),IF($B$11="su",CE29*EXP(BP29),IF($B$11="b",CE29*(1+EXP(BP29))^2/(($C$20-$C$19)*EXP(BP29)),NA()))))) ->  | BA29: =IF(CF29="",NA(),IF($B$11="u",CF29,IF($B$11="sl",CF29*EXP(-BQ29),IF($B$11="su",CF29*EXP(BQ29),IF($B$11="b",CF29*(1+EXP(BQ29))^2/(($C$20-$C$19)*EXP(BQ29)),NA()))))) ->  | BB29: =IF(CG29="",NA(),IF($B$11="u",CG29,IF($B$11="sl",CG29*EXP(-BR29),IF($B$11="su",CG29*EXP(BR29),IF($B$11="b",CG29*(1+EXP(BR29))^2/(($C$20-$C$19)*EXP(BR29)),NA()))))) -> 0.002712102362 | BC29: =IF(CH29="",NA(),IF($B$11="u",CH29,IF($B$11="sl",CH29*EXP(-BS29),IF($B$11="su",CH29*EXP(BS29),IF($B$11="b",CH29*(1+EXP(BS29))^2/(($C$20-$C$19)*EXP(BS29)),NA()))))) -> 0.001391740123 | BD29: =IF(CI29="",NA(),IF($B$11="u",CI29,IF($B$11="sl",CI29*EXP(-BT29),IF($B$11="su",CI29*EXP(BT29),IF($B$11="b",CI29*(1+EXP(BT29))^2/(($C$20-$C$19)*EXP(BT29)),NA()))))) -> 0.003111584461 | BE29: =IF(CJ29="",NA(),IF($B$11="u",CJ29,IF($B$11="sl",CJ29*EXP(-BU29),IF($B$11="su",CJ29*EXP(BU29),IF($B$11="b",CJ29*(1+EXP(BU29))^2/(($C$20-$C$19)*EXP(BU29)),NA()))))) -> 0.002418693352 | BF29: =IF(CK29="",NA(),IF($B$11="u",CK29,IF($B$11="sl",CK29*EXP(-BV29),IF($B$11="su",CK29*EXP(BV29),IF($B$11="b",CK29*(1+EXP(BV29))^2/(($C$20-$C$19)*EXP(BV29)),NA()))))) -> 0.002821091464 | BG29: =IF(CL29="",NA(),IF($B$11="u",CL29,IF($B$11="sl",CL29*EXP(-BW29),IF($B$11="su",CL29*EXP(BW29),IF($B$11="b",CL29*(1+EXP(BW29))^2/(($C$20-$C$19)*EXP(BW29)),NA()))))) -> 0.004167053881 | BH29: =IF(CM29="",NA(),IF($B$11="u",CM29,IF($B$11="sl",CM29*EXP(-BX29),IF($B$11="su",CM29*EXP(BX29),IF($B$11="b",CM29*(1+EXP(BX29))^2/(($C$20-$C$19)*EXP(BX29)),NA()))))) -> 0.003522880979 | BI29: =IF(CN29="",NA(),IF($B$11="u",CN29,IF($B$11="sl",CN29*EXP(-BY29),IF($B$11="su",CN29*EXP(BY29),IF($B$11="b",CN29*(1+EXP(BY29))^2/(($C$20-$C$19)*EXP(BY29)),NA()))))) -> 0.002968982092 | BJ29: =IF(CO29="",NA(),IF($B$11="u",CO29,IF($B$11="sl",CO29*EXP(-BZ29),IF($B$11="su",CO29*EXP(BZ29),IF($B$11="b",CO29*(1+EXP(BZ29))^2/(($C$20-$C$19)*EXP(BZ29)),NA()))))) -> 0.001513292396 | BL29: =IF(CA29="","",EC$90+EC$91*LN($AD29/(1-$AD29))) -> -5.413837211 | BM29: =IF(CB29="","",ED$90+ED$91*LN($AD29/(1-$AD29))+ED$92*($AD29-0.5)*LN($AD29/(1-$AD29))) -> -0.5797145626 | BN29: =IF(CC29="","",EE$90+EE$91*LN($AD29/(1-$AD29))+EE$92*($AD29-0.5)*LN($AD29/(1-$AD29))+EE$93*($AD29-0.5)) -> -0.3607798432 | BO29: =IF(CD29="","",EF$90+EF$91*LN($AD29/(1-$AD29))+EF$92*($AD29-0.5)*LN($AD29/(1-$AD29))+EF$93*($AD29-0.5)+EF$94*($AD29-0.5)^2) -> 2.679499127 | BP29: =IF(CE29="","",EG$90+EG$91*LN($AD29/(1-$AD29))+EG$92*($AD29-0.5)*LN($AD29/(1-$AD29))+EG$93*($AD29-0.5)+EG$94*($AD29-0.5)^2+EG$95*($AD29-0.5)^2*LN($AD29/(1-$AD29))) ->  | BQ29: =IF(CF29="","",EH$90+EH$91*LN($AD29/(1-$AD29))+EH$92*($AD29-0.5)*LN($AD29/(1-$AD29))+EH$93*($AD29-0.5)+EH$94*($AD29-0.5)^2+EH$95*($AD29-0.5)^2*LN($AD29/(1-$AD29))+EH$96*($AD29-0.5)^3) ->  | BR29: =IF(CG29="","",EI$90+EI$91*LN($AD29/(1-$AD29))+EI$92*($AD29-0.5)*LN($AD29/(1-$AD29))+EI$93*($AD29-0.5)+EI$94*($AD29-0.5)^2+EI$95*($AD29-0.5)^2*LN($AD29/(1-$AD29))+EI$96*($AD29-0.5)^3+EI$97*($AD29-0.5)^3*LN($AD29/(1-$AD29))) -> 2.85446191 | BS29: =IF(CH29="","",EJ$90+EJ$91*LN($AD29/(1-$AD29))+EJ$92*($AD29-0.5)*LN($AD29/(1-$AD29))+EJ$93*($AD29-0.5)+EJ$94*($AD29-0.5)^2+EJ$95*($AD29-0.5)^2*LN($AD29/(1-$AD29))+EJ$96*($AD29-0.5)^3+EJ$97*($AD29-0.5)^3*LN($AD29/(1-$AD29))+EJ$98*($AD29-0.5)^4) -> 2.512248801 | BT29: =IF(CI29="","",EK$90+EK$91*LN($AD29/(1-$AD29))+EK$92*($AD29-0.5)*LN($AD29/(1-$AD29))+EK$93*($AD29-0.5)+EK$94*($AD29-0.5)^2+EK$95*($AD29-0.5)^2*LN($AD29/(1-$AD29))+EK$96*($AD29-0.5)^3+EK$97*($AD29-0.5)^3*LN($AD29/(1-$AD29))+EK$98*($AD29-0.5)^4+EK$99*($AD29-0.5)^4*LN($AD29/(1-$AD29))+EK$100*($AD29-0.5)^5+EK$101*($AD29-0.5)^5*LN($AD29/(1-$AD29))+EK$102*($AD29-0.5)^6+EK$103*($AD29-0.5)^6*LN($AD29/(1-$AD29))+EK$104*($AD29-0.5)^7+EK$105*($AD29-0.5)^7*LN($AD29/(1-$AD29))) -> 2.749356523 | BU29: 2.734130653 | BV29: 2.76075578 | BW29: =IF(CL29="","",EN$90+EN$91*LN($AD29/(1-$AD29))+EN$92*($AD29-0.5)*LN($AD29/(1-$AD29))+EN$93*($AD29-0.5)+EN$94*($AD29-0.5)^2+EN$95*($AD29-0.5)^2*LN($AD29/(1-$AD29))+EN$96*($AD29-0.5)^3+EN$97*($AD29-0.5)^3*LN($AD29/(1-$AD29))+EN$98*($AD29-0.5)^4+EN$99*($AD29-0.5)^4*LN($AD29/(1-$AD29))+EN$100*($AD29-0.5)^5+EN$101*($AD29-0.5)^5*LN($AD29/(1-$AD29))+EN$102*($AD29-0.5)^6+EN$103*($AD29-0.5)^6*LN($AD29/(1-$AD29))+EN$104*($AD29-0.5)^7+EN$105*($AD29-0.5)^7*LN($AD29/(1-$AD29))) -> 2.766050525 | BX29: =IF(CM29="","",EO$90+EO$91*LN($AD29/(1-$AD29))+EO$92*($AD29-0.5)*LN($AD29/(1-$AD29))+EO$93*($AD29-0.5)+EO$94*($AD29-0.5)^2+EO$95*($AD29-0.5)^2*LN($AD29/(1-$AD29))+EO$96*($AD29-0.5)^3+EO$97*($AD29-0.5)^3*LN($AD29/(1-$AD29))+EO$98*($AD29-0.5)^4+EO$99*($AD29-0.5)^4*LN($AD29/(1-$AD29))+EO$100*($AD29-0.5)^5+EO$101*($AD29-0.5)^5*LN($AD29/(1-$AD29))+EO$102*($AD29-0.5)^6+EO$103*($AD29-0.5)^6*LN($AD29/(1-$AD29))+EO$104*($AD29-0.5)^7+EO$105*($AD29-0.5)^7*LN($AD29/(1-$AD29))) -> 2.775737679 | BY29: =IF(CN29="","",EP$90+EP$91*LN($AD29/(1-$AD29))+EP$92*($AD29-0.5)*LN($AD29/(1-$AD29))+EP$93*($AD29-0.5)+EP$94*($AD29-0.5)^2+EP$95*($AD29-0.5)^2*LN($AD29/(1-$AD29))+EP$96*($AD29-0.5)^3+EP$97*($AD29-0.5)^3*LN($AD29/(1-$AD29))+EP$98*($AD29-0.5)^4+EP$99*($AD29-0.5)^4*LN($AD29/(1-$AD29))+EP$100*($AD29-0.5)^5+EP$101*($AD29-0.5)^5*LN($AD29/(1-$AD29))+EP$102*($AD29-0.5)^6+EP$103*($AD29-0.5)^6*LN($AD29/(1-$AD29))+EP$104*($AD29-0.5)^7+EP$105*($AD29-0.5)^7*LN($AD29/(1-$AD29))) -> 2.813873772 | BZ29: =IF(CO29="","",EQ$90+EQ$91*LN($AD29/(1-$AD29))+EQ$92*($AD29-0.5)*LN($AD29/(1-$AD29))+EQ$93*($AD29-0.5)+EQ$94*($AD29-0.5)^2+EQ$95*($AD29-0.5)^2*LN($AD29/(1-$AD29))+EQ$96*($AD29-0.5)^3+EQ$97*($AD29-0.5)^3*LN($AD29/(1-$AD29))+EQ$98*($AD29-0.5)^4+EQ$99*($AD29-0.5)^4*LN($AD29/(1-$AD29))+EQ$100*($AD29-0.5)^5+EQ$101*($AD29-0.5)^5*LN($AD29/(1-$AD29))+EQ$102*($AD29-0.5)^6+EQ$103*($AD29-0.5)^6*LN($AD29/(1-$AD29))+EQ$104*($AD29-0.5)^7+EQ$105*($AD29-0.5)^7*LN($AD29/(1-$AD29))) -> 2.927741894 | CA29: =IF(AND($EC$41=0,CQ$26="yes"),CQ31,"") -> 0.0004425897428 | CB29: 0.0006998102368 | CC29: 0.0007303570746 | CD29: 0.002581067344 | CG29: 0.002712102362 | CH29: 0.001391740123 | CI29: 0.003111584461 | CJ29: 0.002418693352 | CK29: 0.002821091464 | CL29: 0.004167053881 | CM29: 0.003522880979 | CN29: 0.002968982092 | CO29: 0.001513292396 | CQ29: m2 | CR29: m3 | CS29: m4 | CT29: m5 | CU29: m6 | CV29: m7 | CW29: m8 | CX29: m9 | CY29: m10 | CZ29: m11 | DA29: m12 | DB29: m13 | DC29: m14 | DD29: m15 | DE29: m16 | DG29: Y16 | DW29: z | DY29: numeric | DZ29: =SUM(IF(ISNUMBER(AC28:AC10027),1,0)) -> 3474 | EB29: =IF(AND(OR(B11="su",B11="b"),NOT(ISNUMBER(C20))),1,0) -> 0 | EC29: 0 | ED29: you must enter a numeric upper bound | EM29: l list
X30: a3 | Y30: =INDEX(EC92:EQ92,C$17-1) -> -10.81882824 | AB30: 0.0008633093525 | AC30: =IF(C$34="","",IF(ROW()-ROW(S$27)>B$17,"",SMALL(INDEX($C$34:$C$10033,1,1):INDEX($C$34:$C$10033,B$17,1),ROW()-ROW(S$27)))) -> 3 | AD30: 0.003 | AE30: 3.143878192 | AF30: 0.007468345242 | AG30: -2.929559844 | AH30: 0.9848585049 | AI30: 1.138434063 | AJ30: 3.106297593 | AM30: 3.255412541 | AN30: 3.244077926 | AO30: 3.143878192 | AP30: 3.189548752 | AQ30: 3.169014505 | AR30: 3.107118303 | AS30: 3.133511308 | AT30: 3.165846085 | AU30: 3.364033793 | AV30: 0.001325111032 | AW30: 0.00211580596 | AX30: 0.00220783146 | AY30: 0.007663226357 | BB30: 0.008302311234 | BC30: 0.004991187697 | BD30: 0.007468345242 | BE30: 0.00719453824 | BF30: 0.007635492154 | BG30: 0.007721315986 | BH30: 0.007979330414 | BI30: 0.009253311155 | BJ30: 0.01739892204 | BL30: -2.929559844 | BM30: 0.9848585049 | BN30: 1.138434063 | BO30: 3.106297593 | BR30: 3.255412541 | BS30: 3.244077926 | BT30: 3.143878192 | BU30: 3.189548752 | BV30: 3.169014505 | BW30: 3.107118303 | BX30: 3.133511308 | BY30: 3.165846085 | BZ30: 3.364033793 | CA30: 0.001325111032 | CB30: 0.00211580596 | CC30: 0.00220783146 | CD30: 0.007663226357 | CG30: 0.008302311234 | CH30: 0.004991187697 | CI30: 0.007468345242 | CJ30: 0.00719453824 | CK30: 0.007635492154 | CL30: 0.007721315986 | CM30: 0.007979330414 | CN30: 0.009253311155 | CO30: 0.01739892204 | DG30: =IF(AB28="","",1) -> 1 | DH30: =IF(AB28="","",LN(AB28/(1-AB28))) -> -8.153061947 | DI30: =IF(AB28="","",(AB28-0.5)*DH30) -> 4.074184769 | DJ30: =IF(AB28="","",AB28-0.5) -> -0.4997122302 | DK30: =IF(AB28="","",DJ30^2) -> 0.249712313 | DL30: =IF(AB28="","",DH30*DK30) -> -2.035919957 | DM30: =IF(AB28="","",DJ30^3) -> -0.1247842969 | DN30: =IF(AB28="","",DH30*DM30) -> 1.017374102 | DO30: =IF(AB28="","",DJ30^4) -> 0.06235623928 | DP30: =IF($AB28="","",$DH30*DO30) -> -0.5083942816 | DQ30: =IF(AB28="","",DJ30^5) -> -0.0311601754 | DR30: =IF($AB28="","",DH30*DQ30) -> 0.2540508403 | DS30: =IF(AB28="","",DJ30^6) -> 0.01557112074 | DT30: =IF($AB28="","",DH30*DS30) -> -0.126952312 | DU30: =IF(AB28="","",DJ30^7) -> -0.007781079473 | DV30: =IF($AB28="","",DH30*DU30) -> 0.06343962295 | DW30: =IF(AB28="","",IF($B$11="u",AC28,IF($B$11="sl",LN(AC28-$C$19),IF($B$11="su",-LN($C$20-AC28),IF($B$11="b",LN((AC28-$C$19)/($C$20-AC28)),""))))) -> 2 | DY30: contiguous | EB30: =IF(DZ28<>DZ29,1,0) -> 0 | EC30: 0 | ED30: invalid input parameters: x data must be numeric | EM30: 0
X31: a4 | Y31: =INDEX(EC93:EQ93,C$17-1) -> 91.06425365 | AB31: 0.001151079137 | AC31: =IF(C$34="","",IF(ROW()-ROW(S$27)>B$17,"",SMALL(INDEX($C$34:$C$10033,1,1):INDEX($C$34:$C$10033,B$17,1),ROW()-ROW(S$27)))) -> 3 | AD31: 0.006 | AE31: 3.442562693 | AF31: 0.01306381898 | AG31: -1.358207153 | AH31: 1.963669298 | AI31: 2.076585934 | AJ31: 3.381778794 | AM31: 3.505326699 | AN31: 3.622657038 | AO31: 3.442562693 | AP31: 3.48124761 | AQ31: 3.453779403 | AR31: 3.411706731 | AS31: 3.421071501 | AT31: 3.413248712 | AU31: 3.45006471 | AV31: 0.002642247474 | AW31: 0.004268945146 | AX31: 0.004453031401 | AY31: 0.01477006822 | BB31: 0.01660767387 | BC31: 0.01233161543 | BD31: 0.01306381898 | BE31: 0.01408358914 | BF31: 0.01394274829 | BG31: 0.01231818868 | BH31: 0.01319235201 | BI31: 0.01488546639 | BJ31: 0.04521706407 | BL31: -1.358207153 | BM31: 1.963669298 | BN31: 2.076585934 | BO31: 3.381778794 | BR31: 3.505326699 | BS31: 3.622657038 | BT31: 3.442562693 | BU31: 3.48124761 | BV31: 3.453779403 | BW31: 3.411706731 | BX31: 3.421071501 | BY31: 3.413248712 | BZ31: 3.45006471 | CA31: 0.002642247474 | CB31: 0.004268945146 | CC31: 0.004453031401 | CD31: 0.01477006822 | CG31: 0.01660767387 | CH31: 0.01233161543 | CI31: 0.01306381898 | CJ31: 0.01408358914 | CK31: 0.01394274829 | CL31: 0.01231818868 | CM31: 0.01319235201 | CN31: 0.01488546639 | CO31: 0.04521706407 | CQ31: =IF(OR(DH$26="",DH$26="no"),"",(EC$91/($AD29*(1-$AD29)))^-1) -> 0.0004425897428 | CR31: =IF(OR(DI$26="",DI$26="no"),"",(ED$91/($AD29*(1-$AD29))+ED$92*(($AD29-0.5)/($AD29*(1-$AD29))+LN($AD29/(1-$AD29))))^-1) -> 0.0006998102368 | CS31: =IF(OR(DJ$26="",DJ$26="no"),"",(EE$91/($AD29*(1-$AD29))+EE$92*(($AD29-0.5)/($AD29*(1-$AD29))+LN($AD29/(1-$AD29)))+EE$93)^-1) -> 0.0007303570746 | CT31: =IF(OR(DK$26="",DK$26="no"),"",(EF$91/($AD29*(1-$AD29))+EF$92*(($AD29-0.5)/($AD29*(1-$AD29))+LN($AD29/(1-$AD29)))+EF$93+2*EF$94*($AD29-0.5))^-1) -> 0.002581067344 | CU31: =IF(OR(DL$26="",DL$26="no"),"",(EG$91/($AD29*(1-$AD29))+EG$92*(($AD29-0.5)/($AD29*(1-$AD29))+LN($AD29/(1-$AD29)))+EG$93+2*EG$94*($AD29-0.5)+EG$95*(($AD29-0.5)^2/($AD29*(1-$AD29))+2*($AD29-0.5)*LN($AD29/(1-$AD29))))^-1) -> -0.01949468799 | CV31: =IF(OR(DM$26="",DM$26="no"),"",(EH$91/($AD29*(1-$AD29))+EH$92*(($AD29-0.5)/($AD29*(1-$AD29))+LN($AD29/(1-$AD29)))+EH$93+2*EH$94*($AD29-0.5)+EH$95*(($AD29-0.5)^2/($AD29*(1-$AD29))+2*($AD29-0.5)*LN($AD29/(1-$AD29)))+3*EH$96*($AD29-0.5)^2)^-1) -> -0.01793766944 | CW31: =IF(OR(DN$26="",DN$26="no"),"",(EI$91/($AD29*(1-$AD29))+EI$92*(($AD29-0.5)/($AD29*(1-$AD29))+LN($AD29/(1-$AD29)))+EI$93+2*EI$94*($AD29-0.5)+EI$95*(($AD29-0.5)^2/($AD29*(1-$AD29))+2*($AD29-0.5)*LN($AD29/(1-$AD29)))+3*EI$96*($AD29-0.5)^2+EI$97*(($AD29-0.5)^3/($AD29*(1-$AD29))+3*($AD29-0.5)^2*LN($AD29/(1-$AD29))))^-1) -> 0.002712102362 | CX31: =IF(OR(DO$26="",DO$26="no"),"",(EJ$91/($AD29*(1-$AD29))+EJ$92*(($AD29-0.5)/($AD29*(1-$AD29))+LN($AD29/(1-$AD29)))+EJ$93+2*EJ$94*($AD29-0.5)+EJ$95*(($AD29-0.5)^2/($AD29*(1-$AD29))+2*($AD29-0.5)*LN($AD29/(1-$AD29)))+3*EJ$96*($AD29-0.5)^2+EJ$97*(($AD29-0.5)^3/($AD29*(1-$AD29))+3*($AD29-0.5)^2*LN($AD29/(1-$AD29)))+4*EJ$98*($AD29-0.5)^3)^-1) -> 0.001391740123 | CY31: =IF(OR(DP$26="",DP$26="no"),"",(EK$91/($AD29*(1-$AD29))+EK$92*(($AD29-0.5)/($AD29*(1-$AD29))+LN($AD29/(1-$AD29)))+EK$93+2*EK$94*($AD29-0.5)+EK$95*(($AD29-0.5)^2/($AD29*(1-$AD29))+2*($AD29-0.5)*LN($AD29/(1-$AD29)))+3*EK$96*($AD29-0.5)^2+EK$97*(($AD29-0.5)^3/($AD29*(1-$AD29))+3*($AD29-0.5)^2*LN($AD29/(1-$AD29)))+4*EK$98*($AD29-0.5)^3+EK$99*(($AD29-0.5)^4/($AD29*(1-$AD29))+4*($AD29-0.5)^3*LN($AD29/(1-$AD29)))+5*EK$100*($AD29-0.5)^4+EK$101*(($AD29-0.5)^5/($AD29*(1-$AD29))+5*($AD29-0.5)^4*LN($AD29/(1-$AD29)))+6*EK$102*($AD29-0.5)^5+EK$103*(($AD29-0.5)^6/($AD29*(1-$AD29))+6*($AD29-0.5)^5*LN($AD29/(1-$AD29)))+7*EK$104*($AD29-0.5)^6+EK$105*(($AD29-0.5)^7/($AD29*(1-$AD29))+7*($AD29-0.5)^6*LN($AD29/(1-$AD29))))^-1) -> 0.003111584461 | CZ31: 0.002418693352 | DA31: 0.002821091464 | DB31: =IF(OR(DS$26="",DS$26="no"),"",(EN$91/($AD29*(1-$AD29))+EN$92*(($AD29-0.5)/($AD29*(1-$AD29))+LN($AD29/(1-$AD29)))+EN$93+2*EN$94*($AD29-0.5)+EN$95*(($AD29-0.5)^2/($AD29*(1-$AD29))+2*($AD29-0.5)*LN($AD29/(1-$AD29)))+3*EN$96*($AD29-0.5)^2+EN$97*(($AD29-0.5)^3/($AD29*(1-$AD29))+3*($AD29-0.5)^2*LN($AD29/(1-$AD29)))+4*EN$98*($AD29-0.5)^3+EN$99*(($AD29-0.5)^4/($AD29*(1-$AD29))+4*($AD29-0.5)^3*LN($AD29/(1-$AD29)))+5*EN$100*($AD29-0.5)^4+EN$101*(($AD29-0.5)^5/($AD29*(1-$AD29))+5*($AD29-0.5)^4*LN($AD29/(1-$AD29)))+6*EN$102*($AD29-0.5)^5+EN$103*(($AD29-0.5)^6/($AD29*(1-$AD29))+6*($AD29-0.5)^5*LN($AD29/(1-$AD29)))+7*EN$104*($AD29-0.5)^6+EN$105*(($AD29-0.5)^7/($AD29*(1-$AD29))+7*($AD29-0.5)^6*LN($AD29/(1-$AD29))))^-1) -> 0.004167053881 | DC31: =IF(OR(DT$26="",DT$26="no"),"",(EO$91/($AD29*(1-$AD29))+EO$92*(($AD29-0.5)/($AD29*(1-$AD29))+LN($AD29/(1-$AD29)))+EO$93+2*EO$94*($AD29-0.5)+EO$95*(($AD29-0.5)^2/($AD29*(1-$AD29))+2*($AD29-0.5)*LN($AD29/(1-$AD29)))+3*EO$96*($AD29-0.5)^2+EO$97*(($AD29-0.5)^3/($AD29*(1-$AD29))+3*($AD29-0.5)^2*LN($AD29/(1-$AD29)))+4*EO$98*($AD29-0.5)^3+EO$99*(($AD29-0.5)^4/($AD29*(1-$AD29))+4*($AD29-0.5)^3*LN($AD29/(1-$AD29)))+5*EO$100*($AD29-0.5)^4+EO$101*(($AD29-0.5)^5/($AD29*(1-$AD29))+5*($AD29-0.5)^4*LN($AD29/(1-$AD29)))+6*EO$102*($AD29-0.5)^5+EO$103*(($AD29-0.5)^6/($AD29*(1-$AD29))+6*($AD29-0.5)^5*LN($AD29/(1-$AD29)))+7*EO$104*($AD29-0.5)^6+EO$105*(($AD29-0.5)^7/($AD29*(1-$AD29))+7*($AD29-0.5)^6*LN($AD29/(1-$AD29))))^-1) -> 0.003522880979 | DD31: =IF(OR(DU$26="",DU$26="no"),"",(EP$91/($AD29*(1-$AD29))+EP$92*(($AD29-0.5)/($AD29*(1-$AD29))+LN($AD29/(1-$AD29)))+EP$93+2*EP$94*($AD29-0.5)+EP$95*(($AD29-0.5)^2/($AD29*(1-$AD29))+2*($AD29-0.5)*LN($AD29/(1-$AD29)))+3*EP$96*($AD29-0.5)^2+EP$97*(($AD29-0.5)^3/($AD29*(1-$AD29))+3*($AD29-0.5)^2*LN($AD29/(1-$AD29)))+4*EP$98*($AD29-0.5)^3+EP$99*(($AD29-0.5)^4/($AD29*(1-$AD29))+4*($AD29-0.5)^3*LN($AD29/(1-$AD29)))+5*EP$100*($AD29-0.5)^4+EP$101*(($AD29-0.5)^5/($AD29*(1-$AD29))+5*($AD29-0.5)^4*LN($AD29/(1-$AD29)))+6*EP$102*($AD29-0.5)^5+EP$103*(($AD29-0.5)^6/($AD29*(1-$AD29))+6*($AD29-0.5)^5*LN($AD29/(1-$AD29)))+7*EP$104*($AD29-0.5)^6+EP$105*(($AD29-0.5)^7/($AD29*(1-$AD29))+7*($AD29-0.5)^6*LN($AD29/(1-$AD29))))^-1) -> 0.002968982092 | DE31: =IF(OR(DV$26="",DV$26="no"),"",(EQ$91/($AD29*(1-$AD29))+EQ$92*(($AD29-0.5)/($AD29*(1-$AD29))+LN($AD29/(1-$AD29)))+EQ$93+2*EQ$94*($AD29-0.5)+EQ$95*(($AD29-0.5)^2/($AD29*(1-$AD29))+2*($AD29-0.5)*LN($AD29/(1-$AD29)))+3*EQ$96*($AD29-0.5)^2+EQ$97*(($AD29-0.5)^3/($AD29*(1-$AD29))+3*($AD29-0.5)^2*LN($AD29/(1-$AD29)))+4*EQ$98*($AD29-0.5)^3+EQ$99*(($AD29-0.5)^4/($AD29*(1-$AD29))+4*($AD29-0.5)^3*LN($AD29/(1-$AD29)))+5*EQ$100*($AD29-0.5)^4+EQ$101*(($AD29-0.5)^5/($AD29*(1-$AD29))+5*($AD29-0.5)^4*LN($AD29/(1-$AD29)))+6*EQ$102*($AD29-0.5)^5+EQ$103*(($AD29-0.5)^6/($AD29*(1-$AD29))+6*($AD29-0.5)^5*LN($AD29/(1-$AD29)))+7*EQ$104*($AD29-0.5)^6+EQ$105*(($AD29-0.5)^7/($AD29*(1-$AD29))+7*($AD29-0.5)^6*LN($AD29/(1-$AD29))))^-1) -> 0.001513292396 | DG31: 1 | DH31: -7.459626872 | DI31: 3.725520126 | DJ31: -0.4994244604 | DK31: 0.2494247917 | DL31: -1.860615879 | DM31: -0.124568842 | DN31: 0.9292370812 | DO31: 0.0622127267 | DP31: =IF(AB29="","",DH31*DO31) -> -0.4640837279 | DQ31: -0.03107055747 | DR31: 0.2317747654 | DS31: 0.0155173964 | DT31: -0.1157539872 | DU31: -0.007749767323 | DV31: 0.05781037258 | DW31: 3 | DY31: numeric | DZ31: =SUM(IF(ISNUMBER(INDEX(AC28:AC10027,1,1):INDEX(AC28:AC10027,B17,1)),1,0)) -> 3474 | EB31: =IF(DZ29<>DZ31,1,0) -> 0 | EC31: 0 | ED31: invalid input parameters: x data must be contiguous and start in row 21 | EM31: 1e-08
X32: a5 | Y32: =INDEX(EC94:EQ94,C$17-1) -> 40.86285984 | AB32: 0.001438848921 | AC32: =IF(C$34="","",IF(ROW()-ROW(S$27)>B$17,"",SMALL(INDEX($C$34:$C$10033,1,1):INDEX($C$34:$C$10033,B$17,1),ROW()-ROW(S$27)))) -> 3 | AD32: 0.01 | AE32: 3.686140996 | AF32: 0.02032856343 | AG32: -0.196085713 | AH32: 2.678549029 | AI32: 2.762095852 | AJ32: 3.595414417 | AM32: 3.691988768 | AN32: 3.84693732 | AO32: 3.686140996 | AP32: 3.701982462 | AQ32: 3.681697224 | AR32: 3.673873303 | AS32: 3.66752875 | AT32: 3.64340599 | AU32: 3.562244076 | AV32: 0.004386024478 | AW32: 0.007179108262 | AX32: 0.007484155906 | AY32: 0.02306248115 | BB32: 0.02687637475 | BC32: 0.02551939724 | BD32: 0.02032856343 | BE32: 0.02275600359 | BF32: 0.0216299241 | BG32: 0.0187484948 | BH32: 0.0196985474 | BI32: 0.01998829158 | BJ32: 0.02955341435 | BL32: -0.196085713 | BM32: 2.678549029 | BN32: 2.762095852 | BO32: 3.595414417 | BR32: 3.691988768 | BS32: 3.84693732 | BT32: 3.686140996 | BU32: 3.701982462 | BV32: 3.681697224 | BW32: 3.673873303 | BX32: 3.66752875 | BY32: 3.64340599 | BZ32: 3.562244076 | CA32: 0.004386024478 | CB32: 0.007179108262 | CC32: 0.007484155906 | CD32: 0.02306248115 | CG32: 0.02687637475 | CH32: 0.02551939724 | CI32: 0.02032856343 | CJ32: 0.02275600359 | CK32: 0.0216299241 | CL32: 0.0187484948 | CM32: 0.0196985474 | CN32: 0.01998829158 | CO32: 0.02955341435 | CQ32: 0.001325111032 | CR32: 0.00211580596 | CS32: 0.00220783146 | CT32: 0.007663226357 | CU32: -0.3917798817 | CV32: -0.2729827057 | CW32: 0.008302311234 | CX32: 0.004991187697 | CY32: 0.007468345242 | CZ32: 0.00719453824 | DA32: 0.007635492154 | DB32: 0.007721315986 | DC32: 0.007979330414 | DD32: 0.009253311155 | DE32: 0.01739892204 | DG32: 1 | DH32: -7.053873787 | DI32: 3.520847218 | DJ32: -0.4991366906 | DK32: 0.249137436 | DL32: -1.757384029 | DM32: -0.1243536353 | DN32: 0.8771748484 | DO32: 0.06206946199 | DP32: -0.4378301509 | DQ32: -0.03098114585 | DR32: 0.2185370926 | DS32: 0.01546382661 | DT32: -0.1090798812 | DU32: -0.00771856324 | DV32: 0.05444577091 | DW32: 3 | EB32: =IF(DY36<>0,1,0) -> 0 | EC32: 0 | ED32: invalid input parameters: x data must be non-decreasing | EM32: 5e-08
B33: data (2-10,000) | X33: a6 | Y33: =INDEX(EC95:EQ95,C$17-1) -> 115.6597171 | AB33: 0.001726618705 | AC33: =IF(C$34="","",IF(ROW()-ROW(S$27)>B$17,"",SMALL(INDEX($C$34:$C$10033,1,1):INDEX($C$34:$C$10033,B$17,1),ROW()-ROW(S$27)))) -> 3 | AD33: 0.02 | AE33: 4.034457596 | AF33: 0.03937873413 | AG33: 1.391380476 | AH33: 3.637045329 | AI33: 3.682255811 | AJ33: 3.921618314 | AM33: 3.96562191 | AN33: 4.082882832 | AO33: 4.034457596 | AP33: 4.01742327 | AQ33: 4.017391053 | AR33: 4.046177678 | AS33: 4.033410681 | AT33: 4.027610375 | AU33: 3.943773641 | AV33: 0.008683442402 | AW33: 0.01457346008 | AX33: 0.01516421537 | AY33: 0.0383983571 | BB33: 0.04653126108 | BC33: 0.0653909705 | BD33: 0.03937873413 | BE33: 0.04204391543 | BF33: 0.03949321255 | BG33: 0.03791319009 | BH33: 0.03719882377 | BI33: 0.0340628603 | BJ33: 0.02686432992 | BL33: 1.391380476 | BM33: 3.637045329 | BN33: 3.682255811 | BO33: 3.921618314 | BR33: 3.96562191 | BS33: 4.082882832 | BT33: 4.034457596 | BU33: 4.01742327 | BV33: 4.017391053 | BW33: 4.046177678 | BX33: 4.033410681 | BY33: 4.027610375 | BZ33: 3.943773641 | CA33: 0.008683442402 | CB33: 0.01457346008 | CC33: 0.01516421537 | CD33: 0.0383983571 | CG33: 0.04653126108 | CH33: 0.0653909705 | CI33: 0.03937873413 | CJ33: 0.04204391543 | CK33: 0.03949321255 | CL33: 0.03791319009 | CM33: 0.03719882377 | CN33: 0.0340628603 | CO33: 0.02686432992 | CQ33: 0.002642247474 | CR33: 0.004268945146 | CS33: 0.004453031401 | CT33: 0.01477006822 | CU33: 0.1059524022 | CV33: 0.11009539 | CW33: 0.01660767387 | CX33: 0.01233161543 | CY33: 0.01306381898 | CZ33: 0.01408358914 | DA33: 0.01394274829 | DB33: 0.01231818868 | DC33: 0.01319235201 | DD33: 0.01488546639 | DE33: 0.04521706407 | DG33: 1 | DH33: -6.765903655 | DI33: 3.375163737 | DJ33: -0.4988489209 | DK33: 0.2488502458 | DL33: -1.683696788 | DM33: -0.1241386766 | DN33: 0.8399103257 | DO33: 0.06192644486 | DP33: -0.4189883596 | DQ33: -0.03089194019 | DR33: 0.209011891 | DS33: 0.01541041103 | DT33: -0.1042653563 | DU33: -0.007687466911 | DV33: 0.05201266047 | DW33: 3 | DY33: count of | EB33: =IF(B17<2,1,0) -> 0 | EC33: 0 | ED33: at least two x input parameters are required | EM33: 2.5e-07
B34: 1 | C34: 2 | X34: a7 | Y34: =INDEX(EC96:EQ96,C$17-1) -> -311.451804 | AB34: 0.002014388489 | AC34: =IF(C$34="","",IF(ROW()-ROW(S$27)>B$17,"",SMALL(INDEX($C$34:$C$10033,1,1):INDEX($C$34:$C$10033,B$17,1),ROW()-ROW(S$27)))) -> 3 | AD34: 0.03 | AE34: 4.241400236 | AF34: 0.05815759951 | AG34: 2.329734547 | AH34: 4.191152121 | AI34: 4.21530925 | AJ34: 4.151593101 | AM34: 4.15521275 | AN34: 4.210106561 | AO34: 4.241400236 | AP34: 4.218337439 | AQ34: 4.228855294 | AR34: 4.25534051 | AS34: 4.250627048 | AT34: 4.262769013 | AU34: 4.26398259 | AV34: 0.01289225377 | AW34: 0.02203682447 | AX34: 0.0228799248 | AY34: 0.04823855625 | BB34: 0.05830288092 | BC34: 0.08878072232 | BD34: 0.05815759951 | BE34: 0.05766906461 | BF34: 0.0556306308 | BG34: 0.05920125867 | BH34: 0.05620741464 | BI34: 0.05317558207 | BJ34: 0.03781150919 | BL34: 2.329734547 | BM34: 4.191152121 | BN34: 4.21530925 | BO34: 4.151593101 | BR34: 4.15521275 | BS34: 4.210106561 | BT34: 4.241400236 | BU34: 4.218337439 | BV34: 4.228855294 | BW34: 4.25534051 | BX34: 4.250627048 | BY34: 4.262769013 | BZ34: 4.26398259 | CA34: 0.01289225377 | CB34: 0.02203682447 | CC34: 0.0228799248 | CD34: 0.04823855625 | CG34: 0.05830288092 | CH34: 0.08878072232 | CI34: 0.05815759951 | CJ34: 0.05766906461 | CK34: 0.0556306308 | CL34: 0.05920125867 | CM34: 0.05620741464 | CN34: 0.05317558207 | CO34: 0.03781150919 | CQ34: 0.004386024478 | CR34: 0.007179108262 | CS34: 0.007484155906 | CT34: 0.02306248115 | CU34: 0.07115785113 | CV34: 0.07165120928 | CW34: 0.02687637475 | CX34: 0.02551939724 | CY34: 0.02032856343 | CZ34: 0.02275600359 | DA34: 0.0216299241 | DB34: 0.0187484948 | DC34: 0.0196985474 | DD34: 0.01998829158 | DE34: 0.02955341435 | DG34: 1 | DH34: -6.542471961 | DI34: 3.261822352 | DJ34: -0.4985611511 | DK34: 0.2485632214 | DL34: -1.626217906 | DM34: -0.1239239658 | DN34: 0.8107690712 | DO34: 0.06178367502 | DP34: -0.4042179614 | DQ34: -0.03080294013 | DR34: 0.2015273721 | DS34: 0.01535714929 | DT34: -0.1004737186 | DU34: -0.007656478027 | DV34: 0.05009229281 | DW34: 3 | DY34: non-decreasing | EB34: =IF(AND(OR(B11="sl",B11="b"),C19>=MIN(INDEX(AC28:AC10027,1,1):INDEX(AC28:AC10027,B17,1))),1,0) -> 0 | EC34: 0 | ED34: lower bound must be strictly less than all x input data | EM34: 1.25e-06
B35: =B34+1 -> 2 | C35: 3 | X35: a8 | Y35: =INDEX(EC97:EQ97,C$17-1) -> 50.55819969 | AB35: 0.002302158273 | AC35: =IF(C$34="","",IF(ROW()-ROW(S$27)>B$17,"",SMALL(INDEX($C$34:$C$10033,1,1):INDEX($C$34:$C$10033,B$17,1),ROW()-ROW(S$27)))) -> 3 | AD35: 0.04 | AE35: 4.393327915 | AF35: 0.07319019376 | AG35: 3.002472267 | AH35: 4.582049096 | AI35: 4.592225064 | AJ35: 4.345205432 | AM35: 4.316892223 | AN35: 4.31953771 | AO35: 4.393327915 | AP35: 4.375571714 | AQ35: 4.389434579 | AR35: 4.402102715 | AS35: 4.405263361 | AT35: 4.420874684 | AU35: 4.478064798 | AV35: 0.01701245858 | AW35: 0.02947791989 | AX35: 0.03053274792 | AY35: 0.054781157 | BB35: 0.06485469088 | BC35: 0.09175230692 | BD35: 0.07319019376 | BE35: 0.06917719504 | BF35: 0.06877522882 | BG35: 0.07674018042 | BH35: 0.07318441732 | BI35: 0.07429852426 | BJ35: 0.05905484849 | BL35: 3.002472267 | BM35: 4.582049096 | BN35: 4.592225064 | BO35: 4.345205432 | BR35: 4.316892223 | BS35: 4.31953771 | BT35: 4.393327915 | BU35: 4.375571714 | BV35: 4.389434579 | BW35: 4.402102715 | BX35: 4.405263361 | BY35: 4.420874684 | BZ35: 4.478064798 | CA35: 0.01701245858 | CB35: 0.02947791989 | CC35: 0.03053274792 | CD35: 0.054781157 | CG35: 0.06485469088 | CH35: 0.09175230692 | CI35: 0.07319019376 | CJ35: 0.06917719504 | CK35: 0.06877522882 | CL35: 0.07674018042 | CM35: 0.07318441732 | CN35: 0.07429852426 | CO35: 0.05905484849 | CQ35: 0.008683442402 | CR35: 0.01457346008 | CS35: 0.01516421537 | CT35: 0.0383983571 | CU35: 0.05840067031 | CV35: 0.05826035181 | CW35: 0.04653126108 | CX35: 0.0653909705 | CY35: 0.03937873413 | CZ35: 0.04204391543 | DA35: 0.03949321255 | DB35: 0.03791319009 | DC35: 0.03719882377 | DD35: 0.0340628603 | DE35: =IF(OR(DV$26="",DV$26="no"),"",(EQ$91/($AD33*(1-$AD33))+EQ$92*(($AD33-0.5)/($AD33*(1-$AD33))+LN($AD33/(1-$AD33)))+EQ$93+2*EQ$94*($AD33-0.5)+EQ$95*(($AD33-0.5)^2/($AD33*(1-$AD33))+2*($AD33-0.5)*LN($AD33/(1-$AD33)))+3*EQ$96*($AD33-0.5)^2+EQ$97*(($AD33-0.5)^3/($AD33*(1-$AD33))+3*($AD33-0.5)^2*LN($AD33/(1-$AD33)))+4*EQ$98*($AD33-0.5)^3+EQ$99*(($AD33-0.5)^4/($AD33*(1-$AD33))+4*($AD33-0.5)^3*LN($AD33/(1-$AD33)))+5*EQ$100*($AD33-0.5)^4+EQ$101*(($AD33-0.5)^5/($AD33*(1-$AD33))+5*($AD33-0.5)^4*LN($AD33/(1-$AD33)))+6*EQ$102*($AD33-0.5)^5+EQ$103*(($AD33-0.5)^6/($AD33*(1-$AD33))+6*($AD33-0.5)^5*LN($AD33/(1-$AD33)))+7*EQ$104*($AD33-0.5)^6+EQ$105*(($AD33-0.5)^7/($AD33*(1-$AD33))+7*($AD33-0.5)^6*LN($AD33/(1-$AD33))))^-1) -> 0.02686432992 | DG35: 1 | DH35: -6.359862178 | DI35: 3.168950032 | DJ35: -0.4982733813 | DK35: 0.2482763625 | DL35: -1.579003448 | DM35: -0.1237095026 | DN35: 0.7867753869 | DO35: 0.06164115218 | DP35: -0.3920292323 | DQ35: -0.03071414532 | DR35: 0.1953377312 | DS35: 0.01530404104 | DT35: -0.0973315918 | DU35: -0.007625596278 | DV35: 0.04849774135 | DW35: 3 | DY35: x input data | EB35: =IF(AND(OR(B11="su",B11="b"),C20<=MAX(INDEX(AC28:AC10027,1,1):INDEX(AC28:AC10027,B17,1))),1,0) -> 0 | EC35: 0 | ED35: upper bound must be strictly greater than all x input data | EM35: 6.25e-06
B36: =B35+1 -> 3 | C36: 3 | X36: a9 | Y36: =INDEX(EC98:EQ98,C$17-1) -> -147.2303545 | AB36: 0.002589928058 | AC36: =IF(C$34="","",IF(ROW()-ROW(S$27)>B$17,"",SMALL(INDEX($C$34:$C$10033,1,1):INDEX($C$34:$C$10033,B$17,1),ROW()-ROW(S$27)))) -> 3 | AD36: 0.05 | AE36: 4.521183937 | AF36: 0.08242102419 | AG36: 3.529780548 | AH36: 4.884839344 | AI36: 4.884906294 | AJ36: 4.520155459 | AM36: 4.466632226 | AN36: 4.431079568 | AO36: 4.521183937 | AP36: 4.512269897 | AQ36: 4.525305401 | AR36: 4.523729094 | AS36: 4.531418135 | AT36: 4.541763923 | AU36: 4.614904627 | AV36: 0.02104405684 | AW36: 0.03682627824 | AX36: 0.03804830579 | AY36: 0.05934328119 | BB36: 0.06836829502 | BC36: 0.0870957403 | BD36: 0.08242102419 | BE36: 0.07661766317 | BF36: 0.07791318902 | BG36: 0.08653901474 | BH36: 0.08451238617 | BI36: 0.09021132485 | BJ36: 0.09070970688 | BL36: 3.529780548 | BM36: 4.884839344 | BN36: 4.884906294 | BO36: 4.520155459 | BR36: 4.466632226 | BS36: 4.431079568 | BT36: 4.521183937 | BU36: 4.512269897 | BV36: 4.525305401 | BW36: 4.523729094 | BX36: 4.531418135 | BY36: 4.541763923 | BZ36: 4.614904627 | CA36: 0.02104405684 | CB36: 0.03682627824 | CC36: 0.03804830579 | CD36: 0.05934328119 | CG36: 0.06836829502 | CH36: 0.0870957403 | CI36: 0.08242102419 | CJ36: 0.07661766317 | CK36: 0.07791318902 | CL36: 0.08653901474 | CM36: 0.08451238617 | CN36: 0.09021132485 | CO36: 0.09070970688 | CQ36: 0.01289225377 | CR36: 0.02203682447 | CS36: 0.0228799248 | CT36: 0.04823855625 | CU36: 0.05613864366 | CV36: 0.05595567661 | CW36: 0.05830288092 | CX36: 0.08878072232 | CY36: 0.05815759951 | CZ36: 0.05766906461 | DA36: 0.0556306308 | DB36: 0.05920125867 | DC36: 0.05620741464 | DD36: 0.05317558207 | DE36: 0.03781150919 | DG36: 1 | DH36: -6.205423189 | DI36: 3.090211461 | DJ36: -0.4979856115 | DK36: 0.2479896693 | DL36: -1.538880844 | DM36: -0.1234952871 | DN36: 0.7663405183 | DO36: 0.06149887607 | DP36: -0.3816265516 | DQ36: -0.0306255554 | DR36: 0.1900445317 | DS36: 0.01525108594 | DT36: -0.09463944232 | DU36: -0.007594821356 | DV36: 0.04712908056 | DW36: 3 | DY36: =IF(B17<2,0,SUM(IF(INDEX(AC28:AC10027,1,1):INDEX(AC28:AC10027,B17-1,1)>INDEX(AC28:AC10027,2,1):INDEX(AC28:AC10027,B17,1),1,0))) -> 0 | EB36: =IF(OR(C17<2,C17>16),1,0) -> 0 | EC36: 0 | ED36: n must be in the range of 2 to 16 | EM36: 3.125e-05
B37: 4 | C37: 3 | X37: a10 | Y37: =INDEX(EC99:EQ99,C$17-1) -> -110.19687 | AB37: 0.002877697842 | AC37: =IF(C$34="","",IF(ROW()-ROW(S$27)>B$17,"",SMALL(INDEX($C$34:$C$10033,1,1):INDEX($C$34:$C$10033,B$17,1),ROW()-ROW(S$27)))) -> 3 | AD37: 0.06 | AE37: 4.639237629 | AF37: 0.08624876398 | AG37: 3.965196789 | AH37: 5.132775693 | AI37: 5.125180304 | AJ37: 4.683883029 | AM37: 4.610776658 | AN37: 4.549839279 | AO37: 4.639237629 | AP37: 4.639093311 | AQ37: 4.649140524 | AR37: 4.63687983 | AS37: 4.64582741 | AT37: 4.648087323 | AU37: 4.708930889 | AV37: 0.02498704854 | AW37: 0.04402446062 | AX37: 0.04536761077 | AY37: 0.06268093689 | BB37: 0.07018306892 | BC37: 0.08144180117 | BD37: 0.08624876398 | BE37: 0.08061334689 | BF37: 0.08302294132 | BG37: 0.08928252569 | BH37: 0.08935534657 | BI37: 0.09632911931 | BJ37: 0.1216541767 | BL37: 3.965196789 | BM37: 5.132775693 | BN37: 5.125180304 | BO37: 4.683883029 | BR37: 4.610776658 | BS37: 4.549839279 | BT37: 4.639237629 | BU37: 4.639093311 | BV37: 4.649140524 | BW37: 4.63687983 | BX37: 4.64582741 | BY37: 4.648087323 | BZ37: 4.708930889 | CA37: 0.02498704854 | CB37: 0.04402446062 | CC37: 0.04536761077 | CD37: 0.06268093689 | CG37: 0.07018306892 | CH37: 0.08144180117 | CI37: 0.08624876398 | CJ37: 0.08061334689 | CK37: 0.08302294132 | CL37: 0.08928252569 | CM37: 0.08935534657 | CN37: 0.09632911931 | CO37: 0.1216541767 | CQ37: 0.01701245858 | CR37: 0.02947791989 | CS37: 0.03053274792 | CT37: 0.054781157 | CU37: 0.05577296206 | CV37: 0.05560449995 | CW37: 0.06485469088 | CX37: 0.09175230692 | CY37: 0.07319019376 | CZ37: 0.06917719504 | DA37: 0.06877522882 | DB37: 0.07674018042 | DC37: 0.07318441732 | DD37: 0.07429852426 | DE37: 0.05905484849 | DG37: 1 | DH37: -6.071603404 | DI37: 3.02182391 | DJ37: -0.4976978417 | DK37: 0.2477031417 | DL37: -1.503955238 | DM37: -0.123281319 | DN37: 0.748515276 | DO37: 0.06135684639 | DP37: -0.3725344374 | DQ37: -0.03053717002 | DR37: 0.1854095855 | DS37: 0.01519828361 | DT37: -0.09227795052 | DU37: -0.007564152952 | DV37: 0.04592653681 | DW37: 3 | EB37: =IF(C17>B17,1,0) -> 0 | ED37: n must less than or equal to m | EM37: 0.00015625
B38: 5 | C38: 3 | X38: a11 | Y38: =INDEX(EC100:EQ100,C$17-1) -> 0 | AB38: 0.003165467626 | AC38: =IF(C$34="","",IF(ROW()-ROW(S$27)>B$17,"",SMALL(INDEX($C$34:$C$10033,1,1):INDEX($C$34:$C$10033,B$17,1),ROW()-ROW(S$27)))) -> 3 | AD38: 0.07 | AE38: 4.754786679 | AF38: 0.08637559501 | AG38: 4.337282057 | AH38: 5.343493456 | AI38: 5.329921952 | AJ38: 4.840127302 | AM38: 4.752262672 | AN38: 4.676558327 | AO38: 4.754786679 | AP38: 4.761779994 | AQ38: 4.767940467 | AR38: 4.749499334 | AS38: 4.757347218 | AT38: 4.752325869 | AU38: 4.78647771 | AV38: 0.02884143369 | AW38: 0.05102493 | AX38: 0.05244339269 | AY38: 0.06523664269 | BB38: 0.07106293808 | BC38: 0.07661794698 | BD38: 0.08637559501 | BE38: 0.08205957891 | BF38: 0.08487811399 | BG38: 0.08785146012 | BH38: 0.08937570557 | BI38: 0.09461360438 | BJ38: 0.1320551413 | BL38: 4.337282057 | BM38: 5.343493456 | BN38: 5.329921952 | BO38: 4.840127302 | BR38: 4.752262672 | BS38: 4.676558327 | BT38: 4.754786679 | BU38: 4.761779994 | BV38: 4.767940467 | BW38: 4.749499334 | BX38: 4.757347218 | BY38: 4.752325869 | BZ38: 4.78647771 | CA38: 0.02884143369 | CB38: 0.05102493 | CC38: 0.05244339269 | CD38: 0.06523664269 | CG38: 0.07106293808 | CH38: 0.07661794698 | CI38: 0.08637559501 | CJ38: 0.08205957891 | CK38: 0.08487811399 | CL38: 0.08785146012 | CM38: 0.08937570557 | CN38: 0.09461360438 | CO38: 0.1320551413 | CQ38: 0.02104405684 | CR38: 0.03682627824 | CS38: 0.03804830579 | CT38: 0.05934328119 | CU38: 0.05608776875 | CV38: 0.05594465674 | CW38: 0.06836829502 | CX38: 0.0870957403 | CY38: 0.08242102419 | CZ38: 0.07661766317 | DA38: 0.07791318902 | DB38: 0.08653901474 | DC38: 0.08451238617 | DD38: 0.09021132485 | DE38: 0.09070970688 | DG38: 1 | DH38: -5.953531893 | DI38: 2.961346727 | DJ38: -0.4974100719 | DK38: 0.2474167797 | DL38: -1.473003689 | DM38: -0.1230675982 | DN38: 0.7326868707 | DO38: 0.06121506286 | DP38: -0.3644458291 | DQ38: -0.03044898882 | DR38: 0.1812790261 | DS38: 0.01514563372 | DT38: -0.09017001339 | DU38: -0.007533590759 | DV38: 0.04485147285 | DW38: 3 | DY38: bounds (large plot) | EB38: =IF(EB36<>0,"",IF(INDEX(DH26:DV26,1,C17-1)<>"yes",1,0)) -> 0 | ED38: matrix did not invert for this n (see documentation sheet) | EM38: 0.00078125
B39: 6 | C39: 3 | X39: a12 | Y39: =INDEX(EC101:EQ101,C$17-1) -> 0 | AB39: 0.00345323741 | AC39: =IF(C$34="","",IF(ROW()-ROW(S$27)>B$17,"",SMALL(INDEX($C$34:$C$10033,1,1):INDEX($C$34:$C$10033,B$17,1),ROW()-ROW(S$27)))) -> 3 | AD39: 0.08 | AE39: 4.87168854 | AF39: 0.08449596725 | AG39: 4.663087092 | AH39: 5.527460001 | AI39: 5.50914462 | AJ39: 4.990986677 | AM39: 4.892553966 | AN39: 4.810522133 | AO39: 4.87168854 | AP39: 4.883655301 | AQ39: 4.885806279 | AR39: 4.865334426 | AS39: 4.87070566 | AT39: 4.860877898 | AU39: 4.864742653 | AV39: 0.03260721228 | AW39: 0.05778843352 | AX39: 0.05923808055 | AY39: 0.06727818809 | BB39: 0.07143832624 | BC39: 0.07288210546 | BD39: 0.08449596725 | BE39: 0.08182732919 | BF39: 0.08452280463 | BG39: 0.08468181108 | BH39: 0.0867955439 | BI39: 0.08940491256 | BJ39: 0.1213521876 | BL39: 4.663087092 | BM39: 5.527460001 | BN39: 5.50914462 | BO39: 4.990986677 | BR39: 4.892553966 | BS39: 4.810522133 | BT39: 4.87168854 | BU39: 4.883655301 | BV39: 4.885806279 | BW39: 4.865334426 | BX39: 4.87070566 | BY39: 4.860877898 | BZ39: 4.864742653 | CA39: 0.03260721228 | CB39: 0.05778843352 | CC39: 0.05923808055 | CD39: 0.06727818809 | CG39: 0.07143832624 | CH39: 0.07288210546 | CI39: 0.08449596725 | CJ39: 0.08182732919 | CK39: 0.08452280463 | CL39: 0.08468181108 | CM39: 0.0867955439 | CN39: 0.08940491256 | CO39: 0.1213521876 | CQ39: 0.02498704854 | CR39: 0.04402446062 | CS39: 0.04536761077 | CT39: 0.06268093689 | CU39: 0.05672954311 | CV39: 0.0566130688 | CW39: 0.07018306892 | CX39: 0.08144180117 | CY39: 0.08624876398 | CZ39: 0.08061334689 | DA39: 0.08302294132 | DB39: 0.08928252569 | DC39: 0.08935534657 | DD39: 0.09632911931 | DE39: 0.1216541767 | DG39: 1 | DH39: -5.847882819 | DI39: 2.90711297 | DJ39: -0.4971223022 | DK39: 0.2471305833 | DL39: -1.445190692 | DM39: -0.1228541245 | DN39: 0.7184365239 | DO39: 0.0610735252 | DP39: -0.3571508187 | DQ39: -0.03036101145 | DR39: 0.1775476372 | DS39: 0.01509313591 | DT39: -0.08826289016 | DU39: -0.007503134469 | DV39: 0.04387745115 | DW39: 3 | DY39: y | DZ39: x | EB39: =IF(EB36<>0,"",IF(INDEX(CQ26:DE26,1,C17-1)<>"yes",1,0)) -> 0 | ED39: inputs (x,y) not feasible for this n | EM39: 0.00390625
B40: 7 | C40: 3 | X40: a13 | Y40: =INDEX(EC102:EQ102,C$17-1) -> 0 | AB40: 0.003741007194 | AC40: =IF(C$34="","",IF(ROW()-ROW(S$27)>B$17,"",SMALL(INDEX($C$34:$C$10033,1,1):INDEX($C$34:$C$10033,B$17,1),ROW()-ROW(S$27)))) -> 3 | AD40: 0.09 | AE40: 4.99192842 | AF40: 0.08178320506 | AG40: 4.953612112 | AH40: 5.691390041 | AI40: 5.669270135 | AJ40: 5.137730649 | AM40: 5.032393236 | AN40: 4.950551797 | AO40: 4.99192842 | AP40: 5.006691755 | AQ40: 5.005171192 | AR40: 4.985964024 | AS40: 4.988295167 | AT40: 4.976527955 | AU40: 4.953543937 | AV40: 0.03628438432 | AW40: 0.0642829838 | AX40: 0.06572245089 | AY40: 0.06897331664 | BB40: 0.07155377418 | BC40: 0.07010756065 | BD40: 0.08178320506 | BE40: 0.08061242337 | BF40: 0.08288718057 | BG40: 0.08114783301 | BH40: 0.08324575837 | BI40: 0.08364785857 | BJ40: 0.1042542219 | BL40: 4.953612112 | BM40: 5.691390041 | BN40: 5.669270135 | BO40: 5.137730649 | BR40: 5.032393236 | BS40: 4.950551797 | BT40: 4.99192842 | BU40: 5.006691755 | BV40: 5.005171192 | BW40: 4.985964024 | BX40: 4.988295167 | BY40: 4.976527955 | BZ40: 4.953543937 | CA40: 0.03628438432 | CB40: 0.0642829838 | CC40: 0.06572245089 | CD40: 0.06897331664 | CG40: 0.07155377418 | CH40: 0.07010756065 | CI40: 0.08178320506 | CJ40: 0.08061242337 | CK40: 0.08288718057 | CL40: 0.08114783301 | CM40: 0.08324575837 | CN40: 0.08364785857 | CO40: 0.1042542219 | CQ40: 0.02884143369 | CR40: 0.05102493 | CS40: 0.05244339269 | CT40: 0.06523664269 | CU40: 0.05755890429 | CV40: 0.0574677573 | CW40: 0.07106293808 | CX40: 0.07661794698 | CY40: 0.08637559501 | CZ40: 0.08205957891 | DA40: 0.08487811399 | DB40: 0.08785146012 | DC40: 0.08937570557 | DD40: 0.09461360438 | DE40: 0.1320551413 | DG40: 1 | DH40: -5.752283997 | DI40: 2.85793333 | DJ40: -0.4968345324 | DK40: 0.2468445526 | DL40: -1.419919969 | DM40: -0.1226408978 | DN40: 0.705465274 | DO40: 0.06093223313 | DP40: -0.3504995095 | DQ40: -0.03027323755 | DR40: 0.1741402599 | DS40: 0.01504078982 | DT40: -0.0865188946 | DU40: -0.007472783778 | DV40: 0.04298557454 | DW40: 3 | DY40: =DY45 ->  | DZ40: =DZ45 ->  | EA40: bl | EB40: =SUM(EB27:EB39) -> 0 | EC40: =SUM(EC27:EC39) -> 0 | ED40: =IF(EB40=0,"(none)",VLOOKUP(1,EB27:EK39,3,0)) -> (none) | EM40: 0.01953125
B41: 8 | C41: 3 | X41: a14 | Y41: =INDEX(EC103:EQ103,C$17-1) -> 0 | AB41: 0.004028776978 | AC41: =IF(C$34="","",IF(ROW()-ROW(S$27)>B$17,"",SMALL(INDEX($C$34:$C$10033,1,1):INDEX($C$34:$C$10033,B$17,1),ROW()-ROW(S$27)))) -> 3 | AD41: 0.1 | AE41: 5.116408939 | AF41: 0.07891115553 | AG41: 5.21636999 | AH41: 5.83984411 | AI41: 5.814658994 | AJ41: 5.281170208 | AM41: 5.172140405 | AN41: 5.095379599 | AO41: 5.116408939 | AP41: 5.132032939 | AQ41: 5.127433715 | AR41: 5.111809727 | AS41: 5.111131674 | AT41: 5.099962914 | AU41: 5.057387391 | AV41: 0.0398729498 | AW41: 0.0704831004 | AX41: 0.07187457975 | AY41: 0.07043053188 | BB41: 0.0715501569 | BC41: 0.06811279444 | BD41: 0.07891115553 | BE41: 0.07890792392 | BF41: 0.08064758189 | BG41: 0.07786839091 | BH41: 0.07963468846 | BI41: 0.07859600543 | BJ41: 0.08936274187 | BL41: 5.21636999 | BM41: 5.83984411 | BN41: 5.814658994 | BO41: 5.281170208 | BR41: 5.172140405 | BS41: 5.095379599 | BT41: 5.116408939 | BU41: 5.132032939 | BV41: 5.127433715 | BW41: 5.111809727 | BX41: 5.111131674 | BY41: 5.099962914 | BZ41: 5.057387391 | CA41: 0.0398729498 | CB41: 0.0704831004 | CC41: 0.07187457975 | CD41: 0.07043053188 | CG41: 0.0715501569 | CH41: 0.06811279444 | CI41: 0.07891115553 | CJ41: 0.07890792392 | CK41: 0.08064758189 | CL41: 0.07786839091 | CM41: 0.07963468846 | CN41: 0.07859600543 | CO41: 0.08936274187 | CQ41: 0.03260721228 | CR41: 0.05778843352 | CS41: 0.05923808055 | CT41: 0.06727818809 | CU41: 0.05851039177 | CV41: 0.05844252975 | CW41: 0.07143832624 | CX41: 0.07288210546 | CY41: 0.08449596725 | CZ41: 0.08182732919 | DA41: 0.08452280463 | DB41: 0.08468181108 | DC41: 0.0867955439 | DD41: 0.08940491256 | DE41: 0.1213521876 | DG41: 1 | DH41: -5.664983895 | DI41: 2.812929413 | DJ41: -0.4965467626 | DK41: 0.2465586874 | DL41: -1.396750993 | DM41: -0.122427918 | DN41: 0.6935521839 | DO41: 0.06079118635 | DP41: -0.3443810916 | DQ41: -0.03018566678 | DR41: 0.1710013161 | DS41: 0.01498859511 | DT41: -0.08491014993 | DU41: -0.00744253838 | DV41: 0.04216186006 | DW41: 3 | DY41: =DY10046 ->  | DZ41: =DZ10046 ->  | EA41: bu
B42: 9 | C42: 3 | X42: a15 | Y42: =INDEX(EC104:EQ104,C$17-1) -> 0 | AB42: 0.004316546763 | AC42: =IF(C$34="","",IF(ROW()-ROW(S$27)>B$17,"",SMALL(INDEX($C$34:$C$10033,1,1):INDEX($C$34:$C$10033,B$17,1),ROW()-ROW(S$27)))) -> 3 | AD42: 0.11 | AE42: 5.245383917 | AF42: 0.07622002016 | AG42: 5.456721238 | AH42: 5.976058591 | AI42: 5.948404856 | AJ42: 5.421845238 | AM42: 5.311940726 | AN42: 5.243796334 | AO42: 5.245383917 | AP42: 5.260283494 | AQ42: 5.253318073 | AR42: 5.242673704 | AS42: 5.239407272 | AT42: 5.230709596 | AU42: 5.177222247 | AV42: 0.04337290873 | AW42: 0.07636916901 | AX42: 0.0776789483 | AY42: 0.07172206745 | BB42: 0.07150970283 | BC42: 0.06673992777 | BD42: 0.07622002016 | BE42: 0.07703603459 | BF42: 0.07823789156 | BG42: 0.07506548169 | BH42: 0.07637969043 | BI42: 0.07458291731 | BJ42: 0.07840693568 | BL42: 5.456721238 | BM42: 5.976058591 | BN42: 5.948404856 | BO42: 5.421845238 | BR42: 5.311940726 | BS42: 5.243796334 | BT42: 5.245383917 | BU42: 5.260283494 | BV42: 5.253318073 | BW42: 5.242673704 | BX42: 5.239407272 | BY42: 5.230709596 | BZ42: 5.177222247 | CA42: 0.04337290873 | CB42: 0.07636916901 | CC42: 0.0776789483 | CD42: 0.07172206745 | CG42: 0.07150970283 | CH42: 0.06673992777 | CI42: 0.07622002016 | CJ42: 0.07703603459 | CK42: 0.07823789156 | CL42: 0.07506548169 | CM42: 0.07637969043 | CN42: 0.07458291731 | CO42: 0.07840693568 | CQ42: 0.03628438432 | CR42: 0.0642829838 | CS42: 0.06572245089 | CT42: 0.06897331664 | CU42: 0.05954954572 | CV42: 0.05950278578 | CW42: 0.07155377418 | CX42: 0.07010756065 | CY42: 0.08178320506 | CZ42: 0.08061242337 | DA42: 0.08288718057 | DB42: 0.08114783301 | DC42: 0.08324575837 | DD42: 0.08364785857 | DE42: 0.1042542219 | DG42: 1 | DH42: -5.584652378 | DI42: 2.771433964 | DJ42: -0.4962589928 | DK42: 0.2462729879 | DL42: -1.375349028 | DM42: -0.122215185 | DN42: 0.6825293233 | DO42: 0.06065038459 | DP42: -0.3387113145 | DQ42: -0.03009829877 | DR42: 0.1680885358 | DS42: 0.01493655143 | DT42: -0.08341544748 | DU42: -0.00741239797 | DV42: 0.04139566595 | DW42: 3 | EB42: regularization (lI)
B43: 10 | C43: 3 | X43: a16 | Y43: =INDEX(EC105:EQ105,C$17-1) -> 0 | AB43: 0.004604316547 | AC43: =IF(C$34="","",IF(ROW()-ROW(S$27)>B$17,"",SMALL(INDEX($C$34:$C$10033,1,1):INDEX($C$34:$C$10033,B$17,1),ROW()-ROW(S$27)))) -> 3 | AD43: 0.12 | AE43: 5.378712149 | AF43: 0.07385944346 | AG43: 5.67862566 | AH43: 6.102411662 | AI43: 6.072780465 | AJ43: 5.560126943 | AM43: 5.451814773 | AN43: 5.394706291 | AO43: 5.378712149 | AP43: 5.391683854 | AQ43: 5.38309543 | AR43: 5.378037526 | AS43: 5.372824682 | AT43: 5.36771321 | AU43: 5.311786073 | AV43: 0.0467842611 | AW43: 0.08192685591 | AX43: 0.08312563788 | AY43: 0.07289724833 | BB43: 0.07148085812 | BC43: 0.06586595029 | BD43: 0.07385944346 | BE43: 0.07519463766 | BF43: 0.07591201145 | BG43: 0.07278148316 | BH43: 0.07363144103 | BI43: 0.07157641056 | BJ43: 0.07084129435 | BL43: 5.67862566 | BM43: 6.102411662 | BN43: 6.072780465 | BO43: 5.560126943 | BR43: 5.451814773 | BS43: 5.394706291 | BT43: 5.378712149 | BU43: 5.391683854 | BV43: 5.38309543 | BW43: 5.378037526 | BX43: 5.372824682 | BY43: 5.36771321 | BZ43: 5.311786073 | CA43: 0.0467842611 | CB43: 0.08192685591 | CC43: 0.08312563788 | CD43: 0.07289724833 | CG43: 0.07148085812 | CH43: 0.06586595029 | CI43: 0.07385944346 | CJ43: 0.07519463766 | CK43: 0.07591201145 | CL43: 0.07278148316 | CM43: 0.07363144103 | CN43: 0.07157641056 | CO43: 0.07084129435 | CQ43: 0.0398729498 | CR43: 0.0704831004 | CS43: 0.07187457975 | CT43: 0.07043053188 | CU43: 0.06065671876 | CV43: 0.060628936 | CW43: 0.0715501569 | CX43: 0.06811279444 | CY43: 0.07891115553 | CZ43: 0.07890792392 | DA43: 0.08064758189 | DB43: 0.07786839091 | DC43: 0.07963468846 | DD43: 0.07859600543 | DE43: 0.08936274187 | DG43: 1 | DH43: -5.510255514 | DI43: 2.732928166 | DJ43: -0.495971223 | DK43: 0.2459874541 | DL43: -1.355453725 | DM43: -0.1220026984 | DN43: 0.6722660418 | DO43: 0.06050982756 | DP43: -0.333424611 | DQ43: -0.03001113318 | DR43: 0.1653690121 | DS43: 0.01488465843 | DT43: -0.08201827117 | DU43: -0.007382362244 | DV43: 0.04067870226 | DW43: 3 | DY43: input data (large plot) | EB43: 0 | EC43: =IF(COLUMN()-COLUMN($EB42)+1=ROW()-ROW(EC$42),INDEX($EM$30:$EM$40,$C$23+1,1),0) -> 0 | ED43: =IF(COLUMN()-COLUMN($EB42)+1=ROW()-ROW(ED$42),INDEX($EM$30:$EM$40,$C$23+1,1),0) -> 0 | EE43: =IF(COLUMN()-COLUMN($EB42)+1=ROW()-ROW(EE$42),INDEX($EM$30:$EM$40,$C$23+1,1),0) -> 0 | EF43: =IF(COLUMN()-COLUMN($EB42)+1=ROW()-ROW(EF$42),INDEX($EM$30:$EM$40,$C$23+1,1),0) -> 0 | EG43: =IF(COLUMN()-COLUMN($EB42)+1=ROW()-ROW(EG$42),INDEX($EM$30:$EM$40,$C$23+1,1),0) -> 0 | EH43: =IF(COLUMN()-COLUMN($EB42)+1=ROW()-ROW(EH$42),INDEX($EM$30:$EM$40,$C$23+1,1),0) -> 0 | EI43: =IF(COLUMN()-COLUMN($EB42)+1=ROW()-ROW(EI$42),INDEX($EM$30:$EM$40,$C$23+1,1),0) -> 0 | EJ43: =IF(COLUMN()-COLUMN($EB42)+1=ROW()-ROW(EJ$42),INDEX($EM$30:$EM$40,$C$23+1,1),0) -> 0 | EK43: =IF(COLUMN()-COLUMN($EB42)+1=ROW()-ROW(EK$42),INDEX($EM$30:$EM$40,$C$23+1,1),0) -> 0 | EL43: =IF(COLUMN()-COLUMN($EB42)+1=ROW()-ROW(EL$42),INDEX($EM$30:$EM$40,$C$23+1,1),0) -> 0 | EM43: =IF(COLUMN()-COLUMN($EB42)+1=ROW()-ROW(EM$42),INDEX($EM$30:$EM$40,$C$23+1,1),0) -> 0 | EN43: =IF(COLUMN()-COLUMN($EB42)+1=ROW()-ROW(EN$42),INDEX($EM$30:$EM$40,$C$23+1,1),0) -> 0 | EO43: =IF(COLUMN()-COLUMN($EB42)+1=ROW()-ROW(EO$42),INDEX($EM$30:$EM$40,$C$23+1,1),0) -> 0 | EP43: =IF(COLUMN()-COLUMN($EB42)+1=ROW()-ROW(EP$42),INDEX($EM$30:$EM$40,$C$23+1,1),0) -> 0 | EQ43: =IF(COLUMN()-COLUMN($EB42)+1=ROW()-ROW(EQ$42),INDEX($EM$30:$EM$40,$C$23+1,1),0) -> 0
B44: 11 | C44: 3 | X44: moments | AB44: 0.004892086331 | AC44: =IF(C$34="","",IF(ROW()-ROW(S$27)>B$17,"",SMALL(INDEX($C$34:$C$10033,1,1):INDEX($C$34:$C$10033,B$17,1),ROW()-ROW(S$27)))) -> 3 | AD44: 0.13 | AE44: 5.516012985 | AF44: 0.07187964724 | AG44: 5.885092108 | AH44: 6.22070126 | AI44: 6.189503646 | AJ44: 5.696277304 | AM44: 5.591709409 | AN44: 5.547142862 | AO44: 5.516012985 | AP44: 5.526222659 | AQ44: 5.516727614 | AR44: 5.517232346 | AS44: 5.510806349 | AT44: 5.509689177 | AU44: 5.458582383 | AV44: 0.05010700692 | AW44: 0.08714655163 | AX44: 0.08820958756 | AY44: 0.07399051429 | BB44: 0.07149226711 | BC44: 0.0653979623 | BD44: 0.07187964724 | BE44: 0.07349841445 | BF44: 0.07380611265 | BG44: 0.07098697528 | BH44: 0.07141345668 | BI44: 0.06943410701 | BJ44: 0.06582554998 | BL44: 5.885092108 | BM44: 6.22070126 | BN44: 6.189503646 | BO44: 5.696277304 | BR44: 5.591709409 | BS44: 5.547142862 | BT44: 5.516012985 | BU44: 5.526222659 | BV44: 5.516727614 | BW44: 5.517232346 | BX44: 5.510806349 | BY44: 5.509689177 | BZ44: 5.458582383 | CA44: 0.05010700692 | CB44: 0.08714655163 | CC44: 0.08820958756 | CD44: 0.07399051429 | CG44: 0.07149226711 | CH44: 0.0653979623 | CI44: 0.07187964724 | CJ44: 0.07349841445 | CK44: 0.07380611265 | CL44: 0.07098697528 | CM44: 0.07141345668 | CN44: 0.06943410701 | CO44: 0.06582554998 | CQ44: 0.04337290873 | CR44: 0.07636916901 | CS44: 0.0776789483 | CT44: 0.07172206745 | CU44: 0.06182003571 | CV44: 0.06180922512 | CW44: 0.07150970283 | CX44: 0.06673992777 | CY44: 0.07622002016 | CZ44: 0.07703603459 | DA44: 0.07823789156 | DB44: 0.07506548169 | DC44: 0.07637969043 | DD44: 0.07458291731 | DE44: 0.07840693568 | DG44: 1 | DH44: -5.440973667 | DI44: 2.697000616 | DJ44: -0.4956834532 | DK44: 0.2457020858 | DL44: -1.336858579 | DM44: -0.1217904584 | DN44: 0.6626586768 | DO44: 0.06036951497 | DP44: -0.3284689413 | DQ44: -0.02992416965 | DR44: 0.1628166191 | DS44: 0.01483291575 | DT44: -0.08070550399 | DU44: -0.0073524309 | DV44: 0.04000438291 | DW44: 3 | DY44: y | DZ44: x | EB44: =IF(COLUMN()-COLUMN($EB43)+1=ROW()-ROW(EB$42),INDEX($EM$30:$EM$40,$C$23+1,1),0) -> 0 | EC44: =IF(COLUMN()-COLUMN($EB43)+1=ROW()-ROW(EC$42),INDEX($EM$30:$EM$40,$C$23+1,1),0) -> 0 | ED44: =IF(COLUMN()-COLUMN($EB43)+1=ROW()-ROW(ED$42),INDEX($EM$30:$EM$40,$C$23+1,1),0) -> 0 | EE44: =IF(COLUMN()-COLUMN($EB43)+1=ROW()-ROW(EE$42),INDEX($EM$30:$EM$40,$C$23+1,1),0) -> 0 | EF44: =IF(COLUMN()-COLUMN($EB43)+1=ROW()-ROW(EF$42),INDEX($EM$30:$EM$40,$C$23+1,1),0) -> 0 | EG44: =IF(COLUMN()-COLUMN($EB43)+1=ROW()-ROW(EG$42),INDEX($EM$30:$EM$40,$C$23+1,1),0) -> 0 | EH44: =IF(COLUMN()-COLUMN($EB43)+1=ROW()-ROW(EH$42),INDEX($EM$30:$EM$40,$C$23+1,1),0) -> 0 | EI44: =IF(COLUMN()-COLUMN($EB43)+1=ROW()-ROW(EI$42),INDEX($EM$30:$EM$40,$C$23+1,1),0) -> 0 | EJ44: =IF(COLUMN()-COLUMN($EB43)+1=ROW()-ROW(EJ$42),INDEX($EM$30:$EM$40,$C$23+1,1),0) -> 0 | EK44: =IF(COLUMN()-COLUMN($EB43)+1=ROW()-ROW(EK$42),INDEX($EM$30:$EM$40,$C$23+1,1),0) -> 0 | EL44: =IF(COLUMN()-COLUMN($EB43)+1=ROW()-ROW(EL$42),INDEX($EM$30:$EM$40,$C$23+1,1),0) -> 0 | EM44: =IF(COLUMN()-COLUMN($EB43)+1=ROW()-ROW(EM$42),INDEX($EM$30:$EM$40,$C$23+1,1),0) -> 0 | EN44: =IF(COLUMN()-COLUMN($EB43)+1=ROW()-ROW(EN$42),INDEX($EM$30:$EM$40,$C$23+1,1),0) -> 0 | EO44: =IF(COLUMN()-COLUMN($EB43)+1=ROW()-ROW(EO$42),INDEX($EM$30:$EM$40,$C$23+1,1),0) -> 0 | EP44: =IF(COLUMN()-COLUMN($EB43)+1=ROW()-ROW(EP$42),INDEX($EM$30:$EM$40,$C$23+1,1),0) -> 0 | EQ44: =IF(COLUMN()-COLUMN($EB43)+1=ROW()-ROW(EQ$42),INDEX($EM$30:$EM$40,$C$23+1,1),0) -> 0
B45: 12 | C45: 3 | X45: (unbounded only) | Z45: data | AB45: 0.005179856115 | AC45: =IF(C$34="","",IF(ROW()-ROW(S$27)>B$17,"",SMALL(INDEX($C$34:$C$10033,1,1):INDEX($C$34:$C$10033,B$17,1),ROW()-ROW(S$27)))) -> 3 | AD45: 0.14 | AE45: 5.656765108 | AF45: 0.07028270704 | AG45: 6.078461085 | AH45: 6.332319229 | AI45: 6.299903926 | AJ45: 5.830485302 | AM45: 5.731527944 | AN45: 5.700267143 | AO45: 5.656765108 | AP45: 5.663712883 | AQ45: 5.653964683 | AR45: 5.65953664 | AS45: 5.652627679 | AT45: 5.655330591 | AU45: 5.614564397 | AV45: 0.05334114618 | AW45: 0.09202283482 | AX45: 0.09292990483 | AY45: 0.07502638251 | BB45: 0.07156079625 | BC45: 0.0652661265 | BD45: 0.07028270704 | BE45: 0.07200930387 | BF45: 0.07198508591 | BG45: 0.06962943465 | BH45: 0.06969557398 | BI45: 0.06800030304 | BJ45: 0.06268820074 | BL45: 6.078461085 | BM45: 6.332319229 | BN45: 6.299903926 | BO45: 5.830485302 | BR45: 5.731527944 | BS45: 5.700267143 | BT45: 5.656765108 | BU45: 5.663712883 | BV45: 5.653964683 | BW45: 5.65953664 | BX45: 5.652627679 | BY45: 5.655330591 | BZ45: 5.614564397 | CA45: 0.05334114618 | CB45: 0.09202283482 | CC45: 0.09292990483 | CD45: 0.07502638251 | CG45: 0.07156079625 | CH45: 0.0652661265 | CI45: 0.07028270704 | CJ45: 0.07200930387 | CK45: 0.07198508591 | CL45: 0.06962943465 | CM45: 0.06969557398 | CN45: 0.06800030304 | CO45: 0.06268820074 | CQ45: 0.0467842611 | CR45: 0.08192685591 | CS45: 0.08312563788 | CT45: 0.07289724833 | CU45: 0.06303199436 | CV45: 0.06303628225 | CW45: 0.07148085812 | CX45: 0.06586595029 | CY45: 0.07385944346 | CZ45: 0.07519463766 | DA45: 0.07591201145 | DB45: 0.07278148316 | DC45: 0.07363144103 | DD45: 0.07157641056 | DE45: 0.07084129435 | DG45: 1 | DH45: -5.376146087 | DI45: 2.663319565 | DJ45: -0.4953956835 | DK45: 0.2454168832 | DL45: -1.319397016 | DM45: -0.1215784646 | DN45: 0.6536235866 | DO45: 0.06022944655 | DP45: -0.3238023034 | DQ45: -0.02983740784 | DR45: 0.1604102634 | DS45: 0.01478132305 | DT45: -0.07946655206 | DU45: -0.007322603634 | DV45: 0.03936738687 | DW45: 3 | DY45: =IF(OR($B$11="sl",$B$11="b"),0,NA()) ->  | DZ45: =IF(OR($B$11="sl",$B$11="b"),C$19,NA()) ->  | EB45: =IF(COLUMN()-COLUMN($EB44)+1=ROW()-ROW(EB$42),INDEX($EM$30:$EM$40,$C$23+1,1),0) -> 0 | EC45: =IF(COLUMN()-COLUMN($EB44)+1=ROW()-ROW(EC$42),INDEX($EM$30:$EM$40,$C$23+1,1),0) -> 0 | ED45: =IF(COLUMN()-COLUMN($EB44)+1=ROW()-ROW(ED$42),INDEX($EM$30:$EM$40,$C$23+1,1),0) -> 0 | EE45: =IF(COLUMN()-COLUMN($EB44)+1=ROW()-ROW(EE$42),INDEX($EM$30:$EM$40,$C$23+1,1),0) -> 0 | EF45: =IF(COLUMN()-COLUMN($EB44)+1=ROW()-ROW(EF$42),INDEX($EM$30:$EM$40,$C$23+1,1),0) -> 0 | EG45: =IF(COLUMN()-COLUMN($EB44)+1=ROW()-ROW(EG$42),INDEX($EM$30:$EM$40,$C$23+1,1),0) -> 0 | EH45: =IF(COLUMN()-COLUMN($EB44)+1=ROW()-ROW(EH$42),INDEX($EM$30:$EM$40,$C$23+1,1),0) -> 0 | EI45: =IF(COLUMN()-COLUMN($EB44)+1=ROW()-ROW(EI$42),INDEX($EM$30:$EM$40,$C$23+1,1),0) -> 0 | EJ45: =IF(COLUMN()-COLUMN($EB44)+1=ROW()-ROW(EJ$42),INDEX($EM$30:$EM$40,$C$23+1,1),0) -> 0 | EK45: =IF(COLUMN()-COLUMN($EB44)+1=ROW()-ROW(EK$42),INDEX($EM$30:$EM$40,$C$23+1,1),0) -> 0 | EL45: =IF(COLUMN()-COLUMN($EB44)+1=ROW()-ROW(EL$42),INDEX($EM$30:$EM$40,$C$23+1,1),0) -> 0 | EM45: =IF(COLUMN()-COLUMN($EB44)+1=ROW()-ROW(EM$42),INDEX($EM$30:$EM$40,$C$23+1,1),0) -> 0 | EN45: =IF(COLUMN()-COLUMN($EB44)+1=ROW()-ROW(EN$42),INDEX($EM$30:$EM$40,$C$23+1,1),0) -> 0 | EO45: =IF(COLUMN()-COLUMN($EB44)+1=ROW()-ROW(EO$42),INDEX($EM$30:$EM$40,$C$23+1,1),0) -> 0 | EP45: =IF(COLUMN()-COLUMN($EB44)+1=ROW()-ROW(EP$42),INDEX($EM$30:$EM$40,$C$23+1,1),0) -> 0 | EQ45: =IF(COLUMN()-COLUMN($EB44)+1=ROW()-ROW(EQ$42),INDEX($EM$30:$EM$40,$C$23+1,1),0) -> 0
B46: 13 | C46: 3 | N46: chart titles | X46: mean | Y46: =INDEX(EC109:EQ109,C$17-1) -> 10.17867852 | Z46: =ER109 -> 10.17587795 | AB46: 0.005467625899 | AC46: =IF(C$34="","",IF(ROW()-ROW(S$27)>B$17,"",SMALL(INDEX($C$34:$C$10033,1,1):INDEX($C$34:$C$10033,B$17,1),ROW()-ROW(S$27)))) -> 3 | AD46: 0.15 | AE46: 5.80037091 | AF46: 0.0690496013 | AG46: 6.260589622 | AH46: 6.4383649 | AI46: 6.405031191 | AJ46: 5.962889865 | AM46: 5.871148603 | AN46: 5.853359438 | AO46: 5.80037091 | AP46: 5.803845487 | AQ46: 5.794413452 | AR46: 5.804231822 | AS46: 5.797502641 | AT46: 5.80342349 | AU46: 5.776594725 | AV46: 0.05648667889 | AW46: 0.09655395575 | AX46: 0.0972892269 | AY46: 0.07602260054 | BB46: 0.07169623345 | BC46: 0.06541761437 | BD46: 0.0690496013 | BE46: 0.0707571609 | BF46: 0.07047310305 | BG46: 0.06865372434 | BH46: 0.0684293527 | BI46: 0.06713664935 | BJ46: 0.06095735737 | BL46: 6.260589622 | BM46: 6.4383649 | BN46: 6.405031191 | BO46: 5.962889865 | BR46: 5.871148603 | BS46: 5.853359438 | BT46: 5.80037091 | BU46: 5.803845487 | BV46: 5.794413452 | BW46: 5.804231822 | BX46: 5.797502641 | BY46: 5.80342349 | BZ46: 5.776594725 | CA46: =IF(AND($EC$41=0,CQ$26="yes"),CQ48,"") -> 0.05648667889 | CB46: 0.09655395575 | CC46: 0.0972892269 | CD46: 0.07602260054 | CG46: 0.07169623345 | CH46: 0.06541761437 | CI46: 0.0690496013 | CJ46: 0.0707571609 | CK46: 0.07047310305 | CL46: 0.06865372434 | CM46: 0.0684293527 | CN46: 0.06713664935 | CO46: 0.06095735737 | CQ46: 0.05010700692 | CR46: 0.08714655163 | CS46: 0.08820958756 | CT46: 0.07399051429 | CU46: 0.06428768636 | CV46: 0.06430532309 | CW46: 0.07149226711 | CX46: 0.0653979623 | CY46: 0.07187964724 | CZ46: 0.07349841445 | DA46: 0.07380611265 | DB46: 0.07098697528 | DC46: 0.07141345668 | DD46: 0.06943410701 | DE46: 0.06582554998 | DG46: 1 | DH46: -5.315232322 | DI46: 2.631613586 | DJ46: -0.4951079137 | DK46: 0.2451318462 | DL46: -1.302932712 | DM46: -0.1213667169 | DN46: 0.6450922967 | DO46: 0.06008962201 | DP46: -0.3193903011 | DQ46: -0.02975084739 | DR46: 0.1581326656 | DS46: 0.01472987998 | DT46: -0.07829273417 | DU46: -0.007292880145 | DV46: 0.03876335227 | DW46: 3 | DY46: =IF(AB28="",NA(),AB28) -> 0.0002877697842 | DZ46: =IF(AC28="",NA(),AC28) -> 2 | EB46: =IF(COLUMN()-COLUMN($EB45)+1=ROW()-ROW(EB$42),INDEX($EM$30:$EM$40,$C$23+1,1),0) -> 0 | EC46: =IF(COLUMN()-COLUMN($EB45)+1=ROW()-ROW(EC$42),INDEX($EM$30:$EM$40,$C$23+1,1),0) -> 0 | ED46: =IF(COLUMN()-COLUMN($EB45)+1=ROW()-ROW(ED$42),INDEX($EM$30:$EM$40,$C$23+1,1),0) -> 0 | EE46: =IF(COLUMN()-COLUMN($EB45)+1=ROW()-ROW(EE$42),INDEX($EM$30:$EM$40,$C$23+1,1),0) -> 0 | EF46: =IF(COLUMN()-COLUMN($EB45)+1=ROW()-ROW(EF$42),INDEX($EM$30:$EM$40,$C$23+1,1),0) -> 0 | EG46: =IF(COLUMN()-COLUMN($EB45)+1=ROW()-ROW(EG$42),INDEX($EM$30:$EM$40,$C$23+1,1),0) -> 0 | EH46: =IF(COLUMN()-COLUMN($EB45)+1=ROW()-ROW(EH$42),INDEX($EM$30:$EM$40,$C$23+1,1),0) -> 0 | EI46: =IF(COLUMN()-COLUMN($EB45)+1=ROW()-ROW(EI$42),INDEX($EM$30:$EM$40,$C$23+1,1),0) -> 0 | EJ46: =IF(COLUMN()-COLUMN($EB45)+1=ROW()-ROW(EJ$42),INDEX($EM$30:$EM$40,$C$23+1,1),0) -> 0 | EK46: =IF(COLUMN()-COLUMN($EB45)+1=ROW()-ROW(EK$42),INDEX($EM$30:$EM$40,$C$23+1,1),0) -> 0 | EL46: =IF(COLUMN()-COLUMN($EB45)+1=ROW()-ROW(EL$42),INDEX($EM$30:$EM$40,$C$23+1,1),0) -> 0 | EM46: =IF(COLUMN()-COLUMN($EB45)+1=ROW()-ROW(EM$42),INDEX($EM$30:$EM$40,$C$23+1,1),0) -> 0 | EN46: =IF(COLUMN()-COLUMN($EB45)+1=ROW()-ROW(EN$42),INDEX($EM$30:$EM$40,$C$23+1,1),0) -> 0 | EO46: =IF(COLUMN()-COLUMN($EB45)+1=ROW()-ROW(EO$42),INDEX($EM$30:$EM$40,$C$23+1,1),0) -> 0 | EP46: =IF(COLUMN()-COLUMN($EB45)+1=ROW()-ROW(EP$42),INDEX($EM$30:$EM$40,$C$23+1,1),0) -> 0 | EQ46: =IF(COLUMN()-COLUMN($EB45)+1=ROW()-ROW(EQ$42),INDEX($EM$30:$EM$40,$C$23+1,1),0) -> 0
B47: 14 | C47: 3 | N47: =C27 & " cumulative" -> steelhead weight cumulative | R47: =C27 & " density" -> steelhead weight density | X47: std dev | Y47: =INDEX(EC110:EQ110,C$17-1) -> 4.230860992 | Z47: =ER110 -> 4.2286553 | AB47: 0.005755395683 | AC47: =IF(C$34="","",IF(ROW()-ROW(S$27)>B$17,"",SMALL(INDEX($C$34:$C$10033,1,1):INDEX($C$34:$C$10033,B$17,1),ROW()-ROW(S$27)))) -> 3 | AD47: 0.16 | AE47: 5.946199203 | AF47: 0.06815386312 | AG47: 6.432976369 | AH47: 6.53972172 | AI47: 6.505728986 | AJ47: 6.093594898 | AM47: 6.010436155 | AN47: 6.005808234 | AO47: 5.946199203 | AP47: 5.946228471 | AQ47: 5.937586917 | AR47: 5.950632848 | AS47: 5.944638559 | AT47: 5.952903559 | AU47: 5.94173872 | AV47: 0.05954360504 | AW47: 0.1007413424 | AX47: 0.1012931336 | AY47: 0.07699219877 | BB47: 0.07190409167 | BC47: 0.06581201126 | BD47: 0.06815386312 | BE47: 0.06975307961 | BF47: 0.06927240165 | BG47: 0.06800988844 | BH47: 0.06756395868 | BI47: 0.06672842939 | BJ47: 0.06030966368 | BL47: 6.432976369 | BM47: 6.53972172 | BN47: 6.505728986 | BO47: 6.093594898 | BR47: 6.010436155 | BS47: 6.005808234 | BT47: 5.946199203 | BU47: 5.946228471 | BV47: 5.937586917 | BW47: 5.950632848 | BX47: 5.944638559 | BY47: 5.952903559 | BZ47: 5.94173872 | CA47: 0.05954360504 | CB47: 0.1007413424 | CC47: 0.1012931336 | CD47: 0.07699219877 | CG47: 0.07190409167 | CH47: 0.06581201126 | CI47: 0.06815386312 | CJ47: 0.06975307961 | CK47: 0.06927240165 | CL47: 0.06800988844 | CM47: 0.06756395868 | CN47: 0.06672842939 | CO47: 0.06030966368 | CQ47: 0.05334114618 | CR47: 0.09202283482 | CS47: 0.09292990483 | CT47: 0.07502638251 | CU47: 0.06558380318 | CV47: 0.06561314991 | CW47: 0.07156079625 | CX47: 0.0652661265 | CY47: =IF(OR(DP$26="",DP$26="no"),"",(EK$91/($AD45*(1-$AD45))+EK$92*(($AD45-0.5)/($AD45*(1-$AD45))+LN($AD45/(1-$AD45)))+EK$93+2*EK$94*($AD45-0.5)+EK$95*(($AD45-0.5)^2/($AD45*(1-$AD45))+2*($AD45-0.5)*LN($AD45/(1-$AD45)))+3*EK$96*($AD45-0.5)^2+EK$97*(($AD45-0.5)^3/($AD45*(1-$AD45))+3*($AD45-0.5)^2*LN($AD45/(1-$AD45)))+4*EK$98*($AD45-0.5)^3+EK$99*(($AD45-0.5)^4/($AD45*(1-$AD45))+4*($AD45-0.5)^3*LN($AD45/(1-$AD45)))+5*EK$100*($AD45-0.5)^4+EK$101*(($AD45-0.5)^5/($AD45*(1-$AD45))+5*($AD45-0.5)^4*LN($AD45/(1-$AD45)))+6*EK$102*($AD45-0.5)^5+EK$103*(($AD45-0.5)^6/($AD45*(1-$AD45))+6*($AD45-0.5)^5*LN($AD45/(1-$AD45)))+7*EK$104*($AD45-0.5)^6+EK$105*(($AD45-0.5)^7/($AD45*(1-$AD45))+7*($AD45-0.5)^6*LN($AD45/(1-$AD45))))^-1) -> 0.07028270704 | CZ47: 0.07200930387 | DA47: 0.07198508591 | DB47: 0.06962943465 | DC47: 0.06969557398 | DD47: 0.06800030304 | DE47: 0.06268820074 | DG47: 1 | DH47: -5.257784682 | DI47: 2.601657773 | DJ47: -0.4948201439 | DK47: 0.2448469748 | DL47: -1.287352674 | DM47: -0.1211552153 | DN47: 0.6370080351 | DO47: 0.05995004107 | DP47: -0.3152044076 | DQ47: -0.02966448795 | DR47: 0.1559694903 | DS47: 0.01467858619 | DT47: -0.07717684564 | DU47: -0.007263260132 | DV47: 0.03818865787 | DW47: 3 | DY47: 0.0005755395683 | DZ47: 3 | EB47: =IF(COLUMN()-COLUMN($EB46)+1=ROW()-ROW(EB$42),INDEX($EM$30:$EM$40,$C$23+1,1),0) -> 0 | EC47: =IF(COLUMN()-COLUMN($EB46)+1=ROW()-ROW(EC$42),INDEX($EM$30:$EM$40,$C$23+1,1),0) -> 0 | ED47: =IF(COLUMN()-COLUMN($EB46)+1=ROW()-ROW(ED$42),INDEX($EM$30:$EM$40,$C$23+1,1),0) -> 0 | EE47: =IF(COLUMN()-COLUMN($EB46)+1=ROW()-ROW(EE$42),INDEX($EM$30:$EM$40,$C$23+1,1),0) -> 0 | EF47: =IF(COLUMN()-COLUMN($EB46)+1=ROW()-ROW(EF$42),INDEX($EM$30:$EM$40,$C$23+1,1),0) -> 0 | EG47: =IF(COLUMN()-COLUMN($EB46)+1=ROW()-ROW(EG$42),INDEX($EM$30:$EM$40,$C$23+1,1),0) -> 0 | EH47: =IF(COLUMN()-COLUMN($EB46)+1=ROW()-ROW(EH$42),INDEX($EM$30:$EM$40,$C$23+1,1),0) -> 0 | EI47: =IF(COLUMN()-COLUMN($EB46)+1=ROW()-ROW(EI$42),INDEX($EM$30:$EM$40,$C$23+1,1),0) -> 0 | EJ47: =IF(COLUMN()-COLUMN($EB46)+1=ROW()-ROW(EJ$42),INDEX($EM$30:$EM$40,$C$23+1,1),0) -> 0 | EK47: =IF(COLUMN()-COLUMN($EB46)+1=ROW()-ROW(EK$42),INDEX($EM$30:$EM$40,$C$23+1,1),0) -> 0 | EL47: =IF(COLUMN()-COLUMN($EB46)+1=ROW()-ROW(EL$42),INDEX($EM$30:$EM$40,$C$23+1,1),0) -> 0 | EM47: =IF(COLUMN()-COLUMN($EB46)+1=ROW()-ROW(EM$42),INDEX($EM$30:$EM$40,$C$23+1,1),0) -> 0 | EN47: =IF(COLUMN()-COLUMN($EB46)+1=ROW()-ROW(EN$42),INDEX($EM$30:$EM$40,$C$23+1,1),0) -> 0 | EO47: =IF(COLUMN()-COLUMN($EB46)+1=ROW()-ROW(EO$42),INDEX($EM$30:$EM$40,$C$23+1,1),0) -> 0 | EP47: =IF(COLUMN()-COLUMN($EB46)+1=ROW()-ROW(EP$42),INDEX($EM$30:$EM$40,$C$23+1,1),0) -> 0 | EQ47: =IF(COLUMN()-COLUMN($EB46)+1=ROW()-ROW(EQ$42),INDEX($EM$30:$EM$40,$C$23+1,1),0) -> 0
B48: 15 | C48: 3 | X48: skewness | Y48: =INDEX(EC111:EQ111,C$17-1) -> 1.224394948 | Z48: =ER111 -> 1.188935786 | AB48: 0.006043165468 | AC48: =IF(C$34="","",IF(ROW()-ROW(S$27)>B$17,"",SMALL(INDEX($C$34:$C$10033,1,1):INDEX($C$34:$C$10033,B$17,1),ROW()-ROW(S$27)))) -> 3 | AD48: 0.17 | AE48: 6.093613884 | AF48: 0.06756815785 | AG48: 6.596848698 | AH48: 6.637110454 | AI48: 6.602685396 | AJ48: 6.222679407 | AM48: 6.149249369 | AN48: 6.157098721 | AO48: 6.093613884 | AP48: 6.090415997 | AQ48: 6.082940635 | AR48: 6.098103791 | AS48: 6.093270581 | AT48: 6.102876252 | AU48: 6.107436734 | AV48: 0.06251192464 | AW48: 0.1045891329 | AX48: 0.1049496129 | AY48: 0.07794485577 | BB48: 0.07218730848 | BC48: 0.06641796157 | BD48: 0.06756815785 | BE48: 0.06899771504 | BF48: 0.06837434769 | BG48: 0.06765546455 | BH48: 0.06705262627 | BI48: 0.06668296208 | BJ48: 0.06051988948 | BL48: 6.596848698 | BM48: 6.637110454 | BN48: 6.602685396 | BO48: 6.222679407 | BR48: 6.149249369 | BS48: 6.157098721 | BT48: 6.093613884 | BU48: 6.090415997 | BV48: 6.082940635 | BW48: 6.098103791 | BX48: 6.093270581 | BY48: 6.102876252 | BZ48: 6.107436734 | CA48: 0.06251192464 | CB48: 0.1045891329 | CC48: 0.1049496129 | CD48: 0.07794485577 | CG48: 0.07218730848 | CH48: 0.06641796157 | CI48: 0.06756815785 | CJ48: 0.06899771504 | CK48: 0.06837434769 | CL48: 0.06765546455 | CM48: 0.06705262627 | CN48: 0.06668296208 | CO48: 0.06051988948 | CQ48: 0.05648667889 | CR48: 0.09655395575 | CS48: 0.0972892269 | CT48: 0.07602260054 | CU48: 0.06691804968 | CV48: 0.06695756404 | CW48: 0.07169623345 | CX48: 0.06541761437 | CY48: 0.0690496013 | CZ48: 0.0707571609 | DA48: 0.07047310305 | DB48: 0.06865372434 | DC48: 0.0684293527 | DD48: 0.06713664935 | DE48: 0.06095735737 | DG48: 1 | DH48: -5.203428151 | DI48: 2.573263677 | DJ48: -0.4945323741 | DK48: 0.244562269 | DL48: -1.272562195 | DM48: -0.1209439595 | DN48: 0.6293232036 | DO48: 0.05981070343 | DP48: -0.311220698 | DQ48: -0.02957832917 | DR48: 0.1539087106 | DS48: 0.01462744134 | DT48: -0.07611284007 | DU48: -0.007233743295 | DV48: 0.0376402635 | DW48: 3 | DY48: 0.0008633093525 | DZ48: 3 | EB48: =IF(COLUMN()-COLUMN($EB47)+1=ROW()-ROW(EB$42),INDEX($EM$30:$EM$40,$C$23+1,1),0) -> 0 | EC48: =IF(COLUMN()-COLUMN($EB47)+1=ROW()-ROW(EC$42),INDEX($EM$30:$EM$40,$C$23+1,1),0) -> 0 | ED48: =IF(COLUMN()-COLUMN($EB47)+1=ROW()-ROW(ED$42),INDEX($EM$30:$EM$40,$C$23+1,1),0) -> 0 | EE48: =IF(COLUMN()-COLUMN($EB47)+1=ROW()-ROW(EE$42),INDEX($EM$30:$EM$40,$C$23+1,1),0) -> 0 | EF48: =IF(COLUMN()-COLUMN($EB47)+1=ROW()-ROW(EF$42),INDEX($EM$30:$EM$40,$C$23+1,1),0) -> 0 | EG48: =IF(COLUMN()-COLUMN($EB47)+1=ROW()-ROW(EG$42),INDEX($EM$30:$EM$40,$C$23+1,1),0) -> 0 | EH48: =IF(COLUMN()-COLUMN($EB47)+1=ROW()-ROW(EH$42),INDEX($EM$30:$EM$40,$C$23+1,1),0) -> 0 | EI48: =IF(COLUMN()-COLUMN($EB47)+1=ROW()-ROW(EI$42),INDEX($EM$30:$EM$40,$C$23+1,1),0) -> 0 | EJ48: =IF(COLUMN()-COLUMN($EB47)+1=ROW()-ROW(EJ$42),INDEX($EM$30:$EM$40,$C$23+1,1),0) -> 0 | EK48: =IF(COLUMN()-COLUMN($EB47)+1=ROW()-ROW(EK$42),INDEX($EM$30:$EM$40,$C$23+1,1),0) -> 0 | EL48: =IF(COLUMN()-COLUMN($EB47)+1=ROW()-ROW(EL$42),INDEX($EM$30:$EM$40,$C$23+1,1),0) -> 0 | EM48: =IF(COLUMN()-COLUMN($EB47)+1=ROW()-ROW(EM$42),INDEX($EM$30:$EM$40,$C$23+1,1),0) -> 0 | EN48: =IF(COLUMN()-COLUMN($EB47)+1=ROW()-ROW(EN$42),INDEX($EM$30:$EM$40,$C$23+1,1),0) -> 0 | EO48: =IF(COLUMN()-COLUMN($EB47)+1=ROW()-ROW(EO$42),INDEX($EM$30:$EM$40,$C$23+1,1),0) -> 0 | EP48: =IF(COLUMN()-COLUMN($EB47)+1=ROW()-ROW(EP$42),INDEX($EM$30:$EM$40,$C$23+1,1),0) -> 0 | EQ48: =IF(COLUMN()-COLUMN($EB47)+1=ROW()-ROW(EQ$42),INDEX($EM$30:$EM$40,$C$23+1,1),0) -> 0
B49: 16 | C49: 3 | X49: kurtosis | Y49: =INDEX(EC115:EQ115,C$17-1) -> 5.864511617 | Z49: =ER115 -> 5.659496007 | AB49: 0.006330935252 | AC49: =IF(C$34="","",IF(ROW()-ROW(S$27)>B$17,"",SMALL(INDEX($C$34:$C$10033,1,1):INDEX($C$34:$C$10033,B$17,1),ROW()-ROW(S$27)))) -> 3 | AD49: 0.18 | AE49: 6.241993242 | AF49: 0.06726722539 | AG49: 6.753224881 | AH49: 6.731127049 | AI49: 6.696469257 | AJ49: 6.350204481 | AM49: 6.287445891 | AN49: 6.306801812 | AO49: 6.241993242 | AP49: 6.235930527 | AQ49: 6.229899904 | AR49: 6.246064404 | AS49: 6.242682545 | AT49: 6.252614749 | AU49: 6.271589912 | AV49: 0.06539163768 | AW49: 0.1081037393 | AX49: 0.1082685796 | AY49: 0.07888782428 | BB49: 0.07254728964 | BC49: 0.0672107417 | BD49: 0.06726722539 | BE49: 0.06848636049 | BF49: 0.06776573843 | BG49: 0.06755555559 | BH49: 0.06685477035 | BI49: 0.06692616754 | BJ49: 0.06142395202 | BL49: 6.753224881 | BM49: 6.731127049 | BN49: 6.696469257 | BO49: 6.350204481 | BR49: 6.287445891 | BS49: 6.306801812 | BT49: 6.241993242 | BU49: 6.235930527 | BV49: 6.229899904 | BW49: 6.246064404 | BX49: 6.242682545 | BY49: 6.252614749 | BZ49: 6.271589912 | CA49: 0.06539163768 | CB49: 0.1081037393 | CC49: 0.1082685796 | CD49: 0.07888782428 | CG49: 0.07254728964 | CH49: 0.0672107417 | CI49: 0.06726722539 | CJ49: 0.06848636049 | CK49: 0.06776573843 | CL49: 0.06755555559 | CM49: 0.06685477035 | CN49: 0.06692616754 | CO49: 0.06142395202 | CQ49: 0.05954360504 | CR49: 0.1007413424 | CS49: 0.1012931336 | CT49: 0.07699219877 | CU49: 0.06828878103 | CV49: 0.06833700374 | CW49: 0.07190409167 | CX49: 0.06581201126 | CY49: 0.06815386312 | CZ49: 0.06975307961 | DA49: 0.06927240165 | DB49: 0.06800988844 | DC49: 0.06756395868 | DD49: 0.06672842939 | DE49: 0.06030966368 | DG49: 1 | DH49: -5.151845463 | DI49: 2.546271822 | DJ49: -0.4942446043 | DK49: 0.2442777289 | DL49: -1.258481109 | DM49: -0.1207329495 | DN49: 0.6219974979 | DO49: 0.05967160883 | DP49: -0.3074189072 | DQ49: -0.0294923707 | DR49: 0.1519401362 | DS49: 0.01457644509 | DT49: -0.07509559248 | DU49: -0.007204329334 | DV49: 0.03711559139 | DW49: 3 | DY49: 0.001151079137 | DZ49: 3 | EB49: =IF(COLUMN()-COLUMN($EB48)+1=ROW()-ROW(EB$42),INDEX($EM$30:$EM$40,$C$23+1,1),0) -> 0 | EC49: =IF(COLUMN()-COLUMN($EB48)+1=ROW()-ROW(EC$42),INDEX($EM$30:$EM$40,$C$23+1,1),0) -> 0 | ED49: =IF(COLUMN()-COLUMN($EB48)+1=ROW()-ROW(ED$42),INDEX($EM$30:$EM$40,$C$23+1,1),0) -> 0 | EE49: =IF(COLUMN()-COLUMN($EB48)+1=ROW()-ROW(EE$42),INDEX($EM$30:$EM$40,$C$23+1,1),0) -> 0 | EF49: =IF(COLUMN()-COLUMN($EB48)+1=ROW()-ROW(EF$42),INDEX($EM$30:$EM$40,$C$23+1,1),0) -> 0 | EG49: =IF(COLUMN()-COLUMN($EB48)+1=ROW()-ROW(EG$42),INDEX($EM$30:$EM$40,$C$23+1,1),0) -> 0 | EH49: =IF(COLUMN()-COLUMN($EB48)+1=ROW()-ROW(EH$42),INDEX($EM$30:$EM$40,$C$23+1,1),0) -> 0 | EI49: =IF(COLUMN()-COLUMN($EB48)+1=ROW()-ROW(EI$42),INDEX($EM$30:$EM$40,$C$23+1,1),0) -> 0 | EJ49: =IF(COLUMN()-COLUMN($EB48)+1=ROW()-ROW(EJ$42),INDEX($EM$30:$EM$40,$C$23+1,1),0) -> 0 | EK49: =IF(COLUMN()-COLUMN($EB48)+1=ROW()-ROW(EK$42),INDEX($EM$30:$EM$40,$C$23+1,1),0) -> 0 | EL49: =IF(COLUMN()-COLUMN($EB48)+1=ROW()-ROW(EL$42),INDEX($EM$30:$EM$40,$C$23+1,1),0) -> 0 | EM49: =IF(COLUMN()-COLUMN($EB48)+1=ROW()-ROW(EM$42),INDEX($EM$30:$EM$40,$C$23+1,1),0) -> 0 | EN49: =IF(COLUMN()-COLUMN($EB48)+1=ROW()-ROW(EN$42),INDEX($EM$30:$EM$40,$C$23+1,1),0) -> 0 | EO49: =IF(COLUMN()-COLUMN($EB48)+1=ROW()-ROW(EO$42),INDEX($EM$30:$EM$40,$C$23+1,1),0) -> 0 | EP49: =IF(COLUMN()-COLUMN($EB48)+1=ROW()-ROW(EP$42),INDEX($EM$30:$EM$40,$C$23+1,1),0) -> 0 | EQ49: =IF(COLUMN()-COLUMN($EB48)+1=ROW()-ROW(EQ$42),INDEX($EM$30:$EM$40,$C$23+1,1),0) -> 0
B50: 17 | C50: 3 | X50: (skewness, kurtosis standardized) | AB50: 0.006618705036 | AC50: =IF(C$34="","",IF(ROW()-ROW(S$27)>B$17,"",SMALL(INDEX($C$34:$C$10033,1,1):INDEX($C$34:$C$10033,B$17,1),ROW()-ROW(S$27)))) -> 3 | AD50: 0.19 | AE50: 6.390742901 | AF50: 0.06722899722 | AG50: 6.902959432 | AH50: 6.822270172 | AI50: 6.787556482 | AJ50: 6.476218207 | AM50: 6.424885448 | AN50: 6.45456404 | AO50: 6.390742901 | AP50: 6.382279886 | AQ50: 6.377880289 | AR50: 6.393991348 | AS50: 6.39221869 | AT50: 6.401545314 | AU50: 6.432585632 | AV50: 0.06818274416 | AW50: 0.1112934438 | AX50: 0.1112614468 | AY50: 0.07982657005 | BB50: 0.07298455568 | BC50: 0.06817049723 | BD50: 0.06722899722 | BE50: 0.06821197891 | BF50: 0.06743227195 | BG50: 0.06768208367 | BH50: 0.06693619277 | BI50: 0.0673992848 | BJ50: 0.06289350478 | BL50: 6.902959432 | BM50: 6.822270172 | BN50: 6.787556482 | BO50: 6.476218207 | BR50: 6.424885448 | BS50: 6.45456404 | BT50: 6.390742901 | BU50: 6.382279886 | BV50: 6.377880289 | BW50: 6.393991348 | BX50: 6.39221869 | BY50: 6.401545314 | BZ50: 6.432585632 | CA50: 0.06818274416 | CB50: 0.1112934438 | CC50: 0.1112614468 | CD50: 0.07982657005 | CG50: 0.07298455568 | CH50: 0.06817049723 | CI50: 0.06722899722 | CJ50: 0.06821197891 | CK50: 0.06743227195 | CL50: 0.06768208367 | CM50: 0.06693619277 | CN50: 0.0673992848 | CO50: 0.06289350478 | CQ50: 0.06251192464 | CR50: 0.1045891329 | CS50: 0.1049496129 | CT50: 0.07794485577 | CU50: 0.06969476779 | CV50: 0.06975031097 | CW50: 0.07218730848 | CX50: 0.06641796157 | CY50: 0.06756815785 | CZ50: 0.06899771504 | DA50: 0.06837434769 | DB50: 0.06765546455 | DC50: 0.06705262627 | DD50: 0.06668296208 | DE50: 0.06051988948 | DG50: 1 | DH50: -5.102765821 | DI50: 2.520546052 | DJ50: -0.4939568345 | DK50: 0.2439933544 | DL50: -1.245040949 | DM50: -0.120522185 | DN50: 0.6149964862 | DO50: 0.05953275698 | DP50: -0.3037817176 | DQ50: -0.02940661219 | DR50: 0.1500550556 | DS50: 0.01452559707 | DT50: -0.07412072027 | DU50: -0.007175017949 | DV50: 0.03661243636 | DW50: 3 | DY50: 0.001438848921 | DZ50: 3 | EB50: =IF(COLUMN()-COLUMN($EB49)+1=ROW()-ROW(EB$42),INDEX($EM$30:$EM$40,$C$23+1,1),0) -> 0 | EC50: =IF(COLUMN()-COLUMN($EB49)+1=ROW()-ROW(EC$42),INDEX($EM$30:$EM$40,$C$23+1,1),0) -> 0 | ED50: =IF(COLUMN()-COLUMN($EB49)+1=ROW()-ROW(ED$42),INDEX($EM$30:$EM$40,$C$23+1,1),0) -> 0 | EE50: =IF(COLUMN()-COLUMN($EB49)+1=ROW()-ROW(EE$42),INDEX($EM$30:$EM$40,$C$23+1,1),0) -> 0 | EF50: =IF(COLUMN()-COLUMN($EB49)+1=ROW()-ROW(EF$42),INDEX($EM$30:$EM$40,$C$23+1,1),0) -> 0 | EG50: =IF(COLUMN()-COLUMN($EB49)+1=ROW()-ROW(EG$42),INDEX($EM$30:$EM$40,$C$23+1,1),0) -> 0 | EH50: =IF(COLUMN()-COLUMN($EB49)+1=ROW()-ROW(EH$42),INDEX($EM$30:$EM$40,$C$23+1,1),0) -> 0 | EI50: =IF(COLUMN()-COLUMN($EB49)+1=ROW()-ROW(EI$42),INDEX($EM$30:$EM$40,$C$23+1,1),0) -> 0 | EJ50: =IF(COLUMN()-COLUMN($EB49)+1=ROW()-ROW(EJ$42),INDEX($EM$30:$EM$40,$C$23+1,1),0) -> 0 | EK50: =IF(COLUMN()-COLUMN($EB49)+1=ROW()-ROW(EK$42),INDEX($EM$30:$EM$40,$C$23+1,1),0) -> 0 | EL50: =IF(COLUMN()-COLUMN($EB49)+1=ROW()-ROW(EL$42),INDEX($EM$30:$EM$40,$C$23+1,1),0) -> 0 | EM50: =IF(COLUMN()-COLUMN($EB49)+1=ROW()-ROW(EM$42),INDEX($EM$30:$EM$40,$C$23+1,1),0) -> 0 | EN50: =IF(COLUMN()-COLUMN($EB49)+1=ROW()-ROW(EN$42),INDEX($EM$30:$EM$40,$C$23+1,1),0) -> 0 | EO50: =IF(COLUMN()-COLUMN($EB49)+1=ROW()-ROW(EO$42),INDEX($EM$30:$EM$40,$C$23+1,1),0) -> 0 | EP50: =IF(COLUMN()-COLUMN($EB49)+1=ROW()-ROW(EP$42),INDEX($EM$30:$EM$40,$C$23+1,1),0) -> 0 | EQ50: =IF(COLUMN()-COLUMN($EB49)+1=ROW()-ROW(EQ$42),INDEX($EM$30:$EM$40,$C$23+1,1),0) -> 0
B51: 18 | C51: 3 | E51: metalog quantile function (QF) | K51: example | X51: calculate y given x | AB51: 0.00690647482 | AC51: =IF(C$34="","",IF(ROW()-ROW(S$27)>B$17,"",SMALL(INDEX($C$34:$C$10033,1,1):INDEX($C$34:$C$10033,B$17,1),ROW()-ROW(S$27)))) -> 4 | AD51: 0.2 | AE51: 6.539304362 | AF51: 0.0674348234 | AG51: 7.046776815 | AH51: 6.910961616 | AI51: 6.876349578 | AJ51: 6.600759203 | AM51: 6.561431974 | AN51: 6.60009845 | AO51: 6.539304362 | AP51: 6.528970547 | AQ51: 6.526303201 | AR51: 6.541416365 | AS51: 6.541289186 | AT51: 6.549226278 | AU51: 6.589282175 | AV51: 0.07088524409 | AW51: 0.1141680318 | AX51: 0.1139407498 | AY51: 0.08076521922 | BB51: 0.07349914423 | BC51: 0.06928094946 | BD51: 0.0674348234 | BE51: 0.06816696556 | BF51: 0.06736036636 | BG51: 0.06801283058 | BH51: 0.06726853035 | BI51: 0.06805623869 | BJ51: 0.06481873044 | BL51: 7.046776815 | BM51: 6.910961616 | BN51: 6.876349578 | BO51: 6.600759203 | BR51: 6.561431974 | BS51: 6.60009845 | BT51: 6.539304362 | BU51: 6.528970547 | BV51: 6.526303201 | BW51: 6.541416365 | BX51: 6.541289186 | BY51: 6.549226278 | BZ51: 6.589282175 | CA51: 0.07088524409 | CB51: 0.1141680318 | CC51: 0.1139407498 | CD51: 0.08076521922 | CG51: 0.07349914423 | CH51: 0.06928094946 | CI51: 0.0674348234 | CJ51: 0.06816696556 | CK51: 0.06736036636 | CL51: 0.06801283058 | CM51: 0.06726853035 | CN51: 0.06805623869 | CO51: 0.06481873044 | CQ51: 0.06539163768 | CR51: 0.1081037393 | CS51: 0.1082685796 | CT51: 0.07888782428 | CU51: 0.07113503721 | CV51: 0.07119657446 | CW51: 0.07254728964 | CX51: 0.0672107417 | CY51: 0.06726722539 | CZ51: 0.06848636049 | DA51: 0.06776573843 | DB51: 0.06755555559 | DC51: 0.06685477035 | DD51: 0.06692616754 | DE51: 0.06142395202 | DG51: 1 | DH51: -5.055956244 | DI51: 2.49596919 | DJ51: -0.4936690647 | DK51: 0.2437091455 | DL51: -1.232182776 | DM51: -0.1203116659 | DN51: 0.6082905186 | DO51: 0.0593941476 | DP51: -0.3002942114 | DQ51: -0.02932105329 | DR51: 0.1482459625 | DS51: 0.01447489696 | DT51: -0.07318444565 | DU51: -0.007145808843 | DV51: 0.03612889684 | DW51: 3 | DY51: 0.001726618705 | DZ51: 3 | EB51: =IF(COLUMN()-COLUMN($EB50)+1=ROW()-ROW(EB$42),INDEX($EM$30:$EM$40,$C$23+1,1),0) -> 0 | EC51: =IF(COLUMN()-COLUMN($EB50)+1=ROW()-ROW(EC$42),INDEX($EM$30:$EM$40,$C$23+1,1),0) -> 0 | ED51: =IF(COLUMN()-COLUMN($EB50)+1=ROW()-ROW(ED$42),INDEX($EM$30:$EM$40,$C$23+1,1),0) -> 0 | EE51: =IF(COLUMN()-COLUMN($EB50)+1=ROW()-ROW(EE$42),INDEX($EM$30:$EM$40,$C$23+1,1),0) -> 0 | EF51: =IF(COLUMN()-COLUMN($EB50)+1=ROW()-ROW(EF$42),INDEX($EM$30:$EM$40,$C$23+1,1),0) -> 0 | EG51: =IF(COLUMN()-COLUMN($EB50)+1=ROW()-ROW(EG$42),INDEX($EM$30:$EM$40,$C$23+1,1),0) -> 0 | EH51: =IF(COLUMN()-COLUMN($EB50)+1=ROW()-ROW(EH$42),INDEX($EM$30:$EM$40,$C$23+1,1),0) -> 0 | EI51: =IF(COLUMN()-COLUMN($EB50)+1=ROW()-ROW(EI$42),INDEX($EM$30:$EM$40,$C$23+1,1),0) -> 0 | EJ51: =IF(COLUMN()-COLUMN($EB50)+1=ROW()-ROW(EJ$42),INDEX($EM$30:$EM$40,$C$23+1,1),0) -> 0 | EK51: =IF(COLUMN()-COLUMN($EB50)+1=ROW()-ROW(EK$42),INDEX($EM$30:$EM$40,$C$23+1,1),0) -> 0 | EL51: =IF(COLUMN()-COLUMN($EB50)+1=ROW()-ROW(EL$42),INDEX($EM$30:$EM$40,$C$23+1,1),0) -> 0 | EM51: =IF(COLUMN()-COLUMN($EB50)+1=ROW()-ROW(EM$42),INDEX($EM$30:$EM$40,$C$23+1,1),0) -> 0 | EN51: =IF(COLUMN()-COLUMN($EB50)+1=ROW()-ROW(EN$42),INDEX($EM$30:$EM$40,$C$23+1,1),0) -> 0 | EO51: =IF(COLUMN()-COLUMN($EB50)+1=ROW()-ROW(EO$42),INDEX($EM$30:$EM$40,$C$23+1,1),0) -> 0 | EP51: =IF(COLUMN()-COLUMN($EB50)+1=ROW()-ROW(EP$42),INDEX($EM$30:$EM$40,$C$23+1,1),0) -> 0 | EQ51: =IF(COLUMN()-COLUMN($EB50)+1=ROW()-ROW(EQ$42),INDEX($EM$30:$EM$40,$C$23+1,1),0) -> 0
B52: 19 | C52: 3 | E52: To make functions that correspond to the above graphs, click button above. To use formulas, 1) replace y with reference to a cumulative-probability cell and then 2) remove initial apostrophe. Formula is valid for 0<y<1; and for y=0 and y=1 when corresponding bounds have been specified. To plot the PDF above, plot the quantile function on the x-axis and the density function on the y-axis, varying y over its valid range. | X52: y | Y52: x | AB52: 0.007194244604 | AC52: =IF(C$34="","",IF(ROW()-ROW(S$27)>B$17,"",SMALL(INDEX($C$34:$C$10033,1,1):INDEX($C$34:$C$10033,B$17,1),ROW()-ROW(S$27)))) -> 4 | AD52: 0.21 | AE52: 6.687160453 | AF52: 0.06786928627 | AG52: 7.18529692 | AH52: 6.997561691 | AI52: 6.963192347 | AJ52: 6.723859185 | AM52: 6.696955016 | AN52: 6.743176483 | AO52: 6.687160453 | AP52: 6.675518024 | AQ52: 6.674607758 | AR52: 6.687922839 | AS52: 6.689371526 | AT52: 6.695324716 | AU52: 6.740967161 | AV52: 0.07349913747 | AW52: 0.1167384608 | AX52: 0.1163198179 | AY52: 0.08170687557 | BB52: 0.07409085943 | BC52: 0.07052843346 | BD52: 0.06786928627 | BE52: 0.06834413185 | BF52: 0.06753803259 | BG52: 0.06853050581 | BH52: 0.06782846626 | BI52: 0.0688616416 | BJ52: 0.06709698692 | BL52: 7.18529692 | BM52: 6.997561691 | BN52: 6.963192347 | BO52: 6.723859185 | BR52: 6.696955016 | BS52: 6.743176483 | BT52: 6.687160453 | BU52: 6.675518024 | BV52: 6.674607758 | BW52: 6.687922839 | BX52: 6.689371526 | BY52: 6.695324716 | BZ52: 6.740967161 | CA52: 0.07349913747 | CB52: 0.1167384608 | CC52: 0.1163198179 | CD52: 0.08170687557 | CG52: 0.07409085943 | CH52: 0.07052843346 | CI52: 0.06786928627 | CJ52: 0.06834413185 | CK52: 0.06753803259 | CL52: 0.06853050581 | CM52: 0.06782846626 | CN52: 0.0688616416 | CO52: 0.06709698692 | CQ52: 0.06818274416 | CR52: 0.1112934438 | CS52: 0.1112614468 | CT52: 0.07982657005 | CU52: 0.07260876119 | CV52: 0.07267501946 | CW52: 0.07298455568 | CX52: 0.06817049723 | CY52: 0.06722899722 | CZ52: 0.06821197891 | DA52: 0.06743227195 | DB52: 0.06768208367 | DC52: 0.06693619277 | DD52: 0.0673992848 | DE52: 0.06289350478 | DG52: 1 | DH52: -5.011214836 | DI52: 2.472439665 | DJ52: -0.493381295 | DK52: 0.2434251022 | DL52: -1.219855484 | DM52: -0.1201013922 | DN52: 0.6018538783 | DO52: 0.05925578039 | DP52: -0.2969434458 | DQ52: -0.02923569366 | DR52: 0.1465063418 | DS52: 0.0144243444 | DT52: -0.07228348865 | DU52: -0.007116701719 | DV52: 0.03566332124 | DW52: 3 | DY52: 0.002014388489 | DZ52: 3 | EB52: =IF(COLUMN()-COLUMN($EB51)+1=ROW()-ROW(EB$42),INDEX($EM$30:$EM$40,$C$23+1,1),0) -> 0 | EC52: =IF(COLUMN()-COLUMN($EB51)+1=ROW()-ROW(EC$42),INDEX($EM$30:$EM$40,$C$23+1,1),0) -> 0 | ED52: =IF(COLUMN()-COLUMN($EB51)+1=ROW()-ROW(ED$42),INDEX($EM$30:$EM$40,$C$23+1,1),0) -> 0 | EE52: =IF(COLUMN()-COLUMN($EB51)+1=ROW()-ROW(EE$42),INDEX($EM$30:$EM$40,$C$23+1,1),0) -> 0 | EF52: =IF(COLUMN()-COLUMN($EB51)+1=ROW()-ROW(EF$42),INDEX($EM$30:$EM$40,$C$23+1,1),0) -> 0 | EG52: =IF(COLUMN()-COLUMN($EB51)+1=ROW()-ROW(EG$42),INDEX($EM$30:$EM$40,$C$23+1,1),0) -> 0 | EH52: =IF(COLUMN()-COLUMN($EB51)+1=ROW()-ROW(EH$42),INDEX($EM$30:$EM$40,$C$23+1,1),0) -> 0 | EI52: =IF(COLUMN()-COLUMN($EB51)+1=ROW()-ROW(EI$42),INDEX($EM$30:$EM$40,$C$23+1,1),0) -> 0 | EJ52: =IF(COLUMN()-COLUMN($EB51)+1=ROW()-ROW(EJ$42),INDEX($EM$30:$EM$40,$C$23+1,1),0) -> 0 | EK52: =IF(COLUMN()-COLUMN($EB51)+1=ROW()-ROW(EK$42),INDEX($EM$30:$EM$40,$C$23+1,1),0) -> 0 | EL52: =IF(COLUMN()-COLUMN($EB51)+1=ROW()-ROW(EL$42),INDEX($EM$30:$EM$40,$C$23+1,1),0) -> 0 | EM52: =IF(COLUMN()-COLUMN($EB51)+1=ROW()-ROW(EM$42),INDEX($EM$30:$EM$40,$C$23+1,1),0) -> 0 | EN52: =IF(COLUMN()-COLUMN($EB51)+1=ROW()-ROW(EN$42),INDEX($EM$30:$EM$40,$C$23+1,1),0) -> 0 | EO52: =IF(COLUMN()-COLUMN($EB51)+1=ROW()-ROW(EO$42),INDEX($EM$30:$EM$40,$C$23+1,1),0) -> 0 | EP52: =IF(COLUMN()-COLUMN($EB51)+1=ROW()-ROW(EP$42),INDEX($EM$30:$EM$40,$C$23+1,1),0) -> 0 | EQ52: =IF(COLUMN()-COLUMN($EB51)+1=ROW()-ROW(EQ$42),INDEX($EM$30:$EM$40,$C$23+1,1),0) -> 0
B53: 20 | C53: 3 | L53: QF | M53: PDF | X53: =IF(ISERROR(EC138),"",EC138) ->  | AB53: 0.007482014388 | AC53: =IF(C$34="","",IF(ROW()-ROW(S$27)>B$17,"",SMALL(INDEX($C$34:$C$10033,1,1):INDEX($C$34:$C$10033,B$17,1),ROW()-ROW(S$27)))) -> 4 | AD53: 0.22 | AE53: 6.833838578 | AF53: 0.06851983945 | AG53: 7.319054611 | AH53: 7.082380992 | AI53: 7.048381144 | AJ53: 6.845544876 | AM53: 6.831330658 | AN53: 6.883620771 | AO53: 6.833838578 | AP53: 6.821455015 | AQ53: 6.822259766 | AR53: 6.83314163 | AS53: 6.836009209 | AT53: 6.839593403 | AU53: 6.887300498 | AV53: 0.07602442429 | AW53: 0.119016567 | AX53: 0.1184124938 | AY53: 0.08265384788 | BB53: 0.07475942454 | BC53: 0.07190117199 | BD53: 0.06851983945 | BE53: 0.06873721376 | BF53: 0.06795521131 | BG53: 0.06922192423 | BH53: 0.06859692993 | BI53: 0.06978927305 | BJ53: 0.06962605913 | BL53: 7.319054611 | BM53: 7.082380992 | BN53: 7.048381144 | BO53: 6.845544876 | BR53: 6.831330658 | BS53: 6.883620771 | BT53: 6.833838578 | BU53: 6.821455015 | BV53: 6.822259766 | BW53: 6.83314163 | BX53: 6.836009209 | BY53: 6.839593403 | BZ53: 6.887300498 | CA53: 0.07602442429 | CB53: 0.119016567 | CC53: 0.1184124938 | CD53: 0.08265384788 | CG53: 0.07475942454 | CH53: 0.07190117199 | CI53: 0.06851983945 | CJ53: 0.06873721376 | CK53: 0.06795521131 | CL53: 0.06922192423 | CM53: 0.06859692993 | CN53: 0.06978927305 | CO53: 0.06962605913 | CQ53: 0.07088524409 | CR53: 0.1141680318 | CS53: 0.1139407498 | CT53: 0.08076521922 | CU53: 0.07411517359 | CV53: 0.07418492664 | CW53: 0.07349914423 | CX53: 0.06928094946 | CY53: 0.0674348234 | CZ53: 0.06816696556 | DA53: 0.06736036636 | DB53: 0.06801283058 | DC53: 0.06726853035 | DD53: 0.06805623869 | DE53: 0.06481873044 | DG53: 1 | DH53: -4.968365493 | DI53: 2.449868855 | DJ53: -0.4930935252 | DK53: 0.2431412246 | DL53: -1.20801447 | DM53: -0.1198913635 | DN53: 0.5956641135 | DO53: 0.05911765509 | DP53: -0.2937181175 | DQ53: -0.02915053295 | DR53: 0.144830502 | DS53: 0.01437393905 | DT53: -0.07141498278 | DU53: -0.007087696278 | DV53: 0.03521426561 | DW53: 4 | DY53: 0.002302158273 | DZ53: 3 | EB53: =IF(COLUMN()-COLUMN($EB52)+1=ROW()-ROW(EB$42),INDEX($EM$30:$EM$40,$C$23+1,1),0) -> 0 | EC53: =IF(COLUMN()-COLUMN($EB52)+1=ROW()-ROW(EC$42),INDEX($EM$30:$EM$40,$C$23+1,1),0) -> 0 | ED53: =IF(COLUMN()-COLUMN($EB52)+1=ROW()-ROW(ED$42),INDEX($EM$30:$EM$40,$C$23+1,1),0) -> 0 | EE53: =IF(COLUMN()-COLUMN($EB52)+1=ROW()-ROW(EE$42),INDEX($EM$30:$EM$40,$C$23+1,1),0) -> 0 | EF53: =IF(COLUMN()-COLUMN($EB52)+1=ROW()-ROW(EF$42),INDEX($EM$30:$EM$40,$C$23+1,1),0) -> 0 | EG53: =IF(COLUMN()-COLUMN($EB52)+1=ROW()-ROW(EG$42),INDEX($EM$30:$EM$40,$C$23+1,1),0) -> 0 | EH53: =IF(COLUMN()-COLUMN($EB52)+1=ROW()-ROW(EH$42),INDEX($EM$30:$EM$40,$C$23+1,1),0) -> 0 | EI53: =IF(COLUMN()-COLUMN($EB52)+1=ROW()-ROW(EI$42),INDEX($EM$30:$EM$40,$C$23+1,1),0) -> 0 | EJ53: =IF(COLUMN()-COLUMN($EB52)+1=ROW()-ROW(EJ$42),INDEX($EM$30:$EM$40,$C$23+1,1),0) -> 0 | EK53: =IF(COLUMN()-COLUMN($EB52)+1=ROW()-ROW(EK$42),INDEX($EM$30:$EM$40,$C$23+1,1),0) -> 0 | EL53: =IF(COLUMN()-COLUMN($EB52)+1=ROW()-ROW(EL$42),INDEX($EM$30:$EM$40,$C$23+1,1),0) -> 0 | EM53: =IF(COLUMN()-COLUMN($EB52)+1=ROW()-ROW(EM$42),INDEX($EM$30:$EM$40,$C$23+1,1),0) -> 0 | EN53: =IF(COLUMN()-COLUMN($EB52)+1=ROW()-ROW(EN$42),INDEX($EM$30:$EM$40,$C$23+1,1),0) -> 0 | EO53: =IF(COLUMN()-COLUMN($EB52)+1=ROW()-ROW(EO$42),INDEX($EM$30:$EM$40,$C$23+1,1),0) -> 0 | EP53: =IF(COLUMN()-COLUMN($EB52)+1=ROW()-ROW(EP$42),INDEX($EM$30:$EM$40,$C$23+1,1),0) -> 0 | EQ53: =IF(COLUMN()-COLUMN($EB52)+1=ROW()-ROW(EQ$42),INDEX($EM$30:$EM$40,$C$23+1,1),0) -> 0
B54: 21 | C54: 3 | K54: y | L54: x | M54: y' | X54: simulate | AB54: 0.007769784173 | AC54: =IF(C$34="","",IF(ROW()-ROW(S$27)>B$17,"",SMALL(INDEX($C$34:$C$10033,1,1):INDEX($C$34:$C$10033,B$17,1),ROW()-ROW(S$27)))) -> 4 | AD54: 0.23 | AE54: 6.9789124 | AF54: 0.06937638739 | AG54: 7.448514937 | AH54: 7.165689538 | AI54: 7.132173606 | AJ54: 6.965839434 | AM54: 6.964442121 | AN54: 7.021298767 | AO54: 6.9789124 | AP54: 6.966337771 | AQ54: 6.968758451 | AR54: 6.97674674 | AS54: 6.980808691 | AT54: 6.981849582 | AU54: 7.028249665 | AV54: 0.07846110456 | AW54: 0.1210148062 | AX54: 0.1202328953 | AY54: 0.08360781411 | BB54: 0.07550457202 | BC54: 0.07338871902 | BD54: 0.06937638739 | BE54: 0.06934109009 | BF54: 0.0686038094 | BG54: 0.07007730801 | BH54: 0.06955837228 | BI54: 0.07082087028 | BJ54: 0.07230148081 | BL54: 7.448514937 | BM54: 7.165689538 | BN54: 7.132173606 | BO54: 6.965839434 | BR54: 6.964442121 | BS54: 7.021298767 | BT54: 6.9789124 | BU54: 6.966337771 | BV54: 6.968758451 | BW54: 6.97674674 | BX54: 6.980808691 | BY54: 6.981849582 | BZ54: 7.028249665 | CA54: 0.07846110456 | CB54: 0.1210148062 | CC54: 0.1202328953 | CD54: 0.08360781411 | CG54: 0.07550457202 | CH54: 0.07338871902 | CI54: 0.06937638739 | CJ54: 0.06934109009 | CK54: 0.0686038094 | CL54: 0.07007730801 | CM54: 0.06955837228 | CN54: 0.07082087028 | CO54: 0.07230148081 | CQ54: 0.07349913747 | CR54: 0.1167384608 | CS54: 0.1163198179 | CT54: 0.08170687557 | CU54: 0.07565350596 | CV54: 0.07572556935 | CW54: 0.07409085943 | CX54: 0.07052843346 | CY54: 0.06786928627 | CZ54: 0.06834413185 | DA54: 0.06753803259 | DB54: 0.06853050581 | DC54: 0.06782846626 | DD54: 0.0688616416 | DE54: 0.06709698692 | DG54: 1 | DH54: -4.927253685 | DI54: 2.428178974 | DJ54: -0.4928057554 | DK54: 0.2428575126 | DL54: -1.196620574 | DM54: -0.1196815799 | DN54: 0.5897015057 | DO54: 0.0589797714 | DP54: -0.290608296 | DQ54: -0.0290655708 | DR54: 0.1432134408 | DS54: 0.01432368057 | DT54: -0.07057640789 | DU54: -0.007058792225 | DV54: 0.03478046 | DW54: 4 | DY54: 0.002589928058 | DZ54: 3 | EB54: =IF(COLUMN()-COLUMN($EB53)+1=ROW()-ROW(EB$42),INDEX($EM$30:$EM$40,$C$23+1,1),0) -> 0 | EC54: =IF(COLUMN()-COLUMN($EB53)+1=ROW()-ROW(EC$42),INDEX($EM$30:$EM$40,$C$23+1,1),0) -> 0 | ED54: =IF(COLUMN()-COLUMN($EB53)+1=ROW()-ROW(ED$42),INDEX($EM$30:$EM$40,$C$23+1,1),0) -> 0 | EE54: =IF(COLUMN()-COLUMN($EB53)+1=ROW()-ROW(EE$42),INDEX($EM$30:$EM$40,$C$23+1,1),0) -> 0 | EF54: =IF(COLUMN()-COLUMN($EB53)+1=ROW()-ROW(EF$42),INDEX($EM$30:$EM$40,$C$23+1,1),0) -> 0 | EG54: =IF(COLUMN()-COLUMN($EB53)+1=ROW()-ROW(EG$42),INDEX($EM$30:$EM$40,$C$23+1,1),0) -> 0 | EH54: =IF(COLUMN()-COLUMN($EB53)+1=ROW()-ROW(EH$42),INDEX($EM$30:$EM$40,$C$23+1,1),0) -> 0 | EI54: =IF(COLUMN()-COLUMN($EB53)+1=ROW()-ROW(EI$42),INDEX($EM$30:$EM$40,$C$23+1,1),0) -> 0 | EJ54: =IF(COLUMN()-COLUMN($EB53)+1=ROW()-ROW(EJ$42),INDEX($EM$30:$EM$40,$C$23+1,1),0) -> 0 | EK54: =IF(COLUMN()-COLUMN($EB53)+1=ROW()-ROW(EK$42),INDEX($EM$30:$EM$40,$C$23+1,1),0) -> 0 | EL54: =IF(COLUMN()-COLUMN($EB53)+1=ROW()-ROW(EL$42),INDEX($EM$30:$EM$40,$C$23+1,1),0) -> 0 | EM54: =IF(COLUMN()-COLUMN($EB53)+1=ROW()-ROW(EM$42),INDEX($EM$30:$EM$40,$C$23+1,1),0) -> 0 | EN54: =IF(COLUMN()-COLUMN($EB53)+1=ROW()-ROW(EN$42),INDEX($EM$30:$EM$40,$C$23+1,1),0) -> 0 | EO54: =IF(COLUMN()-COLUMN($EB53)+1=ROW()-ROW(EO$42),INDEX($EM$30:$EM$40,$C$23+1,1),0) -> 0 | EP54: =IF(COLUMN()-COLUMN($EB53)+1=ROW()-ROW(EP$42),INDEX($EM$30:$EM$40,$C$23+1,1),0) -> 0 | EQ54: =IF(COLUMN()-COLUMN($EB53)+1=ROW()-ROW(EQ$42),INDEX($EM$30:$EM$40,$C$23+1,1),0) -> 0
B55: 22 | C55: 3 | K55: 0.25 | L55: =IF(AND(K55>0,K55<1),9.81005043881789+-20.8861352331351*LN(K55/(1-K55))+-10.8188282400032*(K55-0.5)*LN(K55/(1-K55))+91.0642536474996*(K55-0.5)+40.8628598440412*(K55-0.5)^2+115.659717118179*(K55-0.5)^2*LN(K55/(1-K55))+-311.451804018779*(K55-0.5)^3+50.5581996912458*(K55-0.5)^3*LN(K55/(1-K55))+-147.230354531137*(K55-0.5)^4+-110.196870036386*(K55-0.5)^4*LN(K55/(1-K55)),"n/a") -> 7.262775522 | M55: =IF(AND(K55>0,K55<1),(-20.8861352331351/(K55*(1-K55))+-10.8188282400032*((K55-0.5)/(K55*(1-K55))+LN(K55/(1-K55)))+91.0642536474996+2*40.8628598440412*(K55-0.5)+115.659717118179*((K55-0.5)^2/(K55*(1-K55))+2*(K55-0.5)*LN(K55/(1-K55)))+3*-311.451804018779*(K55-0.5)^2+50.5581996912458*((K55-0.5)^3/(K55*(1-K55))+3*(K55-0.5)^2*LN(K55/(1-K55)))+4*-147.230354531137*(K55-0.5)^3+-110.196870036386*((K55-0.5)^4/(K55*(1-K55))+4*(K55-0.5)^3*LN(K55/(1-K55))))^-1,"n/a") -> 0.07167678632 | X55: y | Y55: x | AB55: 0.008057553957 | AC55: =IF(C$34="","",IF(ROW()-ROW(S$27)>B$17,"",SMALL(INDEX($C$34:$C$10033,1,1):INDEX($C$34:$C$10033,B$17,1),ROW()-ROW(S$27)))) -> 4 | AD55: 0.24 | AE55: 7.122002385 | AF55: 0.07043085777 | AG55: 7.574085096 | AH55: 7.24772394 | AI55: 7.214795502 | AJ55: 7.084763537 | AM55: 7.096180135 | AN55: 7.156117113 | AO55: 7.122002385 | AP55: 7.109751018 | AQ55: 7.113641432 | AR55: 7.118451148 | AS55: 7.123435309 | AT55: 7.121956434 | AU55: 7.164022991 | AV55: 0.08080917827 | AW55: 0.1227460302 | AX55: 0.1217952156 | AY55: 0.08456994049 | BB55: 0.07632609263 | BC55: 0.07498152712 | BD55: 0.07043085777 | BE55: 0.07015182183 | BF55: 0.06947756851 | BG55: 0.07108970125 | BH55: 0.0707001397 | BI55: 0.07194509824 | BJ55: 0.07501764213 | BL55: 7.574085096 | BM55: 7.24772394 | BN55: 7.214795502 | BO55: 7.084763537 | BR55: 7.096180135 | BS55: 7.156117113 | BT55: 7.122002385 | BU55: 7.109751018 | BV55: 7.113641432 | BW55: 7.118451148 | BX55: 7.123435309 | BY55: 7.121956434 | BZ55: 7.164022991 | CA55: 0.08080917827 | CB55: 0.1227460302 | CC55: 0.1217952156 | CD55: 0.08456994049 | CG55: 0.07632609263 | CH55: 0.07498152712 | CI55: 0.07043085777 | CJ55: 0.07015182183 | CK55: 0.06947756851 | CL55: 0.07108970125 | CM55: 0.0707001397 | CN55: 0.07194509824 | CO55: 0.07501764213 | CQ55: 0.07602442429 | CR55: 0.119016567 | CS55: 0.1184124938 | CT55: 0.08265384788 | CU55: 0.07722293517 | CV55: 0.0772961626 | CW55: 0.07475942454 | CX55: 0.07190117199 | CY55: 0.06851983945 | CZ55: 0.06873721376 | DA55: 0.06795521131 | DB55: 0.06922192423 | DC55: 0.06859692993 | DD55: 0.06978927305 | DE55: 0.06962605913 | DG55: 1 | DH55: -4.887743075 | DI55: 2.407301373 | DJ55: -0.4925179856 | DK55: 0.2425739662 | DL55: -1.185639223 | DM55: -0.1194720412 | DN55: 0.5839486419 | DO55: 0.05884212905 | DP55: -0.2876052088 | DQ55: -0.02898080687 | DR55: 0.1416507381 | DS55: 0.01427356862 | DT55: -0.06976553618 | DU55: -0.007029989265 | DV55: 0.03436078135 | DW55: 4 | DY55: 0.002877697842 | DZ55: 3 | EB55: =IF(COLUMN()-COLUMN($EB54)+1=ROW()-ROW(EB$42),INDEX($EM$30:$EM$40,$C$23+1,1),0) -> 0 | EC55: =IF(COLUMN()-COLUMN($EB54)+1=ROW()-ROW(EC$42),INDEX($EM$30:$EM$40,$C$23+1,1),0) -> 0 | ED55: =IF(COLUMN()-COLUMN($EB54)+1=ROW()-ROW(ED$42),INDEX($EM$30:$EM$40,$C$23+1,1),0) -> 0 | EE55: =IF(COLUMN()-COLUMN($EB54)+1=ROW()-ROW(EE$42),INDEX($EM$30:$EM$40,$C$23+1,1),0) -> 0 | EF55: =IF(COLUMN()-COLUMN($EB54)+1=ROW()-ROW(EF$42),INDEX($EM$30:$EM$40,$C$23+1,1),0) -> 0 | EG55: =IF(COLUMN()-COLUMN($EB54)+1=ROW()-ROW(EG$42),INDEX($EM$30:$EM$40,$C$23+1,1),0) -> 0 | EH55: =IF(COLUMN()-COLUMN($EB54)+1=ROW()-ROW(EH$42),INDEX($EM$30:$EM$40,$C$23+1,1),0) -> 0 | EI55: =IF(COLUMN()-COLUMN($EB54)+1=ROW()-ROW(EI$42),INDEX($EM$30:$EM$40,$C$23+1,1),0) -> 0 | EJ55: =IF(COLUMN()-COLUMN($EB54)+1=ROW()-ROW(EJ$42),INDEX($EM$30:$EM$40,$C$23+1,1),0) -> 0 | EK55: =IF(COLUMN()-COLUMN($EB54)+1=ROW()-ROW(EK$42),INDEX($EM$30:$EM$40,$C$23+1,1),0) -> 0 | EL55: =IF(COLUMN()-COLUMN($EB54)+1=ROW()-ROW(EL$42),INDEX($EM$30:$EM$40,$C$23+1,1),0) -> 0 | EM55: =IF(COLUMN()-COLUMN($EB54)+1=ROW()-ROW(EM$42),INDEX($EM$30:$EM$40,$C$23+1,1),0) -> 0 | EN55: =IF(COLUMN()-COLUMN($EB54)+1=ROW()-ROW(EN$42),INDEX($EM$30:$EM$40,$C$23+1,1),0) -> 0 | EO55: =IF(COLUMN()-COLUMN($EB54)+1=ROW()-ROW(EO$42),INDEX($EM$30:$EM$40,$C$23+1,1),0) -> 0 | EP55: =IF(COLUMN()-COLUMN($EB54)+1=ROW()-ROW(EP$42),INDEX($EM$30:$EM$40,$C$23+1,1),0) -> 0 | EQ55: =IF(COLUMN()-COLUMN($EB54)+1=ROW()-ROW(EQ$42),INDEX($EM$30:$EM$40,$C$23+1,1),0) -> 0
B56: 23 | C56: 3 | E56: =IF(AND(y>0,y<1),9.81005043881789+-20.8861352331351*LN(y/(1-y))+-10.8188282400032*(y-0.5)*LN(y/(1-y))+91.0642536474996*(y-0.5)+40.8628598440412*(y-0.5)^2+115.659717118179*(y-0.5)^2*LN(y/(1-y))+-311.451804018779*(y-0.5)^3+50.5581996912458*(y-0.5)^3*LN(y/(1-y))+-147.230354531137*(y-0.5)^4+-110.196870036386*(y-0.5)^4*LN(y/(1-y)),"n/a") | L56: m_QF | M56: m_PDF | X56: =RAND() -> 0.9619487719 | Y56: =IF(Z56="","",IF($B$11="u",Z56,IF($B$11="sl",$C$19+EXP(Z56),IF($B$11="su",$C$20-EXP(-Z56),IF($B$11="b",($C$19+$C$20*EXP(Z56))/(1+EXP(Z56)),""))))) -> 19.19550252 | Z56: =IF($N$9<>"(none)","",$Y$28+$Y$29*LN(X56/(1-X56))+$Y$30*(X56-0.5)*LN(X56/(1-X56))+$Y$31*(X56-0.5)+$Y$32*(X56-0.5)^2+$Y$33*(X56-0.5)^2*LN(X56/(1-X56))+$Y$34*(X56-0.5)^3+$Y$35*(X56-0.5)^3*LN(X56/(1-X56))+$Y$36*(X56-0.5)^4+$Y$37*(X56-0.5)^4*LN(X56/(1-X56))+$Y$38*(X56-0.5)^5+$Y$39*(X56-0.5)^5*LN(X56/(1-X56))+$Y$40*(X56-0.5)^6+$Y$41*(X56-0.5)^6*LN(X56/(1-X56))+$Y$42*(X56-0.5)^7+$Y$43*(X56-0.5)^7*LN(X56/(1-X56))) -> 19.19550252 | AB56: 0.008345323741 | AC56: =IF(C$34="","",IF(ROW()-ROW(S$27)>B$17,"",SMALL(INDEX($C$34:$C$10033,1,1):INDEX($C$34:$C$10033,B$17,1),ROW()-ROW(S$27)))) -> 4 | AD56: 0.25 | AE56: 7.262775522 | AF56: 0.07167678632 | AG56: 7.69612397 | AH56: 7.328693105 | AI56: 7.296446183 | AJ56: 7.202336224 | AM56: 7.22644317 | AN56: 7.288016657 | AO56: 7.262775522 | AP56: 7.25131172 | AQ56: 7.256488254 | AR56: 7.258003001 | AS56: 7.26360866 | AT56: 7.259807655 | AU56: 7.295004909 | AV56: 0.08306864542 | AW56: 0.1242232945 | AX56: 0.1231135593 | AY56: 0.08554096798 | BB56: 0.07722385705 | BC56: 0.0766706071 | BD56: 0.07167678632 | BE56: 0.0711665784 | BF56: 0.07057183743 | BG56: 0.07225447661 | BH56: 0.0720119431 | BI56: 0.07315661142 | BJ56: 0.07767221745 | BL56: 7.69612397 | BM56: 7.328693105 | BN56: 7.296446183 | BO56: 7.202336224 | BR56: 7.22644317 | BS56: 7.288016657 | BT56: 7.262775522 | BU56: 7.25131172 | BV56: 7.256488254 | BW56: 7.258003001 | BX56: 7.26360866 | BY56: 7.259807655 | BZ56: 7.295004909 | CA56: 0.08306864542 | CB56: 0.1242232945 | CC56: 0.1231135593 | CD56: 0.08554096798 | CG56: 0.07722385705 | CH56: 0.0766706071 | CI56: 0.07167678632 | CJ56: 0.0711665784 | CK56: 0.07057183743 | CL56: 0.07225447661 | CM56: 0.0720119431 | CN56: 0.07315661142 | CO56: 0.07767221745 | CQ56: 0.07846110456 | CR56: 0.1210148062 | CS56: 0.1202328953 | CT56: 0.08360781411 | CU56: 0.07882253859 | CV56: 0.07889581943 | CW56: 0.07550457202 | CX56: 0.07338871902 | CY56: 0.06937638739 | CZ56: 0.06934109009 | DA56: 0.0686038094 | DB56: 0.07007730801 | DC56: 0.06955837228 | DD56: 0.07082087028 | DE56: 0.07230148081 | DG56: 1 | DH56: -4.849712766 | DI56: 2.387175161 | DJ56: -0.4922302158 | DK56: 0.2422905854 | DL56: -1.175039745 | DM56: -0.1192627471 | DN56: 0.5783900672 | DO56: 0.05870472776 | DP56: -0.2847010676 | DQ56: -0.02889624082 | DR56: 0.140138468 | DS56: 0.01422360285 | DT56: -0.06898038833 | DU56: -0.007001287102 | DV56: 0.03395423144 | DW56: 4 | DY56: 0.003165467626 | DZ56: 3 | EB56: =IF(COLUMN()-COLUMN($EB55)+1=ROW()-ROW(EB$42),INDEX($EM$30:$EM$40,$C$23+1,1),0) -> 0 | EC56: =IF(COLUMN()-COLUMN($EB55)+1=ROW()-ROW(EC$42),INDEX($EM$30:$EM$40,$C$23+1,1),0) -> 0 | ED56: =IF(COLUMN()-COLUMN($EB55)+1=ROW()-ROW(ED$42),INDEX($EM$30:$EM$40,$C$23+1,1),0) -> 0 | EE56: =IF(COLUMN()-COLUMN($EB55)+1=ROW()-ROW(EE$42),INDEX($EM$30:$EM$40,$C$23+1,1),0) -> 0 | EF56: =IF(COLUMN()-COLUMN($EB55)+1=ROW()-ROW(EF$42),INDEX($EM$30:$EM$40,$C$23+1,1),0) -> 0 | EG56: =IF(COLUMN()-COLUMN($EB55)+1=ROW()-ROW(EG$42),INDEX($EM$30:$EM$40,$C$23+1,1),0) -> 0 | EH56: =IF(COLUMN()-COLUMN($EB55)+1=ROW()-ROW(EH$42),INDEX($EM$30:$EM$40,$C$23+1,1),0) -> 0 | EI56: =IF(COLUMN()-COLUMN($EB55)+1=ROW()-ROW(EI$42),INDEX($EM$30:$EM$40,$C$23+1,1),0) -> 0 | EJ56: =IF(COLUMN()-COLUMN($EB55)+1=ROW()-ROW(EJ$42),INDEX($EM$30:$EM$40,$C$23+1,1),0) -> 0 | EK56: =IF(COLUMN()-COLUMN($EB55)+1=ROW()-ROW(EK$42),INDEX($EM$30:$EM$40,$C$23+1,1),0) -> 0 | EL56: =IF(COLUMN()-COLUMN($EB55)+1=ROW()-ROW(EL$42),INDEX($EM$30:$EM$40,$C$23+1,1),0) -> 0 | EM56: =IF(COLUMN()-COLUMN($EB55)+1=ROW()-ROW(EM$42),INDEX($EM$30:$EM$40,$C$23+1,1),0) -> 0 | EN56: =IF(COLUMN()-COLUMN($EB55)+1=ROW()-ROW(EN$42),INDEX($EM$30:$EM$40,$C$23+1,1),0) -> 0 | EO56: =IF(COLUMN()-COLUMN($EB55)+1=ROW()-ROW(EO$42),INDEX($EM$30:$EM$40,$C$23+1,1),0) -> 0 | EP56: =IF(COLUMN()-COLUMN($EB55)+1=ROW()-ROW(EP$42),INDEX($EM$30:$EM$40,$C$23+1,1),0) -> 0 | EQ56: =IF(COLUMN()-COLUMN($EB55)+1=ROW()-ROW(EQ$42),INDEX($EM$30:$EM$40,$C$23+1,1),0) -> 0
B57: 24 | C57: 4 | L57: (range names) | AB57: 0.008633093525 | AC57: =IF(C$34="","",IF(ROW()-ROW(S$27)>B$17,"",SMALL(INDEX($C$34:$C$10033,1,1):INDEX($C$34:$C$10033,B$17,1),ROW()-ROW(S$27)))) -> 4 | AD57: 0.26 | AE57: 7.400944459 | AF57: 0.07310891804 | AG57: 7.814949792 | AH57: 7.408782804 | AI57: 7.377302948 | AJ57: 7.318575543 | AM57: 7.35513755 | AN57: 7.416968047 | AO57: 7.400944459 | AP57: 7.390671872 | AQ57: 7.396922781 | AR57: 7.39518226 | AS57: 7.401097792 | AT57: 7.395315214 | AU57: 7.42169587 | AV57: 0.08523950602 | AW57: 0.1254596958 | AX57: 0.1242018089 | AY57: 0.08652127474 | BB57: 0.07819781852 | BC57: 0.07844725788 | BD57: 0.07310891804 | BE57: 0.07238348739 | BF57: 0.07188328495 | BG57: 0.07356891222 | BH57: 0.07348540744 | BI57: 0.07445515918 | BJ57: 0.0801729587 | BL57: 7.814949792 | BM57: 7.408782804 | BN57: 7.377302948 | BO57: 7.318575543 | BR57: 7.35513755 | BS57: 7.416968047 | BT57: 7.400944459 | BU57: 7.390671872 | BV57: 7.396922781 | BW57: 7.39518226 | BX57: 7.401097792 | BY57: 7.395315214 | BZ57: 7.42169587 | CA57: 0.08523950602 | CB57: 0.1254596958 | CC57: 0.1242018089 | CD57: 0.08652127474 | CG57: 0.07819781852 | CH57: 0.07844725788 | CI57: 0.07310891804 | CJ57: 0.07238348739 | CK57: 0.07188328495 | CL57: 0.07356891222 | CM57: 0.07348540744 | CN57: 0.07445515918 | CO57: 0.0801729587 | CQ57: 0.08080917827 | CR57: 0.1227460302 | CS57: 0.1217952156 | CT57: 0.08456994049 | CU57: 0.08045125378 | CV57: 0.08052351184 | CW57: 0.07632609263 | CX57: 0.07498152712 | CY57: 0.07043085777 | CZ57: 0.07015182183 | DA57: 0.06947756851 | DB57: 0.07108970125 | DC57: 0.0707001397 | DD57: 0.07194509824 | DE57: 0.07501764213 | DG57: 1 | DH57: -4.813055056 | DI57: 2.367746077 | DJ57: -0.491942446 | DK57: 0.2420073702 | DL57: -1.164794797 | DM57: -0.1190536977 | DN57: 0.5730120015 | DO57: 0.05856756724 | DP57: -0.2818889256 | DQ57: -0.02881187229 | DR57: 0.1386731276 | DS57: 0.01417378293 | DT57: -0.06821919759 | DU57: -0.006972685443 | DV57: 0.03355991893 | DW57: 4 | DY57: 0.00345323741 | DZ57: 3 | EB57: =IF(COLUMN()-COLUMN($EB56)+1=ROW()-ROW(EB$42),INDEX($EM$30:$EM$40,$C$23+1,1),0) -> 0 | EC57: =IF(COLUMN()-COLUMN($EB56)+1=ROW()-ROW(EC$42),INDEX($EM$30:$EM$40,$C$23+1,1),0) -> 0 | ED57: =IF(COLUMN()-COLUMN($EB56)+1=ROW()-ROW(ED$42),INDEX($EM$30:$EM$40,$C$23+1,1),0) -> 0 | EE57: =IF(COLUMN()-COLUMN($EB56)+1=ROW()-ROW(EE$42),INDEX($EM$30:$EM$40,$C$23+1,1),0) -> 0 | EF57: =IF(COLUMN()-COLUMN($EB56)+1=ROW()-ROW(EF$42),INDEX($EM$30:$EM$40,$C$23+1,1),0) -> 0 | EG57: =IF(COLUMN()-COLUMN($EB56)+1=ROW()-ROW(EG$42),INDEX($EM$30:$EM$40,$C$23+1,1),0) -> 0 | EH57: =IF(COLUMN()-COLUMN($EB56)+1=ROW()-ROW(EH$42),INDEX($EM$30:$EM$40,$C$23+1,1),0) -> 0 | EI57: =IF(COLUMN()-COLUMN($EB56)+1=ROW()-ROW(EI$42),INDEX($EM$30:$EM$40,$C$23+1,1),0) -> 0 | EJ57: =IF(COLUMN()-COLUMN($EB56)+1=ROW()-ROW(EJ$42),INDEX($EM$30:$EM$40,$C$23+1,1),0) -> 0 | EK57: =IF(COLUMN()-COLUMN($EB56)+1=ROW()-ROW(EK$42),INDEX($EM$30:$EM$40,$C$23+1,1),0) -> 0 | EL57: =IF(COLUMN()-COLUMN($EB56)+1=ROW()-ROW(EL$42),INDEX($EM$30:$EM$40,$C$23+1,1),0) -> 0 | EM57: =IF(COLUMN()-COLUMN($EB56)+1=ROW()-ROW(EM$42),INDEX($EM$30:$EM$40,$C$23+1,1),0) -> 0 | EN57: =IF(COLUMN()-COLUMN($EB56)+1=ROW()-ROW(EN$42),INDEX($EM$30:$EM$40,$C$23+1,1),0) -> 0 | EO57: =IF(COLUMN()-COLUMN($EB56)+1=ROW()-ROW(EO$42),INDEX($EM$30:$EM$40,$C$23+1,1),0) -> 0 | EP57: =IF(COLUMN()-COLUMN($EB56)+1=ROW()-ROW(EP$42),INDEX($EM$30:$EM$40,$C$23+1,1),0) -> 0 | EQ57: =IF(COLUMN()-COLUMN($EB56)+1=ROW()-ROW(EQ$42),INDEX($EM$30:$EM$40,$C$23+1,1),0) -> 0
B58: 25 | C58: 4 | AB58: 0.008920863309 | AC58: =IF(C$34="","",IF(ROW()-ROW(S$27)>B$17,"",SMALL(INDEX($C$34:$C$10033,1,1):INDEX($C$34:$C$10033,B$17,1),ROW()-ROW(S$27)))) -> 4 | AD58: 0.27 | AE58: 7.536266202 | AF58: 0.07472282078 | AG58: 7.930846364 | AH58: 7.488159384 | AI58: 7.457524587 | AJ58: 7.433499067 | AM58: 7.482177513 | AN58: 7.542967821 | AO58: 7.536266202 | AP58: 7.527520494 | AQ58: 7.534614652 | AR58: 7.529797838 | AS58: 7.535716424 | AT58: 7.528400208 | AU58: 7.544658705 | AV58: 0.08732176007 | AW58: 0.1264682366 | AX58: 0.1250735191 | AY58: 0.08751092073 | BB58: 0.07924800156 | BC58: 0.08030285162 | BD58: 0.07472282078 | BE58: 0.07380142708 | BF58: 0.07340956888 | BG58: 0.07503181817 | BH58: 0.07511368404 | BI58: 0.07584471549 | BJ58: 0.0824453459 | BL58: 7.930846364 | BM58: 7.488159384 | BN58: 7.457524587 | BO58: 7.433499067 | BR58: 7.482177513 | BS58: 7.542967821 | BT58: 7.536266202 | BU58: 7.527520494 | BV58: 7.534614652 | BW58: 7.529797838 | BX58: 7.535716424 | BY58: 7.528400208 | BZ58: 7.544658705 | CA58: 0.08732176007 | CB58: 0.1264682366 | CC58: 0.1250735191 | CD58: 0.08751092073 | CG58: 0.07924800156 | CH58: 0.08030285162 | CI58: 0.07472282078 | CJ58: 0.07380142708 | CK58: 0.07340956888 | CL58: 0.07503181817 | CM58: 0.07511368404 | CN58: 0.07584471549 | CO58: 0.0824453459 | CQ58: 0.08306864542 | CR58: 0.1242232945 | CS58: 0.1231135593 | CT58: 0.08554096798 | CU58: 0.08210784099 | CV58: 0.0821780343 | CW58: 0.07722385705 | CX58: 0.0766706071 | CY58: 0.07167678632 | CZ58: 0.0711665784 | DA58: 0.07057183743 | DB58: 0.07225447661 | DC58: 0.0720119431 | DD58: 0.07315661142 | DE58: 0.07767221745 | DG58: 1 | DH58: -4.777673587 | DI58: 2.348965561 | DJ58: -0.4916546763 | DK58: 0.2417243207 | DL58: -1.154879902 | DM58: -0.1188448926 | DN58: 0.5678021045 | DO58: 0.05843064721 | DP58: -0.2791625599 | DQ58: -0.02872770094 | DR58: 0.137251578 | DS58: 0.0141241085 | DT58: -0.06748038014 | DU58: -0.006944183994 | DV58: 0.03317704445 | DW58: 4 | DY58: 0.003741007194 | DZ58: 3 | EB58: =IF(COLUMN()-COLUMN($EB57)+1=ROW()-ROW(EB$42),INDEX($EM$30:$EM$40,$C$23+1,1),0) -> 0 | EC58: =IF(COLUMN()-COLUMN($EB57)+1=ROW()-ROW(EC$42),INDEX($EM$30:$EM$40,$C$23+1,1),0) -> 0 | ED58: =IF(COLUMN()-COLUMN($EB57)+1=ROW()-ROW(ED$42),INDEX($EM$30:$EM$40,$C$23+1,1),0) -> 0 | EE58: =IF(COLUMN()-COLUMN($EB57)+1=ROW()-ROW(EE$42),INDEX($EM$30:$EM$40,$C$23+1,1),0) -> 0 | EF58: =IF(COLUMN()-COLUMN($EB57)+1=ROW()-ROW(EF$42),INDEX($EM$30:$EM$40,$C$23+1,1),0) -> 0 | EG58: =IF(COLUMN()-COLUMN($EB57)+1=ROW()-ROW(EG$42),INDEX($EM$30:$EM$40,$C$23+1,1),0) -> 0 | EH58: =IF(COLUMN()-COLUMN($EB57)+1=ROW()-ROW(EH$42),INDEX($EM$30:$EM$40,$C$23+1,1),0) -> 0 | EI58: =IF(COLUMN()-COLUMN($EB57)+1=ROW()-ROW(EI$42),INDEX($EM$30:$EM$40,$C$23+1,1),0) -> 0 | EJ58: =IF(COLUMN()-COLUMN($EB57)+1=ROW()-ROW(EJ$42),INDEX($EM$30:$EM$40,$C$23+1,1),0) -> 0 | EK58: =IF(COLUMN()-COLUMN($EB57)+1=ROW()-ROW(EK$42),INDEX($EM$30:$EM$40,$C$23+1,1),0) -> 0 | EL58: =IF(COLUMN()-COLUMN($EB57)+1=ROW()-ROW(EL$42),INDEX($EM$30:$EM$40,$C$23+1,1),0) -> 0 | EM58: =IF(COLUMN()-COLUMN($EB57)+1=ROW()-ROW(EM$42),INDEX($EM$30:$EM$40,$C$23+1,1),0) -> 0 | EN58: =IF(COLUMN()-COLUMN($EB57)+1=ROW()-ROW(EN$42),INDEX($EM$30:$EM$40,$C$23+1,1),0) -> 0 | EO58: =IF(COLUMN()-COLUMN($EB57)+1=ROW()-ROW(EO$42),INDEX($EM$30:$EM$40,$C$23+1,1),0) -> 0 | EP58: =IF(COLUMN()-COLUMN($EB57)+1=ROW()-ROW(EP$42),INDEX($EM$30:$EM$40,$C$23+1,1),0) -> 0 | EQ58: =IF(COLUMN()-COLUMN($EB57)+1=ROW()-ROW(EQ$42),INDEX($EM$30:$EM$40,$C$23+1,1),0) -> 0
B59: 26 | C59: 4 | AB59: 0.009208633094 | AC59: =IF(C$34="","",IF(ROW()-ROW(S$27)>B$17,"",SMALL(INDEX($C$34:$C$10033,1,1):INDEX($C$34:$C$10033,B$17,1),ROW()-ROW(S$27)))) -> 4 | AD59: 0.28 | AE59: 7.66854051 | AF59: 0.07651450391 | AG59: 8.044068159 | AH59: 7.566972796 | AI59: 7.537254275 | AJ59: 7.54712431 | AM59: 7.607485216 | AN59: 7.666034943 | AO59: 7.66854051 | AP59: 7.661584942 | AQ59: 7.669279959 | AR59: 7.661685237 | AS59: 7.667318379 | AT59: 7.658986548 | AU59: 7.664472427 | AV59: 0.08931540756 | AW59: 0.1272617141 | AX59: 0.1257418345 | AY59: 0.08850967875 | BB59: 0.08037448017 | BC59: 0.08222866372 | BD59: 0.07651450391 | BE59: 0.07541976925 | BF59: 0.0751489647 | BG59: 0.07664319371 | BH59: 0.07689110796 | BI59: 0.07733263108 | BJ59: 0.08443927974 | BL59: 8.044068159 | BM59: 7.566972796 | BN59: 7.537254275 | BO59: 7.54712431 | BR59: 7.607485216 | BS59: 7.666034943 | BT59: 7.66854051 | BU59: 7.661584942 | BV59: 7.669279959 | BW59: 7.661685237 | BX59: 7.667318379 | BY59: 7.658986548 | BZ59: 7.664472427 | CA59: 0.08931540756 | CB59: 0.1272617141 | CC59: 0.1257418345 | CD59: 0.08850967875 | CG59: 0.08037448017 | CH59: 0.08222866372 | CI59: 0.07651450391 | CJ59: 0.07541976925 | CK59: 0.0751489647 | CL59: 0.07664319371 | CM59: 0.07689110796 | CN59: 0.07733263108 | CO59: 0.08443927974 | CQ59: 0.08523950602 | CR59: 0.1254596958 | CS59: 0.1242018089 | CT59: 0.08652127474 | CU59: 0.08379084697 | CV59: 0.08385796866 | CW59: 0.07819781852 | CX59: 0.07844725788 | CY59: 0.07310891804 | CZ59: 0.07238348739 | DA59: 0.07188328495 | DB59: 0.07356891222 | DC59: 0.07348540744 | DD59: 0.07445515918 | DE59: 0.0801729587 | DG59: 1 | DH59: -4.743481802 | DI59: 2.330789979 | DJ59: -0.4913669065 | DK59: 0.2414414368 | DL59: -1.145273062 | DM59: -0.1186363319 | DN59: 0.5627492813 | DO59: 0.05829396739 | DP59: -0.2765163735 | DQ59: -0.02864372642 | DR59: 0.135870995 | DS59: 0.01407457924 | DT59: -0.06676251051 | DU59: -0.006915782463 | DV59: 0.03280488826 | DW59: 4 | DY59: 0.004028776978 | DZ59: 3
B60: 27 | C60: 4 | AB60: 0.009496402878 | AC60: =IF(C$34="","",IF(ROW()-ROW(S$27)>B$17,"",SMALL(INDEX($C$34:$C$10033,1,1):INDEX($C$34:$C$10033,B$17,1),ROW()-ROW(S$27)))) -> 4 | AD60: 0.29 | AE60: 7.797608081 | AF60: 0.07848003417 | AG60: 8.154844527 | AH60: 7.645359096 | AI60: 7.616621963 | AJ60: 7.659469059 | AM60: 7.730990714 | AN60: 7.786207718 | AO60: 7.797608081 | AP60: 7.792631655 | AQ60: 7.8006813 | AR60: 7.790704648 | AS60: 7.795793313 | AT60: 7.786997169 | AU60: 7.781693973 | AV60: 0.09122044849 | AW60: 0.1278526302 | AX60: 0.1262194274 | AY60: 0.08951705514 | BB60: 0.081577347 | BC60: 0.08421574085 | BD60: 0.07848003417 | BE60: 0.07723807309 | BF60: 0.07709995058 | BG60: 0.07840389825 | BH60: 0.07881288376 | BI60: 0.07892881347 | BJ60: 0.08613318483 | BL60: 8.154844527 | BM60: 7.645359096 | BN60: 7.616621963 | BO60: 7.659469059 | BR60: 7.730990714 | BS60: 7.786207718 | BT60: 7.797608081 | BU60: 7.792631655 | BV60: 7.8006813 | BW60: 7.790704648 | BX60: 7.795793313 | BY60: 7.786997169 | BZ60: 7.781693973 | CA60: 0.09122044849 | CB60: 0.1278526302 | CC60: 0.1262194274 | CD60: 0.08951705514 | CG60: 0.081577347 | CH60: 0.08421574085 | CI60: 0.07848003417 | CJ60: 0.07723807309 | CK60: 0.07709995058 | CL60: 0.07840389825 | CM60: 0.07881288376 | CN60: 0.07892881347 | CO60: 0.08613318483 | CQ60: 0.08732176007 | CR60: 0.1264682366 | CS60: 0.1250735191 | CT60: 0.08751092073 | CU60: 0.08549856931 | CV60: 0.08556164945 | CW60: 0.07924800156 | CX60: 0.08030285162 | CY60: 0.07472282078 | CZ60: 0.07380142708 | DA60: 0.07340956888 | DB60: 0.07503181817 | DC60: 0.07511368404 | DD60: 0.07584471549 | DE60: 0.0824453459 | DG60: 1 | DH60: -4.710401661 | DI60: 2.313179981 | DJ60: -0.4910791367 | DK60: 0.2411587185 | DL60: -1.135954428 | DM60: -0.1184280153 | DN60: 0.5578435199 | DO60: 0.05815752751 | DP60: -0.2739453142 | DQ60: -0.0285599484 | DR60: 0.1345288284 | DS60: 0.0140251948 | DT60: -0.0660643009 | DU60: -0.006887480556 | DV60: 0.03244279985 | DW60: 4 | DY60: 0.004316546763 | DZ60: 3 | EC60: quantiles
B61: 28 | C61: 4 | AB61: 0.009784172662 | AC61: =IF(C$34="","",IF(ROW()-ROW(S$27)>B$17,"",SMALL(INDEX($C$34:$C$10033,1,1):INDEX($C$34:$C$10033,B$17,1),ROW()-ROW(S$27)))) -> 4 | AD61: 0.3 | AE61: =INDEX(AG61:AU61,1,$C$17-1) -> 7.923348576 | AF61: =INDEX(AV61:BJ61,1,$C$17-1) -> 0.08061514085 | AG61: =IF(BL61="",NA(),IF($B$11="u",BL61,IF($B$11="sl",$C$19+EXP(BL61),IF($B$11="su",$C$20-EXP(-BL61),IF($B$11="b",($C$19+$C$20*EXP(BL61))/(1+EXP(BL61)),NA()))))) -> 8.263383194 | AH61: =IF(BM61="",NA(),IF($B$11="u",BM61,IF($B$11="sl",$C$19+EXP(BM61),IF($B$11="su",$C$20-EXP(-BM61),IF($B$11="b",($C$19+$C$20*EXP(BM61))/(1+EXP(BM61)),NA()))))) -> 7.723442526 | AI61: =IF(BN61="",NA(),IF($B$11="u",BN61,IF($B$11="sl",$C$19+EXP(BN61),IF($B$11="su",$C$20-EXP(-BN61),IF($B$11="b",($C$19+$C$20*EXP(BN61))/(1+EXP(BN61)),NA()))))) -> 7.69574636 | AJ61: =IF(BO61="",NA(),IF($B$11="u",BO61,IF($B$11="sl",$C$19+EXP(BO61),IF($B$11="su",$C$20-EXP(-BO61),IF($B$11="b",($C$19+$C$20*EXP(BO61))/(1+EXP(BO61)),NA()))))) -> 7.770551651 | AK61: =IF(BP61="",NA(),IF($B$11="u",BP61,IF($B$11="sl",$C$19+EXP(BP61),IF($B$11="su",$C$20-EXP(-BP61),IF($B$11="b",($C$19+$C$20*EXP(BP61))/(1+EXP(BP61)),NA()))))) ->  | AL61: =IF(BQ61="",NA(),IF($B$11="u",BQ61,IF($B$11="sl",$C$19+EXP(BQ61),IF($B$11="su",$C$20-EXP(-BQ61),IF($B$11="b",($C$19+$C$20*EXP(BQ61))/(1+EXP(BQ61)),NA()))))) ->  | AM61: =IF(BR61="",NA(),IF($B$11="u",BR61,IF($B$11="sl",$C$19+EXP(BR61),IF($B$11="su",$C$20-EXP(-BR61),IF($B$11="b",($C$19+$C$20*EXP(BR61))/(1+EXP(BR61)),NA()))))) -> 7.852631929 | AN61: =IF(BS61="",NA(),IF($B$11="u",BS61,IF($B$11="sl",$C$19+EXP(BS61),IF($B$11="su",$C$20-EXP(-BS61),IF($B$11="b",($C$19+$C$20*EXP(BS61))/(1+EXP(BS61)),NA()))))) -> 7.903541054 | AO61: =IF(BT61="",NA(),IF($B$11="u",BT61,IF($B$11="sl",$C$19+EXP(BT61),IF($B$11="su",$C$20-EXP(-BT61),IF($B$11="b",($C$19+$C$20*EXP(BT61))/(1+EXP(BT61)),NA()))))) -> 7.923348576 | AP61: =IF(BU61="",NA(),IF($B$11="u",BU61,IF($B$11="sl",$C$19+EXP(BU61),IF($B$11="su",$C$20-EXP(-BU61),IF($B$11="b",($C$19+$C$20*EXP(BU61))/(1+EXP(BU61)),NA()))))) -> 7.920466409 | AQ61: =IF(BV61="",NA(),IF($B$11="u",BV61,IF($B$11="sl",$C$19+EXP(BV61),IF($B$11="su",$C$20-EXP(-BV61),IF($B$11="b",($C$19+$C$20*EXP(BV61))/(1+EXP(BV61)),NA()))))) -> 7.928627296 | AR61: =IF(BW61="",NA(),IF($B$11="u",BW61,IF($B$11="sl",$C$19+EXP(BW61),IF($B$11="su",$C$20-EXP(-BW61),IF($B$11="b",($C$19+$C$20*EXP(BW61))/(1+EXP(BW61)),NA()))))) -> 7.916739478 | AS61: =IF(BX61="",NA(),IF($B$11="u",BX61,IF($B$11="sl",$C$19+EXP(BX61),IF($B$11="su",$C$20-EXP(-BX61),IF($B$11="b",($C$19+$C$20*EXP(BX61))/(1+EXP(BX61)),NA()))))) -> 7.921062821 | AT61: =IF(BY61="",NA(),IF($B$11="u",BY61,IF($B$11="sl",$C$19+EXP(BY61),IF($B$11="su",$C$20-EXP(-BY61),IF($B$11="b",($C$19+$C$20*EXP(BY61))/(1+EXP(BY61)),NA()))))) -> 7.912352416 | AU61: =IF(BZ61="",NA(),IF($B$11="u",BZ61,IF($B$11="sl",$C$19+EXP(BZ61),IF($B$11="su",$C$20-EXP(-BZ61),IF($B$11="b",($C$19+$C$20*EXP(BZ61))/(1+EXP(BZ61)),NA()))))) -> 7.896827947 | AV61: =IF(CA61="",NA(),IF($B$11="u",CA61,IF($B$11="sl",CA61*EXP(-BL61),IF($B$11="su",CA61*EXP(BL61),IF($B$11="b",CA61*(1+EXP(BL61))^2/(($C$20-$C$19)*EXP(BL61)),NA()))))) -> 0.09303688287 | AW61: =IF(CB61="",NA(),IF($B$11="u",CB61,IF($B$11="sl",CB61*EXP(-BM61),IF($B$11="su",CB61*EXP(BM61),IF($B$11="b",CB61*(1+EXP(BM61))^2/(($C$20-$C$19)*EXP(BM61)),NA()))))) -> 0.1282531218 | AX61: =IF(CC61="",NA(),IF($B$11="u",CC61,IF($B$11="sl",CC61*EXP(-BN61),IF($B$11="su",CC61*EXP(BN61),IF($B$11="b",CC61*(1+EXP(BN61))^2/(($C$20-$C$19)*EXP(BN61)),NA()))))) -> 0.1265184533 | AY61: =IF(CD61="",NA(),IF($B$11="u",CD61,IF($B$11="sl",CD61*EXP(-BO61),IF($B$11="su",CD61*EXP(BO61),IF($B$11="b",CD61*(1+EXP(BO61))^2/(($C$20-$C$19)*EXP(BO61)),NA()))))) -> 0.09053230239 | AZ61: =IF(CE61="",NA(),IF($B$11="u",CE61,IF($B$11="sl",CE61*EXP(-BP61),IF($B$11="su",CE61*EXP(BP61),IF($B$11="b",CE61*(1+EXP(BP61))^2/(($C$20-$C$19)*EXP(BP61)),NA()))))) ->  | BA61: =IF(CF61="",NA(),IF($B$11="u",CF61,IF($B$11="sl",CF61*EXP(-BQ61),IF($B$11="su",CF61*EXP(BQ61),IF($B$11="b",CF61*(1+EXP(BQ61))^2/(($C$20-$C$19)*EXP(BQ61)),NA()))))) ->  | BB61: =IF(CG61="",NA(),IF($B$11="u",CG61,IF($B$11="sl",CG61*EXP(-BR61),IF($B$11="su",CG61*EXP(BR61),IF($B$11="b",CG61*(1+EXP(BR61))^2/(($C$20-$C$19)*EXP(BR61)),NA()))))) -> 0.08285667448 | BC61: =IF(CH61="",NA(),IF($B$11="u",CH61,IF($B$11="sl",CH61*EXP(-BS61),IF($B$11="su",CH61*EXP(BS61),IF($B$11="b",CH61*(1+EXP(BS61))^2/(($C$20-$C$19)*EXP(BS61)),NA()))))) -> 0.08625480218 | BD61: =IF(CI61="",NA(),IF($B$11="u",CI61,IF($B$11="sl",CI61*EXP(-BT61),IF($B$11="su",CI61*EXP(BT61),IF($B$11="b",CI61*(1+EXP(BT61))^2/(($C$20-$C$19)*EXP(BT61)),NA()))))) -> 0.08061514085 | BE61: =IF(CJ61="",NA(),IF($B$11="u",CJ61,IF($B$11="sl",CJ61*EXP(-BU61),IF($B$11="su",CJ61*EXP(BU61),IF($B$11="b",CJ61*(1+EXP(BU61))^2/(($C$20-$C$19)*EXP(BU61)),NA()))))) -> 0.07925572642 | BF61: =IF(CK61="",NA(),IF($B$11="u",CK61,IF($B$11="sl",CK61*EXP(-BV61),IF($B$11="su",CK61*EXP(BV61),IF($B$11="b",CK61*(1+EXP(BV61))^2/(($C$20-$C$19)*EXP(BV61)),NA()))))) -> 0.07926074151 | BG61: =IF(CL61="",NA(),IF($B$11="u",CL61,IF($B$11="sl",CL61*EXP(-BW61),IF($B$11="su",CL61*EXP(BW61),IF($B$11="b",CL61*(1+EXP(BW61))^2/(($C$20-$C$19)*EXP(BW61)),NA()))))) -> 0.08031532011 | BH61: =IF(CM61="",NA(),IF($B$11="u",CM61,IF($B$11="sl",CM61*EXP(-BX61),IF($B$11="su",CM61*EXP(BX61),IF($B$11="b",CM61*(1+EXP(BX61))^2/(($C$20-$C$19)*EXP(BX61)),NA()))))) -> 0.0808747848 | BI61: =IF(CN61="",NA(),IF($B$11="u",CN61,IF($B$11="sl",CN61*EXP(-BY61),IF($B$11="su",CN61*EXP(BY61),IF($B$11="b",CN61*(1+EXP(BY61))^2/(($C$20-$C$19)*EXP(BY61)),NA()))))) -> 0.08064493884 | BJ61: =IF(CO61="",NA(),IF($B$11="u",CO61,IF($B$11="sl",CO61*EXP(-BZ61),IF($B$11="su",CO61*EXP(BZ61),IF($B$11="b",CO61*(1+EXP(BZ61))^2/(($C$20-$C$19)*EXP(BZ61)),NA()))))) -> 0.08753458602 | BL61: 8.263383194 | BM61: 7.723442526 | BN61: 7.69574636 | BO61: 7.770551651 | BR61: 7.852631929 | BS61: 7.903541054 | BT61: =IF(CI61="","",EK$90+EK$91*LN($AD61/(1-$AD61))+EK$92*($AD61-0.5)*LN($AD61/(1-$AD61))+EK$93*($AD61-0.5)+EK$94*($AD61-0.5)^2+EK$95*($AD61-0.5)^2*LN($AD61/(1-$AD61))+EK$96*($AD61-0.5)^3+EK$97*($AD61-0.5)^3*LN($AD61/(1-$AD61))+EK$98*($AD61-0.5)^4+EK$99*($AD61-0.5)^4*LN($AD61/(1-$AD61))+EK$100*($AD61-0.5)^5+EK$101*($AD61-0.5)^5*LN($AD61/(1-$AD61))+EK$102*($AD61-0.5)^6+EK$103*($AD61-0.5)^6*LN($AD61/(1-$AD61))+EK$104*($AD61-0.5)^7+EK$105*($AD61-0.5)^7*LN($AD61/(1-$AD61))) -> 7.923348576 | BU61: 7.920466409 | BV61: 7.928627296 | BW61: =IF(CL61="","",EN$90+EN$91*LN($AD61/(1-$AD61))+EN$92*($AD61-0.5)*LN($AD61/(1-$AD61))+EN$93*($AD61-0.5)+EN$94*($AD61-0.5)^2+EN$95*($AD61-0.5)^2*LN($AD61/(1-$AD61))+EN$96*($AD61-0.5)^3+EN$97*($AD61-0.5)^3*LN($AD61/(1-$AD61))+EN$98*($AD61-0.5)^4+EN$99*($AD61-0.5)^4*LN($AD61/(1-$AD61))+EN$100*($AD61-0.5)^5+EN$101*($AD61-0.5)^5*LN($AD61/(1-$AD61))+EN$102*($AD61-0.5)^6+EN$103*($AD61-0.5)^6*LN($AD61/(1-$AD61))+EN$104*($AD61-0.5)^7+EN$105*($AD61-0.5)^7*LN($AD61/(1-$AD61))) -> 7.916739478 | BX61: =IF(CM61="","",EO$90+EO$91*LN($AD61/(1-$AD61))+EO$92*($AD61-0.5)*LN($AD61/(1-$AD61))+EO$93*($AD61-0.5)+EO$94*($AD61-0.5)^2+EO$95*($AD61-0.5)^2*LN($AD61/(1-$AD61))+EO$96*($AD61-0.5)^3+EO$97*($AD61-0.5)^3*LN($AD61/(1-$AD61))+EO$98*($AD61-0.5)^4+EO$99*($AD61-0.5)^4*LN($AD61/(1-$AD61))+EO$100*($AD61-0.5)^5+EO$101*($AD61-0.5)^5*LN($AD61/(1-$AD61))+EO$102*($AD61-0.5)^6+EO$103*($AD61-0.5)^6*LN($AD61/(1-$AD61))+EO$104*($AD61-0.5)^7+EO$105*($AD61-0.5)^7*LN($AD61/(1-$AD61))) -> 7.921062821 | BY61: =IF(CN61="","",EP$90+EP$91*LN($AD61/(1-$AD61))+EP$92*($AD61-0.5)*LN($AD61/(1-$AD61))+EP$93*($AD61-0.5)+EP$94*($AD61-0.5)^2+EP$95*($AD61-0.5)^2*LN($AD61/(1-$AD61))+EP$96*($AD61-0.5)^3+EP$97*($AD61-0.5)^3*LN($AD61/(1-$AD61))+EP$98*($AD61-0.5)^4+EP$99*($AD61-0.5)^4*LN($AD61/(1-$AD61))+EP$100*($AD61-0.5)^5+EP$101*($AD61-0.5)^5*LN($AD61/(1-$AD61))+EP$102*($AD61-0.5)^6+EP$103*($AD61-0.5)^6*LN($AD61/(1-$AD61))+EP$104*($AD61-0.5)^7+EP$105*($AD61-0.5)^7*LN($AD61/(1-$AD61))) -> 7.912352416 | BZ61: =IF(CO61="","",EQ$90+EQ$91*LN($AD61/(1-$AD61))+EQ$92*($AD61-0.5)*LN($AD61/(1-$AD61))+EQ$93*($AD61-0.5)+EQ$94*($AD61-0.5)^2+EQ$95*($AD61-0.5)^2*LN($AD61/(1-$AD61))+EQ$96*($AD61-0.5)^3+EQ$97*($AD61-0.5)^3*LN($AD61/(1-$AD61))+EQ$98*($AD61-0.5)^4+EQ$99*($AD61-0.5)^4*LN($AD61/(1-$AD61))+EQ$100*($AD61-0.5)^5+EQ$101*($AD61-0.5)^5*LN($AD61/(1-$AD61))+EQ$102*($AD61-0.5)^6+EQ$103*($AD61-0.5)^6*LN($AD61/(1-$AD61))+EQ$104*($AD61-0.5)^7+EQ$105*($AD61-0.5)^7*LN($AD61/(1-$AD61))) -> 7.896827947 | CA61: 0.09303688287 | CB61: 0.1282531218 | CC61: 0.1265184533 | CD61: 0.09053230239 | CG61: 0.08285667448 | CH61: 0.08625480218 | CI61: 0.08061514085 | CJ61: 0.07925572642 | CK61: 0.07926074151 | CL61: 0.08031532011 | CM61: 0.0808747848 | CN61: 0.08064493884 | CO61: 0.08753458602 | CQ61: 0.08931540756 | CR61: 0.1272617141 | CS61: 0.1257418345 | CT61: 0.08850967875 | CU61: 0.08722902072 | CV61: 0.08728712919 | CW61: 0.08037448017 | CX61: 0.08222866372 | CY61: 0.07651450391 | CZ61: 0.07541976925 | DA61: 0.0751489647 | DB61: 0.07664319371 | DC61: 0.07689110796 | DD61: 0.07733263108 | DE61: 0.08443927974 | DG61: 1 | DH61: -4.678362561 | DI61: 2.296099956 | DJ61: -0.4907913669 | DK61: 0.2408761658 | DL61: -1.126906036 | DM61: -0.1182199427 | DN61: 0.5530757538 | DO61: 0.05802132726 | DP61: -0.2714448052 | DQ61: -0.02847636652 | DR61: 0.133222767 | DS61: 0.01397595485 | DT61: -0.06538458391 | DU61: -0.006859277984 | DV61: 0.03209018931 | DW61: 4 | DY61: 0.004604316547 | DZ61: 3 | EC61: =IF($B$11="u","",IF($B$11="sl"," log",IF($B$11="b"," logit",""))) -> 
B62: 29 | C62: 4 | AB62: 0.01007194245 | AC62: =IF(C$34="","",IF(ROW()-ROW(S$27)>B$17,"",SMALL(INDEX($C$34:$C$10033,1,1):INDEX($C$34:$C$10033,B$17,1),ROW()-ROW(S$27)))) -> 4 | AD62: 0.31 | AE62: 8.045678562 | AF62: 0.08291480463 | AG62: 8.369873194 | AH62: 7.801337251 | AI62: 7.7747366 | AJ62: 7.880391208 | AM62: 7.972354602 | AN62: 8.018104025 | AO62: 8.045678562 | AP62: 8.044934158 | AQ62: 8.052971671 | AR62: 8.03969525 | AS62: 8.043076948 | AT62: 8.034970211 | AU62: 8.010304129 | AV62: 0.0947647107 | AW62: 0.1284749058 | AX62: 0.1266505207 | AY62: 0.09155442533 | BB62: 0.08421246806 | BC62: 0.08833617117 | BD62: 0.08291480463 | BE62: 0.08147152835 | BF62: 0.08162876439 | BG62: 0.08237902853 | BH62: 0.08307285251 | BI62: 0.08249369378 | BJ62: 0.08867718577 | BL62: 8.369873194 | BM62: 7.801337251 | BN62: 7.7747366 | BO62: 7.880391208 | BR62: 7.972354602 | BS62: 8.018104025 | BT62: 8.045678562 | BU62: 8.044934158 | BV62: 8.052971671 | BW62: 8.03969525 | BX62: 8.043076948 | BY62: 8.034970211 | BZ62: 8.010304129 | CA62: 0.0947647107 | CB62: 0.1284749058 | CC62: 0.1266505207 | CD62: 0.09155442533 | CG62: 0.08421246806 | CH62: 0.08833617117 | CI62: 0.08291480463 | CJ62: 0.08147152835 | CK62: 0.08162876439 | CL62: 0.08237902853 | CM62: 0.08307285251 | CN62: 0.08249369378 | CO62: 0.08867718577 | CQ62: 0.09122044849 | CR62: 0.1278526302 | CS62: 0.1262194274 | CT62: 0.08951705514 | CU62: 0.08897989288 | CV62: 0.08903214311 | CW62: 0.081577347 | CX62: 0.08421574085 | CY62: 0.07848003417 | CZ62: 0.07723807309 | DA62: 0.07709995058 | DB62: 0.07840389825 | DC62: 0.07881288376 | DD62: 0.07892881347 | DE62: 0.08613318483 | DG62: 1 | DH62: -4.647300415 | DI62: 2.279517571 | DJ62: -0.4905035971 | DK62: 0.2405937788 | DL62: -1.118111568 | DM62: -0.1180121139 | DN62: 0.5484377461 | DO62: 0.05788536639 | DP62: -0.2690106873 | DQ62: -0.02839298044 | DR62: 0.1319507098 | DS62: 0.01392685904 | DT62: -0.06472229779 | DU62: -0.006831174454 | DV62: 0.03174651988 | DW62: 4 | DY62: 0.004892086331 | DZ62: 3 | EB62: y | EC62: M2 | ED62: M3 | EE62: M4 | EF62: M5 | EG62: M6 | EH62: M7 | EI62: M8 | EJ62: M9 | EK62: M10 | EL62: M11 | EM62: M12 | EN62: M13 | EO62: M14 | EP62: M15 | EQ62: M16
B63: 30 | C63: 4 | AB63: 0.01035971223 | AC63: =IF(C$34="","",IF(ROW()-ROW(S$27)>B$17,"",SMALL(INDEX($C$34:$C$10033,1,1):INDEX($C$34:$C$10033,B$17,1),ROW()-ROW(S$27)))) -> 4 | AD63: 0.32 | AE63: 8.164549387 | AF63: 0.08537282595 | AG63: 8.474487345 | AH63: 7.879148836 | AI63: 7.853693644 | AJ63: 7.989007834 | AM63: 8.090112251 | AN63: 8.129977694 | AO63: 8.164549387 | AP63: 8.165918515 | AQ63: 8.173611968 | AR63: 8.159498837 | AS63: 8.161811114 | AT63: 8.154767663 | AU63: 8.122462309 | AV63: 0.09640393197 | AW63: 0.1285292398 | AX63: 0.1266266729 | AY63: 0.09258218229 | BB63: 0.08564461113 | BC63: 0.09044973561 | BD63: 0.08537282595 | BE63: 0.08388320669 | BF63: 0.08420006656 | BG63: 0.08459639427 | BH63: 0.08540308364 | BI63: 0.08448803591 | BJ63: 0.08961533461 | BL63: 8.474487345 | BM63: 7.879148836 | BN63: 7.853693644 | BO63: 7.989007834 | BR63: 8.090112251 | BS63: 8.129977694 | BT63: 8.164549387 | BU63: 8.165918515 | BV63: 8.173611968 | BW63: 8.159498837 | BX63: 8.161811114 | BY63: 8.154767663 | BZ63: 8.122462309 | CA63: =IF(AND($EC$41=0,CQ$26="yes"),CQ65,"") -> 0.09640393197 | CB63: 0.1285292398 | CC63: 0.1266266729 | CD63: 0.09258218229 | CG63: 0.08564461113 | CH63: 0.09044973561 | CI63: 0.08537282595 | CJ63: 0.08388320669 | CK63: 0.08420006656 | CL63: 0.08459639427 | CM63: 0.08540308364 | CN63: 0.08448803591 | CO63: 0.08961533461 | CQ63: 0.09303688287 | CR63: 0.1282531218 | CS63: 0.1265184533 | CT63: 0.09053230239 | CU63: 0.09074851975 | CV63: 0.09079407341 | CW63: 0.08285667448 | CX63: 0.08625480218 | CY63: =IF(OR(DP$26="",DP$26="no"),"",(EK$91/($AD61*(1-$AD61))+EK$92*(($AD61-0.5)/($AD61*(1-$AD61))+LN($AD61/(1-$AD61)))+EK$93+2*EK$94*($AD61-0.5)+EK$95*(($AD61-0.5)^2/($AD61*(1-$AD61))+2*($AD61-0.5)*LN($AD61/(1-$AD61)))+3*EK$96*($AD61-0.5)^2+EK$97*(($AD61-0.5)^3/($AD61*(1-$AD61))+3*($AD61-0.5)^2*LN($AD61/(1-$AD61)))+4*EK$98*($AD61-0.5)^3+EK$99*(($AD61-0.5)^4/($AD61*(1-$AD61))+4*($AD61-0.5)^3*LN($AD61/(1-$AD61)))+5*EK$100*($AD61-0.5)^4+EK$101*(($AD61-0.5)^5/($AD61*(1-$AD61))+5*($AD61-0.5)^4*LN($AD61/(1-$AD61)))+6*EK$102*($AD61-0.5)^5+EK$103*(($AD61-0.5)^6/($AD61*(1-$AD61))+6*($AD61-0.5)^5*LN($AD61/(1-$AD61)))+7*EK$104*($AD61-0.5)^6+EK$105*(($AD61-0.5)^7/($AD61*(1-$AD61))+7*($AD61-0.5)^6*LN($AD61/(1-$AD61))))^-1) -> 0.08061514085 | CZ63: 0.07925572642 | DA63: 0.07926074151 | DB63: =IF(OR(DS$26="",DS$26="no"),"",(EN$91/($AD61*(1-$AD61))+EN$92*(($AD61-0.5)/($AD61*(1-$AD61))+LN($AD61/(1-$AD61)))+EN$93+2*EN$94*($AD61-0.5)+EN$95*(($AD61-0.5)^2/($AD61*(1-$AD61))+2*($AD61-0.5)*LN($AD61/(1-$AD61)))+3*EN$96*($AD61-0.5)^2+EN$97*(($AD61-0.5)^3/($AD61*(1-$AD61))+3*($AD61-0.5)^2*LN($AD61/(1-$AD61)))+4*EN$98*($AD61-0.5)^3+EN$99*(($AD61-0.5)^4/($AD61*(1-$AD61))+4*($AD61-0.5)^3*LN($AD61/(1-$AD61)))+5*EN$100*($AD61-0.5)^4+EN$101*(($AD61-0.5)^5/($AD61*(1-$AD61))+5*($AD61-0.5)^4*LN($AD61/(1-$AD61)))+6*EN$102*($AD61-0.5)^5+EN$103*(($AD61-0.5)^6/($AD61*(1-$AD61))+6*($AD61-0.5)^5*LN($AD61/(1-$AD61)))+7*EN$104*($AD61-0.5)^6+EN$105*(($AD61-0.5)^7/($AD61*(1-$AD61))+7*($AD61-0.5)^6*LN($AD61/(1-$AD61))))^-1) -> 0.08031532011 | DC63: =IF(OR(DT$26="",DT$26="no"),"",(EO$91/($AD61*(1-$AD61))+EO$92*(($AD61-0.5)/($AD61*(1-$AD61))+LN($AD61/(1-$AD61)))+EO$93+2*EO$94*($AD61-0.5)+EO$95*(($AD61-0.5)^2/($AD61*(1-$AD61))+2*($AD61-0.5)*LN($AD61/(1-$AD61)))+3*EO$96*($AD61-0.5)^2+EO$97*(($AD61-0.5)^3/($AD61*(1-$AD61))+3*($AD61-0.5)^2*LN($AD61/(1-$AD61)))+4*EO$98*($AD61-0.5)^3+EO$99*(($AD61-0.5)^4/($AD61*(1-$AD61))+4*($AD61-0.5)^3*LN($AD61/(1-$AD61)))+5*EO$100*($AD61-0.5)^4+EO$101*(($AD61-0.5)^5/($AD61*(1-$AD61))+5*($AD61-0.5)^4*LN($AD61/(1-$AD61)))+6*EO$102*($AD61-0.5)^5+EO$103*(($AD61-0.5)^6/($AD61*(1-$AD61))+6*($AD61-0.5)^5*LN($AD61/(1-$AD61)))+7*EO$104*($AD61-0.5)^6+EO$105*(($AD61-0.5)^7/($AD61*(1-$AD61))+7*($AD61-0.5)^6*LN($AD61/(1-$AD61))))^-1) -> 0.0808747848 | DD63: =IF(OR(DU$26="",DU$26="no"),"",(EP$91/($AD61*(1-$AD61))+EP$92*(($AD61-0.5)/($AD61*(1-$AD61))+LN($AD61/(1-$AD61)))+EP$93+2*EP$94*($AD61-0.5)+EP$95*(($AD61-0.5)^2/($AD61*(1-$AD61))+2*($AD61-0.5)*LN($AD61/(1-$AD61)))+3*EP$96*($AD61-0.5)^2+EP$97*(($AD61-0.5)^3/($AD61*(1-$AD61))+3*($AD61-0.5)^2*LN($AD61/(1-$AD61)))+4*EP$98*($AD61-0.5)^3+EP$99*(($AD61-0.5)^4/($AD61*(1-$AD61))+4*($AD61-0.5)^3*LN($AD61/(1-$AD61)))+5*EP$100*($AD61-0.5)^4+EP$101*(($AD61-0.5)^5/($AD61*(1-$AD61))+5*($AD61-0.5)^4*LN($AD61/(1-$AD61)))+6*EP$102*($AD61-0.5)^5+EP$103*(($AD61-0.5)^6/($AD61*(1-$AD61))+6*($AD61-0.5)^5*LN($AD61/(1-$AD61)))+7*EP$104*($AD61-0.5)^6+EP$105*(($AD61-0.5)^7/($AD61*(1-$AD61))+7*($AD61-0.5)^6*LN($AD61/(1-$AD61))))^-1) -> 0.08064493884 | DE63: =IF(OR(DV$26="",DV$26="no"),"",(EQ$91/($AD61*(1-$AD61))+EQ$92*(($AD61-0.5)/($AD61*(1-$AD61))+LN($AD61/(1-$AD61)))+EQ$93+2*EQ$94*($AD61-0.5)+EQ$95*(($AD61-0.5)^2/($AD61*(1-$AD61))+2*($AD61-0.5)*LN($AD61/(1-$AD61)))+3*EQ$96*($AD61-0.5)^2+EQ$97*(($AD61-0.5)^3/($AD61*(1-$AD61))+3*($AD61-0.5)^2*LN($AD61/(1-$AD61)))+4*EQ$98*($AD61-0.5)^3+EQ$99*(($AD61-0.5)^4/($AD61*(1-$AD61))+4*($AD61-0.5)^3*LN($AD61/(1-$AD61)))+5*EQ$100*($AD61-0.5)^4+EQ$101*(($AD61-0.5)^5/($AD61*(1-$AD61))+5*($AD61-0.5)^4*LN($AD61/(1-$AD61)))+6*EQ$102*($AD61-0.5)^5+EQ$103*(($AD61-0.5)^6/($AD61*(1-$AD61))+6*($AD61-0.5)^5*LN($AD61/(1-$AD61)))+7*EQ$104*($AD61-0.5)^6+EQ$105*(($AD61-0.5)^7/($AD61*(1-$AD61))+7*($AD61-0.5)^6*LN($AD61/(1-$AD61))))^-1) -> 0.08753458602 | DG63: 1 | DH63: -4.617156881 | DI63: 2.26340338 | DJ63: -0.4902158273 | DK63: 0.2403115574 | DL63: -1.109556161 | DM63: -0.1178045289 | DN63: 0.5439219913 | DO63: 0.05774964461 | DP63: -0.266639169 | DQ63: -0.02830978981 | DR63: 0.1307107408 | DS63: 0.01387790703 | DT63: -0.06407647395 | DU63: -0.006803169678 | DV63: 0.03141130169 | DW63: 4 | DY63: 0.005179856115 | DZ63: 3 | EB63: 0.01 | EC63: =IF(EC71="","",IF($B$11="u",EC71,IF($B$11="sl",$C$19+EXP(EC71),IF($B$11="su",$C$20-EXP(-EC71),IF($B$11="b",($C$19+$C$20*EXP(EC71))/(1+EXP(EC71)),""))))) -> -0.196085713 | ED63: 2.678549029 | EE63: 2.762095852 | EF63: 3.595414417 | EI63: 3.691988768 | EJ63: 3.84693732 | EK63: 3.686140996 | EL63: 3.701982462 | EM63: 3.681697224 | EN63: 3.673873303 | EO63: 3.66752875 | EP63: 3.64340599 | EQ63: 3.562244076
B64: 31 | C64: 4 | V64: ` | AB64: 0.01064748201 | AC64: =IF(C$34="","",IF(ROW()-ROW(S$27)>B$17,"",SMALL(INDEX($C$34:$C$10033,1,1):INDEX($C$34:$C$10033,B$17,1),ROW()-ROW(S$27)))) -> 4 | AD64: 0.33 | AE64: 8.279945022 | AF64: 0.08798137285 | AG64: 8.577384347 | AH64: 7.956975491 | AI64: 7.93271148 | AJ64: 8.096422793 | AM64: 8.205866129 | AN64: 8.239253181 | AO64: 8.279945022 | AP64: 8.283340922 | AQ64: 8.29048796 | AR64: 8.276097956 | AS64: 8.277263454 | AT64: 8.271663745 | AU64: 8.233543832 | AV64: 0.09795454668 | AW64: 0.1284268945 | AX64: 0.12645738 | AY64: 0.09361408209 | BB64: 0.0871528012 | BC64: 0.09258493466 | BD64: 0.08798137285 | BE64: 0.08648686495 | BF64: 0.08696865369 | BG64: 0.08696816568 | BH64: 0.087861095 | BI64: 0.08664045338 | BJ64: 0.09041725097 | BL64: 8.577384347 | BM64: 7.956975491 | BN64: 7.93271148 | BO64: 8.096422793 | BR64: 8.205866129 | BS64: 8.239253181 | BT64: 8.279945022 | BU64: 8.283340922 | BV64: 8.29048796 | BW64: 8.276097956 | BX64: 8.277263454 | BY64: 8.271663745 | BZ64: 8.233543832 | CA64: 0.09795454668 | CB64: 0.1284268945 | CC64: 0.12645738 | CD64: 0.09361408209 | CG64: 0.0871528012 | CH64: 0.09258493466 | CI64: 0.08798137285 | CJ64: 0.08648686495 | CK64: 0.08696865369 | CL64: 0.08696816568 | CM64: 0.087861095 | CN64: 0.08664045338 | CO64: 0.09041725097 | CQ64: 0.0947647107 | CR64: 0.1284749058 | CS64: 0.1266505207 | CT64: 0.09155442533 | CU64: 0.0925318403 | CV64: 0.09256991293 | CW64: 0.08421246806 | CX64: 0.08833617117 | CY64: 0.08291480463 | CZ64: 0.08147152835 | DA64: 0.08162876439 | DB64: 0.08237902853 | DC64: 0.08307285251 | DD64: 0.08249369378 | DE64: 0.08867718577 | DG64: 1 | DH64: -4.587878689 | DI64: 2.247730494 | DJ64: -0.4899280576 | DK64: 0.2400295016 | DL64: -1.101226235 | DM64: -0.1175971875 | DN64: 0.5395216302 | DO64: 0.05761416163 | DP64: -0.2643267843 | DQ64: -0.02822679429 | DR64: 0.129501108 | DS64: 0.0138290985 | DT64: -0.06344622629 | DU64: -0.006775263366 | DV64: 0.03108408641 | DW64: 4 | DY64: 0.005467625899 | DZ64: 3 | EB64: 0.05 | EC64: =IF(EC72="","",IF($B$11="u",EC72,IF($B$11="sl",$C$19+EXP(EC72),IF($B$11="su",$C$20-EXP(-EC72),IF($B$11="b",($C$19+$C$20*EXP(EC72))/(1+EXP(EC72)),""))))) -> 3.529780548 | ED64: 4.884839344 | EE64: 4.884906294 | EF64: 4.520155459 | EI64: 4.466632226 | EJ64: 4.431079568 | EK64: 4.521183937 | EL64: 4.512269897 | EM64: 4.525305401 | EN64: 4.523729094 | EO64: 4.531418135 | EP64: 4.541763923 | EQ64: 4.614904627
B65: 32 | C65: 4 | AB65: 0.0109352518 | AC65: =IF(C$34="","",IF(ROW()-ROW(S$27)>B$17,"",SMALL(INDEX($C$34:$C$10033,1,1):INDEX($C$34:$C$10033,B$17,1),ROW()-ROW(S$27)))) -> 4 | AD65: 0.34 | AE65: 8.391879906 | AF65: 0.09073051184 | AG65: 8.678710576 | AH65: 8.034909151 | AI65: 8.011878142 | AJ65: 8.202658666 | AM65: 8.319585193 | AN65: 8.346029941 | AO65: 8.391879906 | AP65: 8.39715956 | AQ65: 8.403579801 | AR65: 8.389460875 | AS65: 8.389452553 | AT65: 8.385582735 | AU65: 8.343689165 | AV65: 0.09941655484 | AW65: 0.1281781358 | AX65: 0.1261525386 | AY65: 0.09464837771 | BB65: 0.08873647629 | BC65: 0.09473077173 | BD65: 0.09073051184 | BE65: 0.08927635676 | BF65: 0.08992575844 | BG65: 0.08949398741 | BH65: 0.0904417568 | BI65: 0.08896219583 | BJ65: 0.09115833079 | BL65: 8.678710576 | BM65: 8.034909151 | BN65: 8.011878142 | BO65: 8.202658666 | BR65: 8.319585193 | BS65: 8.346029941 | BT65: 8.391879906 | BU65: 8.39715956 | BV65: 8.403579801 | BW65: 8.389460875 | BX65: 8.389452553 | BY65: 8.385582735 | BZ65: 8.343689165 | CA65: 0.09941655484 | CB65: 0.1281781358 | CC65: 0.1261525386 | CD65: 0.09464837771 | CG65: 0.08873647629 | CH65: 0.09473077173 | CI65: 0.09073051184 | CJ65: 0.08927635676 | CK65: 0.08992575844 | CL65: 0.08949398741 | CM65: 0.0904417568 | CN65: 0.08896219583 | CO65: 0.09115833079 | CQ65: 0.09640393197 | CR65: 0.1285292398 | CS65: 0.1266266729 | CT65: 0.09258218229 | CU65: 0.09432636088 | CV65: 0.09435622834 | CW65: 0.08564461113 | CX65: 0.09044973561 | CY65: 0.08537282595 | CZ65: 0.08388320669 | DA65: 0.08420006656 | DB65: 0.08459639427 | DC65: 0.08540308364 | DD65: 0.08448803591 | DE65: 0.08961533461 | DG65: 1 | DH65: -4.559417072 | DI65: 2.232474287 | DJ65: -0.4896402878 | DK65: 0.2397476114 | DL65: -1.093109352 | DM65: -0.1173900894 | DN65: 0.5352303779 | DO65: 0.05747891718 | DP65: -0.2620703562 | DQ65: -0.02814399355 | DR65: 0.1283202046 | DS65: 0.0137804331 | DT65: -0.06283074193 | DU65: -0.006747455228 | DV65: 0.03076446256 | DW65: 4 | DY65: 0.005755395683 | DZ65: 3 | EB65: 0.5 | EC65: =IF(EC73="","",IF($B$11="u",EC73,IF($B$11="sl",$C$19+EXP(EC73),IF($B$11="su",$C$20-EXP(-EC73),IF($B$11="b",($C$19+$C$20*EXP(EC73))/(1+EXP(EC73)),""))))) -> 10.17587795 | ED65: 9.358035728 | EE65: 9.358035728 | EF65: 9.767739155 | EI65: 9.867027468 | EJ65: 9.810050439 | EK65: 9.810050439 | EL65: 9.810050439 | EM65: 9.802325368 | EN65: 9.816171213 | EO65: 9.816171213 | EP65: 9.816171206 | EQ65: 9.858544488
B66: 33 | C66: 4 | AB66: 0.01122302158 | AC66: =IF(C$34="","",IF(ROW()-ROW(S$27)>B$17,"",SMALL(INDEX($C$34:$C$10033,1,1):INDEX($C$34:$C$10033,B$17,1),ROW()-ROW(S$27)))) -> 4 | AD66: 0.35 | AE66: 8.500396789 | AF66: 0.09360773088 | AG66: 8.778601626 | AH66: 8.113036394 | AI66: 8.091276601 | AJ66: 8.307739493 | AM66: 8.431246075 | AN66: 8.450414232 | AO66: 8.500396789 | AP66: 8.507368021 | AQ66: 8.512905979 | AR66: 8.499576288 | AS66: 8.498415555 | AT66: 8.496458102 | AU66: 8.452940695 | AV66: 0.1007899564 | AW66: 0.1277927162 | AX66: 0.1257214782 | AY66: 0.09568305715 | BB66: 0.09039473066 | BC66: 0.09687585172 | BD66: 0.09360773088 | BE66: 0.09224259127 | BF66: 0.0930590502 | BG66: 0.0921718514 | BH66: 0.09313878796 | BI66: 0.09146244436 | BJ66: 0.09191551763 | BL66: 8.778601626 | BM66: 8.113036394 | BN66: 8.091276601 | BO66: 8.307739493 | BR66: 8.431246075 | BS66: 8.450414232 | BT66: 8.500396789 | BU66: 8.507368021 | BV66: 8.512905979 | BW66: 8.499576288 | BX66: 8.498415555 | BY66: 8.496458102 | BZ66: 8.452940695 | CA66: 0.1007899564 | CB66: 0.1277927162 | CC66: 0.1257214782 | CD66: 0.09568305715 | CG66: 0.09039473066 | CH66: 0.09687585172 | CI66: 0.09360773088 | CJ66: 0.09224259127 | CK66: 0.0930590502 | CL66: 0.0921718514 | CM66: 0.09313878796 | CN66: 0.09146244436 | CO66: 0.09191551763 | CQ66: 0.09795454668 | CR66: 0.1284268945 | CS66: 0.12645738 | CT66: 0.09361408209 | CU66: 0.09612811766 | CV66: 0.09614912331 | CW66: 0.0871528012 | CX66: 0.09258493466 | CY66: 0.08798137285 | CZ66: 0.08648686495 | DA66: 0.08696865369 | DB66: 0.08696816568 | DC66: 0.087861095 | DD66: 0.08664045338 | DE66: 0.09041725097 | DG66: 1 | DH66: -4.531727273 | DI66: 2.217612152 | DJ66: -0.489352518 | DK66: 0.2394658869 | DL66: -1.085194091 | DM66: -0.1171832347 | DN66: 0.5310424607 | DO66: 0.05734391097 | DP66: -0.2598669653 | DQ66: -0.02806138722 | DR66: 0.1271665538 | DS66: 0.0137319105 | DT66: -0.06222927331 | DU66: -0.006719744978 | DV66: 0.03045205159 | DW66: 4 | DY66: 0.006043165468 | DZ66: 3 | EB66: 0.95 | EC66: =IF(EC74="","",IF($B$11="u",EC74,IF($B$11="sl",$C$19+EXP(EC74),IF($B$11="su",$C$20-EXP(-EC74),IF($B$11="b",($C$19+$C$20*EXP(EC74))/(1+EXP(EC74)),""))))) -> 16.82197535 | ED66: 18.17703415 | EE66: 18.1769672 | EF66: 17.81221637 | EI66: 18.16020468 | EJ66: 18.12465203 | EK66: 18.03454766 | EL66: 18.0434617 | EM66: 18.05649721 | EN66: 18.05492088 | EO66: 18.04723184 | EP66: 18.03688622 | EQ66: 18.10981112
B67: 34 | C67: 4 | AB67: 0.01151079137 | AC67: =IF(C$34="","",IF(ROW()-ROW(S$27)>B$17,"",SMALL(INDEX($C$34:$C$10033,1,1):INDEX($C$34:$C$10033,B$17,1),ROW()-ROW(S$27)))) -> 4 | AD67: 0.36 | AE67: 8.605564602 | AF67: 0.09659747022 | AG67: 8.87718364 | AH67: 8.191439253 | AI67: 8.170985528 | AJ67: 8.411690913 | AM67: 8.54083307 | AN67: 8.552517755 | AO67: 8.605564602 | AP67: 8.613993786 | AQ67: 8.618521085 | AR67: 8.6064533 | AS67: 8.604206613 | AT67: 8.604236593 | AU67: 8.561249973 | AV67: 0.1020747515 | AW67: 0.1272798729 | AX67: 0.1251729726 | AY67: 0.09671583227 | BB67: 0.09212621862 | BC67: 0.09900844115 | BD67: 0.09659747022 | BE67: 0.09537278189 | BF67: 0.09635180867 | BG67: 0.09499747254 | BH67: 0.0959443095 | BI67: 0.09414738762 | BJ67: 0.09276320094 | BL67: 8.87718364 | BM67: 8.191439253 | BN67: 8.170985528 | BO67: 8.411690913 | BR67: 8.54083307 | BS67: 8.552517755 | BT67: 8.605564602 | BU67: 8.613993786 | BV67: 8.618521085 | BW67: 8.6064533 | BX67: 8.604206613 | BY67: 8.604236593 | BZ67: 8.561249973 | CA67: 0.1020747515 | CB67: 0.1272798729 | CC67: 0.1251729726 | CD67: 0.09671583227 | CG67: 0.09212621862 | CH67: 0.09900844115 | CI67: 0.09659747022 | CJ67: 0.09537278189 | CK67: 0.09635180867 | CL67: 0.09499747254 | CM67: 0.0959443095 | CN67: 0.09414738762 | CO67: 0.09276320094 | CQ67: 0.09941655484 | CR67: 0.1281781358 | CS67: 0.1261525386 | CT67: 0.09464837771 | CU67: 0.09793263937 | CV67: 0.0979442021 | CW67: 0.08873647629 | CX67: 0.09473077173 | CY67: 0.09073051184 | CZ67: 0.08927635676 | DA67: 0.08992575844 | DB67: 0.08949398741 | DC67: 0.0904417568 | DD67: 0.08896219583 | DE67: 0.09115833079 | DG67: 1 | DH67: -4.504768117 | DI67: 2.203123285 | DJ67: -0.4890647482 | DK67: 0.2391843279 | DL67: -1.077469935 | DM67: -0.1169766231 | DN67: 0.5269525623 | DO67: 0.05720914273 | DP67: -0.2577139222 | DQ67: -0.02797897498 | DR67: 0.1260387945 | DS67: 0.01368353036 | DT67: -0.06164113127 | DU67: -0.006692132328 | DV67: 0.03014650435 | DW67: 4 | DY67: 0.006330935252 | DZ67: 3 | EB67: 0.99 | EC67: =IF(EC75="","",IF($B$11="u",EC75,IF($B$11="sl",$C$19+EXP(EC75),IF($B$11="su",$C$20-EXP(-EC75),IF($B$11="b",($C$19+$C$20*EXP(EC75))/(1+EXP(EC75)),""))))) -> 20.54784161 | ED67: 23.42247636 | EE67: 23.33892953 | EF67: 24.1722481 | EI67: 24.21061385 | EJ67: 24.3655624 | EK67: 24.52635872 | EL67: 24.51051726 | EM67: 24.49023203 | EN67: 24.48240808 | EO67: 24.48875263 | EP67: 24.51287562 | EQ67: 24.43129178
B68: 35 | C68: 4 | AB68: 0.01179856115 | AC68: =IF(C$34="","",IF(ROW()-ROW(S$27)>B$17,"",SMALL(INDEX($C$34:$C$10033,1,1):INDEX($C$34:$C$10033,B$17,1),ROW()-ROW(S$27)))) -> 4 | AD68: 0.37 | AE68: 8.707476359 | AF68: 0.09968068368 | AG68: 8.974574473 | AH68: 8.270195917 | AI68: 8.251079978 | AJ68: 8.514540292 | AM68: 8.648338137 | AN68: 8.652456455 | AO68: 8.707476359 | AP68: 8.717096536 | AQ68: 8.720513448 | AR68: 8.710121477 | AS68: 8.706895643 | AT68: 8.708882277 | AU68: 8.668488594 | AV68: 0.10327094 | AW68: 0.1266483314 | AX68: 0.1245152551 | AY68: 0.09774412565 | BB68: 0.09392904554 | BC68: 0.1011165489 | BD68: 0.09968068368 | BE68: 0.09864966245 | BF68: 0.09978209963 | BG68: 0.09796358721 | BH68: 0.09884835607 | BI68: 0.09701917527 | BJ68: 0.09377066007 | BL68: 8.974574473 | BM68: 8.270195917 | BN68: 8.251079978 | BO68: 8.514540292 | BR68: 8.648338137 | BS68: 8.652456455 | BT68: 8.707476359 | BU68: 8.717096536 | BV68: 8.720513448 | BW68: 8.710121477 | BX68: 8.706895643 | BY68: 8.708882277 | BZ68: 8.668488594 | CA68: 0.10327094 | CB68: 0.1266483314 | CC68: 0.1245152551 | CD68: 0.09774412565 | CG68: 0.09392904554 | CH68: 0.1011165489 | CI68: 0.09968068368 | CJ68: 0.09864966245 | CK68: 0.09978209963 | CL68: 0.09796358721 | CM68: 0.09884835607 | CN68: 0.09701917527 | CO68: 0.09377066007 | CQ68: 0.1007899564 | CR68: 0.1277927162 | CS68: 0.1257214782 | CT68: 0.09568305715 | CU68: 0.09973491137 | CV68: 0.09973653416 | CW68: 0.09039473066 | CX68: 0.09687585172 | CY68: 0.09360773088 | CZ68: 0.09224259127 | DA68: 0.0930590502 | DB68: 0.0921718514 | DC68: 0.09313878796 | DD68: 0.09146244436 | DE68: 0.09191551763 | DG68: 1 | DH68: -4.478501637 | DI68: 2.188988498 | DJ68: -0.4887769784 | DK68: 0.2389029346 | DL68: -1.069927184 | DM68: -0.1167702545 | DN68: 0.522955776 | DO68: 0.05707461218 | DP68: -0.2556087441 | DQ68: -0.02789675648 | DR68: 0.1249356696 | DS68: 0.01363529234 | DT68: -0.06106567907 | DU68: -0.006664616991 | DV68: 0.0298474981 | DW68: 4 | DY68: 0.006618705036 | DZ68: 3 | EC68: intermediate calculations
B69: 36 | C69: 4 | AB69: 0.01208633094 | AC69: =IF(C$34="","",IF(ROW()-ROW(S$27)>B$17,"",SMALL(INDEX($C$34:$C$10033,1,1):INDEX($C$34:$C$10033,B$17,1),ROW()-ROW(S$27)))) -> 4 | AD69: 0.38 | AE69: 8.806247092 | AF69: 0.1028344614 | AG69: 9.070884703 | AH69: 8.349381362 | AI69: 8.331631979 | AJ69: 8.616316854 | AM69: 8.753760912 | AN69: 8.750349458 | AO69: 8.806247092 | AP69: 8.816766309 | AQ69: 8.819002656 | AR69: 8.810630919 | AS69: 8.806567356 | AT69: 8.810380355 | AU69: 8.7744619 | AV69: 0.1043785219 | AW69: 0.1259063139 | AX69: 0.1237560366 | AY69: 0.09876505643 | BB69: 0.09580064481 | BC69: 0.1031880246 | BD69: 0.1028344614 | BE69: 0.1020507104 | BF69: 0.1033220107 | BG69: 0.1010591806 | BH69: 0.101838351 | BI69: 0.1000747314 | BJ69: 0.09500077087 | BL69: 9.070884703 | BM69: 8.349381362 | BN69: 8.331631979 | BO69: 8.616316854 | BR69: 8.753760912 | BS69: 8.750349458 | BT69: 8.806247092 | BU69: 8.816766309 | BV69: 8.819002656 | BW69: 8.810630919 | BX69: 8.806567356 | BY69: 8.810380355 | BZ69: 8.7744619 | CA69: 0.1043785219 | CB69: 0.1259063139 | CC69: 0.1237560366 | CD69: 0.09876505643 | CG69: 0.09580064481 | CH69: 0.1031880246 | CI69: 0.1028344614 | CJ69: 0.1020507104 | CK69: 0.1033220107 | CL69: 0.1010591806 | CM69: 0.101838351 | CN69: 0.1000747314 | CO69: 0.09500077087 | CQ69: 0.1020747515 | CR69: 0.1272798729 | CS69: 0.1251729726 | CT69: 0.09671583227 | CU69: 0.1015293416 | CV69: 0.1015206206 | CW69: 0.09212621862 | CX69: 0.09900844115 | CY69: 0.09659747022 | CZ69: 0.09537278189 | DA69: 0.09635180867 | DB69: 0.09499747254 | DC69: 0.0959443095 | DD69: 0.09414738762 | DE69: 0.09276320094 | DG69: 1 | DH69: -4.452892751 | DI69: 2.175190056 | DJ69: -0.4884892086 | DK69: 0.238621707 | DL69: -1.062556869 | DM69: -0.1165641288 | DN69: 0.5190475641 | DO69: 0.05694031903 | DP69: -0.2535491338 | DQ69: -0.02781473138 | DR69: 0.1238560157 | DS69: 0.01358719612 | DT69: -0.06050232711 | DU69: -0.006637198681 | DV69: 0.02955473389 | DW69: 4 | DY69: 0.00690647482 | DZ69: 4
B70: 37 | C70: 4 | AB70: 0.01237410072 | AC70: =IF(C$34="","",IF(ROW()-ROW(S$27)>B$17,"",SMALL(INDEX($C$34:$C$10033,1,1):INDEX($C$34:$C$10033,B$17,1),ROW()-ROW(S$27)))) -> 4 | AD70: 0.39 | AE70: 8.902011838 | AF70: 0.1060317524 | AG70: 9.166218524 | AH70: 8.4290679 | AI70: 8.412711071 | AJ70: 8.71705181 | AM70: 8.857108734 | AN70: 8.846318148 | AO70: 8.902011838 | AP70: 8.913121542 | AQ70: 8.914136994 | AR70: 8.908052318 | AS70: 8.903320513 | AT70: 8.908740573 | AU70: 8.878924756 | AV70: 0.1053974973 | AW70: 0.1250615512 | AX70: 0.1229025256 | AY70: 0.09977542509 | BB70: 0.09773764012 | BC70: 0.105210672 | BD70: 0.1060317524 | BE70: 0.1055474346 | BF70: 0.1069370256 | BG70: 0.1042686609 | BH70: 0.1048985571 | BI70: 0.1033044307 | BJ70: 0.09650954523 | BL70: 9.166218524 | BM70: 8.4290679 | BN70: 8.412711071 | BO70: 8.71705181 | BR70: 8.857108734 | BS70: 8.846318148 | BT70: 8.902011838 | BU70: 8.913121542 | BV70: 8.914136994 | BW70: 8.908052318 | BX70: 8.903320513 | BY70: 8.908740573 | BZ70: 8.878924756 | CA70: 0.1053974973 | CB70: 0.1250615512 | CC70: 0.1229025256 | CD70: 0.09977542509 | CG70: 0.09773764012 | CH70: 0.105210672 | CI70: 0.1060317524 | CJ70: 0.1055474346 | CK70: 0.1069370256 | CL70: 0.1042686609 | CM70: 0.1048985571 | CN70: 0.1033044307 | CO70: 0.09650954523 | CQ70: 0.10327094 | CR70: 0.1266483314 | CS70: 0.1245152551 | CT70: 0.09774412565 | CU70: 0.1033097297 | CV70: 0.1032903637 | CW70: 0.09392904554 | CX70: 0.1011165489 | CY70: 0.09968068368 | CZ70: 0.09864966245 | DA70: 0.09978209963 | DB70: 0.09796358721 | DC70: 0.09884835607 | DD70: 0.09701917527 | DE70: 0.09377066007 | DG70: 1 | DH70: -4.427908975 | DI70: 2.161711533 | DJ70: -0.4882014388 | DK70: 0.2383406449 | DL70: -1.055350681 | DM70: -0.1163582458 | DN70: 0.5152237207 | DO70: 0.05680626301 | DP70: -0.2515329618 | DQ70: -0.02773289934 | DR70: 0.1227987539 | DS70: 0.01353924136 | DT70: -0.05995052833 | DU70: -0.006609877113 | DV70: 0.02926793419 | DW70: 4 | DY70: 0.007194244604 | DZ70: 4 | EC70: M2 | ED70: M3 | EE70: M4 | EF70: M5 | EG70: M6 | EH70: M7 | EI70: M8 | EJ70: M9 | EK70: M10 | EL70: M11 | EM70: M12 | EN70: M13 | EO70: M14 | EP70: M15 | EQ70: M16
B71: 38 | C71: 4 | AB71: 0.0126618705 | AC71: =IF(C$34="","",IF(ROW()-ROW(S$27)>B$17,"",SMALL(INDEX($C$34:$C$10033,1,1):INDEX($C$34:$C$10033,B$17,1),ROW()-ROW(S$27)))) -> 4 | AD71: 0.4 | AE71: 8.994923673 | AF71: 0.1092412321 | AG71: 9.260674538 | AH71: 8.509325687 | AI71: 8.494384785 | AJ71: 8.816778492 | AM71: 8.958396694 | AN71: 8.940485355 | AO71: 8.994923673 | AP71: 9.006307005 | AQ71: 9.006090812 | AR71: 9.002476967 | AS71: 8.997267375 | AT71: 9.004000103 | AU71: 8.981598652 | AV71: 0.1063278661 | AW71: 0.1241212976 | AX71: 0.1219614504 | AY71: 0.100771698 | BB71: 0.0997356926 | BC71: 0.1071723712 | BD71: 0.1092412321 | BE71: 0.1091048063 | BF71: 0.1105856349 | BG71: 0.1075710147 | BH71: 0.1080095254 | BI71: 0.1066906709 | BJ71: 0.09834604071 | BL71: 9.260674538 | BM71: 8.509325687 | BN71: 8.494384785 | BO71: 8.816778492 | BR71: 8.958396694 | BS71: 8.940485355 | BT71: 8.994923673 | BU71: 9.006307005 | BV71: 9.006090812 | BW71: 9.002476967 | BX71: 8.997267375 | BY71: 9.004000103 | BZ71: 8.981598652 | CA71: 0.1063278661 | CB71: 0.1241212976 | CC71: 0.1219614504 | CD71: 0.100771698 | CG71: 0.0997356926 | CH71: 0.1071723712 | CI71: 0.1092412321 | CJ71: 0.1091048063 | CK71: 0.1105856349 | CL71: 0.1075710147 | CM71: 0.1080095254 | CN71: 0.1066906709 | CO71: 0.09834604071 | CQ71: 0.1043785219 | CR71: 0.1259063139 | CS71: 0.1237560366 | CT71: 0.09876505643 | CU71: 0.1050692401 | CV71: 0.1050390402 | CW71: 0.09580064481 | CX71: 0.1031880246 | CY71: 0.1028344614 | CZ71: 0.1020507104 | DA71: 0.1033220107 | DB71: 0.1010591806 | DC71: 0.101838351 | DD71: 0.1000747314 | DE71: 0.09500077087 | DG71: 1 | DH71: -4.403520175 | DI71: 2.148537685 | DJ71: -0.4879136691 | DK71: 0.2380597485 | DL71: -1.048300905 | DM71: -0.1161526053 | DN71: 0.511480341 | DO71: 0.05667244384 | DP71: -0.2495582498 | DQ71: -0.02765126001 | DR71: 0.1217628813 | DS71: 0.01349142772 | DT71: -0.05940977418 | DU71: -0.006582652002 | DV71: 0.0289868409 | DW71: 4 | DY71: 0.007482014388 | DZ71: 4 | EC71: =IF(CA$29="","",EC$90+EC$91*LN($EB63/(1-$EB63))) -> -0.196085713 | ED71: =IF(CB$29="","",ED$90+ED$91*LN($EB63/(1-$EB63))+ED$92*($EB63-0.5)*LN($EB63/(1-$EB63))) -> 2.678549029 | EE71: =IF(CC$29="","",EE$90+EE$91*LN($EB63/(1-$EB63))+EE$92*($EB63-0.5)*LN($EB63/(1-$EB63))+EE$93*($EB63-0.5)) -> 2.762095852 | EF71: =IF(CD$29="","",EF$90+EF$91*LN($EB63/(1-$EB63))+EF$92*($EB63-0.5)*LN($EB63/(1-$EB63))+EF$93*($EB63-0.5)+EF$94*($EB63-0.5)^2) -> 3.595414417 | EG71: =IF(CE$29="","",EG$90+EG$91*LN($EB63/(1-$EB63))+EG$92*($EB63-0.5)*LN($EB63/(1-$EB63))+EG$93*($EB63-0.5)+EG$94*($EB63-0.5)^2+EG$95*($EB63-0.5)^2*LN($EB63/(1-$EB63))) ->  | EH71: =IF(CF$29="","",EH$90+EH$91*LN($EB63/(1-$EB63))+EH$92*($EB63-0.5)*LN($EB63/(1-$EB63))+EH$93*($EB63-0.5)+EH$94*($EB63-0.5)^2+EH$95*($EB63-0.5)^2*LN($EB63/(1-$EB63))+EH$96*($EB63-0.5)^3) ->  | EI71: =IF(CG$29="","",EI$90+EI$91*LN($EB63/(1-$EB63))+EI$92*($EB63-0.5)*LN($EB63/(1-$EB63))+EI$93*($EB63-0.5)+EI$94*($EB63-0.5)^2+EI$95*($EB63-0.5)^2*LN($EB63/(1-$EB63))+EI$96*($EB63-0.5)^3+EI$97*($EB63-0.5)^3*LN($EB63/(1-$EB63))) -> 3.691988768 | EJ71: =IF(CH$29="","",EJ$90+EJ$91*LN($EB63/(1-$EB63))+EJ$92*($EB63-0.5)*LN($EB63/(1-$EB63))+EJ$93*($EB63-0.5)+EJ$94*($EB63-0.5)^2+EJ$95*($EB63-0.5)^2*LN($EB63/(1-$EB63))+EJ$96*($EB63-0.5)^3+EJ$97*($EB63-0.5)^3*LN($EB63/(1-$EB63))+EJ$98*($EB63-0.5)^4) -> 3.84693732 | EK71: =IF(CI$29="","",EK$90+EK$91*LN($EB63/(1-$EB63))+EK$92*($EB63-0.5)*LN($EB63/(1-$EB63))+EK$93*($EB63-0.5)+EK$94*($EB63-0.5)^2+EK$95*($EB63-0.5)^2*LN($EB63/(1-$EB63))+EK$96*($EB63-0.5)^3+EK$97*($EB63-0.5)^3*LN($EB63/(1-$EB63))+EK$98*($EB63-0.5)^4+EK$99*($EB63-0.5)^4*LN($EB63/(1-$EB63))+EK$100*($EB63-0.5)^5+EK$101*($EB63-0.5)^5*LN($EB63/(1-$EB63))+EK$102*($EB63-0.5)^6+EK$103*($EB63-0.5)^6*LN($EB63/(1-$EB63))+EK$104*($EB63-0.5)^7+EK$105*($EB63-0.5)^7*LN($EB63/(1-$EB63))) -> 3.686140996 | EL71: 3.701982462 | EM71: 3.681697224 | EN71: =IF(CL$29="","",EN$90+EN$91*LN($EB63/(1-$EB63))+EN$92*($EB63-0.5)*LN($EB63/(1-$EB63))+EN$93*($EB63-0.5)+EN$94*($EB63-0.5)^2+EN$95*($EB63-0.5)^2*LN($EB63/(1-$EB63))+EN$96*($EB63-0.5)^3+EN$97*($EB63-0.5)^3*LN($EB63/(1-$EB63))+EN$98*($EB63-0.5)^4+EN$99*($EB63-0.5)^4*LN($EB63/(1-$EB63))+EN$100*($EB63-0.5)^5+EN$101*($EB63-0.5)^5*LN($EB63/(1-$EB63))+EN$102*($EB63-0.5)^6+EN$103*($EB63-0.5)^6*LN($EB63/(1-$EB63))+EN$104*($EB63-0.5)^7+EN$105*($EB63-0.5)^7*LN($EB63/(1-$EB63))) -> 3.673873303 | EO71: 3.66752875 | EP71: 3.64340599 | EQ71: 3.562244076
B72: 39 | C72: 4 | AB72: 0.01294964029 | AC72: =IF(C$34="","",IF(ROW()-ROW(S$27)>B$17,"",SMALL(INDEX($C$34:$C$10033,1,1):INDEX($C$34:$C$10033,B$17,1),ROW()-ROW(S$27)))) -> 4 | AD72: 0.41 | AE72: 9.085151792 | AF72: 0.1124273635 | AG72: 9.354346458 | AH72: 8.590223178 | AI72: 8.576719079 | AJ72: 8.915532486 | AM72: 9.057647693 | AN72: 9.032974669 | AO72: 9.085151792 | AP72: 9.096491653 | AQ72: 9.095061855 | AR72: 9.094016688 | AS72: 9.088533308 | AT72: 9.096225797 | AU72: 9.082189435 | AV72: 0.1071696284 | AW72: 0.1230923475 | AX72: 0.1209390807 | AY72: 0.1017499918 | BB72: 0.1017893329 | BC72: 0.1090612074 | BD72: 0.1124273635 | BE72: 0.1126809278 | BF72: 0.1142192983 | BG72: 0.1109389965 | BH72: 0.1111475732 | BI72: 0.1102064191 | BJ72: 0.1005522029 | BL72: 9.354346458 | BM72: 8.590223178 | BN72: 8.576719079 | BO72: 8.915532486 | BR72: 9.057647693 | BS72: 9.032974669 | BT72: 9.085151792 | BU72: 9.096491653 | BV72: 9.095061855 | BW72: 9.094016688 | BX72: 9.088533308 | BY72: 9.096225797 | BZ72: 9.082189435 | CA72: 0.1071696284 | CB72: 0.1230923475 | CC72: 0.1209390807 | CD72: 0.1017499918 | CG72: 0.1017893329 | CH72: 0.1090612074 | CI72: 0.1124273635 | CJ72: 0.1126809278 | CK72: 0.1142192983 | CL72: 0.1109389965 | CM72: 0.1111475732 | CN72: 0.1102064191 | CO72: 0.1005522029 | CQ72: 0.1053974973 | CR72: 0.1250615512 | CS72: 0.1229025256 | CT72: 0.09977542509 | CU72: 0.1068003818 | CV72: 0.1067592803 | CW72: 0.09773764012 | CX72: 0.105210672 | CY72: 0.1060317524 | CZ72: 0.1055474346 | DA72: 0.1069370256 | DB72: 0.1042686609 | DC72: 0.1048985571 | DD72: 0.1033044307 | DE72: 0.09650954523 | DG72: 1 | DH72: -4.379698345 | DI72: 2.135654344 | DJ72: -0.4876258993 | DK72: 0.2377790176 | DL72: -1.04140037 | DM72: -0.1159472073 | DN72: 0.507813792 | DO72: 0.05653886123 | DP72: -0.247623157 | DQ72: -0.02756981305 | DR72: 0.1207474646 | DS72: 0.01344375488 | DT72: -0.05887959101 | DU72: -0.006555523065 | DV72: 0.02871121352 | DW72: 4 | DY72: 0.007769784173 | DZ72: 4 | EC72: =IF(CA$29="","",EC$90+EC$91*LN($EB64/(1-$EB64))) -> 3.529780548 | ED72: =IF(CB$29="","",ED$90+ED$91*LN($EB64/(1-$EB64))+ED$92*($EB64-0.5)*LN($EB64/(1-$EB64))) -> 4.884839344 | EE72: =IF(CC$29="","",EE$90+EE$91*LN($EB64/(1-$EB64))+EE$92*($EB64-0.5)*LN($EB64/(1-$EB64))+EE$93*($EB64-0.5)) -> 4.884906294 | EF72: =IF(CD$29="","",EF$90+EF$91*LN($EB64/(1-$EB64))+EF$92*($EB64-0.5)*LN($EB64/(1-$EB64))+EF$93*($EB64-0.5)+EF$94*($EB64-0.5)^2) -> 4.520155459 | EG72: =IF(CE$29="","",EG$90+EG$91*LN($EB64/(1-$EB64))+EG$92*($EB64-0.5)*LN($EB64/(1-$EB64))+EG$93*($EB64-0.5)+EG$94*($EB64-0.5)^2+EG$95*($EB64-0.5)^2*LN($EB64/(1-$EB64))) ->  | EH72: =IF(CF$29="","",EH$90+EH$91*LN($EB64/(1-$EB64))+EH$92*($EB64-0.5)*LN($EB64/(1-$EB64))+EH$93*($EB64-0.5)+EH$94*($EB64-0.5)^2+EH$95*($EB64-0.5)^2*LN($EB64/(1-$EB64))+EH$96*($EB64-0.5)^3) ->  | EI72: =IF(CG$29="","",EI$90+EI$91*LN($EB64/(1-$EB64))+EI$92*($EB64-0.5)*LN($EB64/(1-$EB64))+EI$93*($EB64-0.5)+EI$94*($EB64-0.5)^2+EI$95*($EB64-0.5)^2*LN($EB64/(1-$EB64))+EI$96*($EB64-0.5)^3+EI$97*($EB64-0.5)^3*LN($EB64/(1-$EB64))) -> 4.466632226 | EJ72: =IF(CH$29="","",EJ$90+EJ$91*LN($EB64/(1-$EB64))+EJ$92*($EB64-0.5)*LN($EB64/(1-$EB64))+EJ$93*($EB64-0.5)+EJ$94*($EB64-0.5)^2+EJ$95*($EB64-0.5)^2*LN($EB64/(1-$EB64))+EJ$96*($EB64-0.5)^3+EJ$97*($EB64-0.5)^3*LN($EB64/(1-$EB64))+EJ$98*($EB64-0.5)^4) -> 4.431079568 | EK72: 4.521183937 | EL72: 4.512269897 | EM72: 4.525305401 | EN72: 4.523729094 | EO72: 4.531418135 | EP72: 4.541763923 | EQ72: 4.614904627
B73: 40 | C73: 4 | AB73: 0.01323741007 | AC73: =IF(C$34="","",IF(ROW()-ROW(S$27)>B$17,"",SMALL(INDEX($C$34:$C$10033,1,1):INDEX($C$34:$C$10033,B$17,1),ROW()-ROW(S$27)))) -> 4 | AD73: 0.42 | AE73: 9.172879658 | AF73: 0.1155506994 | AG73: 9.447323744 | AH73: 8.67182754 | AI73: 8.659778739 | AJ73: 9.013351782 | AM73: 9.154892526 | AN73: 9.123909846 | AO73: 9.172879658 | AP73: 9.183866408 | AQ73: 9.181268564 | AR73: 9.182803644 | AS73: 9.177256504 | AT73: 9.185515741 | AU73: 9.180405059 | AV73: 0.1079227841 | AW73: 0.1219810534 | AX73: 0.1198412511 | AY73: 0.102706059 | BB73: 0.1038917793 | BC73: 0.1108655997 | BD73: 0.1155506994 | BE73: 0.1162270511 | BF73: 0.1177828729 | BG73: 0.1143384328 | BH73: 0.1142843375 | BI73: 0.1138138637 | BJ73: 0.1031622454 | BL73: 9.447323744 | BM73: 8.67182754 | BN73: 8.659778739 | BO73: 9.013351782 | BR73: 9.154892526 | BS73: 9.123909846 | BT73: 9.172879658 | BU73: 9.183866408 | BV73: 9.181268564 | BW73: 9.182803644 | BX73: 9.177256504 | BY73: 9.185515741 | BZ73: 9.180405059 | CA73: 0.1079227841 | CB73: 0.1219810534 | CC73: 0.1198412511 | CD73: 0.102706059 | CG73: 0.1038917793 | CH73: 0.1108655997 | CI73: 0.1155506994 | CJ73: 0.1162270511 | CK73: 0.1177828729 | CL73: 0.1143384328 | CM73: 0.1142843375 | CN73: 0.1138138637 | CO73: 0.1031622454 | CQ73: 0.1063278661 | CR73: 0.1241212976 | CS73: 0.1219614504 | CT73: 0.100771698 | CU73: 0.1084949939 | CV73: 0.1084430541 | CW73: 0.0997356926 | CX73: 0.1071723712 | CY73: 0.1092412321 | CZ73: 0.1091048063 | DA73: 0.1105856349 | DB73: 0.1075710147 | DC73: 0.1080095254 | DD73: 0.1066906709 | DE73: 0.09834604071 | DG73: 1 | DH73: -4.356417409 | DI73: 2.123048311 | DJ73: -0.4873381295 | DK73: 0.2374984525 | DL73: -1.034642393 | DM73: -0.1157420516 | DN73: 0.5042206885 | DO73: 0.05640551492 | DP73: -0.2457259672 | DQ73: -0.02748855814 | DR73: 0.1197516332 | DS73: 0.0133962225 | DT73: -0.05835953693 | DU73: -0.006528490017 | DV73: 0.02844082757 | DW73: 4 | DY73: 0.008057553957 | DZ73: 4 | EC73: =IF(CA$29="","",EC$90+EC$91*LN($EB65/(1-$EB65))) -> 10.17587795 | ED73: =IF(CB$29="","",ED$90+ED$91*LN($EB65/(1-$EB65))+ED$92*($EB65-0.5)*LN($EB65/(1-$EB65))) -> 9.358035728 | EE73: =IF(CC$29="","",EE$90+EE$91*LN($EB65/(1-$EB65))+EE$92*($EB65-0.5)*LN($EB65/(1-$EB65))+EE$93*($EB65-0.5)) -> 9.358035728 | EF73: =IF(CD$29="","",EF$90+EF$91*LN($EB65/(1-$EB65))+EF$92*($EB65-0.5)*LN($EB65/(1-$EB65))+EF$93*($EB65-0.5)+EF$94*($EB65-0.5)^2) -> 9.767739155 | EG73: =IF(CE$29="","",EG$90+EG$91*LN($EB65/(1-$EB65))+EG$92*($EB65-0.5)*LN($EB65/(1-$EB65))+EG$93*($EB65-0.5)+EG$94*($EB65-0.5)^2+EG$95*($EB65-0.5)^2*LN($EB65/(1-$EB65))) ->  | EH73: =IF(CF$29="","",EH$90+EH$91*LN($EB65/(1-$EB65))+EH$92*($EB65-0.5)*LN($EB65/(1-$EB65))+EH$93*($EB65-0.5)+EH$94*($EB65-0.5)^2+EH$95*($EB65-0.5)^2*LN($EB65/(1-$EB65))+EH$96*($EB65-0.5)^3) ->  | EI73: =IF(CG$29="","",EI$90+EI$91*LN($EB65/(1-$EB65))+EI$92*($EB65-0.5)*LN($EB65/(1-$EB65))+EI$93*($EB65-0.5)+EI$94*($EB65-0.5)^2+EI$95*($EB65-0.5)^2*LN($EB65/(1-$EB65))+EI$96*($EB65-0.5)^3+EI$97*($EB65-0.5)^3*LN($EB65/(1-$EB65))) -> 9.867027468 | EJ73: =IF(CH$29="","",EJ$90+EJ$91*LN($EB65/(1-$EB65))+EJ$92*($EB65-0.5)*LN($EB65/(1-$EB65))+EJ$93*($EB65-0.5)+EJ$94*($EB65-0.5)^2+EJ$95*($EB65-0.5)^2*LN($EB65/(1-$EB65))+EJ$96*($EB65-0.5)^3+EJ$97*($EB65-0.5)^3*LN($EB65/(1-$EB65))+EJ$98*($EB65-0.5)^4) -> 9.810050439 | EK73: 9.810050439 | EL73: 9.810050439 | EM73: 9.802325368 | EN73: 9.816171213 | EO73: 9.816171213 | EP73: 9.816171206 | EQ73: 9.858544488
B74: 41 | C74: 4 | AB74: 0.01352517986 | AC74: =IF(C$34="","",IF(ROW()-ROW(S$27)>B$17,"",SMALL(INDEX($C$34:$C$10033,1,1):INDEX($C$34:$C$10033,B$17,1),ROW()-ROW(S$27)))) -> 4 | AD74: 0.43 | AE74: 9.2583032 | AF74: 0.118568466 | AG74: 9.53969217 | AH74: 8.754205046 | AI74: 8.743627754 | AJ74: 9.110276919 | AM74: 9.250169978 | AN74: 9.21341433 | AO74: 9.2583032 | AP74: 9.268641895 | AQ74: 9.264947369 | AR74: 9.268990028 | AS74: 9.263587774 | AT74: 9.272000059 | AU74: 9.275972752 | AV74: 0.1085873333 | AW74: 0.120793345 | AX74: 0.1186733835 | AY74: 0.1036352741 | BB74: 0.1060347437 | BC74: 0.1125744236 | BD74: 0.118568466 | BE74: 0.1196880567 | BF74: 0.1212156152 | BG74: 0.1177277416 | BH74: 0.1173864617 | BI74: 0.1174633696 | BJ74: 0.1062012094 | BL74: 9.53969217 | BM74: 8.754205046 | BN74: 8.743627754 | BO74: 9.110276919 | BR74: 9.250169978 | BS74: 9.21341433 | BT74: 9.2583032 | BU74: 9.268641895 | BV74: 9.264947369 | BW74: 9.268990028 | BX74: 9.263587774 | BY74: 9.272000059 | BZ74: 9.275972752 | CA74: 0.1085873333 | CB74: 0.120793345 | CC74: 0.1186733835 | CD74: 0.1036352741 | CG74: 0.1060347437 | CH74: 0.1125744236 | CI74: 0.118568466 | CJ74: 0.1196880567 | CK74: 0.1212156152 | CL74: 0.1177277416 | CM74: 0.1173864617 | CN74: 0.1174633696 | CO74: 0.1062012094 | CQ74: 0.1071696284 | CR74: 0.1230923475 | CS74: 0.1209390807 | CT74: 0.1017499918 | CU74: 0.1101442422 | CV74: 0.110081666 | CW74: 0.1017893329 | CX74: 0.1090612074 | CY74: 0.1124273635 | CZ74: 0.1126809278 | DA74: 0.1142192983 | DB74: 0.1109389965 | DC74: 0.1111475732 | DD74: 0.1102064191 | DE74: 0.1005522029 | DG74: 1 | DH74: -4.33365305 | DI74: 2.110707277 | DJ74: -0.4870503597 | DK74: 0.2372180529 | DL74: -1.028020739 | DM74: -0.115537138 | DN74: 0.5006978705 | DO74: 0.05627240462 | DP74: -0.2438650779 | DQ74: -0.02740749491 | DR74: 0.1187745739 | DS74: 0.01334883026 | DT74: -0.05784919896 | DU74: -0.006501552578 | DV74: 0.02817547316 | DW74: 4 | DY74: 0.008345323741 | DZ74: 4 | EC74: =IF(CA$29="","",EC$90+EC$91*LN($EB66/(1-$EB66))) -> 16.82197535 | ED74: =IF(CB$29="","",ED$90+ED$91*LN($EB66/(1-$EB66))+ED$92*($EB66-0.5)*LN($EB66/(1-$EB66))) -> 18.17703415 | EE74: =IF(CC$29="","",EE$90+EE$91*LN($EB66/(1-$EB66))+EE$92*($EB66-0.5)*LN($EB66/(1-$EB66))+EE$93*($EB66-0.5)) -> 18.1769672 | EF74: =IF(CD$29="","",EF$90+EF$91*LN($EB66/(1-$EB66))+EF$92*($EB66-0.5)*LN($EB66/(1-$EB66))+EF$93*($EB66-0.5)+EF$94*($EB66-0.5)^2) -> 17.81221637 | EG74: =IF(CE$29="","",EG$90+EG$91*LN($EB66/(1-$EB66))+EG$92*($EB66-0.5)*LN($EB66/(1-$EB66))+EG$93*($EB66-0.5)+EG$94*($EB66-0.5)^2+EG$95*($EB66-0.5)^2*LN($EB66/(1-$EB66))) ->  | EH74: =IF(CF$29="","",EH$90+EH$91*LN($EB66/(1-$EB66))+EH$92*($EB66-0.5)*LN($EB66/(1-$EB66))+EH$93*($EB66-0.5)+EH$94*($EB66-0.5)^2+EH$95*($EB66-0.5)^2*LN($EB66/(1-$EB66))+EH$96*($EB66-0.5)^3) ->  | EI74: =IF(CG$29="","",EI$90+EI$91*LN($EB66/(1-$EB66))+EI$92*($EB66-0.5)*LN($EB66/(1-$EB66))+EI$93*($EB66-0.5)+EI$94*($EB66-0.5)^2+EI$95*($EB66-0.5)^2*LN($EB66/(1-$EB66))+EI$96*($EB66-0.5)^3+EI$97*($EB66-0.5)^3*LN($EB66/(1-$EB66))) -> 18.16020468 | EJ74: =IF(CH$29="","",EJ$90+EJ$91*LN($EB66/(1-$EB66))+EJ$92*($EB66-0.5)*LN($EB66/(1-$EB66))+EJ$93*($EB66-0.5)+EJ$94*($EB66-0.5)^2+EJ$95*($EB66-0.5)^2*LN($EB66/(1-$EB66))+EJ$96*($EB66-0.5)^3+EJ$97*($EB66-0.5)^3*LN($EB66/(1-$EB66))+EJ$98*($EB66-0.5)^4) -> 18.12465203 | EK74: 18.03454766 | EL74: 18.0434617 | EM74: 18.05649721 | EN74: 18.05492088 | EO74: 18.04723184 | EP74: 18.03688622 | EQ74: 18.10981112
B75: 42 | C75: 4 | AB75: 0.01381294964 | AC75: =IF(C$34="","",IF(ROW()-ROW(S$27)>B$17,"",SMALL(INDEX($C$34:$C$10033,1,1):INDEX($C$34:$C$10033,B$17,1),ROW()-ROW(S$27)))) -> 4 | AD75: 0.44 | AE75: 9.341629076 | AF75: 0.1214354544 | AG75: 9.631534349 | AH75: 8.837421435 | AI75: 8.828329665 | AJ75: 9.206351155 | AM75: 9.343526946 | AN75: 9.301610855 | AO75: 9.341629076 | AP75: 9.351046132 | AQ75: 9.346349996 | AR75: 9.352747591 | AS75: 9.347690389 | AT75: 9.355840957 | AU75: 9.368655101 | AV75: 0.1091632759 | AW75: 0.119534749 | AX75: 0.1174405099 | AY75: 0.1045326221 | BB75: 0.1082082293 | BC75: 0.1141771246 | BD75: 0.1214354544 | BE75: 0.1230034932 | BF75: 0.1244528218 | BG75: 0.1210577951 | BH75: 0.1204154858 | BI75: 0.1210929953 | BJ75: 0.1096823774 | BL75: 9.631534349 | BM75: 8.837421435 | BN75: 8.828329665 | BO75: 9.206351155 | BR75: 9.343526946 | BS75: 9.301610855 | BT75: 9.341629076 | BU75: 9.351046132 | BV75: 9.346349996 | BW75: 9.352747591 | BX75: 9.347690389 | BY75: 9.355840957 | BZ75: 9.368655101 | CA75: 0.1091632759 | CB75: 0.119534749 | CC75: 0.1174405099 | CD75: 0.1045326221 | CG75: 0.1082082293 | CH75: 0.1141771246 | CI75: 0.1214354544 | CJ75: 0.1230034932 | CK75: 0.1244528218 | CL75: 0.1210577951 | CM75: 0.1204154858 | CN75: 0.1210929953 | CO75: 0.1096823774 | CQ75: 0.1079227841 | CR75: 0.1219810534 | CS75: 0.1198412511 | CT75: 0.102706059 | CU75: 0.1117386257 | CV75: 0.1116657609 | CW75: 0.1038917793 | CX75: 0.1108655997 | CY75: 0.1155506994 | CZ75: 0.1162270511 | DA75: 0.1177828729 | DB75: 0.1143384328 | DC75: 0.1142843375 | DD75: 0.1138138637 | DE75: 0.1031622454 | DG75: 1 | DH75: -4.311382556 | DI75: 2.098619739 | DJ75: -0.4867625899 | DK75: 0.236937819 | DL75: -1.021529579 | DM75: -0.1153324664 | DN75: 0.4972423838 | DO75: 0.05613953005 | DP75: -0.2420389906 | DQ75: -0.02732662304 | DR75: 0.1178155259 | DS75: 0.01330157781 | DT75: -0.05734819052 | DU75: -0.006474710464 | DV75: 0.02791495375 | DW75: 4 | DY75: 0.008633093525 | DZ75: 4 | EC75: =IF(CA$29="","",EC$90+EC$91*LN($EB67/(1-$EB67))) -> 20.54784161 | ED75: =IF(CB$29="","",ED$90+ED$91*LN($EB67/(1-$EB67))+ED$92*($EB67-0.5)*LN($EB67/(1-$EB67))) -> 23.42247636 | EE75: =IF(CC$29="","",EE$90+EE$91*LN($EB67/(1-$EB67))+EE$92*($EB67-0.5)*LN($EB67/(1-$EB67))+EE$93*($EB67-0.5)) -> 23.33892953 | EF75: =IF(CD$29="","",EF$90+EF$91*LN($EB67/(1-$EB67))+EF$92*($EB67-0.5)*LN($EB67/(1-$EB67))+EF$93*($EB67-0.5)+EF$94*($EB67-0.5)^2) -> 24.1722481 | EG75: =IF(CE$29="","",EG$90+EG$91*LN($EB67/(1-$EB67))+EG$92*($EB67-0.5)*LN($EB67/(1-$EB67))+EG$93*($EB67-0.5)+EG$94*($EB67-0.5)^2+EG$95*($EB67-0.5)^2*LN($EB67/(1-$EB67))) ->  | EH75: =IF(CF$29="","",EH$90+EH$91*LN($EB67/(1-$EB67))+EH$92*($EB67-0.5)*LN($EB67/(1-$EB67))+EH$93*($EB67-0.5)+EH$94*($EB67-0.5)^2+EH$95*($EB67-0.5)^2*LN($EB67/(1-$EB67))+EH$96*($EB67-0.5)^3) ->  | EI75: =IF(CG$29="","",EI$90+EI$91*LN($EB67/(1-$EB67))+EI$92*($EB67-0.5)*LN($EB67/(1-$EB67))+EI$93*($EB67-0.5)+EI$94*($EB67-0.5)^2+EI$95*($EB67-0.5)^2*LN($EB67/(1-$EB67))+EI$96*($EB67-0.5)^3+EI$97*($EB67-0.5)^3*LN($EB67/(1-$EB67))) -> 24.21061385 | EJ75: =IF(CH$29="","",EJ$90+EJ$91*LN($EB67/(1-$EB67))+EJ$92*($EB67-0.5)*LN($EB67/(1-$EB67))+EJ$93*($EB67-0.5)+EJ$94*($EB67-0.5)^2+EJ$95*($EB67-0.5)^2*LN($EB67/(1-$EB67))+EJ$96*($EB67-0.5)^3+EJ$97*($EB67-0.5)^3*LN($EB67/(1-$EB67))+EJ$98*($EB67-0.5)^4) -> 24.3655624 | EK75: 24.52635872 | EL75: 24.51051726 | EM75: 24.49023203 | EN75: 24.48240808 | EO75: 24.48875263 | EP75: 24.51287562 | EQ75: 24.43129178
B76: 43 | C76: 4 | AB76: 0.01410071942 | AC76: =IF(C$34="","",IF(ROW()-ROW(S$27)>B$17,"",SMALL(INDEX($C$34:$C$10033,1,1):INDEX($C$34:$C$10033,B$17,1),ROW()-ROW(S$27)))) -> 4 | AD76: 0.45 | AE76: 9.423072997 | AF76: 0.1241052187 | AG76: 9.722930208 | AH76: 8.921542263 | AI76: 8.913947898 | AJ76: 9.301620633 | AM76: 9.435018578 | AN76: 9.388621152 | AO76: 9.423072997 | AP76: 9.431322212 | AQ76: 9.425740789 | AR76: 9.434267009 | AS76: 9.42973993 | AT76: 9.437232009 | AU76: 9.458264599 | AV76: 0.109650612 | AW76: 0.1182104089 | AX76: 0.1161472942 | AY76: 0.1053926898 | BB76: 0.1104003252 | BC76: 0.1156638149 | BD76: 0.1241052187 | BE76: 0.126109239 | BF76: 0.1274281173 | BG76: 0.1242722641 | BH76: 0.1233280192 | BI76: 0.1246288743 | BJ76: 0.1136032599 | BL76: 9.722930208 | BM76: 8.921542263 | BN76: 8.913947898 | BO76: 9.301620633 | BR76: 9.435018578 | BS76: 9.388621152 | BT76: 9.423072997 | BU76: 9.431322212 | BV76: 9.425740789 | BW76: 9.434267009 | BX76: 9.42973993 | BY76: 9.437232009 | BZ76: 9.458264599 | CA76: 0.109650612 | CB76: 0.1182104089 | CC76: 0.1161472942 | CD76: 0.1053926898 | CG76: 0.1104003252 | CH76: 0.1156638149 | CI76: 0.1241052187 | CJ76: 0.126109239 | CK76: 0.1274281173 | CL76: 0.1242722641 | CM76: 0.1233280192 | CN76: 0.1246288743 | CO76: 0.1136032599 | CQ76: 0.1085873333 | CR76: 0.120793345 | CS76: 0.1186733835 | CT76: 0.1036352741 | CU76: 0.1132679965 | CV76: 0.1131853423 | CW76: 0.1060347437 | CX76: 0.1125744236 | CY76: 0.118568466 | CZ76: 0.1196880567 | DA76: 0.1212156152 | DB76: 0.1177277416 | DC76: 0.1173864617 | DD76: 0.1174633696 | DE76: 0.1062012094 | DG76: 1 | DH76: -4.289584678 | DI76: 2.086774935 | DJ76: -0.4864748201 | DK76: 0.2366577506 | DL76: -1.015163461 | DM76: -0.1151280367 | DN76: 0.4938514621 | DO76: 0.05600689094 | DP76: -0.2402463012 | DQ76: -0.02724594219 | DR76: 0.1168737762 | DS76: 0.01325446483 | DT76: -0.05685614924 | DU76: -0.006447963394 | DV76: 0.02765908498 | DW76: 4 | DY76: 0.008920863309 | DZ76: 4
B77: 44 | C77: 4 | AB77: 0.01438848921 | AC77: =IF(C$34="","",IF(ROW()-ROW(S$27)>B$17,"",SMALL(INDEX($C$34:$C$10033,1,1):INDEX($C$34:$C$10033,B$17,1),ROW()-ROW(S$27)))) -> 4 | AD77: 0.46 | AE77: 9.502858125 | AF77: 0.1265315548 | AG77: 9.813957436 | AH77: 9.006633232 | AI77: 9.000546085 | AJ77: 9.396134578 | AM77: 9.524708442 | AN77: 9.474565736 | AO77: 9.502858125 | AP77: 9.509725961 | AQ77: 9.503394074 | AR77: 9.513757065 | AS77: 9.509924112 | AT77: 9.516396701 | AU77: 9.544676269 | AV77: 0.1100493415 | AW77: 0.1168251046 | AX77: 0.1147980539 | AY77: 0.1062096599 | BB77: 0.1125970049 | BC77: 0.1170253513 | BD77: 0.1265315548 | BE77: 0.1289397893 | BF77: 0.1300763093 | BG77: 0.1273085808 | BH77: 0.1260762739 | BI77: 0.1279867673 | BJ77: 0.1179399816 | BL77: 9.813957436 | BM77: 9.006633232 | BN77: 9.000546085 | BO77: 9.396134578 | BR77: 9.524708442 | BS77: 9.474565736 | BT77: 9.502858125 | BU77: 9.509725961 | BV77: 9.503394074 | BW77: 9.513757065 | BX77: 9.509924112 | BY77: 9.516396701 | BZ77: 9.544676269 | CA77: 0.1100493415 | CB77: 0.1168251046 | CC77: 0.1147980539 | CD77: 0.1062096599 | CG77: 0.1125970049 | CH77: 0.1170253513 | CI77: 0.1265315548 | CJ77: 0.1289397893 | CK77: 0.1300763093 | CL77: 0.1273085808 | CM77: 0.1260762739 | CN77: 0.1279867673 | CO77: 0.1179399816 | CQ77: 0.1091632759 | CR77: 0.119534749 | CS77: 0.1174405099 | CT77: 0.1045326221 | CU77: 0.1147215956 | CV77: 0.1146298061 | CW77: 0.1082082293 | CX77: 0.1141771246 | CY77: 0.1214354544 | CZ77: 0.1230034932 | DA77: 0.1244528218 | DB77: 0.1210577951 | DC77: 0.1204154858 | DD77: 0.1210929953 | DE77: 0.1096823774 | DG77: 1 | DH77: -4.268239511 | DI77: 2.075162778 | DJ77: -0.4861870504 | DK77: 0.2363778479 | DL77: -1.00891727 | DM77: -0.1149238487 | DN77: 0.4905225116 | DO77: 0.055874487 | DP77: -0.238485693 | DQ77: -0.02716545202 | DR77: 0.1159486557 | DS77: 0.01320749099 | DT77: -0.05637273489 | DU77: -0.006421311087 | DV77: 0.0274076937 | DW77: 4 | DY77: 0.009208633094 | DZ77: 4 | EC77: simulation
B78: 45 | C78: 4 | E78: m_QF_formula | AB78: 0.01467625899 | AC78: =IF(C$34="","",IF(ROW()-ROW(S$27)>B$17,"",SMALL(INDEX($C$34:$C$10033,1,1):INDEX($C$34:$C$10033,B$17,1),ROW()-ROW(S$27)))) -> 4 | AD78: 0.47 | AE78: 9.581213528 | AF78: 0.1286701913 | AG78: 9.904691893 | AH78: 9.092760512 | AI78: 9.088188381 | AJ78: 9.489945492 | AM78: 9.612668709 | AN78: 9.55956379 | AO78: 9.581213528 | AP78: 9.58652362 | AQ78: 9.579591577 | AR78: 9.591443641 | AS78: 9.588442558 | AT78: 9.593586284 | AU78: 9.627838054 | AV78: 0.1103594644 | AW78: 0.1153832718 | AX78: 0.1133967806 | AY78: 0.1069773105 | BB78: 0.1147819404 | BC78: 0.1182533894 | BD78: 0.1286701913 | BE78: 0.1314310866 | BF78: 0.1323366368 | BG78: 0.1300996275 | BH78: 0.1286090289 | BI78: 0.1310750234 | BJ78: 0.1226401148 | BL78: 9.904691893 | BM78: 9.092760512 | BN78: 9.088188381 | BO78: 9.489945492 | BR78: 9.612668709 | BS78: 9.55956379 | BT78: 9.581213528 | BU78: 9.58652362 | BV78: 9.579591577 | BW78: 9.591443641 | BX78: 9.588442558 | BY78: 9.593586284 | BZ78: 9.627838054 | CA78: 0.1103594644 | CB78: 0.1153832718 | CC78: 0.1133967806 | CD78: 0.1069773105 | CG78: 0.1147819404 | CH78: 0.1182533894 | CI78: 0.1286701913 | CJ78: 0.1314310866 | CK78: 0.1323366368 | CL78: 0.1300996275 | CM78: 0.1286090289 | CN78: 0.1310750234 | CO78: 0.1226401148 | CQ78: 0.109650612 | CR78: 0.1182104089 | CS78: 0.1161472942 | CT78: 0.1053926898 | CU78: 0.1160881057 | CV78: 0.1159879906 | CW78: 0.1104003252 | CX78: 0.1156638149 | CY78: 0.1241052187 | CZ78: 0.126109239 | DA78: 0.1274281173 | DB78: 0.1242722641 | DC78: 0.1233280192 | DD78: 0.1246288743 | DE78: 0.1136032599 | DG78: 1 | DH78: -4.247328381 | DI78: 2.063773805 | DJ78: -0.4858992806 | DK78: 0.2360981109 | DL78: -1.002786207 | DM78: -0.1147199022 | DN78: 0.4872530965 | DO78: 0.05574231795 | DP78: -0.2367559291 | DQ78: -0.02708515219 | DR78: 0.1150395356 | DS78: 0.01316065596 | DT78: -0.05589762759 | DU78: -0.006394753265 | DV78: 0.02716061703 | DW78: 4 | DY78: =IF(AB60="",NA(),AB60) -> 0.009496402878 | DZ78: =IF(AC60="",NA(),AC60) -> 4 | EC78: =IF($B$11="u","",IF($B$11="sl"," log",IF($B$11="b"," logit",""))) -> 
B79: 46 | C79: 4 | E79: metalog probability density function (PDF) | AB79: 0.01496402878 | AC79: =IF(C$34="","",IF(ROW()-ROW(S$27)>B$17,"",SMALL(INDEX($C$34:$C$10033,1,1):INDEX($C$34:$C$10033,B$17,1),ROW()-ROW(S$27)))) -> 4 | AD79: 0.48 | AE79: 9.658372717 | AF79: 0.1304805943 | AG79: 9.995208004 | AH79: 9.179991068 | AI79: 9.176939765 | AJ79: 9.583109387 | AM79: 9.698980372 | AN79: 9.643733126 | AO79: 9.658372717 | AP79: 9.661989532 | AQ79: 9.654619906 | AR79: 9.667568517 | AS79: 9.665506495 | AT79: 9.669076999 | AU79: 9.70777872 | AV79: 0.1105809808 | AW79: 0.1138890213 | AX79: 0.1119471596 | AY79: 0.1076890196 | BB79: 0.1169363431 | BC79: 0.1193404125 | BD79: 0.1304805943 | BE79: 0.1335237238 | BF79: 0.1341561421 | BG79: 0.1325761966 | BH79: 0.1308730673 | BI79: 0.1337990327 | BJ79: 0.1276144405 | BL79: 9.995208004 | BM79: 9.179991068 | BN79: 9.176939765 | BO79: 9.583109387 | BR79: 9.698980372 | BS79: 9.643733126 | BT79: 9.658372717 | BU79: 9.661989532 | BV79: 9.654619906 | BW79: 9.667568517 | BX79: 9.665506495 | BY79: 9.669076999 | BZ79: 9.70777872 | CA79: 0.1105809808 | CB79: 0.1138890213 | CC79: 0.1119471596 | CD79: 0.1076890196 | CG79: 0.1169363431 | CH79: 0.1193404125 | CI79: 0.1304805943 | CJ79: 0.1335237238 | CK79: 0.1341561421 | CL79: 0.1325761966 | CM79: 0.1308730673 | CN79: 0.1337990327 | CO79: 0.1276144405 | CQ79: 0.1100493415 | CR79: 0.1168251046 | CS79: 0.1147980539 | CT79: 0.1062096599 | CU79: 0.1173557228 | CV79: 0.1172482454 | CW79: 0.1125970049 | CX79: 0.1170253513 | CY79: =IF(OR(DP$26="",DP$26="no"),"",(EK$91/($AD77*(1-$AD77))+EK$92*(($AD77-0.5)/($AD77*(1-$AD77))+LN($AD77/(1-$AD77)))+EK$93+2*EK$94*($AD77-0.5)+EK$95*(($AD77-0.5)^2/($AD77*(1-$AD77))+2*($AD77-0.5)*LN($AD77/(1-$AD77)))+3*EK$96*($AD77-0.5)^2+EK$97*(($AD77-0.5)^3/($AD77*(1-$AD77))+3*($AD77-0.5)^2*LN($AD77/(1-$AD77)))+4*EK$98*($AD77-0.5)^3+EK$99*(($AD77-0.5)^4/($AD77*(1-$AD77))+4*($AD77-0.5)^3*LN($AD77/(1-$AD77)))+5*EK$100*($AD77-0.5)^4+EK$101*(($AD77-0.5)^5/($AD77*(1-$AD77))+5*($AD77-0.5)^4*LN($AD77/(1-$AD77)))+6*EK$102*($AD77-0.5)^5+EK$103*(($AD77-0.5)^6/($AD77*(1-$AD77))+6*($AD77-0.5)^5*LN($AD77/(1-$AD77)))+7*EK$104*($AD77-0.5)^6+EK$105*(($AD77-0.5)^7/($AD77*(1-$AD77))+7*($AD77-0.5)^6*LN($AD77/(1-$AD77))))^-1) -> 0.1265315548 | CZ79: 0.1289397893 | DA79: 0.1300763093 | DB79: 0.1273085808 | DC79: 0.1260762739 | DD79: 0.1279867673 | DE79: 0.1179399816 | DG79: 1 | DH79: -4.226833745 | DI79: 2.052599121 | DJ79: -0.4856115108 | DK79: 0.2358185394 | DL79: -0.9967657602 | DM79: -0.1145161972 | DN79: 0.4840409267 | DO79: 0.05561038353 | DP79: -0.2350558457 | DQ79: -0.02700504236 | DR79: 0.1141458243 | DS79: 0.01311395942 | DT79: -0.05543052621 | DU79: -0.006368289647 | DV79: 0.02691770158 | DW79: 4 | DY79: 0.009784172662 | DZ79: 4 | EB79: y | EC79: M2 | ED79: M3 | EE79: M4 | EF79: M5 | EG79: M6 | EH79: M7 | EI79: M8 | EJ79: M9 | EK79: M10 | EL79: M11 | EM79: M12 | EN79: M13 | EO79: M14 | EP79: M15 | EQ79: M16
B80: 47 | C80: 4 | E80: =IF(AND(y>0,y<1),(-20.8861352331351/(y*(1-y))+-10.8188282400032*((y-0.5)/(y*(1-y))+LN(y/(1-y)))+91.0642536474996+2*40.8628598440412*(y-0.5)+115.659717118179*((y-0.5)^2/(y*(1-y))+2*(y-0.5)*LN(y/(1-y)))+3*-311.451804018779*(y-0.5)^2+50.5581996912458*((y-0.5)^3/(y*(1-y))+3*(y-0.5)^2*LN(y/(1-y)))+4*-147.230354531137*(y-0.5)^3+-110.196870036386*((y-0.5)^4/(y*(1-y))+4*(y-0.5)^3*LN(y/(1-y))))^-1,"n/a") | AB80: 0.01525179856 | AC80: =IF(C$34="","",IF(ROW()-ROW(S$27)>B$17,"",SMALL(INDEX($C$34:$C$10033,1,1):INDEX($C$34:$C$10033,B$17,1),ROW()-ROW(S$27)))) -> 4 | AD80: 0.49 | AE80: 9.734572254 | AF80: 0.1319277534 | AG80: 10.08557914 | AH80: 9.268392972 | AI80: 9.266866358 | AJ80: 9.675686018 | AM80: 9.783733492 | AN80: 9.727190237 | AO80: 9.734572254 | AP80: 9.736403876 | AQ80: 9.728768116 | AR80: 9.742387976 | AS80: 9.741338349 | AT80: 9.743166732 | AU80: 9.784613086 | AV80: 0.1107138906 | AW80: 0.112346157 | AX80: 0.110452589 | AY80: 0.1083377759 | BB80: 0.1190388499 | BC80: 0.1202797336 | BD80: 0.1319277534 | BE80: 0.1351662529 | BF80: 0.1354928322 | BG80: 0.1346701738 | BH80: 0.1328150867 | BI80: 0.1360670082 | BJ80: 0.1327288147 | BL80: 10.08557914 | BM80: 9.268392972 | BN80: 9.266866358 | BO80: 9.675686018 | BR80: 9.783733492 | BS80: 9.727190237 | BT80: 9.734572254 | BU80: 9.736403876 | BV80: 9.728768116 | BW80: 9.742387976 | BX80: 9.741338349 | BY80: 9.743166732 | BZ80: 9.784613086 | CA80: =IF(AND($EC$41=0,CQ$26="yes"),CQ82,"") -> 0.1107138906 | CB80: 0.112346157 | CC80: 0.110452589 | CD80: 0.1083377759 | CG80: 0.1190388499 | CH80: 0.1202797336 | CI80: 0.1319277534 | CJ80: 0.1351662529 | CK80: 0.1354928322 | CL80: 0.1346701738 | CM80: 0.1328150867 | CN80: 0.1360670082 | CO80: 0.1327288147 | CQ80: 0.1103594644 | CR80: 0.1153832718 | CS80: 0.1133967806 | CT80: 0.1069773105 | CU80: 0.1185122495 | CV80: 0.118398521 | CW80: 0.1147819404 | CX80: 0.1182533894 | CY80: 0.1286701913 | CZ80: 0.1314310866 | DA80: 0.1323366368 | DB80: 0.1300996275 | DC80: 0.1286090289 | DD80: 0.1310750234 | DE80: 0.1226401148 | DG80: 1 | DH80: -4.206739105 | DI80: 2.04163036 | DJ80: -0.485323741 | DK80: 0.2355391336 | DL80: -0.9908516839 | DM80: -0.1143127335 | DN80: 0.480883846 | DO80: 0.05547868345 | DP80: -0.2333843471 | DQ80: -0.0269251222 | DR80: 0.1132669644 | DS80: 0.01306740103 | DT80: -0.05497114692 | DU80: -0.006341919954 | DV80: 0.02667880267 | DW80: 4 | DY80: 0.01007194245 | DZ80: 4 | EB80: =RAND() -> 0.357885991 | EC80: =IF(EC84="","",IF($B$11="u",EC84,IF($B$11="sl",$C$19+EXP(EC84),IF($B$11="b",($C$19+$C$20*EXP(EC84))/(1+EXP(EC84)),"")))) -> 8.856446455 | ED80: 8.174837906 | EE80: 8.154105331 | EF80: 8.389808298 | EI80: 8.517839665 | EJ80: 8.531117384 | EK80: 8.583606916 | EL80: 8.591749143 | EM80: 8.596499391 | EN80: 8.58412818 | EO80: 8.58210344 | EP80: 8.581712343 | EQ80: 8.538437121
B81: 48 | C81: 4 | AB81: 0.01553956835 | AC81: =IF(C$34="","",IF(ROW()-ROW(S$27)>B$17,"",SMALL(INDEX($C$34:$C$10033,1,1):INDEX($C$34:$C$10033,B$17,1),ROW()-ROW(S$27)))) -> 4 | AD81: 0.5 | AE81: 9.810050439 | AF81: 0.1329838038 | AG81: 10.17587795 | AH81: 9.358035728 | AI81: 9.358035728 | AJ81: 9.767739155 | AM81: 9.867027468 | AN81: 9.810050439 | AO81: 9.810050439 | AP81: 9.810050439 | AQ81: 9.802325368 | AR81: 9.816171213 | AS81: 9.816171213 | AT81: 9.816171206 | AU81: 9.858544488 | AV81: 0.1107581939 | AW81: 0.1107581939 | AX81: 0.1089161974 | AY81: 0.1089161974 | BB81: 0.121065472 | BC81: 0.121065472 | BD81: 0.1329838038 | BE81: 0.1363182751 | BF81: 0.1363182751 | BG81: 0.1363182751 | BH81: 0.1343840257 | BI81: 0.1377966292 | BJ81: 0.1377982818 | BL81: 10.17587795 | BM81: 9.358035728 | BN81: 9.358035728 | BO81: 9.767739155 | BR81: 9.867027468 | BS81: 9.810050439 | BT81: 9.810050439 | BU81: 9.810050439 | BV81: 9.802325368 | BW81: 9.816171213 | BX81: 9.816171213 | BY81: 9.816171206 | BZ81: 9.858544488 | CA81: 0.1107581939 | CB81: 0.1107581939 | CC81: 0.1089161974 | CD81: 0.1089161974 | CG81: 0.121065472 | CH81: 0.121065472 | CI81: 0.1329838038 | CJ81: 0.1363182751 | CK81: 0.1363182751 | CL81: 0.1363182751 | CM81: 0.1343840257 | CN81: 0.1377966292 | CO81: 0.1377982818 | CQ81: 0.1105809808 | CR81: 0.1138890213 | CS81: 0.1119471596 | CT81: 0.1076890196 | CU81: 0.1195452093 | CV81: 0.1194264795 | CW81: 0.1169363431 | CX81: 0.1193404125 | CY81: 0.1304805943 | CZ81: 0.1335237238 | DA81: 0.1341561421 | DB81: 0.1325761966 | DC81: 0.1308730673 | DD81: 0.1337990327 | DE81: 0.1276144405 | DG81: 1 | DH81: -4.18702892 | DI81: 2.030859639 | DJ81: -0.4850359712 | DK81: 0.2352598934 | DL81: -0.9850399773 | DM81: -0.1141095109 | DN81: 0.4777798221 | DO81: 0.05534721743 | DP81: -0.2317404 | DQ81: -0.02684539136 | DR81: 0.11240243 | DS81: 0.01302098047 | DT81: -0.0545192218 | DU81: -0.00631564391 | DV81: 0.0264437837 | DW81: 4 | DY81: 0.01035971223 | DZ81: 4 | EC81: intermediate calculations
B82: 49 | C82: 4 | AB82: 0.01582733813 | AC82: =IF(C$34="","",IF(ROW()-ROW(S$27)>B$17,"",SMALL(INDEX($C$34:$C$10033,1,1):INDEX($C$34:$C$10033,B$17,1),ROW()-ROW(S$27)))) -> 4 | AD82: 0.51 | AE82: 9.885046079 | AF82: 0.1336293369 | AG82: 10.26617677 | AH82: 9.448990601 | AI82: 9.450517216 | AJ82: 9.859336876 | AM82: 9.948971352 | AN82: 9.892428097 | AO82: 9.885046079 | AP82: 9.883214457 | AQ82: 9.875578697 | AR82: 9.889198557 | AS82: 9.890248184 | AT82: 9.888419788 | AU82: 9.9298644 | AV82: 0.1107138906 | AW82: 0.1091283751 | AX82: 0.1073408607 | AY82: 0.1094165595 | BB82: 0.1229896303 | BC82: 0.121692504 | BD82: 0.1336293369 | BE82: 0.1369529668 | BF82: 0.1366193195 | BG82: 0.1374660386 | BH82: 0.1355336782 | BI82: 0.1389217871 | BJ82: 0.1425866012 | BL82: 10.26617677 | BM82: 9.448990601 | BN82: 9.450517216 | BO82: 9.859336876 | BR82: 9.948971352 | BS82: 9.892428097 | BT82: 9.885046079 | BU82: 9.883214457 | BV82: 9.875578697 | BW82: 9.889198557 | BX82: 9.890248184 | BY82: 9.888419788 | BZ82: 9.9298644 | CA82: 0.1107138906 | CB82: 0.1091283751 | CC82: 0.1073408607 | CD82: 0.1094165595 | CG82: 0.1229896303 | CH82: 0.121692504 | CI82: 0.1336293369 | CJ82: 0.1369529668 | CK82: 0.1366193195 | CL82: 0.1374660386 | CM82: 0.1355336782 | CN82: 0.1389217871 | CO82: 0.1425866012 | CQ82: 0.1107138906 | CR82: 0.112346157 | CS82: 0.110452589 | CT82: 0.1083377759 | CU82: 0.1204419843 | CV82: 0.1203196277 | CW82: 0.1190388499 | CX82: 0.1202797336 | CY82: 0.1319277534 | CZ82: 0.1351662529 | DA82: 0.1354928322 | DB82: 0.1346701738 | DC82: 0.1328150867 | DD82: 0.1360670082 | DE82: 0.1327288147 | DG82: 1 | DH82: -4.167688541 | DI82: 2.020279524 | DJ82: -0.4847482014 | DK82: 0.2349808188 | DL82: -0.9793268658 | DM82: -0.1139065293 | DN82: 0.4747269368 | DO82: 0.0552159852 | DP82: -0.2301230288 | DQ82: -0.02676584952 | DR82: 0.1115517243 | DS82: 0.01297469741 | DT82: -0.05407449773 | DU82: -0.006289461236 | DV82: 0.02621251552 | DW82: 4 | DY82: 0.01064748201 | DZ82: 4
B83: 50 | C83: 4 | AB83: 0.01611510791 | AC83: =IF(C$34="","",IF(ROW()-ROW(S$27)>B$17,"",SMALL(INDEX($C$34:$C$10033,1,1):INDEX($C$34:$C$10033,B$17,1),ROW()-ROW(S$27)))) -> 4 | AD83: 0.52 | AE83: 9.959797351 | AF83: 0.1338542759 | AG83: 10.3565479 | AH83: 9.54133096 | AI83: 9.544382263 | AJ83: 9.950551885 | AM83: 10.02968419 | AN83: 9.974436943 | AO83: 9.959797351 | AP83: 9.956180536 | AQ83: 9.94881091 | AR83: 9.961759521 | AS83: 9.963821542 | AT83: 9.960251026 | AU83: 9.998949259 | AV83: 0.1105809808 | AW83: 0.1074596878 | AX83: 0.1057292183 | AY83: 0.1098308317 | BB83: 0.1247822987 | BC83: 0.122156393 | BD83: 0.1338542759 | BE83: 0.1370587374 | BF83: 0.1363987244 | BG83: 0.1380716664 | BH83: 0.1362253996 | BI83: 0.1393984869 | BJ83: 0.1468149443 | BL83: 10.3565479 | BM83: 9.54133096 | BN83: 9.544382263 | BO83: 9.950551885 | BR83: 10.02968419 | BS83: 9.974436943 | BT83: 9.959797351 | BU83: 9.956180536 | BV83: 9.94881091 | BW83: 9.961759521 | BX83: 9.963821542 | BY83: 9.960251026 | BZ83: 9.998949259 | CA83: 0.1105809808 | CB83: 0.1074596878 | CC83: 0.1057292183 | CD83: 0.1098308317 | CG83: 0.1247822987 | CH83: 0.122156393 | CI83: 0.1338542759 | CJ83: 0.1370587374 | CK83: 0.1363987244 | CL83: 0.1380716664 | CM83: 0.1362253996 | CN83: 0.1393984869 | CO83: 0.1468149443 | CQ83: 0.1107581939 | CR83: 0.1107581939 | CS83: 0.1089161974 | CT83: 0.1089161974 | CU83: 0.1211899742 | CV83: 0.121065472 | CW83: 0.121065472 | CX83: 0.121065472 | CY83: 0.1329838038 | CZ83: 0.1363182751 | DA83: 0.1363182751 | DB83: 0.1363182751 | DC83: 0.1343840257 | DD83: 0.1377966292 | DE83: 0.1377982818 | DG83: 1 | DH83: -4.148704138 | DI83: 2.009882998 | DJ83: -0.4844604317 | DK83: 0.2347019098 | DL83: -0.9737087846 | DM83: -0.1137037886 | DN83: 0.4717233781 | DO83: 0.05508498648 | DP83: -0.2285313114 | DQ83: -0.02668649633 | DR83: 0.1107143778 | DS83: 0.01292855153 | DT83: -0.05363673524 | DU83: -0.006263371655 | DV83: 0.02598487591 | DW83: 4 | DY83: 0.0109352518 | DZ83: 4 | EC83: M2 | ED83: M3 | EE83: M4 | EF83: M5 | EG83: M6 | EH83: M7 | EI83: M8 | EJ83: M9 | EK83: M10 | EL83: M11 | EM83: M12 | EN83: M13 | EO83: M14 | EP83: M15 | EQ83: M16
B84: 51 | C84: 4 | AB84: 0.0164028777 | AC84: =IF(C$34="","",IF(ROW()-ROW(S$27)>B$17,"",SMALL(INDEX($C$34:$C$10033,1,1):INDEX($C$34:$C$10033,B$17,1),ROW()-ROW(S$27)))) -> 4 | AD84: 0.53 | AE84: 10.03454075 | AF84: 0.1336582293 | AG84: 10.44706401 | AH84: 9.635132627 | AI84: 9.639704758 | AJ84: 10.04146187 | AM84: 10.10929541 | AN84: 10.05619049 | AO84: 10.03454075 | AP84: 10.02923066 | AQ84: 10.02229862 | AR84: 10.03415068 | AS84: 10.03715177 | AT84: 10.03200803 | AU84: 10.06625455 | AV84: 0.1103594644 | AW84: 0.1057548788 | AX84: 0.1040836876 | AY84: 0.110150727 | BB84: 0.1264122823 | BC84: 0.1224533014 | BD84: 0.1336582293 | BE84: 0.136639812 | BF84: 0.1356746278 | BG84: 0.1381092583 | BH84: 0.1364306554 | BI84: 0.1392089592 | BJ84: 0.1501828705 | BL84: 10.44706401 | BM84: 9.635132627 | BN84: 9.639704758 | BO84: 10.04146187 | BR84: 10.10929541 | BS84: 10.05619049 | BT84: 10.03454075 | BU84: 10.02923066 | BV84: 10.02229862 | BW84: 10.03415068 | BX84: 10.03715177 | BY84: 10.03200803 | BZ84: 10.06625455 | CA84: 0.1103594644 | CB84: 0.1057548788 | CC84: 0.1040836876 | CD84: 0.110150727 | CG84: 0.1264122823 | CH84: 0.1224533014 | CI84: 0.1336582293 | CJ84: 0.136639812 | CK84: 0.1356746278 | CL84: 0.1381092583 | CM84: 0.1364306554 | CN84: 0.1392089592 | CO84: 0.1501828705 | CQ84: 0.1107138906 | CR84: 0.1091283751 | CS84: 0.1073408607 | CT84: 0.1094165595 | CU84: 0.1217767768 | CV84: 0.1216516945 | CW84: 0.1229896303 | CX84: 0.121692504 | CY84: 0.1336293369 | CZ84: 0.1369529668 | DA84: 0.1366193195 | DB84: 0.1374660386 | DC84: 0.1355336782 | DD84: 0.1389217871 | DE84: 0.1425866012 | DG84: 1 | DH84: -4.130062645 | DI84: 1.999663424 | DJ84: -0.4841726619 | DK84: 0.2344231665 | DL84: -0.9681823631 | DM84: -0.1135012885 | DN84: 0.4687674319 | DO84: 0.05495422099 | DP84: -0.2269643753 | DQ84: -0.02660733146 | DR84: 0.1098899457 | DS84: 0.0128825425 | DT84: -0.05320570754 | DU84: -0.006237374893 | DV84: 0.02576074905 | DW84: 4 | DY84: 0.01122302158 | DZ84: 4 | EC84: =IF(CA$29="","",EC$90+EC$91*LN($EB80/(1-$EB80))) -> 8.856446455 | ED84: =IF(CB$29="","",ED$90+ED$91*LN($EB80/(1-$EB80))+ED$92*($EB80-0.5)*LN($EB80/(1-$EB80))) -> 8.174837906 | EE84: =IF(CC$29="","",EE$90+EE$91*LN($EB80/(1-$EB80))+EE$92*($EB80-0.5)*LN($EB80/(1-$EB80))+EE$93*($EB80-0.5)) -> 8.154105331 | EF84: =IF(CD$29="","",EF$90+EF$91*LN($EB80/(1-$EB80))+EF$92*($EB80-0.5)*LN($EB80/(1-$EB80))+EF$93*($EB80-0.5)+EF$94*($EB80-0.5)^2) -> 8.389808298 | EG84: =IF(CE$29="","",EG$90+EG$91*LN($EB80/(1-$EB80))+EG$92*($EB80-0.5)*LN($EB80/(1-$EB80))+EG$93*($EB80-0.5)+EG$94*($EB80-0.5)^2+EG$95*($EB80-0.5)^2*LN($EB80/(1-$EB80))) ->  | EH84: =IF(CF$29="","",EH$90+EH$91*LN($EB80/(1-$EB80))+EH$92*($EB80-0.5)*LN($EB80/(1-$EB80))+EH$93*($EB80-0.5)+EH$94*($EB80-0.5)^2+EH$95*($EB80-0.5)^2*LN($EB80/(1-$EB80))+EH$96*($EB80-0.5)^3) ->  | EI84: =IF(CG$29="","",EI$90+EI$91*LN($EB80/(1-$EB80))+EI$92*($EB80-0.5)*LN($EB80/(1-$EB80))+EI$93*($EB80-0.5)+EI$94*($EB80-0.5)^2+EI$95*($EB80-0.5)^2*LN($EB80/(1-$EB80))+EI$96*($EB80-0.5)^3+EI$97*($EB80-0.5)^3*LN($EB80/(1-$EB80))) -> 8.517839665 | EJ84: =IF(CH$29="","",EJ$90+EJ$91*LN($EB80/(1-$EB80))+EJ$92*($EB80-0.5)*LN($EB80/(1-$EB80))+EJ$93*($EB80-0.5)+EJ$94*($EB80-0.5)^2+EJ$95*($EB80-0.5)^2*LN($EB80/(1-$EB80))+EJ$96*($EB80-0.5)^3+EJ$97*($EB80-0.5)^3*LN($EB80/(1-$EB80))+EJ$98*($EB80-0.5)^4) -> 8.531117384 | EK84: =IF(CI$29="","",EK$90+EK$91*LN($EB80/(1-$EB80))+EK$92*($EB80-0.5)*LN($EB80/(1-$EB80))+EK$93*($EB80-0.5)+EK$94*($EB80-0.5)^2+EK$95*($EB80-0.5)^2*LN($EB80/(1-$EB80))+EK$96*($EB80-0.5)^3+EK$97*($EB80-0.5)^3*LN($EB80/(1-$EB80))+EK$98*($EB80-0.5)^4+EK$99*($EB80-0.5)^4*LN($EB80/(1-$EB80))+EK$100*($EB80-0.5)^5+EK$101*($EB80-0.5)^5*LN($EB80/(1-$EB80))+EK$102*($EB80-0.5)^6+EK$103*($EB80-0.5)^6*LN($EB80/(1-$EB80))+EK$104*($EB80-0.5)^7+EK$105*($EB80-0.5)^7*LN($EB80/(1-$EB80))) -> 8.583606916 | EL84: 8.591749143 | EM84: 8.596499391 | EN84: =IF(CL$29="","",EN$90+EN$91*LN($EB80/(1-$EB80))+EN$92*($EB80-0.5)*LN($EB80/(1-$EB80))+EN$93*($EB80-0.5)+EN$94*($EB80-0.5)^2+EN$95*($EB80-0.5)^2*LN($EB80/(1-$EB80))+EN$96*($EB80-0.5)^3+EN$97*($EB80-0.5)^3*LN($EB80/(1-$EB80))+EN$98*($EB80-0.5)^4+EN$99*($EB80-0.5)^4*LN($EB80/(1-$EB80))+EN$100*($EB80-0.5)^5+EN$101*($EB80-0.5)^5*LN($EB80/(1-$EB80))+EN$102*($EB80-0.5)^6+EN$103*($EB80-0.5)^6*LN($EB80/(1-$EB80))+EN$104*($EB80-0.5)^7+EN$105*($EB80-0.5)^7*LN($EB80/(1-$EB80))) -> 8.58412818 | EO84: =IF(CM$29="","",EO$90+EO$91*LN($EB80/(1-$EB80))+EO$92*($EB80-0.5)*LN($EB80/(1-$EB80))+EO$93*($EB80-0.5)+EO$94*($EB80-0.5)^2+EO$95*($EB80-0.5)^2*LN($EB80/(1-$EB80))+EO$96*($EB80-0.5)^3+EO$97*($EB80-0.5)^3*LN($EB80/(1-$EB80))+EO$98*($EB80-0.5)^4+EO$99*($EB80-0.5)^4*LN($EB80/(1-$EB80))+EO$100*($EB80-0.5)^5+EO$101*($EB80-0.5)^5*LN($EB80/(1-$EB80))+EO$102*($EB80-0.5)^6+EO$103*($EB80-0.5)^6*LN($EB80/(1-$EB80))+EO$104*($EB80-0.5)^7+EO$105*($EB80-0.5)^7*LN($EB80/(1-$EB80))) -> 8.58210344 | EP84: =IF(CN$29="","",EP$90+EP$91*LN($EB80/(1-$EB80))+EP$92*($EB80-0.5)*LN($EB80/(1-$EB80))+EP$93*($EB80-0.5)+EP$94*($EB80-0.5)^2+EP$95*($EB80-0.5)^2*LN($EB80/(1-$EB80))+EP$96*($EB80-0.5)^3+EP$97*($EB80-0.5)^3*LN($EB80/(1-$EB80))+EP$98*($EB80-0.5)^4+EP$99*($EB80-0.5)^4*LN($EB80/(1-$EB80))+EP$100*($EB80-0.5)^5+EP$101*($EB80-0.5)^5*LN($EB80/(1-$EB80))+EP$102*($EB80-0.5)^6+EP$103*($EB80-0.5)^6*LN($EB80/(1-$EB80))+EP$104*($EB80-0.5)^7+EP$105*($EB80-0.5)^7*LN($EB80/(1-$EB80))) -> 8.581712343 | EQ84: =IF(CO$29="","",EQ$90+EQ$91*LN($EB80/(1-$EB80))+EQ$92*($EB80-0.5)*LN($EB80/(1-$EB80))+EQ$93*($EB80-0.5)+EQ$94*($EB80-0.5)^2+EQ$95*($EB80-0.5)^2*LN($EB80/(1-$EB80))+EQ$96*($EB80-0.5)^3+EQ$97*($EB80-0.5)^3*LN($EB80/(1-$EB80))+EQ$98*($EB80-0.5)^4+EQ$99*($EB80-0.5)^4*LN($EB80/(1-$EB80))+EQ$100*($EB80-0.5)^5+EQ$101*($EB80-0.5)^5*LN($EB80/(1-$EB80))+EQ$102*($EB80-0.5)^6+EQ$103*($EB80-0.5)^6*LN($EB80/(1-$EB80))+EQ$104*($EB80-0.5)^7+EQ$105*($EB80-0.5)^7*LN($EB80/(1-$EB80))) -> 8.538437121
B85: 52 | C85: 4 | AB85: 0.01669064748 | AC85: =IF(C$34="","",IF(ROW()-ROW(S$27)>B$17,"",SMALL(INDEX($C$34:$C$10033,1,1):INDEX($C$34:$C$10033,B$17,1),ROW()-ROW(S$27)))) -> 4 | AD85: 0.54 | AE85: 10.10951017 | AF85: 0.1330502926 | AG85: 10.53779846 | AH85: 9.73047426 | AI85: 9.736561407 | AJ85: 10.1321499 | AM85: 10.18794526 | AN85: 10.13780256 | AO85: 10.10951017 | AP85: 10.10264233 | AQ85: 10.09631044 | AR85: 10.10667343 | AS85: 10.11050639 | AT85: 10.10403379 | AU85: 10.13230634 | AV85: 0.1100493415 | AW85: 0.104016469 | AX85: 0.102406478 | AY85: 0.1103677614 | BB85: 0.1278466482 | BC85: 0.1225798902 | BD85: 0.1330502926 | BE85: 0.1357156706 | BF85: 0.1344789369 | BG85: 0.137571003 | BH85: 0.1361331363 | BI85: 0.1383632737 | BJ85: 0.1524020375 | BL85: 10.53779846 | BM85: 9.73047426 | BN85: 9.736561407 | BO85: 10.1321499 | BR85: 10.18794526 | BS85: 10.13780256 | BT85: 10.10951017 | BU85: 10.10264233 | BV85: 10.09631044 | BW85: 10.10667343 | BX85: 10.11050639 | BY85: 10.10403379 | BZ85: 10.13230634 | CA85: 0.1100493415 | CB85: 0.104016469 | CC85: 0.102406478 | CD85: 0.1103677614 | CG85: 0.1278466482 | CH85: 0.1225798902 | CI85: 0.1330502926 | CJ85: 0.1357156706 | CK85: 0.1344789369 | CL85: 0.137571003 | CM85: 0.1361331363 | CN85: 0.1383632737 | CO85: 0.1524020375 | CQ85: 0.1105809808 | CR85: 0.1074596878 | CS85: 0.1057292183 | CT85: 0.1098308317 | CU85: 0.1221903873 | CV85: 0.1220663477 | CW85: 0.1247822987 | CX85: 0.122156393 | CY85: 0.1338542759 | CZ85: 0.1370587374 | DA85: 0.1363987244 | DB85: 0.1380716664 | DC85: 0.1362253996 | DD85: 0.1393984869 | DE85: 0.1468149443 | DG85: 1 | DH85: -4.111751699 | DI85: 1.989614527 | DJ85: -0.4838848921 | DK85: 0.2341445888 | DL85: -0.9627444107 | DM85: -0.1132990291 | DN85: 0.4658574753 | DO85: 0.05482368846 | DP85: -0.2254213942 | DQ85: -0.02652835457 | DR85: 0.109078007 | DS85: 0.01283666999 | DT85: -0.05278119964 | DU85: -0.006211470673 | DV85: 0.02554002509 | DW85: 4 | DY85: 0.01151079137 | DZ85: 4
B86: 53 | C86: 4 | AB86: 0.01697841727 | AC86: =IF(C$34="","",IF(ROW()-ROW(S$27)>B$17,"",SMALL(INDEX($C$34:$C$10033,1,1):INDEX($C$34:$C$10033,B$17,1),ROW()-ROW(S$27)))) -> 4 | AD86: 0.55 | AE86: 10.18493601 | AF86: 0.1320483215 | AG86: 10.62882569 | AH86: 9.827437748 | AI86: 9.835032114 | AJ86: 10.22270485 | AM86: 10.26578528 | AN86: 10.21938785 | AO86: 10.18493601 | AP86: 10.17668679 | AQ86: 10.17110537 | AR86: 10.17963159 | AS86: 10.18415867 | AT86: 10.17666658 | AU86: 10.19769036 | AV86: 0.109650612 | AW86: 0.1022467668 | AX86: 0.1006996044 | AY86: 0.1104733281 | BB86: 0.1290513292 | BC86: 0.1225332114 | BD86: 0.1320483215 | BE86: 0.1343194248 | BF86: 0.1328548593 | BG86: 0.1364680062 | BH86: 0.1353301845 | BI86: 0.1368981643 | BJ86: 0.1532384377 | BL86: 10.62882569 | BM86: 9.827437748 | BN86: 9.835032114 | BO86: 10.22270485 | BR86: 10.26578528 | BS86: 10.21938785 | BT86: 10.18493601 | BU86: 10.17668679 | BV86: 10.17110537 | BW86: 10.17963159 | BX86: 10.18415867 | BY86: 10.17666658 | BZ86: 10.19769036 | CA86: 0.109650612 | CB86: 0.1022467668 | CC86: 0.1006996044 | CD86: 0.1104733281 | CG86: 0.1290513292 | CH86: 0.1225332114 | CI86: 0.1320483215 | CJ86: 0.1343194248 | CK86: 0.1328548593 | CL86: 0.1364680062 | CM86: 0.1353301845 | CN86: 0.1368981643 | CO86: 0.1532384377 | CQ86: 0.1103594644 | CR86: 0.1057548788 | CS86: 0.1040836876 | CT86: 0.110150727 | CU86: 0.1224194127 | CV86: 0.1222980655 | CW86: 0.1264122823 | CX86: 0.1224533014 | CY86: 0.1336582293 | CZ86: 0.136639812 | DA86: 0.1356746278 | DB86: 0.1381092583 | DC86: 0.1364306554 | DD86: 0.1392089592 | DE86: 0.1501828705 | DG86: 1 | DH86: -4.093759596 | DI86: 1.97973036 | DJ86: -0.4835971223 | DK86: 0.2338661767 | DL86: -0.957391905 | DM86: -0.1130970101 | DN86: 0.4629919702 | DO86: 0.0546933886 | DP86: -0.2239015844 | DQ86: -0.02644956534 | DR86: 0.1082781619 | DS86: 0.01279093368 | DT86: -0.05236300751 | DU86: -0.006185658721 | DV86: 0.02532259975 | DW86: 4 | DY86: 0.01179856115 | DZ86: 4 | EB86: Press "Recalculate" (F9) for new simulation.
B87: 54 | C87: 4 | AB87: 0.01726618705 | AC87: =IF(C$34="","",IF(ROW()-ROW(S$27)>B$17,"",SMALL(INDEX($C$34:$C$10033,1,1):INDEX($C$34:$C$10033,B$17,1),ROW()-ROW(S$27)))) -> 4 | AD87: 0.56 | AE87: 10.26104453 | AF87: 0.1306777558 | AG87: 10.72022155 | AH87: 9.926108639 | AI87: 9.93520041 | AJ87: 10.3132219 | AM87: 10.34297884 | AN87: 10.30106275 | AO87: 10.26104453 | AP87: 10.25162748 | AQ87: 10.24693134 | AR87: 10.25332893 | AS87: 10.25838614 | AT87: 10.25023556 | AU87: 10.26303907 | AV87: 0.1091632759 | AW87: 0.1004478814 | AX87: 0.09896489851 | AY87: 0.1104587835 | BB87: 0.1299919043 | BC87: 0.1223106 | BD87: 0.1306777558 | BE87: 0.1324953468 | BF87: 0.1308538806 | BG87: 0.1348296172 | BH87: 0.1340333346 | BI87: 0.1348732819 | BJ87: 0.1525537953 | BL87: 10.72022155 | BM87: 9.926108639 | BN87: 9.93520041 | BO87: 10.3132219 | BR87: 10.34297884 | BS87: 10.30106275 | BT87: 10.26104453 | BU87: 10.25162748 | BV87: 10.24693134 | BW87: 10.25332893 | BX87: 10.25838614 | BY87: 10.25023556 | BZ87: 10.26303907 | CA87: 0.1091632759 | CB87: 0.1004478814 | CC87: 0.09896489851 | CD87: 0.1104587835 | CG87: 0.1299919043 | CH87: 0.1223106 | CI87: 0.1306777558 | CJ87: 0.1324953468 | CK87: 0.1308538806 | CL87: 0.1348296172 | CM87: 0.1340333346 | CN87: 0.1348732819 | CO87: 0.1525537953 | CQ87: 0.1100493415 | CR87: 0.104016469 | CS87: 0.102406478 | CT87: 0.1103677614 | CU87: 0.1224532975 | CV87: 0.1223362849 | CW87: 0.1278466482 | CX87: 0.1225798902 | CY87: 0.1330502926 | CZ87: 0.1357156706 | DA87: 0.1344789369 | DB87: 0.137571003 | DC87: 0.1361331363 | DD87: 0.1383632737 | DE87: 0.1524020375 | DG87: 1 | DH87: -4.076075242 | DI87: 1.970005286 | DJ87: -0.4833093525 | DK87: 0.2335879302 | DL87: -0.9521219791 | DM87: -0.1128952313 | DN87: 0.4601694573 | DO87: 0.05456332115 | DP87: -0.2224042024 | DQ87: -0.02637096342 | DR87: 0.1074900311 | DS87: 0.01274533325 | DT87: -0.05195093732 | DU87: -0.006159938763 | DV87: 0.02510837388 | DW87: 4 | DY87: 0.01208633094 | DZ87: 4
B88: 55 | C88: 4 | AB88: 0.01755395683 | AC88: =IF(C$34="","",IF(ROW()-ROW(S$27)>B$17,"",SMALL(INDEX($C$34:$C$10033,1,1):INDEX($C$34:$C$10033,B$17,1),ROW()-ROW(S$27)))) -> 4 | AD88: 0.57 | AE88: 10.33805724 | AF88: 0.1289701104 | AG88: 10.81206373 | AH88: 10.02657661 | AI88: 10.0371539 | AJ88: 10.40380306 | AM88: 10.41970175 | AN88: 10.38294611 | AO88: 10.33805724 | AP88: 10.32771854 | AQ88: 10.32402402 | AR88: 10.32806667 | AS88: 10.33346893 | AT88: 10.32505663 | AU88: 10.32901685 | AV88: 0.1085873333 | AW88: 0.09862173429 | AX88: 0.09720402072 | AY88: 0.1103155476 | BB88: 0.1306345531 | BC88: 0.121909573 | BD88: 0.1289701104 | BE88: 0.1302958521 | BF88: 0.1285325281 | BG88: 0.1327013342 | BH88: 0.1322678795 | BI88: 0.1323655296 | BJ88: 0.1503340251 | BL88: 10.81206373 | BM88: 10.02657661 | BN88: 10.0371539 | BO88: 10.40380306 | BR88: 10.41970175 | BS88: 10.38294611 | BT88: 10.33805724 | BU88: 10.32771854 | BV88: 10.32402402 | BW88: 10.32806667 | BX88: 10.33346893 | BY88: 10.32505663 | BZ88: 10.32901685 | CA88: 0.1085873333 | CB88: 0.09862173429 | CC88: 0.09720402072 | CD88: 0.1103155476 | CG88: 0.1306345531 | CH88: 0.121909573 | CI88: 0.1289701104 | CJ88: 0.1302958521 | CK88: 0.1285325281 | CL88: 0.1327013342 | CM88: 0.1322678795 | CN88: 0.1323655296 | CO88: 0.1503340251 | CQ88: 0.109650612 | CR88: 0.1022467668 | CS88: 0.1006996044 | CT88: 0.1104733281 | CU88: 0.1222825532 | CV88: 0.1221714739 | CW88: 0.1290513292 | CX88: 0.1225332114 | CY88: 0.1320483215 | CZ88: 0.1343194248 | DA88: 0.1328548593 | DB88: 0.1364680062 | DC88: 0.1353301845 | DD88: 0.1368981643 | DE88: 0.1532384377 | DG88: 1 | DH88: -4.058688111 | DI88: 1.960433955 | DJ88: -0.4830215827 | DK88: 0.2333098494 | DL88: -0.9469319119 | DM88: -0.1126936927 | DN88: 0.4573885508 | DO88: 0.05443348582 | DP88: -0.2209285417 | DQ88: -0.02629254847 | DR88: 0.1067132539 | DS88: 0.01269986838 | DT88: -0.0515448048 | DU88: -0.006134310525 | DV88: 0.0248972532 | DW88: 4 | DY88: 0.01237410072 | DZ88: 4 | EB88: ceofficients
B89: 56 | C89: 4 | AB89: 0.01784172662 | AC89: =IF(C$34="","",IF(ROW()-ROW(S$27)>B$17,"",SMALL(INDEX($C$34:$C$10033,1,1):INDEX($C$34:$C$10033,B$17,1),ROW()-ROW(S$27)))) -> 4 | AD89: 0.58 | AE89: 10.41619043 | AF89: 0.126961273 | AG89: 10.90443216 | AH89: 10.12893595 | AI89: 10.14098475 | AJ89: 10.4945578 | AM89: 10.49614292 | AN89: 10.46516024 | AO89: 10.41619043 | AP89: 10.40520368 | AQ89: 10.40260583 | AR89: 10.40414091 | AS89: 10.40968805 | AT89: 10.40142881 | AU89: 10.39630376 | AV89: 0.1079227841 | AW89: 0.09677007088 | AX89: 0.09541847008 | AY89: 0.1100352171 | BB89: 0.130947162 | BC89: 0.1213277403 | BD89: 0.126961273 | BE89: 0.1277782712 | BF89: 0.125949232 | BG89: 0.1301415653 | BH89: 0.1300714877 | BI89: 0.1294623989 | BJ89: 0.1466949499 | BL89: 10.90443216 | BM89: 10.12893595 | BN89: 10.14098475 | BO89: 10.4945578 | BR89: 10.49614292 | BS89: 10.46516024 | BT89: 10.41619043 | BU89: 10.40520368 | BV89: 10.40260583 | BW89: 10.40414091 | BX89: 10.40968805 | BY89: 10.40142881 | BZ89: 10.39630376 | CA89: 0.1079227841 | CB89: 0.09677007088 | CC89: 0.09541847008 | CD89: 0.1100352171 | CG89: 0.130947162 | CH89: 0.1213277403 | CI89: 0.126961273 | CJ89: 0.1277782712 | CK89: 0.125949232 | CL89: 0.1301415653 | CM89: 0.1300714877 | CN89: 0.1294623989 | CO89: 0.1466949499 | CQ89: 0.1091632759 | CR89: 0.1004478814 | CS89: 0.09896489851 | CT89: 0.1104587835 | CU89: 0.1218989874 | CV89: 0.1217953584 | CW89: 0.1299919043 | CX89: 0.1223106 | CY89: 0.1306777558 | CZ89: 0.1324953468 | DA89: 0.1308538806 | DB89: 0.1348296172 | DC89: 0.1340333346 | DD89: 0.1348732819 | DE89: 0.1525537953 | DG89: 1 | DH89: -4.04158821 | DI89: 1.951011287 | DJ89: -0.4827338129 | DK89: 0.2330319342 | DL89: -0.9418191176 | DM89: -0.1124923941 | DN89: 0.4546479338 | DO89: 0.05430388234 | DP89: -0.2194739306 | DQ89: -0.02621432018 | DR89: 0.1059474874 | DS89: 0.01265453873 | DT89: -0.05114443455 | DU89: -0.006108773734 | DV89: 0.0246891479 | DW89: 4 | DY89: 0.0126618705 | DZ89: 4 | EB89: n --> | EC89: 2 | ED89: 3 | EE89: 4 | EF89: 5 | EG89: 6 | EH89: 7 | EI89: 8 | EJ89: 9 | EK89: 10 | EL89: 11 | EM89: 12 | EN89: 13 | EO89: 14 | EP89: 15 | EQ89: 16
B90: 57 | C90: 4 | AB90: 0.0181294964 | AC90: =IF(C$34="","",IF(ROW()-ROW(S$27)>B$17,"",SMALL(INDEX($C$34:$C$10033,1,1):INDEX($C$34:$C$10033,B$17,1),ROW()-ROW(S$27)))) -> 4 | AD90: 0.59 | AE90: 10.49565494 | AF90: 0.1246897488 | AG90: 10.99740944 | AH90: 10.23328616 | AI90: 10.24679026 | AJ90: 10.58560367 | AM90: 10.57250508 | AN90: 10.54783206 | AO90: 10.49565494 | AP90: 10.48431508 | AQ90: 10.48288528 | AR90: 10.48184011 | AS90: 10.48732349 | AT90: 10.479631 | AU90: 10.46557835 | AV90: 0.1071696284 | AW90: 0.09489447053 | AX90: 0.09360959397 | AY90: 0.1096096913 | BB90: 0.1309005417 | BC90: 0.1205627364 | BD90: 0.1246897488 | BE90: 0.1250017185 | BF90: 0.123161531 | BG90: 0.1272176677 | BH90: 0.1274920221 | BI90: 0.1262552575 | BJ90: 0.1418627603 | BL90: 10.99740944 | BM90: 10.23328616 | BN90: 10.24679026 | BO90: 10.58560367 | BR90: 10.57250508 | BS90: 10.54783206 | BT90: 10.49565494 | BU90: 10.48431508 | BV90: 10.48288528 | BW90: 10.48184011 | BX90: 10.48732349 | BY90: 10.479631 | BZ90: 10.46557835 | CA90: 0.1071696284 | CB90: 0.09489447053 | CC90: 0.09360959397 | CD90: 0.1096096913 | CG90: 0.1309005417 | CH90: 0.1205627364 | CI90: 0.1246897488 | CJ90: 0.1250017185 | CK90: 0.123161531 | CL90: 0.1272176677 | CM90: 0.1274920221 | CN90: 0.1262552575 | CO90: 0.1418627603 | CQ90: 0.1085873333 | CR90: 0.09862173429 | CS90: 0.09720402072 | CT90: 0.1103155476 | CU90: 0.1212959221 | CV90: 0.1212011413 | CW90: 0.1306345531 | CX90: 0.121909573 | CY90: 0.1289701104 | CZ90: 0.1302958521 | DA90: 0.1285325281 | DB90: 0.1327013342 | DC90: 0.1322678795 | DD90: 0.1323655296 | DE90: 0.1503340251 | DG90: 1 | DH90: -4.024766039 | DI90: 1.94173245 | DJ90: -0.4824460432 | DK90: 0.2327541846 | DL90: -0.9367811375 | DM90: -0.1122913354 | DN90: 0.4519463531 | DO90: 0.05417451043 | DP90: -0.2180397298 | DQ90: -0.0261362782 | DR90: 0.1051924049 | DS90: 0.012609344 | DT90: -0.05074965951 | DU90: -0.00608332812 | DV90: 0.02448397242 | DW90: 4 | DY90: 0.01294964029 | DZ90: 4 | EB90: a1 | EC90: =IF(OR(EC40<>0,B17<EC89),"",IF(DH27=0,"determ",IFERROR(MMULT(MMULT(MINVERSE(INDEX(EB43:EQ58,1,1):INDEX(EB43:EQ58,2,2)+MMULT(TRANSPOSE(INDEX(DG30:DP10029,1,1):INDEX(DG30:DP10029,$B$17,2)),INDEX(DG30:DP10029,1,1):INDEX(DG30:DP10029,$B$17,2))),TRANSPOSE(INDEX(DG30:DP10029,1,1):INDEX(DG30:DP10029,$B$17,2))),INDEX(DW30:DW10029,1,1):INDEX(DW30:DW10029,$B$17,1)),"error"))) -> 10.17587795 | ED90: =IF(OR(EC40<>0,B17<ED89),"",IF(DI27=0,"determ",IFERROR(MMULT(MMULT(MINVERSE(INDEX(EB43:EQ58,1,1):INDEX(EB43:EQ58,3,3)+MMULT(TRANSPOSE(INDEX(DG30:DP10029,1,1):INDEX(DG30:DP10029,$B$17,3)),INDEX(DG30:DP10029,1,1):INDEX(DG30:DP10029,$B$17,3))),TRANSPOSE(INDEX(DG30:DP10029,1,1):INDEX(DG30:DP10029,$B$17,3))),INDEX(DW30:DW10029,1,1):INDEX(DW30:DW10029,$B$17,1)),"error"))) -> 9.358035728 | EE90: =IF(OR(EC40<>0,B17<EE89),"",IF(DJ27=0,"determ",IFERROR(MMULT(MMULT(MINVERSE(INDEX(EB43:EQ58,1,1):INDEX(EB43:EQ58,4,4)+MMULT(TRANSPOSE(INDEX(DG30:DP10029,1,1):INDEX(DG30:DP10029,$B$17,4)),INDEX(DG30:DP10029,1,1):INDEX(DG30:DP10029,$B$17,4))),TRANSPOSE(INDEX(DG30:DP10029,1,1):INDEX(DG30:DP10029,$B$17,4))),INDEX(DW30:DW10029,1,1):INDEX(DW30:DW10029,$B$17,1)),"error"))) -> 9.358035728 | EF90: =IF(OR(EC40<>0,B17<EF89),"",IF(DK27=0,"determ",IFERROR(MMULT(MMULT(MINVERSE(INDEX(EB43:EQ58,1,1):INDEX(EB43:EQ58,5,5)+MMULT(TRANSPOSE(INDEX(DG30:DP10029,1,1):INDEX(DG30:DP10029,$B$17,5)),INDEX(DG30:DP10029,1,1):INDEX(DG30:DP10029,$B$17,5))),TRANSPOSE(INDEX(DG30:DP10029,1,1):INDEX(DG30:DP10029,$B$17,5))),INDEX(DW30:DW10029,1,1):INDEX(DW30:DW10029,$B$17,1)),"error"))) -> 9.767739155 | EG90: =IF(OR(EC40<>0,B17<EG89),"",IF(DL27=0,"determ",IFERROR(MMULT(MMULT(MINVERSE(INDEX(EB43:EQ58,1,1):INDEX(EB43:EQ58,6,6)+MMULT(TRANSPOSE(INDEX(DG30:DP10029,1,1):INDEX(DG30:DP10029,$B$17,6)),INDEX(DG30:DP10029,1,1):INDEX(DG30:DP10029,$B$17,6))),TRANSPOSE(INDEX(DG30:DP10029,1,1):INDEX(DG30:DP10029,$B$17,6))),INDEX(DW30:DW10029,1,1):INDEX(DW30:DW10029,$B$17,1)),"error"))) -> 9.767739155 | EH90: =IF(OR(EC40<>0,B17<EH89),"",IF(DM27=0,"determ",IFERROR(MMULT(MMULT(MINVERSE(INDEX(EB43:EQ58,1,1):INDEX(EB43:EQ58,7,7)+MMULT(TRANSPOSE(INDEX(DG30:DP10029,1,1):INDEX(DG30:DP10029,$B$17,7)),INDEX(DG30:DP10029,1,1):INDEX(DG30:DP10029,$B$17,7))),TRANSPOSE(INDEX(DG30:DP10029,1,1):INDEX(DG30:DP10029,$B$17,7))),INDEX(DW30:DW10029,1,1):INDEX(DW30:DW10029,$B$17,1)),"error"))) -> 9.767739155 | EI90: =IF(OR(EC40<>0,B17<EI89),"",IF(DN27=0,"determ",IFERROR(MMULT(MMULT(MINVERSE(INDEX(EB43:EQ58,1,1):INDEX(EB43:EQ58,8,8)+MMULT(TRANSPOSE(INDEX(DG30:DP10029,1,1):INDEX(DG30:DP10029,$B$17,8)),INDEX(DG30:DP10029,1,1):INDEX(DG30:DP10029,$B$17,8))),TRANSPOSE(INDEX(DG30:DP10029,1,1):INDEX(DG30:DP10029,$B$17,8))),INDEX(DW30:DW10029,1,1):INDEX(DW30:DW10029,$B$17,1)),"error"))) -> 9.867027468 | EJ90: =IF(OR(EC40<>0,B17<EJ89),"",IF(DO27=0,"determ",IFERROR(MMULT(MMULT(MINVERSE(INDEX(EB43:EQ58,1,1):INDEX(EB43:EQ58,9,9)+MMULT(TRANSPOSE(INDEX(DG30:DP10029,1,1):INDEX(DG30:DP10029,$B$17,9)),INDEX(DG30:DP10029,1,1):INDEX(DG30:DP10029,$B$17,9))),TRANSPOSE(INDEX(DG30:DP10029,1,1):INDEX(DG30:DP10029,$B$17,9))),INDEX(DW30:DW10029,1,1):INDEX(DW30:DW10029,$B$17,1)),"error"))) -> 9.810050439 | EK90: =IF(OR($EC$40<>0,$B$17<10),"",IF(DP27=0,"determ",IFERROR(MMULT(MMULT(MINVERSE(INDEX(EB43:EQ58,1,1):INDEX(EB43:EQ58,10,10)+MMULT(TRANSPOSE(INDEX($DG$30:$DV$10029,1,1):INDEX($DG$30:$DV$10029,$B$17,10)),INDEX($DG$30:$DV$10029,1,1):INDEX($DG$30:$DV$10029,$B$17,10))),TRANSPOSE(INDEX($DG$30:$DV$10029,1,1):INDEX($DG$30:$DV$10029,$B$17,10))),INDEX($DW$30:$DW$10029,1,1):INDEX($DW$30:$DW$10029,$B$17,1)),"error"))) -> 9.810050439 | EL90: =IF(OR($EC$40<>0,$B$17<11),"",IF(DQ27=0,"determ",IFERROR(MMULT(MMULT(MINVERSE(INDEX(EB43:EQ58,1,1):INDEX(EB43:EQ58,11,11)+MMULT(TRANSPOSE(INDEX($DG$30:$DV$10029,1,1):INDEX($DG$30:$DV$10029,$B$17,11)),INDEX($DG$30:$DV$10029,1,1):INDEX($DG$30:$DV$10029,$B$17,11))),TRANSPOSE(INDEX($DG$30:$DV$10029,1,1):INDEX($DG$30:$DV$10029,$B$17,11))),INDEX($DW$30:$DW$10029,1,1):INDEX($DW$30:$DW$10029,$B$17,1)),"error"))) -> 9.810050439 | EM90: =IF(OR($EC$40<>0,$B$17<12),"",IF(DR27=0,"determ",IFERROR(MMULT(MMULT(MINVERSE(INDEX(EB43:EQ58,1,1):INDEX(EB43:EQ58,12,12)+MMULT(TRANSPOSE(INDEX($DG$30:$DV$10029,1,1):INDEX($DG$30:$DV$10029,$B$17,12)),INDEX($DG$30:$DV$10029,1,1):INDEX($DG$30:$DV$10029,$B$17,12))),TRANSPOSE(INDEX($DG$30:$DV$10029,1,1):INDEX($DG$30:$DV$10029,$B$17,12))),INDEX($DW$30:$DW$10029,1,1):INDEX($DW$30:$DW$10029,$B$17,1)),"error"))) -> 9.802325368 | EN90: =IF(OR($EC$40<>0,$B$17<13),"",IF(DS27=0,"determ",IFERROR(MMULT(MMULT(MINVERSE(INDEX(EB43:EQ58,1,1):INDEX(EB43:EQ58,13,13)+MMULT(TRANSPOSE(INDEX($DG$30:$DV$10029,1,1):INDEX($DG$30:$DV$10029,$B$17,13)),INDEX($DG$30:$DV$10029,1,1):INDEX($DG$30:$DV$10029,$B$17,13))),TRANSPOSE(INDEX($DG$30:$DV$10029,1,1):INDEX($DG$30:$DV$10029,$B$17,13))),INDEX($DW$30:$DW$10029,1,1):INDEX($DW$30:$DW$10029,$B$17,1)),"error"))) -> 9.816171213 | EO90: =IF(OR($EC$40<>0,$B$17<14),"",IF(DT27=0,"determ",IFERROR(MMULT(MMULT(MINVERSE(INDEX(EB43:EQ58,1,1):INDEX(EB43:EQ58,14,14)+MMULT(TRANSPOSE(INDEX($DG$30:$DV$10029,1,1):INDEX($DG$30:$DV$10029,$B$17,14)),INDEX($DG$30:$DV$10029,1,1):INDEX($DG$30:$DV$10029,$B$17,14))),TRANSPOSE(INDEX($DG$30:$DV$10029,1,1):INDEX($DG$30:$DV$10029,$B$17,14))),INDEX($DW$30:$DW$10029,1,1):INDEX($DW$30:$DW$10029,$B$17,1)),"error"))) -> 9.816171213 | EP90: =IF(OR($EC$40<>0,$B$17<15),"",IF(DU27=0,"determ",IFERROR(MMULT(MMULT(MINVERSE(INDEX(EB43:EQ58,1,1):INDEX(EB43:EQ58,15,15)+MMULT(TRANSPOSE(INDEX($DG$30:$DV$10029,1,1):INDEX($DG$30:$DV$10029,$B$17,15)),INDEX($DG$30:$DV$10029,1,1):INDEX($DG$30:$DV$10029,$B$17,15))),TRANSPOSE(INDEX($DG$30:$DV$10029,1,1):INDEX($DG$30:$DV$10029,$B$17,15))),INDEX($DW$30:$DW$10029,1,1):INDEX($DW$30:$DW$10029,$B$17,1)),"error"))) -> 9.816171206 | EQ90: =IF(OR($EC$40<>0,$B$17<16),"",IF(DV27=0,"determ",IFERROR(MMULT(MMULT(MINVERSE(INDEX(EB43:EQ58,1,1):INDEX(EB43:EQ58,16,16)+MMULT(TRANSPOSE(INDEX($DG$30:$DV$10029,1,1):INDEX($DG$30:$DV$10029,$B$17,16)),INDEX($DG$30:$DV$10029,1,1):INDEX($DG$30:$DV$10029,$B$17,16))),TRANSPOSE(INDEX($DG$30:$DV$10029,1,1):INDEX($DG$30:$DV$10029,$B$17,16))),INDEX($DW$30:$DW$10029,1,1):INDEX($DW$30:$DW$10029,$B$17,1)),"error"))) -> 9.858544488
B91: 58 | C91: 4 | AB91: 0.01841726619 | AC91: =IF(C$34="","",IF(ROW()-ROW(S$27)>B$17,"",SMALL(INDEX($C$34:$C$10033,1,1):INDEX($C$34:$C$10033,B$17,1),ROW()-ROW(S$27)))) -> 4 | AD91: 0.6 | AE91: 10.57665603 | AF91: 0.1221949776 | AG91: 11.09108136 | AH91: 10.33973251 | AI91: 10.35467342 | AJ91: 10.67706712 | AM91: 10.64900569 | AN91: 10.63109435 | AO91: 10.57665603 | AP91: 10.5652727 | AQ91: 10.56505651 | AR91: 10.56144266 | AS91: 10.56665225 | AT91: 10.55991952 | AU91: 10.53749981 | AV91: 0.1063278661 | AW91: 0.09299635634 | AX91: 0.0917785969 | AY91: 0.1090313085 | BB91: 0.130469698 | BC91: 0.1196121785 | BD91: 0.1221949776 | BE91: 0.1220243043 | BF91: 0.1202237802 | BG91: 0.1240017352 | BH91: 0.1245847985 | BI91: 0.1228333784 | BJ91: 0.1361354826 | BL91: 11.09108136 | BM91: 10.33973251 | BN91: 10.35467342 | BO91: 10.67706712 | BR91: 10.64900569 | BS91: 10.63109435 | BT91: 10.57665603 | BU91: 10.5652727 | BV91: 10.56505651 | BW91: 10.56144266 | BX91: 10.56665225 | BY91: 10.55991952 | BZ91: 10.53749981 | CA91: 0.1063278661 | CB91: 0.09299635634 | CC91: 0.0917785969 | CD91: 0.1090313085 | CG91: 0.130469698 | CH91: 0.1196121785 | CI91: 0.1221949776 | CJ91: 0.1220243043 | CK91: 0.1202237802 | CL91: 0.1240017352 | CM91: 0.1245847985 | CN91: 0.1228333784 | CO91: 0.1361354826 | CQ91: 0.1079227841 | CR91: 0.09677007088 | CS91: 0.09541847008 | CT91: 0.1100352171 | CU91: 0.1204683951 | CV91: 0.1203837045 | CW91: 0.130947162 | CX91: 0.1213277403 | CY91: 0.126961273 | CZ91: 0.1277782712 | DA91: 0.125949232 | DB91: 0.1301415653 | DC91: 0.1300714877 | DD91: 0.1294623989 | DE91: 0.1466949499 | DG91: 1 | DH91: -4.008212564 | DI91: 1.932592849 | DJ91: -0.4821582734 | DK91: 0.2324766006 | DL91: -0.9318156313 | DM91: -0.1120905163 | DN91: 0.4492826159 | DO91: 0.05404536982 | DP91: -0.2166253303 | DQ91: -0.0260584222 | DR91: 0.1044476952 | DS91: 0.01256428385 | DT91: -0.0503603204 | DU91: -0.006057973409 | DV91: 0.02428164513 | DW91: 4 | DY91: 0.01323741007 | DZ91: 4 | EB91: a2 | EC91: 2.257169345 | ED91: 2.257169345 | EE91: 2.197070893 | EF91: 2.197070893 | EG91: 0.8045969893 | EH91: 0.7515328769 | EI91: 0.7515328769 | EJ91: 0.7515328769 | EK91: -20.88613523 | EL91: 5.613976906 | EM91: 5.613976905 | EN91: 5.6139769 | EO91: 83.48021069 | EP91: 797.2737227 | EQ91: 797.2721957
B92: 59 | C92: 4 | AB92: =IF(AC92="","",(ROW()-ROW($AB$27))/($B$17+1)) -> 0.01870503597 | AC92: =IF(C$34="","",IF(ROW()-ROW(S$27)>B$17,"",SMALL(INDEX($C$34:$C$10033,1,1):INDEX($C$34:$C$10033,B$17,1),ROW()-ROW(S$27)))) -> 4 | AD92: 0.61 | AE92: 10.65939349 | AF92: 0.1195158232 | AG92: 11.18553738 | AH92: 10.44838675 | AI92: 10.46474358 | AJ92: 10.76908432 | AM92: 10.72587777 | AN92: 10.71508718 | AO92: 10.65939349 | AP92: 10.64828379 | AQ92: 10.64929924 | AR92: 10.64321456 | AS92: 10.64794637 | AT92: 10.64252631 | AU92: 10.61269021 | AV92: 0.1053974973 | AW92: 0.09107700396 | AX92: 0.08992654846 | AY92: 0.1082929922 | BB92: 0.1296350784 | BC92: 0.1184736566 | BD92: 0.1195158232 | BE92: 0.1189008487 | BF92: 0.1171854315 | BG92: 0.1205665768 | BH92: 0.1214095728 | BI92: 0.1192792155 | BJ92: 0.1298373626 | BL92: 11.18553738 | BM92: 10.44838675 | BN92: 10.46474358 | BO92: 10.76908432 | BR92: 10.72587777 | BS92: 10.71508718 | BT92: 10.65939349 | BU92: 10.64828379 | BV92: 10.64929924 | BW92: 10.64321456 | BX92: 10.64794637 | BY92: 10.64252631 | BZ92: 10.61269021 | CA92: 0.1053974973 | CB92: 0.09107700396 | CC92: 0.08992654846 | CD92: 0.1082929922 | CG92: 0.1296350784 | CH92: 0.1184736566 | CI92: 0.1195158232 | CJ92: 0.1189008487 | CK92: 0.1171854315 | CL92: 0.1205665768 | CM92: 0.1214095728 | CN92: 0.1192792155 | CO92: 0.1298373626 | CQ92: 0.1071696284 | CR92: 0.09489447053 | CS92: 0.09360959397 | CT92: 0.1096096913 | CU92: 0.1194133351 | CV92: 0.1193397871 | CW92: 0.1309005417 | CX92: 0.1205627364 | CY92: 0.1246897488 | CZ92: 0.1250017185 | DA92: 0.123161531 | DB92: 0.1272176677 | DC92: 0.1274920221 | DD92: 0.1262552575 | DE92: 0.1418627603 | DG92: 1 | DH92: -3.991919182 | DI92: 1.923588107 | DJ92: -0.4818705036 | DK92: 0.2321991822 | DL92: -0.9269203697 | DM92: -0.1118899369 | DN92: 0.4466555853 | DO92: 0.05391646023 | DP92: -0.2152301518 | DQ92: -0.02598075184 | DR92: 0.1037130617 | DS92: 0.01251935797 | DT92: -0.04997626525 | DU92: -0.006032709332 | DV92: 0.0240820881 | DW92: 4 | DY92: 0.01352517986 | DZ92: 4 | EB92: a3 | EC92: 0 | ED92: 1.639928341 | EE92: 1.639928341 | EF92: 3.611563706 | EG92: 3.611563706 | EH92: 3.611563706 | EI92: 0.1413210374 | EJ92: -10.81882824 | EK92: -10.81882824 | EL92: -10.81882824 | EM92: -1.883741448 | EN92: 93.8095207 | EO92: 93.80952067 | EP92: 93.80952148 | EQ92: -1671.344247
B93: 60 | C93: 4 | AB93: 0.01899280576 | AC93: =IF(C$34="","",IF(ROW()-ROW(S$27)>B$17,"",SMALL(INDEX($C$34:$C$10033,1,1):INDEX($C$34:$C$10033,B$17,1),ROW()-ROW(S$27)))) -> 4 | AD93: 0.62 | AE93: =INDEX(AG93:AU93,1,$C$17-1) -> 10.74406196 | AF93: =INDEX(AV93:BJ93,1,$C$17-1) -> 0.1166892992 | AG93: =IF(BL93="",NA(),IF($B$11="u",BL93,IF($B$11="sl",$C$19+EXP(BL93),IF($B$11="su",$C$20-EXP(-BL93),IF($B$11="b",($C$19+$C$20*EXP(BL93))/(1+EXP(BL93)),NA()))))) -> 11.2808712 | AH93: =IF(BM93="",NA(),IF($B$11="u",BM93,IF($B$11="sl",$C$19+EXP(BM93),IF($B$11="su",$C$20-EXP(-BM93),IF($B$11="b",($C$19+$C$20*EXP(BM93))/(1+EXP(BM93)),NA()))))) -> 10.55936786 | AI93: =IF(BN93="",NA(),IF($B$11="u",BN93,IF($B$11="sl",$C$19+EXP(BN93),IF($B$11="su",$C$20-EXP(-BN93),IF($B$11="b",($C$19+$C$20*EXP(BN93))/(1+EXP(BN93)),NA()))))) -> 10.57711724 | AJ93: =IF(BO93="",NA(),IF($B$11="u",BO93,IF($B$11="sl",$C$19+EXP(BO93),IF($B$11="su",$C$20-EXP(-BO93),IF($B$11="b",($C$19+$C$20*EXP(BO93))/(1+EXP(BO93)),NA()))))) -> 10.86180211 | AK93: =IF(BP93="",NA(),IF($B$11="u",BP93,IF($B$11="sl",$C$19+EXP(BP93),IF($B$11="su",$C$20-EXP(-BP93),IF($B$11="b",($C$19+$C$20*EXP(BP93))/(1+EXP(BP93)),NA()))))) ->  | AL93: =IF(BQ93="",NA(),IF($B$11="u",BQ93,IF($B$11="sl",$C$19+EXP(BQ93),IF($B$11="su",$C$20-EXP(-BQ93),IF($B$11="b",($C$19+$C$20*EXP(BQ93))/(1+EXP(BQ93)),NA()))))) ->  | AM93: =IF(BR93="",NA(),IF($B$11="u",BR93,IF($B$11="sl",$C$19+EXP(BR93),IF($B$11="su",$C$20-EXP(-BR93),IF($B$11="b",($C$19+$C$20*EXP(BR93))/(1+EXP(BR93)),NA()))))) -> 10.80337104 | AN93: =IF(BS93="",NA(),IF($B$11="u",BS93,IF($B$11="sl",$C$19+EXP(BS93),IF($B$11="su",$C$20-EXP(-BS93),IF($B$11="b",($C$19+$C$20*EXP(BS93))/(1+EXP(BS93)),NA()))))) -> 10.79995959 | AO93: =IF(BT93="",NA(),IF($B$11="u",BT93,IF($B$11="sl",$C$19+EXP(BT93),IF($B$11="su",$C$20-EXP(-BT93),IF($B$11="b",($C$19+$C$20*EXP(BT93))/(1+EXP(BT93)),NA()))))) -> 10.74406196 | AP93: =IF(BU93="",NA(),IF($B$11="u",BU93,IF($B$11="sl",$C$19+EXP(BU93),IF($B$11="su",$C$20-EXP(-BU93),IF($B$11="b",($C$19+$C$20*EXP(BU93))/(1+EXP(BU93)),NA()))))) -> 10.73354274 | AQ93: =IF(BV93="",NA(),IF($B$11="u",BV93,IF($B$11="sl",$C$19+EXP(BV93),IF($B$11="su",$C$20-EXP(-BV93),IF($B$11="b",($C$19+$C$20*EXP(BV93))/(1+EXP(BV93)),NA()))))) -> 10.73577909 | AR93: =IF(BW93="",NA(),IF($B$11="u",BW93,IF($B$11="sl",$C$19+EXP(BW93),IF($B$11="su",$C$20-EXP(-BW93),IF($B$11="b",($C$19+$C$20*EXP(BW93))/(1+EXP(BW93)),NA()))))) -> 10.72740735 | AS93: =IF(BX93="",NA(),IF($B$11="u",BX93,IF($B$11="sl",$C$19+EXP(BX93),IF($B$11="su",$C$20-EXP(-BX93),IF($B$11="b",($C$19+$C$20*EXP(BX93))/(1+EXP(BX93)),NA()))))) -> 10.73147091 | AT93: =IF(BY93="",NA(),IF($B$11="u",BY93,IF($B$11="sl",$C$19+EXP(BY93),IF($B$11="su",$C$20-EXP(-BY93),IF($B$11="b",($C$19+$C$20*EXP(BY93))/(1+EXP(BY93)),NA()))))) -> 10.72765791 | AU93: =IF(BZ93="",NA(),IF($B$11="u",BZ93,IF($B$11="sl",$C$19+EXP(BZ93),IF($B$11="su",$C$20-EXP(-BZ93),IF($B$11="b",($C$19+$C$20*EXP(BZ93))/(1+EXP(BZ93)),NA()))))) -> 10.69171711 | AV93: =IF(CA93="",NA(),IF($B$11="u",CA93,IF($B$11="sl",CA93*EXP(-BL93),IF($B$11="su",CA93*EXP(BL93),IF($B$11="b",CA93*(1+EXP(BL93))^2/(($C$20-$C$19)*EXP(BL93)),NA()))))) -> 0.1043785219 | AW93: =IF(CB93="",NA(),IF($B$11="u",CB93,IF($B$11="sl",CB93*EXP(-BM93),IF($B$11="su",CB93*EXP(BM93),IF($B$11="b",CB93*(1+EXP(BM93))^2/(($C$20-$C$19)*EXP(BM93)),NA()))))) -> 0.08913754977 | AX93: =IF(CC93="",NA(),IF($B$11="u",CC93,IF($B$11="sl",CC93*EXP(-BN93),IF($B$11="su",CC93*EXP(BN93),IF($B$11="b",CC93*(1+EXP(BN93))^2/(($C$20-$C$19)*EXP(BN93)),NA()))))) -> 0.08805439062 | AY93: =IF(CD93="",NA(),IF($B$11="u",CD93,IF($B$11="sl",CD93*EXP(-BO93),IF($B$11="su",CD93*EXP(BO93),IF($B$11="b",CD93*(1+EXP(BO93))^2/(($C$20-$C$19)*EXP(BO93)),NA()))))) -> 0.1073884024 | AZ93: =IF(CE93="",NA(),IF($B$11="u",CE93,IF($B$11="sl",CE93*EXP(-BP93),IF($B$11="su",CE93*EXP(BP93),IF($B$11="b",CE93*(1+EXP(BP93))^2/(($C$20-$C$19)*EXP(BP93)),NA()))))) ->  | BA93: =IF(CF93="",NA(),IF($B$11="u",CF93,IF($B$11="sl",CF93*EXP(-BQ93),IF($B$11="su",CF93*EXP(BQ93),IF($B$11="b",CF93*(1+EXP(BQ93))^2/(($C$20-$C$19)*EXP(BQ93)),NA()))))) ->  | BB93: =IF(CG93="",NA(),IF($B$11="u",CG93,IF($B$11="sl",CG93*EXP(-BR93),IF($B$11="su",CG93*EXP(BR93),IF($B$11="b",CG93*(1+EXP(BR93))^2/(($C$20-$C$19)*EXP(BR93)),NA()))))) -> 0.1283837055 | BC93: =IF(CH93="",NA(),IF($B$11="u",CH93,IF($B$11="sl",CH93*EXP(-BS93),IF($B$11="su",CH93*EXP(BS93),IF($B$11="b",CH93*(1+EXP(BS93))^2/(($C$20-$C$19)*EXP(BS93)),NA()))))) -> 0.1171447622 | BD93: =IF(CI93="",NA(),IF($B$11="u",CI93,IF($B$11="sl",CI93*EXP(-BT93),IF($B$11="su",CI93*EXP(BT93),IF($B$11="b",CI93*(1+EXP(BT93))^2/(($C$20-$C$19)*EXP(BT93)),NA()))))) -> 0.1166892992 | BE93: =IF(CJ93="",NA(),IF($B$11="u",CJ93,IF($B$11="sl",CJ93*EXP(-BU93),IF($B$11="su",CJ93*EXP(BU93),IF($B$11="b",CJ93*(1+EXP(BU93))^2/(($C$20-$C$19)*EXP(BU93)),NA()))))) -> 0.1156811679 | BF93: =IF(CK93="",NA(),IF($B$11="u",CK93,IF($B$11="sl",CK93*EXP(-BV93),IF($B$11="su",CK93*EXP(BV93),IF($B$11="b",CK93*(1+EXP(BV93))^2/(($C$20-$C$19)*EXP(BV93)),NA()))))) -> 0.1140898789 | BG93: =IF(CL93="",NA(),IF($B$11="u",CL93,IF($B$11="sl",CL93*EXP(-BW93),IF($B$11="su",CL93*EXP(BW93),IF($B$11="b",CL93*(1+EXP(BW93))^2/(($C$20-$C$19)*EXP(BW93)),NA()))))) -> 0.1169822255 | BH93: =IF(CM93="",NA(),IF($B$11="u",CM93,IF($B$11="sl",CM93*EXP(-BX93),IF($B$11="su",CM93*EXP(BX93),IF($B$11="b",CM93*(1+EXP(BX93))^2/(($C$20-$C$19)*EXP(BX93)),NA()))))) -> 0.1180275438 | BI93: =IF(CN93="",NA(),IF($B$11="u",CN93,IF($B$11="sl",CN93*EXP(-BY93),IF($B$11="su",CN93*EXP(BY93),IF($B$11="b",CN93*(1+EXP(BY93))^2/(($C$20-$C$19)*EXP(BY93)),NA()))))) -> 0.1156651333 | BJ93: =IF(CO93="",NA(),IF($B$11="u",CO93,IF($B$11="sl",CO93*EXP(-BZ93),IF($B$11="su",CO93*EXP(BZ93),IF($B$11="b",CO93*(1+EXP(BZ93))^2/(($C$20-$C$19)*EXP(BZ93)),NA()))))) -> 0.1232781191 | BL93: =IF(CA93="","",EC$90+EC$91*LN($AD93/(1-$AD93))) -> 11.2808712 | BM93: =IF(CB93="","",ED$90+ED$91*LN($AD93/(1-$AD93))+ED$92*($AD93-0.5)*LN($AD93/(1-$AD93))) -> 10.55936786 | BN93: =IF(CC93="","",EE$90+EE$91*LN($AD93/(1-$AD93))+EE$92*($AD93-0.5)*LN($AD93/(1-$AD93))+EE$93*($AD93-0.5)) -> 10.57711724 | BO93: =IF(CD93="","",EF$90+EF$91*LN($AD93/(1-$AD93))+EF$92*($AD93-0.5)*LN($AD93/(1-$AD93))+EF$93*($AD93-0.5)+EF$94*($AD93-0.5)^2) -> 10.86180211 | BP93: =IF(CE93="","",EG$90+EG$91*LN($AD93/(1-$AD93))+EG$92*($AD93-0.5)*LN($AD93/(1-$AD93))+EG$93*($AD93-0.5)+EG$94*($AD93-0.5)^2+EG$95*($AD93-0.5)^2*LN($AD93/(1-$AD93))) ->  | BQ93: =IF(CF93="","",EH$90+EH$91*LN($AD93/(1-$AD93))+EH$92*($AD93-0.5)*LN($AD93/(1-$AD93))+EH$93*($AD93-0.5)+EH$94*($AD93-0.5)^2+EH$95*($AD93-0.5)^2*LN($AD93/(1-$AD93))+EH$96*($AD93-0.5)^3) ->  | BR93: =IF(CG93="","",EI$90+EI$91*LN($AD93/(1-$AD93))+EI$92*($AD93-0.5)*LN($AD93/(1-$AD93))+EI$93*($AD93-0.5)+EI$94*($AD93-0.5)^2+EI$95*($AD93-0.5)^2*LN($AD93/(1-$AD93))+EI$96*($AD93-0.5)^3+EI$97*($AD93-0.5)^3*LN($AD93/(1-$AD93))) -> 10.80337104 | BS93: =IF(CH93="","",EJ$90+EJ$91*LN($AD93/(1-$AD93))+EJ$92*($AD93-0.5)*LN($AD93/(1-$AD93))+EJ$93*($AD93-0.5)+EJ$94*($AD93-0.5)^2+EJ$95*($AD93-0.5)^2*LN($AD93/(1-$AD93))+EJ$96*($AD93-0.5)^3+EJ$97*($AD93-0.5)^3*LN($AD93/(1-$AD93))+EJ$98*($AD93-0.5)^4) -> 10.79995959 | BT93: =IF(CI93="","",EK$90+EK$91*LN($AD93/(1-$AD93))+EK$92*($AD93-0.5)*LN($AD93/(1-$AD93))+EK$93*($AD93-0.5)+EK$94*($AD93-0.5)^2+EK$95*($AD93-0.5)^2*LN($AD93/(1-$AD93))+EK$96*($AD93-0.5)^3+EK$97*($AD93-0.5)^3*LN($AD93/(1-$AD93))+EK$98*($AD93-0.5)^4+EK$99*($AD93-0.5)^4*LN($AD93/(1-$AD93))+EK$100*($AD93-0.5)^5+EK$101*($AD93-0.5)^5*LN($AD93/(1-$AD93))+EK$102*($AD93-0.5)^6+EK$103*($AD93-0.5)^6*LN($AD93/(1-$AD93))+EK$104*($AD93-0.5)^7+EK$105*($AD93-0.5)^7*LN($AD93/(1-$AD93))) -> 10.74406196 | BU93: 10.73354274 | BV93: 10.73577909 | BW93: =IF(CL93="","",EN$90+EN$91*LN($AD93/(1-$AD93))+EN$92*($AD93-0.5)*LN($AD93/(1-$AD93))+EN$93*($AD93-0.5)+EN$94*($AD93-0.5)^2+EN$95*($AD93-0.5)^2*LN($AD93/(1-$AD93))+EN$96*($AD93-0.5)^3+EN$97*($AD93-0.5)^3*LN($AD93/(1-$AD93))+EN$98*($AD93-0.5)^4+EN$99*($AD93-0.5)^4*LN($AD93/(1-$AD93))+EN$100*($AD93-0.5)^5+EN$101*($AD93-0.5)^5*LN($AD93/(1-$AD93))+EN$102*($AD93-0.5)^6+EN$103*($AD93-0.5)^6*LN($AD93/(1-$AD93))+EN$104*($AD93-0.5)^7+EN$105*($AD93-0.5)^7*LN($AD93/(1-$AD93))) -> 10.72740735 | BX93: =IF(CM93="","",EO$90+EO$91*LN($AD93/(1-$AD93))+EO$92*($AD93-0.5)*LN($AD93/(1-$AD93))+EO$93*($AD93-0.5)+EO$94*($AD93-0.5)^2+EO$95*($AD93-0.5)^2*LN($AD93/(1-$AD93))+EO$96*($AD93-0.5)^3+EO$97*($AD93-0.5)^3*LN($AD93/(1-$AD93))+EO$98*($AD93-0.5)^4+EO$99*($AD93-0.5)^4*LN($AD93/(1-$AD93))+EO$100*($AD93-0.5)^5+EO$101*($AD93-0.5)^5*LN($AD93/(1-$AD93))+EO$102*($AD93-0.5)^6+EO$103*($AD93-0.5)^6*LN($AD93/(1-$AD93))+EO$104*($AD93-0.5)^7+EO$105*($AD93-0.5)^7*LN($AD93/(1-$AD93))) -> 10.73147091 | BY93: =IF(CN93="","",EP$90+EP$91*LN($AD93/(1-$AD93))+EP$92*($AD93-0.5)*LN($AD93/(1-$AD93))+EP$93*($AD93-0.5)+EP$94*($AD93-0.5)^2+EP$95*($AD93-0.5)^2*LN($AD93/(1-$AD93))+EP$96*($AD93-0.5)^3+EP$97*($AD93-0.5)^3*LN($AD93/(1-$AD93))+EP$98*($AD93-0.5)^4+EP$99*($AD93-0.5)^4*LN($AD93/(1-$AD93))+EP$100*($AD93-0.5)^5+EP$101*($AD93-0.5)^5*LN($AD93/(1-$AD93))+EP$102*($AD93-0.5)^6+EP$103*($AD93-0.5)^6*LN($AD93/(1-$AD93))+EP$104*($AD93-0.5)^7+EP$105*($AD93-0.5)^7*LN($AD93/(1-$AD93))) -> 10.72765791 | BZ93: =IF(CO93="","",EQ$90+EQ$91*LN($AD93/(1-$AD93))+EQ$92*($AD93-0.5)*LN($AD93/(1-$AD93))+EQ$93*($AD93-0.5)+EQ$94*($AD93-0.5)^2+EQ$95*($AD93-0.5)^2*LN($AD93/(1-$AD93))+EQ$96*($AD93-0.5)^3+EQ$97*($AD93-0.5)^3*LN($AD93/(1-$AD93))+EQ$98*($AD93-0.5)^4+EQ$99*($AD93-0.5)^4*LN($AD93/(1-$AD93))+EQ$100*($AD93-0.5)^5+EQ$101*($AD93-0.5)^5*LN($AD93/(1-$AD93))+EQ$102*($AD93-0.5)^6+EQ$103*($AD93-0.5)^6*LN($AD93/(1-$AD93))+EQ$104*($AD93-0.5)^7+EQ$105*($AD93-0.5)^7*LN($AD93/(1-$AD93))) -> 10.69171711 | CA93: 0.1043785219 | CB93: 0.08913754977 | CC93: 0.08805439062 | CD93: 0.1073884024 | CG93: 0.1283837055 | CH93: 0.1171447622 | CI93: 0.1166892992 | CJ93: 0.1156811679 | CK93: 0.1140898789 | CL93: 0.1169822255 | CM93: 0.1180275438 | CN93: 0.1156651333 | CO93: 0.1232781191 | CQ93: 0.1063278661 | CR93: 0.09299635634 | CS93: 0.0917785969 | CT93: 0.1090313085 | CU93: 0.1181297024 | CV93: 0.1180681308 | CW93: 0.130469698 | CX93: 0.1196121785 | CY93: 0.1221949776 | CZ93: 0.1220243043 | DA93: 0.1202237802 | DB93: 0.1240017352 | DC93: 0.1245847985 | DD93: 0.1228333784 | DE93: 0.1361354826 | DG93: 1 | DH93: -3.975877699 | DI93: 1.914714052 | DJ93: -0.4815827338 | DK93: 0.2319219295 | DL93: -0.9220932274 | DM93: -0.1116895968 | DN93: 0.4440641773 | DO93: 0.05378778139 | DP93: -0.2138536405 | DQ93: -0.02590326681 | DR93: 0.1029882208 | DS93: 0.01247456604 | DT93: -0.04959734894 | DU93: -0.006007535618 | DV93: 0.02388522689 | DW93: 4 | DY93: 0.01381294964 | DZ93: 4 | EB93: a4 | EC93: 0 | ED93: 0 | EE93: 0.3930872789 | EF93: 0.3930872789 | EG93: 5.033119699 | EH93: 5.253861893 | EI93: 5.253861893 | EJ93: 5.253861893 | EK93: 91.06425365 | EL93: -15.12013405 | EM93: -15.12013405 | EN93: -15.12013403 | EO93: -326.4794821 | EP93: -3181.837819 | EQ93: -3181.831798
B94: 61 | C94: 4 | AB94: 0.01928057554 | AC94: =IF(C$34="","",IF(ROW()-ROW(S$27)>B$17,"",SMALL(INDEX($C$34:$C$10033,1,1):INDEX($C$34:$C$10033,B$17,1),ROW()-ROW(S$27)))) -> 4 | AD94: 0.63 | AE94: 10.83085148 | AF94: 0.1137495664 | AG94: 11.37718143 | AH94: 10.67280287 | AI94: 10.69191881 | AJ94: 10.95537912 | AM94: 10.88175307 | AN94: 10.88587138 | AO94: 10.83085148 | AP94: 10.8212313 | AQ94: 10.82464821 | AR94: 10.81425624 | AS94: 10.81748208 | AT94: 10.81549544 | AU94: 10.77507728 | AV94: 0.10327094 | AW94: 0.08717899829 | AX94: 0.08616294437 | AY94: 0.106312091 | BB94: 0.1267101058 | BC94: 0.1156231583 | BD94: 0.1137495664 | BE94: 0.1124089283 | BF94: 0.1109738117 | BG94: 0.1133131871 | BH94: 0.1144986184 | BI94: 0.1120515389 | BJ94: 0.1167246247 | BL94: 11.37718143 | BM94: 10.67280287 | BN94: 10.69191881 | BO94: 10.95537912 | BR94: 10.88175307 | BS94: 10.88587138 | BT94: 10.83085148 | BU94: 10.8212313 | BV94: 10.82464821 | BW94: 10.81425624 | BX94: 10.81748208 | BY94: 10.81549544 | BZ94: 10.77507728 | CA94: 0.10327094 | CB94: 0.08717899829 | CC94: 0.08616294437 | CD94: 0.106312091 | CG94: 0.1267101058 | CH94: 0.1156231583 | CI94: 0.1137495664 | CJ94: 0.1124089283 | CK94: 0.1109738117 | CL94: 0.1133131871 | CM94: 0.1144986184 | CN94: 0.1120515389 | CO94: 0.1167246247 | CQ94: 0.1053974973 | CR94: 0.09107700396 | CS94: 0.08992654846 | CT94: 0.1082929922 | CU94: 0.1166185894 | CV94: 0.1165695853 | CW94: 0.1296350784 | CX94: 0.1184736566 | CY94: 0.1195158232 | CZ94: 0.1189008487 | DA94: 0.1171854315 | DB94: 0.1205665768 | DC94: 0.1214095728 | DD94: 0.1192792155 | DE94: 0.1298373626 | DG94: =IF(AB92="","",1) -> 1 | DH94: =IF(AB92="","",LN(AB92/(1-AB92))) -> -3.9600803 | DI94: =IF(AB92="","",(AB92-0.5)*DH94) -> 1.905966706 | DJ94: =IF(AB92="","",AB92-0.5) -> -0.481294964 | DK94: =IF(AB92="","",DJ94^2) -> 0.2316448424 | DL94: =IF(AB92="","",DH94*DK94) -> -0.9173321771 | DM94: =IF(AB92="","",DJ94^3) -> -0.1114894961 | DN94: =IF(AB92="","",DH94*DM94) -> 0.4415073572 | DO94: =IF(AB92="","",DJ94^4) -> 0.05365933301 | DP94: -0.2124952676 | DQ94: =IF(AB92="","",DJ94^5) -> -0.02582596675 | DR94: =IF($AB92="","",DH94*DQ94) -> 0.1022729022 | DS94: =IF(AB92="","",DJ94^6) -> 0.01242990774 | DT94: =IF($AB92="","",DH94*DS94) -> -0.04922343277 | DU94: =IF(AB92="","",DJ94^7) -> -0.005982451998 | DV94: =IF($AB92="","",DH94*DU94) -> 0.0236909903 | DW94: =IF(AB92="","",IF($B$11="u",AC92,IF($B$11="sl",LN(AC92-$C$19),IF($B$11="su",-LN($C$20-AC92),IF($B$11="b",LN((AC92-$C$19)/($C$20-AC92)),""))))) -> 4 | DY94: 0.01410071942 | DZ94: 4 | EB94: a5 | EC94: 0 | ED94: 0 | EE94: 0 | EF94: -16.72526554 | EG94: -16.72526554 | EH94: -16.72526554 | EI94: -7.319910946 | EJ94: 40.86285984 | EK94: 40.86285984 | EL94: 40.86285984 | EM94: 6.017123698 | EN94: -379.0213797 | EO94: -379.0213796 | EP94: -379.0213825 | EQ94: 6672.283988
B95: 62 | C95: 4 | AB95: 0.01956834532 | AC95: =IF(C$34="","",IF(ROW()-ROW(S$27)>B$17,"",SMALL(INDEX($C$34:$C$10033,1,1):INDEX($C$34:$C$10033,B$17,1),ROW()-ROW(S$27)))) -> 4 | AD95: 0.64 | AE95: 10.91994841 | AF95: 0.1107272044 | AG95: 11.47457226 | AH95: 10.78882787 | AI95: 10.8092816 | AJ95: 11.04998698 | AM95: 10.96131057 | AN95: 10.97299525 | AO95: 10.91994841 | AP95: 10.91151922 | AQ95: 10.91604652 | AR95: 10.90397874 | AS95: 10.90622542 | AT95: 10.90619544 | AU95: 10.86318215 | AV95: 0.1020747515 | AW95: 0.08520222894 | AX95: 0.0842529156 | AY95: 0.1050596549 | BB95: 0.124616945 | BC95: 0.1139066953 | BD95: 0.1107272044 | BE95: 0.1091210101 | BF95: 0.1078669823 | BG95: 0.1096165028 | BH95: 0.1108791139 | BI95: 0.1084862038 | BJ95: 0.1103869029 | BL95: 11.47457226 | BM95: 10.78882787 | BN95: 10.8092816 | BO95: 11.04998698 | BR95: 10.96131057 | BS95: 10.97299525 | BT95: 10.91994841 | BU95: 10.91151922 | BV95: 10.91604652 | BW95: 10.90397874 | BX95: 10.90622542 | BY95: 10.90619544 | BZ95: 10.86318215 | CA95: 0.1020747515 | CB95: 0.08520222894 | CC95: 0.0842529156 | CD95: 0.1050596549 | CG95: 0.124616945 | CH95: 0.1139066953 | CI95: 0.1107272044 | CJ95: 0.1091210101 | CK95: 0.1078669823 | CL95: 0.1096165028 | CM95: 0.1108791139 | CN95: 0.1084862038 | CO95: 0.1103869029 | CQ95: =IF(OR(DH$26="",DH$26="no"),"",(EC$91/($AD93*(1-$AD93)))^-1) -> 0.1043785219 | CR95: =IF(OR(DI$26="",DI$26="no"),"",(ED$91/($AD93*(1-$AD93))+ED$92*(($AD93-0.5)/($AD93*(1-$AD93))+LN($AD93/(1-$AD93))))^-1) -> 0.08913754977 | CS95: =IF(OR(DJ$26="",DJ$26="no"),"",(EE$91/($AD93*(1-$AD93))+EE$92*(($AD93-0.5)/($AD93*(1-$AD93))+LN($AD93/(1-$AD93)))+EE$93)^-1) -> 0.08805439062 | CT95: =IF(OR(DK$26="",DK$26="no"),"",(EF$91/($AD93*(1-$AD93))+EF$92*(($AD93-0.5)/($AD93*(1-$AD93))+LN($AD93/(1-$AD93)))+EF$93+2*EF$94*($AD93-0.5))^-1) -> 0.1073884024 | CU95: =IF(OR(DL$26="",DL$26="no"),"",(EG$91/($AD93*(1-$AD93))+EG$92*(($AD93-0.5)/($AD93*(1-$AD93))+LN($AD93/(1-$AD93)))+EG$93+2*EG$94*($AD93-0.5)+EG$95*(($AD93-0.5)^2/($AD93*(1-$AD93))+2*($AD93-0.5)*LN($AD93/(1-$AD93))))^-1) -> 0.1148832729 | CV95: =IF(OR(DM$26="",DM$26="no"),"",(EH$91/($AD93*(1-$AD93))+EH$92*(($AD93-0.5)/($AD93*(1-$AD93))+LN($AD93/(1-$AD93)))+EH$93+2*EH$94*($AD93-0.5)+EH$95*(($AD93-0.5)^2/($AD93*(1-$AD93))+2*($AD93-0.5)*LN($AD93/(1-$AD93)))+3*EH$96*($AD93-0.5)^2)^-1) -> 0.1148471687 | CW95: =IF(OR(DN$26="",DN$26="no"),"",(EI$91/($AD93*(1-$AD93))+EI$92*(($AD93-0.5)/($AD93*(1-$AD93))+LN($AD93/(1-$AD93)))+EI$93+2*EI$94*($AD93-0.5)+EI$95*(($AD93-0.5)^2/($AD93*(1-$AD93))+2*($AD93-0.5)*LN($AD93/(1-$AD93)))+3*EI$96*($AD93-0.5)^2+EI$97*(($AD93-0.5)^3/($AD93*(1-$AD93))+3*($AD93-0.5)^2*LN($AD93/(1-$AD93))))^-1) -> 0.1283837055 | CX95: =IF(OR(DO$26="",DO$26="no"),"",(EJ$91/($AD93*(1-$AD93))+EJ$92*(($AD93-0.5)/($AD93*(1-$AD93))+LN($AD93/(1-$AD93)))+EJ$93+2*EJ$94*($AD93-0.5)+EJ$95*(($AD93-0.5)^2/($AD93*(1-$AD93))+2*($AD93-0.5)*LN($AD93/(1-$AD93)))+3*EJ$96*($AD93-0.5)^2+EJ$97*(($AD93-0.5)^3/($AD93*(1-$AD93))+3*($AD93-0.5)^2*LN($AD93/(1-$AD93)))+4*EJ$98*($AD93-0.5)^3)^-1) -> 0.1171447622 | CY95: =IF(OR(DP$26="",DP$26="no"),"",(EK$91/($AD93*(1-$AD93))+EK$92*(($AD93-0.5)/($AD93*(1-$AD93))+LN($AD93/(1-$AD93)))+EK$93+2*EK$94*($AD93-0.5)+EK$95*(($AD93-0.5)^2/($AD93*(1-$AD93))+2*($AD93-0.5)*LN($AD93/(1-$AD93)))+3*EK$96*($AD93-0.5)^2+EK$97*(($AD93-0.5)^3/($AD93*(1-$AD93))+3*($AD93-0.5)^2*LN($AD93/(1-$AD93)))+4*EK$98*($AD93-0.5)^3+EK$99*(($AD93-0.5)^4/($AD93*(1-$AD93))+4*($AD93-0.5)^3*LN($AD93/(1-$AD93)))+5*EK$100*($AD93-0.5)^4+EK$101*(($AD93-0.5)^5/($AD93*(1-$AD93))+5*($AD93-0.5)^4*LN($AD93/(1-$AD93)))+6*EK$102*($AD93-0.5)^5+EK$103*(($AD93-0.5)^6/($AD93*(1-$AD93))+6*($AD93-0.5)^5*LN($AD93/(1-$AD93)))+7*EK$104*($AD93-0.5)^6+EK$105*(($AD93-0.5)^7/($AD93*(1-$AD93))+7*($AD93-0.5)^6*LN($AD93/(1-$AD93))))^-1) -> 0.1166892992 | CZ95: 0.1156811679 | DA95: 0.1140898789 | DB95: =IF(OR(DS$26="",DS$26="no"),"",(EN$91/($AD93*(1-$AD93))+EN$92*(($AD93-0.5)/($AD93*(1-$AD93))+LN($AD93/(1-$AD93)))+EN$93+2*EN$94*($AD93-0.5)+EN$95*(($AD93-0.5)^2/($AD93*(1-$AD93))+2*($AD93-0.5)*LN($AD93/(1-$AD93)))+3*EN$96*($AD93-0.5)^2+EN$97*(($AD93-0.5)^3/($AD93*(1-$AD93))+3*($AD93-0.5)^2*LN($AD93/(1-$AD93)))+4*EN$98*($AD93-0.5)^3+EN$99*(($AD93-0.5)^4/($AD93*(1-$AD93))+4*($AD93-0.5)^3*LN($AD93/(1-$AD93)))+5*EN$100*($AD93-0.5)^4+EN$101*(($AD93-0.5)^5/($AD93*(1-$AD93))+5*($AD93-0.5)^4*LN($AD93/(1-$AD93)))+6*EN$102*($AD93-0.5)^5+EN$103*(($AD93-0.5)^6/($AD93*(1-$AD93))+6*($AD93-0.5)^5*LN($AD93/(1-$AD93)))+7*EN$104*($AD93-0.5)^6+EN$105*(($AD93-0.5)^7/($AD93*(1-$AD93))+7*($AD93-0.5)^6*LN($AD93/(1-$AD93))))^-1) -> 0.1169822255 | DC95: =IF(OR(DT$26="",DT$26="no"),"",(EO$91/($AD93*(1-$AD93))+EO$92*(($AD93-0.5)/($AD93*(1-$AD93))+LN($AD93/(1-$AD93)))+EO$93+2*EO$94*($AD93-0.5)+EO$95*(($AD93-0.5)^2/($AD93*(1-$AD93))+2*($AD93-0.5)*LN($AD93/(1-$AD93)))+3*EO$96*($AD93-0.5)^2+EO$97*(($AD93-0.5)^3/($AD93*(1-$AD93))+3*($AD93-0.5)^2*LN($AD93/(1-$AD93)))+4*EO$98*($AD93-0.5)^3+EO$99*(($AD93-0.5)^4/($AD93*(1-$AD93))+4*($AD93-0.5)^3*LN($AD93/(1-$AD93)))+5*EO$100*($AD93-0.5)^4+EO$101*(($AD93-0.5)^5/($AD93*(1-$AD93))+5*($AD93-0.5)^4*LN($AD93/(1-$AD93)))+6*EO$102*($AD93-0.5)^5+EO$103*(($AD93-0.5)^6/($AD93*(1-$AD93))+6*($AD93-0.5)^5*LN($AD93/(1-$AD93)))+7*EO$104*($AD93-0.5)^6+EO$105*(($AD93-0.5)^7/($AD93*(1-$AD93))+7*($AD93-0.5)^6*LN($AD93/(1-$AD93))))^-1) -> 0.1180275438 | DD95: =IF(OR(DU$26="",DU$26="no"),"",(EP$91/($AD93*(1-$AD93))+EP$92*(($AD93-0.5)/($AD93*(1-$AD93))+LN($AD93/(1-$AD93)))+EP$93+2*EP$94*($AD93-0.5)+EP$95*(($AD93-0.5)^2/($AD93*(1-$AD93))+2*($AD93-0.5)*LN($AD93/(1-$AD93)))+3*EP$96*($AD93-0.5)^2+EP$97*(($AD93-0.5)^3/($AD93*(1-$AD93))+3*($AD93-0.5)^2*LN($AD93/(1-$AD93)))+4*EP$98*($AD93-0.5)^3+EP$99*(($AD93-0.5)^4/($AD93*(1-$AD93))+4*($AD93-0.5)^3*LN($AD93/(1-$AD93)))+5*EP$100*($AD93-0.5)^4+EP$101*(($AD93-0.5)^5/($AD93*(1-$AD93))+5*($AD93-0.5)^4*LN($AD93/(1-$AD93)))+6*EP$102*($AD93-0.5)^5+EP$103*(($AD93-0.5)^6/($AD93*(1-$AD93))+6*($AD93-0.5)^5*LN($AD93/(1-$AD93)))+7*EP$104*($AD93-0.5)^6+EP$105*(($AD93-0.5)^7/($AD93*(1-$AD93))+7*($AD93-0.5)^6*LN($AD93/(1-$AD93))))^-1) -> 0.1156651333 | DE95: =IF(OR(DV$26="",DV$26="no"),"",(EQ$91/($AD93*(1-$AD93))+EQ$92*(($AD93-0.5)/($AD93*(1-$AD93))+LN($AD93/(1-$AD93)))+EQ$93+2*EQ$94*($AD93-0.5)+EQ$95*(($AD93-0.5)^2/($AD93*(1-$AD93))+2*($AD93-0.5)*LN($AD93/(1-$AD93)))+3*EQ$96*($AD93-0.5)^2+EQ$97*(($AD93-0.5)^3/($AD93*(1-$AD93))+3*($AD93-0.5)^2*LN($AD93/(1-$AD93)))+4*EQ$98*($AD93-0.5)^3+EQ$99*(($AD93-0.5)^4/($AD93*(1-$AD93))+4*($AD93-0.5)^3*LN($AD93/(1-$AD93)))+5*EQ$100*($AD93-0.5)^4+EQ$101*(($AD93-0.5)^5/($AD93*(1-$AD93))+5*($AD93-0.5)^4*LN($AD93/(1-$AD93)))+6*EQ$102*($AD93-0.5)^5+EQ$103*(($AD93-0.5)^6/($AD93*(1-$AD93))+6*($AD93-0.5)^5*LN($AD93/(1-$AD93)))+7*EQ$104*($AD93-0.5)^6+EQ$105*(($AD93-0.5)^7/($AD93*(1-$AD93))+7*($AD93-0.5)^6*LN($AD93/(1-$AD93))))^-1) -> 0.1232781191 | DG95: 1 | DH95: -3.94451953 | DI95: 1.897342272 | DJ95: -0.4810071942 | DK95: 0.2313679209 | DL95: -0.9126352827 | DM95: -0.1112896345 | DN95: 0.4389841367 | DO95: 0.05353111483 | DP95: =IF(AB93="","",DH95*DO95) -> -0.2111545279 | DQ95: -0.02574885135 | DR95: 0.101566847 | DS95: 0.01238538274 | DT95: -0.04885438411 | DU95: -0.005957458202 | DV95: 0.02349931023 | DW95: 4 | DY95: 0.01438848921 | DZ95: 4 | EB95: a6 | EC95: 0 | ED95: 0 | EE95: 0 | EF95: 0 | EG95: 3.71079587 | EH95: 3.901738779 | EI95: 3.901738779 | EJ95: 3.901738779 | EK95: 115.6597171 | EL95: -57.2712045 | EM95: -57.27120449 | EN95: -57.27120446 | EO95: -675.2070707 | EP95: -7335.52978 | EQ95: -7335.515439
B96: 63 | C96: 4 | AB96: 0.01985611511 | AC96: =IF(C$34="","",IF(ROW()-ROW(S$27)>B$17,"",SMALL(INDEX($C$34:$C$10033,1,1):INDEX($C$34:$C$10033,B$17,1),ROW()-ROW(S$27)))) -> 4 | AD96: 0.65 | AE96: 11.01153657 | AF96: 0.1076487417 | AG96: 11.57315428 | AH96: 10.90758904 | AI96: 10.92934884 | AJ96: 11.14581173 | AM96: 11.04235097 | AN96: 11.06151912 | AO96: 11.01153657 | AP96: 11.00456533 | AQ96: 11.01010329 | AR96: 10.9967736 | AS96: 10.99793433 | AT96: 10.99989179 | AU96: 10.95634544 | AV96: 0.1007899564 | AW96: 0.08320800217 | AX96: 0.08232490043 | AY96: 0.1036278834 | BB96: 0.1221153012 | BC96: 0.111993573 | BD96: 0.1076487417 | BE96: 0.1058472903 | BF96: 0.1047922883 | BG96: 0.1059405893 | BH96: 0.1072199919 | BI96: 0.1050044819 | BJ96: 0.1044161077 | BL96: 11.57315428 | BM96: 10.90758904 | BN96: 10.92934884 | BO96: 11.14581173 | BR96: 11.04235097 | BS96: 11.06151912 | BT96: 11.01153657 | BU96: 11.00456533 | BV96: 11.01010329 | BW96: 10.9967736 | BX96: 10.99793433 | BY96: 10.99989179 | BZ96: 10.95634544 | CA96: 0.1007899564 | CB96: 0.08320800217 | CC96: 0.08232490043 | CD96: 0.1036278834 | CG96: 0.1221153012 | CH96: 0.111993573 | CI96: 0.1076487417 | CJ96: 0.1058472903 | CK96: 0.1047922883 | CL96: 0.1059405893 | CM96: 0.1072199919 | CN96: 0.1050044819 | CO96: 0.1044161077 | CQ96: 0.10327094 | CR96: 0.08717899829 | CS96: 0.08616294437 | CT96: 0.106312091 | CU96: 0.1129292167 | CV96: 0.1129060768 | CW96: 0.1267101058 | CX96: 0.1156231583 | CY96: 0.1137495664 | CZ96: 0.1124089283 | DA96: 0.1109738117 | DB96: 0.1133131871 | DC96: 0.1144986184 | DD96: 0.1120515389 | DE96: 0.1167246247 | DG96: 1 | DH96: -3.929188269 | DI96: 1.888837123 | DJ96: -0.4807194245 | DK96: 0.2310911651 | DL96: -0.9080006947 | DM96: -0.1110900119 | DN96: 0.4364935714 | DO96: 0.05340312657 | DP96: -0.2098309384 | DQ96: -0.02567192027 | DR96: 0.1008698079 | DS96: 0.01234099074 | DT96: -0.04849007602 | DU96: -0.005932553964 | DV96: 0.02331012144 | DW96: 4 | DY96: 0.01467625899 | DZ96: 4 | EB96: a7 | EC96: 0 | ED96: 0 | EE96: 0 | EF96: 0 | EG96: 0 | EH96: -0.6222414167 | EI96: -0.6222414167 | EJ96: -0.6222414167 | EK96: -311.451804 | EL96: 246.7153765 | EM96: 246.7153764 | EN96: 246.7153763 | EO96: 2296.919301 | EP96: 25145.84273 | EQ96: 25145.79308
B97: 64 | C97: 4 | AB97: 0.02014388489 | AC97: =IF(C$34="","",IF(ROW()-ROW(S$27)>B$17,"",SMALL(INDEX($C$34:$C$10033,1,1):INDEX($C$34:$C$10033,B$17,1),ROW()-ROW(S$27)))) -> 4 | AD97: 0.66 | AE97: 11.10579884 | AF97: 0.1045364102 | AG97: 11.67304532 | AH97: 11.0292439 | AI97: 11.05227491 | AJ97: 11.24305543 | AM97: 11.12520406 | AN97: 11.15164881 | AO97: 11.10579884 | AP97: 11.10051919 | AQ97: 11.10693943 | AR97: 11.0928205 | AS97: 11.09282882 | AT97: 11.09669865 | AU97: 11.05477379 | AV97: 0.09941655484 | AW97: 0.08119696488 | AX97: 0.08037938981 | AY97: 0.1020148949 | BB97: 0.1192245337 | BC97: 0.1098825471 | BD97: 0.1045364102 | BE97: 0.1026107426 | BF97: 0.1017660695 | BG97: 0.1023247446 | BH97: 0.1035656429 | BI97: 0.1016301255 | BJ97: 0.09891030845 | BL97: 11.67304532 | BM97: 11.0292439 | BN97: 11.05227491 | BO97: 11.24305543 | BR97: 11.12520406 | BS97: 11.15164881 | BT97: 11.10579884 | BU97: 11.10051919 | BV97: 11.10693943 | BW97: 11.0928205 | BX97: 11.09282882 | BY97: 11.09669865 | BZ97: 11.05477379 | CA97: =IF(AND($EC$41=0,CQ$26="yes"),CQ99,"") -> 0.09941655484 | CB97: 0.08119696488 | CC97: 0.08037938981 | CD97: 0.1020148949 | CG97: 0.1192245337 | CH97: 0.1098825471 | CI97: 0.1045364102 | CJ97: 0.1026107426 | CK97: 0.1017660695 | CL97: 0.1023247446 | CM97: 0.1035656429 | CN97: 0.1016301255 | CO97: 0.09891030845 | CQ97: 0.1020747515 | CR97: 0.08520222894 | CS97: 0.0842529156 | CT97: 0.1050596549 | CU97: 0.1107640205 | CV97: 0.1107536411 | CW97: 0.124616945 | CX97: 0.1139066953 | CY97: 0.1107272044 | CZ97: 0.1091210101 | DA97: 0.1078669823 | DB97: 0.1096165028 | DC97: 0.1108791139 | DD97: 0.1084862038 | DE97: 0.1103869029 | DG97: 1 | DH97: -3.914079712 | DI97: 1.880447793 | DJ97: -0.4804316547 | DK97: 0.2308145748 | DL97: -0.9034266446 | DM97: -0.1108906281 | DN97: 0.4340347578 | DO97: 0.05327536795 | DP97: -0.2085240369 | DQ97: -0.02559517318 | DR97: 0.1001815481 | DS97: 0.0122967314 | DT97: -0.04813038691 | DU97: -0.005907739014 | DV97: 0.02312336142 | DW97: 4 | DY97: 0.01496402878 | DZ97: 4 | EB97: a8 | EC97: 0 | ED97: 0 | EE97: 0 | EF97: 0 | EG97: 0 | EH97: 0 | EI97: 10.21729519 | EJ97: 50.55819969 | EK97: 50.55819969 | EL97: 50.55819969 | EM97: 2.675711469 | EN97: -636.0803288 | EO97: -636.0803286 | EP97: -636.0803351 | EQ97: 13658.84525
B98: 65 | C98: 4 | AB98: 0.02043165468 | AC98: =IF(C$34="","",IF(ROW()-ROW(S$27)>B$17,"",SMALL(INDEX($C$34:$C$10033,1,1):INDEX($C$34:$C$10033,B$17,1),ROW()-ROW(S$27)))) -> 4 | AD98: 0.67 | AE98: 11.2029192 | AF98: 0.1014080864 | AG98: 11.77437155 | AH98: 11.1539627 | AI98: 11.17822671 | AJ98: 11.34193802 | AM98: 11.21022399 | AN98: 11.24361104 | AO98: 11.2029192 | AP98: 11.1995233 | AQ98: 11.20667033 | AR98: 11.19228033 | AS98: 11.19111483 | AT98: 11.19671455 | AU98: 11.15856093 | AV98: 0.09795454668 | AW98: 0.07916965526 | AX98: 0.07841677356 | AY98: 0.1002202566 | BB98: 0.1159717395 | BC98: 0.1075731776 | BD98: 0.1014080864 | BE98: 0.09942775647 | BF98: 0.09879853735 | BG98: 0.09879916727 | BH98: 0.09995317855 | BI98: 0.09837644174 | BJ98: 0.09392400462 | BL98: 11.77437155 | BM98: 11.1539627 | BN98: 11.17822671 | BO98: 11.34193802 | BR98: 11.21022399 | BS98: 11.24361104 | BT98: 11.2029192 | BU98: 11.1995233 | BV98: 11.20667033 | BW98: 11.19228033 | BX98: 11.19111483 | BY98: 11.19671455 | BZ98: 11.15856093 | CA98: 0.09795454668 | CB98: 0.07916965526 | CC98: 0.07841677356 | CD98: 0.1002202566 | CG98: 0.1159717395 | CH98: 0.1075731776 | CI98: 0.1014080864 | CJ98: 0.09942775647 | CK98: 0.09879853735 | CL98: 0.09879916727 | CM98: 0.09995317855 | CN98: 0.09837644174 | CO98: 0.09392400462 | CQ98: 0.1007899564 | CR98: 0.08320800217 | CS98: 0.08232490043 | CT98: 0.1036278834 | CU98: 0.1083973161 | CV98: 0.108399233 | CW98: 0.1221153012 | CX98: 0.111993573 | CY98: 0.1076487417 | CZ98: 0.1058472903 | DA98: 0.1047922883 | DB98: 0.1059405893 | DC98: 0.1072199919 | DD98: 0.1050044819 | DE98: 0.1044161077 | DG98: 1 | DH98: -3.899187357 | DI98: 1.872170965 | DJ98: -0.4801438849 | DK98: 0.2305381502 | DL98: -0.8989114405 | DM98: -0.1106914831 | DN98: 0.4316068312 | DO98: 0.0531478387 | DP98: -0.2072333807 | DQ98: -0.02551860975 | DR98: 0.09950184048 | DS98: 0.01225260442 | DT98: -0.04777520024 | DU98: -0.005883013086 | DV98: 0.02293897025 | DW98: 4 | DY98: 0.01525179856 | DZ98: 4 | EB98: a9 | EC98: 0 | ED98: 0 | EE98: 0 | EF98: 0 | EG98: 0 | EH98: 0 | EI98: 0 | EJ98: -147.2303545 | EK98: -147.2303545 | EL98: -147.2303545 | EM98: -18.37792195 | EN98: 2082.376126 | EO98: 2082.376125 | EP98: 2082.376147 | EQ98: -45365.63999
B99: 66 | C99: 4 | AB99: 0.02071942446 | AC99: =IF(C$34="","",IF(ROW()-ROW(S$27)>B$17,"",SMALL(INDEX($C$34:$C$10033,1,1):INDEX($C$34:$C$10033,B$17,1),ROW()-ROW(S$27)))) -> 4 | AD99: 0.68 | AE99: 11.30308518 | AF99: 0.09827737861 | AG99: 11.87726856 | AH99: 11.28193005 | AI99: 11.30738524 | AJ99: 11.44269943 | AM99: 11.29779143 | AN99: 11.33765687 | AO99: 11.30308518 | AP99: 11.30171605 | AQ99: 11.30940951 | AR99: 11.29529637 | AS99: 11.2929841 | AT99: 11.30002756 | AU99: 11.267686 | AV99: 0.09640393197 | AW99: 0.07712650698 | AX99: 0.07643734383 | AY99: 0.09824508286 | BB99: 0.1123908277 | BC99: 0.1050661111 | BD99: 0.09827737861 | BE99: 0.09630858956 | BF99: 0.09589426807 | BG99: 0.09538533074 | BH99: 0.09641215067 | BI99: 0.09524759134 | BJ99: 0.08947833799 | BL99: 11.87726856 | BM99: 11.28193005 | BN99: 11.30738524 | BO99: 11.44269943 | BR99: 11.29779143 | BS99: 11.33765687 | BT99: 11.30308518 | BU99: 11.30171605 | BV99: 11.30940951 | BW99: 11.29529637 | BX99: 11.2929841 | BY99: 11.30002756 | BZ99: 11.267686 | CA99: 0.09640393197 | CB99: 0.07712650698 | CC99: 0.07643734383 | CD99: 0.09824508286 | CG99: 0.1123908277 | CH99: 0.1050661111 | CI99: 0.09827737861 | CJ99: 0.09630858956 | CK99: 0.09589426807 | CL99: 0.09538533074 | CM99: 0.09641215067 | CN99: 0.09524759134 | CO99: 0.08947833799 | CQ99: 0.09941655484 | CR99: 0.08119696488 | CS99: 0.08037938981 | CT99: 0.1020148949 | CU99: 0.1058406138 | CV99: 0.1058541194 | CW99: 0.1192245337 | CX99: 0.1098825471 | CY99: 0.1045364102 | CZ99: 0.1026107426 | DA99: 0.1017660695 | DB99: 0.1023247446 | DC99: 0.1035656429 | DD99: 0.1016301255 | DE99: 0.09891030845 | DG99: 1 | DH99: -3.884504977 | DI99: 1.864003467 | DJ99: -0.4798561151 | DK99: 0.2302618912 | DL99: -0.8944534623 | DM99: -0.1104925766 | DN99: 0.4292089636 | DO99: 0.05302053854 | DP99: -0.2059585458 | DQ99: -0.02544222965 | DR99: 0.09883046767 | DS99: 0.01220860948 | DT99: -0.04742440427 | DU99: -0.005858375915 | DV99: 0.0227568904 | DW99: 4 | DY99: 0.01553956835 | DZ99: 4 | EB99: a10 | EC99: 0 | ED99: 0 | EE99: 0 | EF99: 0 | EG99: 0 | EH99: 0 | EI99: 0 | EJ99: 0 | EK99: -110.19687 | EL99: 160.4907959 | EM99: 160.4907959 | EN99: 160.4907959 | EO99: 1572.562522 | EP99: 21340.64147 | EQ99: 21340.59684
B100: =B99+1 -> 67 | C100: 4 | AB100: 0.02100719424 | AC100: =IF(C$34="","",IF(ROW()-ROW(S$27)>B$17,"",SMALL(INDEX($C$34:$C$10033,1,1):INDEX($C$34:$C$10033,B$17,1),ROW()-ROW(S$27)))) -> 4 | AD100: 0.69 | AE100: 11.40649106 | AF100: 0.09515382215 | AG100: 11.98188271 | AH100: 11.41334676 | AI100: 11.43994742 | AJ100: 11.54560202 | AM100: 11.38831617 | AN100: 11.43406559 | AO100: 11.40649106 | AP100: 11.40723546 | AQ100: 11.41527297 | AR100: 11.40199655 | AS100: 11.39861485 | AT100: 11.4067216 | AU100: 11.38201672 | AV100: 0.0947647107 | AW100: 0.07506785281 | AX100: 0.07444129789 | AY100: 0.09609210718 | BB100: 0.1085212766 | BC100: 0.1023633861 | BD100: 0.09515382215 | BE100: 0.09325788761 | BF100: 0.09305271581 | BG100: 0.09209656427 | BH100: 0.09296459382 | BI100: 0.09223989844 | BJ100: 0.08557019117 | BL100: 11.98188271 | BM100: 11.41334676 | BN100: 11.43994742 | BO100: 11.54560202 | BR100: 11.38831617 | BS100: 11.43406559 | BT100: 11.40649106 | BU100: 11.40723546 | BV100: 11.41527297 | BW100: 11.40199655 | BX100: 11.39861485 | BY100: 11.4067216 | BZ100: 11.38201672 | CA100: 0.0947647107 | CB100: 0.07506785281 | CC100: 0.07444129789 | CD100: 0.09609210718 | CG100: 0.1085212766 | CH100: 0.1023633861 | CI100: 0.09515382215 | CJ100: 0.09325788761 | CK100: 0.09305271581 | CL100: 0.09209656427 | CM100: 0.09296459382 | CN100: 0.09223989844 | CO100: 0.08557019117 | CQ100: 0.09795454668 | CR100: 0.07916965526 | CS100: 0.07841677356 | CT100: 0.1002202566 | CU100: 0.1031071044 | CV100: 0.1031312713 | CW100: 0.1159717395 | CX100: 0.1075731776 | CY100: 0.1014080864 | CZ100: 0.09942775647 | DA100: 0.09879853735 | DB100: 0.09879916727 | DC100: 0.09995317855 | DD100: 0.09837644174 | DE100: 0.09392400462 | DG100: 1 | DH100: -3.870026613 | DI100: 1.855942259 | DJ100: -0.4795683453 | DK100: 0.2299857978 | DL100: -0.8900511582 | DM100: -0.1102939085 | DN100: 0.4268403612 | DO100: 0.05289346721 | DP100: -0.2046991257 | DQ100: -0.02536603255 | DR100: 0.09816722101 | DS100: 0.01216474626 | DT100: -0.04707789175 | DU100: -0.005833827233 | DV100: 0.02257706665 | DW100: 4 | DY100: 0.01582733813 | DZ100: 4 | EB100: a11 | EC100: 0 | ED100: 0 | EE100: 0 | EF100: 0 | EG100: 0 | EH100: 0 | EI100: 0 | EJ100: 0 | EK100: 0 | EL100: -578.3468309 | EM100: -578.3468309 | EN100: -578.3468308 | EO100: -3832.574184 | EP100: -56826.64154 | EQ100: -56826.51932
B101: 68 | C101: 4 | AB101: 0.02129496403 | AC101: =IF(C$34="","",IF(ROW()-ROW(S$27)>B$17,"",SMALL(INDEX($C$34:$C$10033,1,1):INDEX($C$34:$C$10033,B$17,1),ROW()-ROW(S$27)))) -> 4 | AD101: 0.7 | AE101: 11.51334162 | AF101: 0.09204315214 | AG101: 12.08837271 | AH101: 11.54843204 | AI101: 11.57612821 | AJ101: 11.6509335 | AM101: 11.48224001 | AN101: 11.53314914 | AO101: 11.51334162 | AP101: 11.51622378 | AQ101: 11.52438467 | AR101: 11.51249685 | AS101: 11.50817351 | AT101: 11.51688393 | AU101: 11.50131797 | AV101: 0.09303688287 | AW101: 0.07299392754 | AX101: 0.07242874033 | AY101: 0.09376572251 | BB101: 0.104406664 | BC101: 0.09946874706 | BD101: 0.09204315214 | BE101: 0.09027522377 | BF101: 0.09026871803 | BG101: 0.08893872138 | BH101: 0.08962528784 | BI101: 0.08934309782 | BJ101: 0.08217932552 | BL101: 12.08837271 | BM101: 11.54843204 | BN101: 11.57612821 | BO101: 11.6509335 | BR101: 11.48224001 | BS101: 11.53314914 | BT101: 11.51334162 | BU101: 11.51622378 | BV101: 11.52438467 | BW101: 11.51249685 | BX101: 11.50817351 | BY101: 11.51688393 | BZ101: 11.50131797 | CA101: 0.09303688287 | CB101: 0.07299392754 | CC101: 0.07242874033 | CD101: 0.09376572251 | CG101: 0.104406664 | CH101: 0.09946874706 | CI101: 0.09204315214 | CJ101: 0.09027522377 | CK101: 0.09026871803 | CL101: 0.08893872138 | CM101: 0.08962528784 | CN101: 0.08934309782 | CO101: 0.08217932552 | CQ101: 0.09640393197 | CR101: 0.07712650698 | CS101: 0.07643734383 | CT101: 0.09824508286 | CU101: 0.1002114224 | CV101: 0.1002451337 | CW101: 0.1123908277 | CX101: 0.1050661111 | CY101: 0.09827737861 | CZ101: 0.09630858956 | DA101: 0.09589426807 | DB101: 0.09538533074 | DC101: 0.09641215067 | DD101: 0.09524759134 | DE101: 0.08947833799 | DG101: 1 | DH101: -3.855746555 | DI101: 1.847984428 | DJ101: -0.4792805755 | DK101: 0.2297098701 | DL101: -0.8857030404 | DM101: -0.1100954787 | DN101: 0.4245002629 | DO101: 0.05276662442 | DP101: -0.2034547303 | DQ101: -0.02529001812 | DR101: 0.09751190025 | DS101: 0.01212101444 | DT101: -0.04673555968 | DU101: -0.005809366777 | DV101: 0.02239944594 | DW101: 4 | DY101: 0.01611510791 | DZ101: 4 | EB101: a12 | EC101: 0 | ED101: 0 | EE101: 0 | EF101: 0 | EG101: 0 | EH101: 0 | EI101: 0 | EJ101: 0 | EK101: 0 | EL101: 0 | EM101: 51.56601017 | EN101: 1083.745003 | EO101: 1083.745003 | EP101: 1083.745016 | EQ101: -32620.31401
B102: 69 | C102: 4 | AB102: 0.02158273381 | AC102: =IF(C$34="","",IF(ROW()-ROW(S$27)>B$17,"",SMALL(INDEX($C$34:$C$10033,1,1):INDEX($C$34:$C$10033,B$17,1),ROW()-ROW(S$27)))) -> 4 | AD102: 0.71 | AE102: 11.62385681 | AF102: 0.0889476295 | AG102: 12.19691137 | AH102: 11.68742594 | AI102: 11.71616308 | AJ102: 11.75901017 | AM102: 11.58004017 | AN102: 11.63525718 | AO102: 11.62385681 | AP102: 11.62883324 | AQ102: 11.63688288 | AR102: 11.62690623 | AS102: 11.62181757 | AT102: 11.63061373 | AU102: 11.62526625 | AV102: 0.09122044849 | AW102: 0.07090487037 | AX102: 0.0703996847 | AY102: 0.09127198743 | BB102: 0.1000930802 | BC102: 0.09638794916 | BD102: 0.0889476295 | BE102: 0.087355631 | BF102: 0.08753298522 | BG102: 0.08591084607 | BH102: 0.0864021447 | BI102: 0.08654149374 | BJ102: 0.07927332955 | BL102: 12.19691137 | BM102: 11.68742594 | BN102: 11.71616308 | BO102: 11.75901017 | BR102: 11.58004017 | BS102: 11.63525718 | BT102: 11.62385681 | BU102: 11.62883324 | BV102: 11.63688288 | BW102: 11.62690623 | BX102: 11.62181757 | BY102: 11.63061373 | BZ102: 11.62526625 | CA102: 0.09122044849 | CB102: 0.07090487037 | CC102: 0.0703996847 | CD102: 0.09127198743 | CG102: 0.1000930802 | CH102: 0.09638794916 | CI102: 0.0889476295 | CJ102: 0.087355631 | CK102: 0.08753298522 | CL102: 0.08591084607 | CM102: 0.0864021447 | CN102: 0.08654149374 | CO102: 0.07927332955 | CQ102: 0.0947647107 | CR102: 0.07506785281 | CS102: 0.07444129789 | CT102: 0.09609210718 | CU102: 0.09716937972 | CV102: 0.09721136513 | CW102: 0.1085212766 | CX102: 0.1023633861 | CY102: 0.09515382215 | CZ102: 0.09325788761 | DA102: 0.09305271581 | DB102: 0.09209656427 | DC102: 0.09296459382 | DD102: 0.09223989844 | DE102: 0.08557019117 | DG102: 1 | DH102: -3.841659332 | DI102: 1.840127182 | DJ102: -0.4789928058 | DK102: 0.229434108 | DL102: -0.8814076819 | DM102: -0.1098972871 | DN102: 0.4221879386 | DO102: 0.0526400099 | DP102: -0.2022249853 | DQ102: -0.02521418604 | DR102: 0.09686431308 | DS102: 0.01207741371 | DT102: -0.0463973091 | DU102: -0.005784994281 | DV102: 0.02222397726 | DW102: 4 | DY102: 0.0164028777 | DZ102: 4 | EB102: a13 | EC102: 0 | ED102: 0 | EE102: 0 | EF102: 0 | EG102: 0 | EH102: 0 | EI102: 0 | EJ102: 0 | EK102: 0 | EL102: 0 | EM102: 0 | EN102: -2369.787911 | EO102: -2369.78791 | EP102: -2369.787939 | EQ102: 75218.3596
B103: 70 | C103: 4 | AB103: 0.0218705036 | AC103: =IF(C$34="","",IF(ROW()-ROW(S$27)>B$17,"",SMALL(INDEX($C$34:$C$10033,1,1):INDEX($C$34:$C$10033,B$17,1),ROW()-ROW(S$27)))) -> 4 | AD103: 0.72 | AE103: 11.73827737 | AF103: 0.0858664051 | AG103: 12.30768774 | AH103: 11.83059238 | AI103: 11.8603109 | AJ103: 11.87018093 | AM103: 11.68223321 | AN103: 11.74078294 | AO103: 11.73827737 | AP103: 11.74523294 | AQ103: 11.75292795 | AR103: 11.74533323 | AS103: 11.73970009 | AT103: 11.74803194 | AU103: 11.75347063 | AV103: 0.08931540756 | AW103: 0.06880072662 | AX103: 0.06835405444 | AY103: 0.08861859528 | BB103: 0.09562753234 | BC103: 0.09312903234 | BD103: 0.0858664051 | BE103: 0.08449011781 | BF103: 0.08483258293 | BG103: 0.08300578056 | BH103: 0.08329664297 | BI103: 0.08381503961 | BJ103: 0.07681046809 | BL103: 12.30768774 | BM103: 11.83059238 | BN103: 11.8603109 | BO103: 11.87018093 | BR103: 11.68223321 | BS103: 11.74078294 | BT103: 11.73827737 | BU103: 11.74523294 | BV103: 11.75292795 | BW103: 11.74533323 | BX103: 11.73970009 | BY103: 11.74803194 | BZ103: 11.75347063 | CA103: 0.08931540756 | CB103: 0.06880072662 | CC103: 0.06835405444 | CD103: 0.08861859528 | CG103: 0.09562753234 | CH103: 0.09312903234 | CI103: 0.0858664051 | CJ103: 0.08449011781 | CK103: 0.08483258293 | CL103: 0.08300578056 | CM103: 0.08329664297 | CN103: 0.08381503961 | CO103: 0.07681046809 | CQ103: 0.09303688287 | CR103: 0.07299392754 | CS103: 0.07242874033 | CT103: 0.09376572251 | CU103: 0.09399768015 | CV103: 0.0940465551 | CW103: 0.104406664 | CX103: 0.09946874706 | CY103: 0.09204315214 | CZ103: 0.09027522377 | DA103: 0.09026871803 | DB103: 0.08893872138 | DC103: 0.08962528784 | DD103: 0.08934309782 | DE103: 0.08217932552 | DG103: 1 | DH103: -3.827759692 | DI103: 1.832367841 | DJ103: -0.478705036 | DK103: 0.2291585115 | DL103: -0.8771637132 | DM103: -0.1096993335 | DN103: 0.4199026869 | DO103: 0.05251362338 | DP103: -0.2010095308 | DQ103: -0.02513853597 | DR103: 0.09622427469 | DS103: 0.01203394376 | DT103: -0.04606304488 | DU103: -0.005760709483 | DV103: 0.02205061155 | DW103: 4 | DY103: 0.01669064748 | DZ103: 4 | EB103: a14 | EC103: 0 | ED103: 0 | EE103: 0 | EF103: 0 | EG103: 0 | EH103: 0 | EI103: 0 | EJ103: 0 | EK103: 0 | EL103: 0 | EM103: 0 | EN103: 0 | EO103: -735.9559283 | EP103: -18905.80202 | EQ103: -18905.75945
B104: 71 | C104: 4 | AB104: 0.02215827338 | AC104: =IF(C$34="","",IF(ROW()-ROW(S$27)>B$17,"",SMALL(INDEX($C$34:$C$10033,1,1):INDEX($C$34:$C$10033,B$17,1),ROW()-ROW(S$27)))) -> 4 | AD104: 0.73 | AE104: 11.85687156 | AF104: 0.08279591407 | AG104: 12.42090954 | AH104: 11.97822256 | AI104: 12.00885735 | AJ104: 11.98483183 | AM104: 11.78937963 | AN104: 11.85016994 | AO104: 11.85687156 | AP104: 11.86561727 | AQ104: 11.87271143 | AR104: 11.86789461 | AS104: 11.86197602 | AT104: 11.86929226 | AU104: 11.88550055 | AV104: 0.08732176007 | AW104: 0.06668144878 | AX104: 0.06629168319 | AY104: 0.08581480537 | BB104: 0.09105644232 | BC104: 0.08970254145 | BD104: 0.08279591407 | BE104: 0.08166617451 | BF104: 0.08215142818 | BG104: 0.08021069071 | BH104: 0.08030425478 | BI104: 0.08114036995 | BJ104: 0.07474065448 | BL104: 12.42090954 | BM104: 11.97822256 | BN104: 12.00885735 | BO104: 11.98483183 | BR104: 11.78937963 | BS104: 11.85016994 | BT104: 11.85687156 | BU104: 11.86561727 | BV104: 11.87271143 | BW104: 11.86789461 | BX104: 11.86197602 | BY104: 11.86929226 | BZ104: 11.88550055 | CA104: 0.08732176007 | CB104: 0.06668144878 | CC104: 0.06629168319 | CD104: 0.08581480537 | CG104: 0.09105644232 | CH104: 0.08970254145 | CI104: 0.08279591407 | CJ104: 0.08166617451 | CK104: 0.08215142818 | CL104: 0.08021069071 | CM104: 0.08030425478 | CN104: 0.08114036995 | CO104: 0.07474065448 | CQ104: 0.09122044849 | CR104: 0.07090487037 | CS104: 0.0703996847 | CT104: 0.09127198743 | CU104: 0.09071362287 | CV104: 0.09076792969 | CW104: 0.1000930802 | CX104: 0.09638794916 | CY104: 0.0889476295 | CZ104: 0.087355631 | DA104: 0.08753298522 | DB104: 0.08591084607 | DC104: 0.0864021447 | DD104: 0.08654149374 | DE104: 0.07927332955 | DG104: 1 | DH104: -3.814042597 | DI104: 1.824703832 | DJ104: -0.4784172662 | DK104: 0.2288830806 | DL104: -0.8729698191 | DM104: -0.1095016177 | DN104: 0.4176438343 | DO104: 0.05238746458 | DP104: -0.1998080215 | DQ104: -0.02506306759 | DR104: 0.09559160739 | DS104: 0.01199060428 | DT104: -0.04573267548 | DU104: -0.005736512118 | DV104: 0.02187930158 | DW104: 4 | DY104: 0.01697841727 | DZ104: 4 | EB104: a15 | EC104: 0 | ED104: 0 | EE104: 0 | EF104: 0 | EG104: 0 | EH104: 0 | EI104: 0 | EJ104: 0 | EK104: 0 | EL104: 0 | EM104: 0 | EN104: 0 | EO104: 0 | EP104: 28799.96228 | EQ104: 28799.89389
B105: 72 | C105: 4 | AB105: 0.02244604317 | AC105: =IF(C$34="","",IF(ROW()-ROW(S$27)>B$17,"",SMALL(INDEX($C$34:$C$10033,1,1):INDEX($C$34:$C$10033,B$17,1),ROW()-ROW(S$27)))) -> 4 | AD105: 0.74 | AE105: 11.9799434 | AF105: 0.0797302998 | AG105: 12.53680611 | AH105: 12.13063912 | AI105: 12.16211898 | AJ105: 12.10339157 | AM105: 11.90208931 | AN105: 11.96391981 | AO105: 11.9799434 | AP105: 11.99021598 | AQ105: 11.99646689 | AR105: 11.99472637 | AS105: 11.98881084 | AT105: 11.99459344 | AU105: 12.02092073 | AV105: 0.08523950602 | AW105: 0.06454689691 | AX105: 0.06421231447 | AY105: 0.08287133702 | BB105: 0.08642431957 | BC105: 0.08612166935 | BD105: 0.0797302998 | BE105: 0.07886829067 | BF105: 0.0794708344 | BG105: 0.07750751547 | BH105: 0.07741483591 | BI105: 0.07849182788 | BJ105: 0.07300481628 | BL105: 12.53680611 | BM105: 12.13063912 | BN105: 12.16211898 | BO105: 12.10339157 | BR105: 11.90208931 | BS105: 11.96391981 | BT105: 11.9799434 | BU105: 11.99021598 | BV105: 11.99646689 | BW105: 11.99472637 | BX105: 11.98881084 | BY105: 11.99459344 | BZ105: 12.02092073 | CA105: 0.08523950602 | CB105: 0.06454689691 | CC105: 0.06421231447 | CD105: 0.08287133702 | CG105: 0.08642431957 | CH105: 0.08612166935 | CI105: 0.0797302998 | CJ105: 0.07886829067 | CK105: 0.0794708344 | CL105: 0.07750751547 | CM105: 0.07741483591 | CN105: 0.07849182788 | CO105: 0.07300481628 | CQ105: 0.08931540756 | CR105: 0.06880072662 | CS105: 0.06835405444 | CT105: 0.08861859528 | CU105: 0.08733480631 | CV105: 0.08739305585 | CW105: 0.09562753234 | CX105: 0.09312903234 | CY105: 0.0858664051 | CZ105: 0.08449011781 | DA105: 0.08483258293 | DB105: 0.08300578056 | DC105: 0.08329664297 | DD105: 0.08381503961 | DE105: 0.07681046809 | DG105: 1 | DH105: -3.800503209 | DI105: 1.817132686 | DJ105: -0.4781294964 | DK105: 0.2286078153 | DL105: -0.8688247359 | DM105: -0.1093041396 | DN105: 0.4154107334 | DO105: 0.05226153323 | DP105: -0.1986201248 | DQ105: -0.02498778056 | DR105: 0.09496614023 | DS105: 0.01194739494 | DT105: -0.0454061128 | DU105: -0.005712401925 | DV105: 0.02171000185 | DW105: 4 | DY105: 0.01726618705 | DZ105: 4 | EB105: a16 | EC105: 0 | ED105: 0 | EE105: 0 | EF105: 0 | EG105: 0 | EH105: 0 | EI105: 0 | EJ105: 0 | EK105: 0 | EL105: 0 | EM105: 0 | EN105: 0 | EO105: 0 | EP105: 0 | EQ105: 18914.46006
B106: 73 | C106: 4 | AB106: 0.02273381295 | AC106: =IF(C$34="","",IF(ROW()-ROW(S$27)>B$17,"",SMALL(INDEX($C$34:$C$10033,1,1):INDEX($C$34:$C$10033,B$17,1),ROW()-ROW(S$27)))) -> 4 | AD106: 0.75 | AE106: 12.10784247 | AF106: 0.07666187309 | AG106: 12.65563193 | AH106: 12.28820107 | AI106: 12.32044799 | AJ106: 12.22633803 | AM106: 12.02102785 | AN106: 12.08260134 | AO106: 12.10784247 | AP106: 12.11930628 | AQ106: 12.12448281 | AR106: 12.12599756 | AS106: 12.1203919 | AT106: 12.12419293 | AU106: 12.15933352 | AV106: 0.08306864542 | AW106: 0.0623968383 | AX106: 0.06211560048 | AY106: 0.07980022821 | BB106: 0.08177266686 | BC106: 0.08240230133 | BD106: 0.07666187309 | BE106: 0.07607851658 | BF106: 0.07677014805 | BG106: 0.07487337843 | BH106: 0.07461297645 | BI106: 0.07584253162 | BJ106: 0.07153298569 | BL106: 12.65563193 | BM106: 12.28820107 | BN106: 12.32044799 | BO106: 12.22633803 | BR106: 12.02102785 | BS106: 12.08260134 | BT106: 12.10784247 | BU106: 12.11930628 | BV106: 12.12448281 | BW106: 12.12599756 | BX106: 12.1203919 | BY106: 12.12419293 | BZ106: 12.15933352 | CA106: 0.08306864542 | CB106: 0.0623968383 | CC106: 0.06211560048 | CD106: 0.07980022821 | CG106: 0.08177266686 | CH106: 0.08240230133 | CI106: 0.07666187309 | CJ106: 0.07607851658 | CK106: 0.07677014805 | CL106: 0.07487337843 | CM106: 0.07461297645 | CN106: 0.07584253162 | CO106: 0.07153298569 | CQ106: 0.08732176007 | CR106: 0.06668144878 | CS106: 0.06629168319 | CT106: 0.08581480537 | CU106: 0.08387884097 | CV106: 0.08393955287 | CW106: 0.09105644232 | CX106: 0.08970254145 | CY106: 0.08279591407 | CZ106: 0.08166617451 | DA106: 0.08215142818 | DB106: 0.08021069071 | DC106: 0.08030425478 | DD106: 0.08114036995 | DE106: 0.07474065448 | DG106: 1 | DH106: -3.78713688 | DI106: 1.809652026 | DJ106: -0.4778417266 | DK106: 0.2283327157 | DL106: -0.8647272486 | DM106: -0.1091068991 | DN106: 0.4132027615 | DO106: 0.05213582906 | DP106: -0.197445521 | DQ106: -0.02491267458 | DR106: 0.09434770867 | DS106: 0.01190431543 | DT106: -0.04508327202 | DU106: -0.005688378641 | DV106: 0.02154266854 | DW106: 4 | DY106: 0.01755395683 | DZ106: 4
B107: 74 | C107: 4 | AB107: 0.02302158273 | AC107: =IF(C$34="","",IF(ROW()-ROW(S$27)>B$17,"",SMALL(INDEX($C$34:$C$10033,1,1):INDEX($C$34:$C$10033,B$17,1),ROW()-ROW(S$27)))) -> 4 | AD107: 0.76 | AE107: 12.24097592 | AF107: 0.07358161586 | AG107: 12.77767081 | AH107: 12.45130965 | AI107: 12.48423809 | AJ107: 12.35420612 | AM107: 12.14692421 | AN107: 12.20686119 | AO107: 12.24097592 | AP107: 12.25322729 | AQ107: 12.2571177 | AR107: 12.26192741 | AS107: 12.25694325 | AT107: 12.25842216 | AU107: 12.3004286 | AV107: 0.08080917827 | AW107: 0.06023094634 | AX107: 0.06000110028 | AY107: 0.07661466288 | BB107: 0.077139149 | BC107: 0.07856294328 | BD107: 0.07358161586 | BE107: 0.07327710985 | BF107: 0.0740275241 | BG107: 0.07228103042 | BH107: 0.07187833981 | BI107: 0.07316551364 | BJ107: 0.07024160017 | BL107: 12.77767081 | BM107: 12.45130965 | BN107: 12.48423809 | BO107: 12.35420612 | BR107: 12.14692421 | BS107: 12.20686119 | BT107: 12.24097592 | BU107: 12.25322729 | BV107: 12.2571177 | BW107: 12.26192741 | BX107: 12.25694325 | BY107: 12.25842216 | BZ107: 12.3004286 | CA107: 0.08080917827 | CB107: 0.06023094634 | CC107: 0.06000110028 | CD107: 0.07661466288 | CG107: 0.077139149 | CH107: 0.07856294328 | CI107: 0.07358161586 | CJ107: 0.07327710985 | CK107: 0.0740275241 | CL107: 0.07228103042 | CM107: 0.07187833981 | CN107: 0.07316551364 | CO107: 0.07024160017 | CQ107: 0.08523950602 | CR107: 0.06454689691 | CS107: 0.06421231447 | CT107: 0.08287133702 | CU107: 0.08036307952 | CV107: 0.0804248198 | CW107: 0.08642431957 | CX107: 0.08612166935 | CY107: 0.0797302998 | CZ107: 0.07886829067 | DA107: 0.0794708344 | DB107: 0.07750751547 | DC107: 0.07741483591 | DD107: 0.07849182788 | DE107: 0.07300481628 | DG107: 1 | DH107: -3.773939141 | DI107: 1.80225957 | DJ107: -0.4775539568 | DK107: 0.2280577817 | DL107: -0.8606761888 | DM107: -0.108909896 | DN107: 0.4110193195 | DO107: 0.05201035179 | DP107: -0.1962839024 | DQ107: -0.02483774929 | DR107: 0.09373615424 | DS107: 0.01186136545 | DT107: -0.04476407136 | DU107: -0.005664442006 | DV107: 0.0213772594 | DW107: 4 | DY107: 0.01784172662 | DZ107: 4 | EC107: Central moments (unbounded metalog only). Skewness and kurtosis are standardized.
B108: 75 | C108: 4 | AB108: 0.02330935252 | AC108: =IF(C$34="","",IF(ROW()-ROW(S$27)>B$17,"",SMALL(INDEX($C$34:$C$10033,1,1):INDEX($C$34:$C$10033,B$17,1),ROW()-ROW(S$27)))) -> 4 | AD108: 0.77 | AE108: 12.37982284 | AF108: 0.07047974098 | AG108: 12.90324096 | AH108: 12.62041557 | AI108: 12.6539315 | AJ108: 12.48759733 | AM108: 12.28057982 | AN108: 12.33743647 | AO108: 12.37982284 | AP108: 12.39239746 | AQ108: 12.39481814 | AR108: 12.40280643 | AS108: 12.39874448 | AT108: 12.39770363 | AU108: 12.44403996 | AV108: 0.07846110456 | AW108: 0.05804879856 | AX108: 0.05786827695 | AY108: 0.07332877151 | BB108: 0.07255703027 | BC108: 0.07462452305 | BD108: 0.07047974098 | BE108: 0.07044331232 | BF108: 0.07122088515 | BG108: 0.06969942493 | BH108: 0.06918605019 | BI108: 0.07043494564 | BJ108: 0.06903082103 | BL108: 12.90324096 | BM108: 12.62041557 | BN108: 12.6539315 | BO108: 12.48759733 | BR108: 12.28057982 | BS108: 12.33743647 | BT108: 12.37982284 | BU108: 12.39239746 | BV108: 12.39481814 | BW108: 12.40280643 | BX108: 12.39874448 | BY108: 12.39770363 | BZ108: 12.44403996 | CA108: 0.07846110456 | CB108: 0.05804879856 | CC108: 0.05786827695 | CD108: 0.07332877151 | CG108: 0.07255703027 | CH108: 0.07462452305 | CI108: 0.07047974098 | CJ108: 0.07044331232 | CK108: 0.07122088515 | CL108: 0.06969942493 | CM108: 0.06918605019 | CN108: 0.07043494564 | CO108: 0.06903082103 | CQ108: 0.08306864542 | CR108: 0.0623968383 | CS108: 0.06211560048 | CT108: 0.07980022821 | CU108: 0.07680437077 | CV108: 0.07686578575 | CW108: 0.08177266686 | CX108: 0.08240230133 | CY108: 0.07666187309 | CZ108: 0.07607851658 | DA108: 0.07677014805 | DB108: 0.07487337843 | DC108: 0.07461297645 | DD108: 0.07584253162 | DE108: 0.07153298569 | DG108: 1 | DH108: -3.760905695 | DI108: 1.794953121 | DJ108: -0.4772661871 | DK108: 0.2277830133 | DL108: -0.8566704319 | DM108: -0.1087131302 | DN108: 0.4088598306 | DO108: 0.05188510115 | DP108: -0.1951349724 | DQ108: -0.02476300439 | DR108: 0.09313132423 | DS108: 0.01181854469 | DT108: -0.04444843201 | DU108: -0.005640591758 | DV108: 0.02121373367 | DW108: 4 | DY108: 0.0181294964 | DZ108: 4 | EC108: M2 | ED108: M3 | EE108: M4 | EF108: M5 | EG108: M6 | EH108: M7 | EI108: M8 | EJ108: M9 | EK108: M10 | EL108: M11 | EM108: M12 | EN108: M13 | EO108: M14 | EP108: M15 | EQ108: M16 | ER108: data
B109: 76 | C109: 4 | AB109: 0.0235971223 | AC109: =IF(C$34="","",IF(ROW()-ROW(S$27)>B$17,"",SMALL(INDEX($C$34:$C$10033,1,1):INDEX($C$34:$C$10033,B$17,1),ROW()-ROW(S$27)))) -> 4 | AD109: 0.78 | AE109: 12.52495189 | AF109: 0.06734631887 | AG109: 13.03270129 | AH109: 12.79602767 | AI109: 12.83002752 | AJ109: 12.62719125 | AM109: 12.42287959 | AN109: 12.4751697 | AO109: 12.52495189 | AP109: 12.53733545 | AQ109: 12.5381402 | AR109: 12.54902207 | AS109: 12.54615449 | AT109: 12.54257033 | AU109: 12.59020987 | AV109: 0.07602442429 | AW109: 0.05584987378 | AX109: 0.05571649383 | AY109: 0.06995741134 | BB109: 0.06805486511 | BC109: 0.0706100625 | BD109: 0.06734631887 | BE109: 0.06755629972 | BF109: 0.06832909585 | BG109: 0.06709455725 | BH109: 0.06650722502 | BI109: 0.06762743364 | BJ109: 0.06778319701 | BL109: 13.03270129 | BM109: 12.79602767 | BN109: 12.83002752 | BO109: 12.62719125 | BR109: 12.42287959 | BS109: 12.4751697 | BT109: 12.52495189 | BU109: 12.53733545 | BV109: 12.5381402 | BW109: 12.54902207 | BX109: 12.54615449 | BY109: 12.54257033 | BZ109: 12.59020987 | CA109: 0.07602442429 | CB109: 0.05584987378 | CC109: 0.05571649383 | CD109: 0.06995741134 | CG109: 0.06805486511 | CH109: 0.0706100625 | CI109: 0.06734631887 | CJ109: 0.06755629972 | CK109: 0.06832909585 | CL109: 0.06709455725 | CM109: 0.06650722502 | CN109: 0.06762743364 | CO109: 0.06778319701 | CQ109: 0.08080917827 | CR109: 0.06023094634 | CS109: 0.06000110028 | CT109: 0.07661466288 | CU109: 0.0732188428 | CV109: 0.07327868828 | CW109: 0.077139149 | CX109: 0.07856294328 | CY109: 0.07358161586 | CZ109: 0.07327710985 | DA109: 0.0740275241 | DB109: 0.07228103042 | DC109: 0.07187833981 | DD109: 0.07316551364 | DE109: 0.07024160017 | DG109: 1 | DH109: -3.748032405 | DI109: 1.787730565 | DJ109: -0.4769784173 | DK109: 0.2275084105 | DL109: -0.8527088952 | DM109: -0.1085166016 | DN109: 0.4067237392 | DO109: 0.05176007687 | DP109: -0.1939984454 | DQ109: -0.02468843954 | DR109: 0.09253307144 | DS109: 0.01177585282 | DT109: -0.04413627796 | DU109: -0.005616827639 | DV109: 0.021052052 | DW109: 4 | DY109: 0.01841726619 | DZ109: 4 | EB109: mean | EC109: =IF(OR(ISERROR(AV29),$B$11<>"u"),"",EC90 + (322*EC101 + 45*EC102 + 66*EC105 + 10080*EC92 + 1680*EC94 + 1680*EC97 + 252*EC98)/20160) -> 10.17587795 | ED109: 10.1779999 | EE109: 10.1779999 | EF109: 10.17974888 | EI109: 10.17913667 | EJ109: 10.17867852 | EK109: 10.17867852 | EL109: 10.17867852 | EM109: 10.17875732 | EN109: 10.17893496 | EO109: 10.17893496 | EP109: 10.17893499 | EQ109: 10.1782501 | ER109: =IF(N$9<>"(none)","",AVERAGE(INDEX(AC$28:AC$10027,1,1):INDEX(AC$28:AC$10027,B$17,1))) -> 10.17587795
B110: 77 | C110: 4 | AB110: 0.02388489209 | AC110: =IF(C$34="","",IF(ROW()-ROW(S$27)>B$17,"",SMALL(INDEX($C$34:$C$10033,1,1):INDEX($C$34:$C$10033,B$17,1),ROW()-ROW(S$27)))) -> 4 | AD110: 0.79 | AE110: 12.6770428 | AF110: 0.06417197677 | AG110: 13.16645898 | AH110: 12.97872375 | AI110: 13.0130931 | AJ110: 12.77375994 | AM110: 12.5748053 | AN110: 12.62102677 | AO110: 12.6770428 | AP110: 12.68868523 | AQ110: 12.68777497 | AR110: 12.70109004 | AS110: 12.69964136 | AT110: 12.69368821 | AU110: 12.73925909 | AV110: 0.07349913747 | AW110: 0.05363354809 | AX110: 0.05354500969 | AY110: 0.06651593294 | BB110: 0.06365641188 | BC110: 0.06654422792 | BD110: 0.06417197677 | BE110: 0.06459633358 | BF110: 0.06533335772 | BG110: 0.06443071823 | BH110: 0.06380978357 | BI110: 0.06472333281 | BJ110: 0.06636563172 | BL110: 13.16645898 | BM110: 12.97872375 | BN110: 13.0130931 | BO110: 12.77375994 | BR110: 12.5748053 | BS110: 12.62102677 | BT110: 12.6770428 | BU110: 12.68868523 | BV110: 12.68777497 | BW110: 12.70109004 | BX110: 12.69964136 | BY110: 12.69368821 | BZ110: 12.73925909 | CA110: 0.07349913747 | CB110: 0.05363354809 | CC110: 0.05354500969 | CD110: 0.06651593294 | CG110: 0.06365641188 | CH110: 0.06654422792 | CI110: 0.06417197677 | CJ110: 0.06459633358 | CK110: 0.06533335772 | CL110: 0.06443071823 | CM110: 0.06380978357 | CN110: 0.06472333281 | CO110: 0.06636563172 | CQ110: 0.07846110456 | CR110: 0.05804879856 | CS110: 0.05786827695 | CT110: 0.07332877151 | CU110: 0.0696217184 | CV110: 0.06967888363 | CW110: 0.07255703027 | CX110: 0.07462452305 | CY110: 0.07047974098 | CZ110: 0.07044331232 | DA110: 0.07122088515 | DB110: 0.06969942493 | DC110: 0.06918605019 | DD110: 0.07043494564 | DE110: 0.06903082103 | DG110: 1 | DH110: -3.735315291 | DI110: 1.780589865 | DJ110: -0.4766906475 | DK110: 0.2272339734 | DL110: -0.8487905355 | DM110: -0.1083203099 | DN110: 0.4046105099 | DO110: 0.05163527867 | DP110: -0.192874046 | DQ110: -0.02461405442 | DR110: 0.09194125385 | DS110: 0.01173328954 | DT110: -0.04382753583 | DU110: -0.005593149387 | DV110: 0.02089217643 | DW110: 4 | DY110: =IF(AB92="",NA(),AB92) -> 0.01870503597 | DZ110: =IF(AC92="",NA(),AC92) -> 4 | EB110: std dev | EC110: =IF(OR(ISERROR(AV29),$B$11<>"u"),"",SQRT(EC100^2/11264 + (461*EC101^2)/580608 + (499*EC101*EC102)/2128896 + (9*EC102^2)/652288 + (1627*EC100*EC103)/5322240 + (13063*EC103^2)/53222400 + (EC100*EC104)/26624 + (88069*EC103*EC104)/1291530240 + EC104^2/245760 + (257*EC101*EC105)/665280 + (69193*EC102*EC105)/1291530240 + (34847*EC105^2)/741312000 + (23*EC100*EC91)/720 + (7*EC103*EC91)/180 + (11*EC104*EC91)/1680 + (11*EC101*EC92)/480 + (29*EC102*EC92)/6720 + (521*EC105*EC92)/90720 + EC92^2/12 + (EC100*EC93)/224 + (11*EC103*EC93)/1680 + (EC104*EC93)/1152 + EC91*EC93 + EC93^2/12 + (47*EC101*EC94)/12096 + (EC102*EC94)/2016 + (49*EC105*EC94)/57600 + (EC92*EC94)/12 + EC94^2/180 + (11*EC100*EC95)/1680 + (409*EC103*EC95)/45360 + (563*EC104*EC95)/403200 + (2*EC91*EC95)/3 + (EC93*EC95)/6 + EC95^2/12 + (EC100*EC96)/1152 + (563*EC103*EC96)/403200 + (EC104*EC96)/5632 + (EC91*EC96)/6 + (EC93*EC96)/40 + (23*EC95*EC96)/720 + EC96^2/448 + (1153*EC101*EC97)/181440 + (59*EC102*EC97)/57600 + (313*EC105*EC97)/201600 + (EC92*EC97)/12 + (13*EC94*EC97)/720 + EC97^2/80 + (67*EC101*EC98)/67200 + (3*EC102*EC98)/24640 + (851*EC105*EC98)/3801600 + (7*EC92*EC98)/360 + (EC94*EC98)/420 + (EC97*EC98)/224 + EC98^2/3600 + (563*EC100*EC99)/403200 + (47*EC103*EC99)/22400 + (1627*EC104*EC99)/5322240 + (EC91*EC99)/6 + (23*EC93*EC99)/720 + (7*EC95*EC99)/180 + (11*EC96*EC99)/1680 + (409*EC99^2)/90720 + (EC101^2*PI()^2)/33792 + (EC103^2*PI()^2)/159744 + (EC101*EC105*PI()^2)/79872 + (EC105^2*PI()^2)/737280 + (EC103*EC91*PI()^2)/672 + (EC91^2*PI()^2)/3 + (EC101*EC92*PI()^2)/672 + (EC105*EC92*PI()^2)/3456 + (EC92^2*PI()^2)/36 + (EC103*EC95*PI()^2)/3456 + (EC91*EC95*PI()^2)/18 + (EC95^2*PI()^2)/240 + (EC101*EC97*PI()^2)/3456 + (EC105*EC97*PI()^2)/16896 + (EC92*EC97*PI()^2)/120 + (EC97^2*PI()^2)/1344 + (EC103*EC99*PI()^2)/16896 + (EC91*EC99*PI()^2)/120 + (EC95*EC99*PI()^2)/672 + (EC99^2*PI()^2)/6912)) -> 4.094052323 | ED110: 4.209831689 | EE110: 4.209337887 | EF110: 4.235606243 | EI110: 4.233577726 | EJ110: 4.232840333 | EK110: 4.230860992 | EL110: 4.231468846 | EM110: 4.231664224 | EN110: 4.232134531 | EO110: 4.232512084 | EP110: 4.23322127 | EQ110: 4.231825297 | ER110: =IF(ER109="","",STDEV(INDEX(AC$28:AC$10027,1,1):INDEX(AC$28:AC$10027,B$17,1))) -> 4.2286553
B111: 78 | C111: 4 | AB111: 0.02417266187 | AC111: =IF(C$34="","",IF(ROW()-ROW(S$27)>B$17,"",SMALL(INDEX($C$34:$C$10033,1,1):INDEX($C$34:$C$10033,B$17,1),ROW()-ROW(S$27)))) -> 4 | AD111: 0.8 | AE111: 12.83691274 | AF111: 0.0609486677 | AG111: 13.30497909 | AH111: 13.16916389 | AI111: 13.20377593 | AJ111: 12.92818555 | AM111: 12.73745218 | AN111: 12.77611865 | AO111: 12.83691274 | AP111: 12.84724655 | AQ111: 12.84457921 | AR111: 12.85969237 | AS111: 12.85981955 | AT111: 12.85188251 | AU111: 12.89186259 | AV111: 0.07088524409 | AW111: 0.05139908975 | AX111: 0.0513529726 | AY111: 0.06301994055 | BB111: 0.05938072995 | BC111: 0.06245277655 | BD111: 0.0609486677 | BE111: 0.06154611846 | BF111: 0.06221878771 | BG111: 0.06167230927 | BH111: 0.06105969066 | BI111: 0.0617079973 | BJ111: 0.06463702523 | BL111: 13.30497909 | BM111: 13.16916389 | BN111: 13.20377593 | BO111: 12.92818555 | BR111: 12.73745218 | BS111: 12.77611865 | BT111: 12.83691274 | BU111: 12.84724655 | BV111: 12.84457921 | BW111: 12.85969237 | BX111: 12.85981955 | BY111: 12.85188251 | BZ111: 12.89186259 | CA111: 0.07088524409 | CB111: 0.05139908975 | CC111: 0.0513529726 | CD111: 0.06301994055 | CG111: 0.05938072995 | CH111: 0.06245277655 | CI111: 0.0609486677 | CJ111: 0.06154611846 | CK111: 0.06221878771 | CL111: 0.06167230927 | CM111: 0.06105969066 | CN111: 0.0617079973 | CO111: 0.06463702523 | CQ111: 0.07602442429 | CR111: 0.05584987378 | CS111: 0.05571649383 | CT111: 0.06995741134 | CU111: 0.06602716457 | CV111: 0.06608069081 | CW111: 0.06805486511 | CX111: 0.0706100625 | CY111: =IF(OR(DP$26="",DP$26="no"),"",(EK$91/($AD109*(1-$AD109))+EK$92*(($AD109-0.5)/($AD109*(1-$AD109))+LN($AD109/(1-$AD109)))+EK$93+2*EK$94*($AD109-0.5)+EK$95*(($AD109-0.5)^2/($AD109*(1-$AD109))+2*($AD109-0.5)*LN($AD109/(1-$AD109)))+3*EK$96*($AD109-0.5)^2+EK$97*(($AD109-0.5)^3/($AD109*(1-$AD109))+3*($AD109-0.5)^2*LN($AD109/(1-$AD109)))+4*EK$98*($AD109-0.5)^3+EK$99*(($AD109-0.5)^4/($AD109*(1-$AD109))+4*($AD109-0.5)^3*LN($AD109/(1-$AD109)))+5*EK$100*($AD109-0.5)^4+EK$101*(($AD109-0.5)^5/($AD109*(1-$AD109))+5*($AD109-0.5)^4*LN($AD109/(1-$AD109)))+6*EK$102*($AD109-0.5)^5+EK$103*(($AD109-0.5)^6/($AD109*(1-$AD109))+6*($AD109-0.5)^5*LN($AD109/(1-$AD109)))+7*EK$104*($AD109-0.5)^6+EK$105*(($AD109-0.5)^7/($AD109*(1-$AD109))+7*($AD109-0.5)^6*LN($AD109/(1-$AD109))))^-1) -> 0.06734631887 | CZ111: 0.06755629972 | DA111: 0.06832909585 | DB111: 0.06709455725 | DC111: 0.06650722502 | DD111: 0.06762743364 | DE111: 0.06778319701 | DG111: 1 | DH111: -3.722750518 | DI111: 1.773529059 | DJ111: -0.4764028777 | DK111: 0.2269597019 | DL111: -0.8449143476 | DM111: -0.1081242551 | DN111: 0.4025196266 | DO111: 0.05151070628 | DP111: -0.1917615085 | DQ111: -0.0245398487 | DR111: 0.09135573446 | DS111: 0.01169085454 | DT111: -0.04352213479 | DU111: -0.005569556746 | DV111: 0.02073407026 | DW111: 4 | DY111: 0.01899280576 | DZ111: 4 | EB111: skewness | EC111: =IF(OR(ISERROR(AV29),$B$11<>"u"),"",(EC112+EC113+EC114)/EC110^3) -> 0 | ED111: 1.129554474 | EE111: 1.113015734 | EF111: 1.315124063 | EI111: 1.24039082 | EJ111: 1.229914343 | EK111: 1.224394948 | EL111: 1.225847345 | EM111: 1.226920426 | EN111: 1.229773125 | EO111: 1.230892885 | EP111: 1.233088676 | EQ111: 1.220938247 | ER111: =IF(ER109="","",SKEW(INDEX(AC$28:AC$10027,1,1):INDEX(AC$28:AC$10027,B$17,1))) -> 1.188935786
B112: 79 | C112: 4 | E112: m_PDF_formula | AB112: 0.02446043165 | AC112: =IF(C$34="","",IF(ROW()-ROW(S$27)>B$17,"",SMALL(INDEX($C$34:$C$10033,1,1):INDEX($C$34:$C$10033,B$17,1),ROW()-ROW(S$27)))) -> 4 | AD112: 0.81 | AE112: 13.00554901 | AF112: 0.05767049231 | AG112: 13.44879647 | AH112: 13.36810721 | AI112: 13.4028209 | AJ112: 13.09148262 | AM112: 12.91204928 | AN112: 12.94172787 | AO112: 13.00554901 | AP112: 13.01401203 | AQ112: 13.00961243 | AR112: 13.02572349 | AS112: 13.02749614 | AT112: 13.01816957 | AU112: 13.04912958 | AV112: 0.06818274416 | AW112: 0.04914565267 | AX112: 0.0491394123 | AY112: 0.05948505328 | BB112: 0.05524241714 | BC112: 0.05836192596 | BD112: 0.05767049231 | BE112: 0.05839232673 | BF112: 0.0589760872 | BG112: 0.05878631912 | BH112: 0.05822279834 | BI112: 0.05857285511 | BJ112: 0.06246349437 | BL112: 13.44879647 | BM112: 13.36810721 | BN112: 13.4028209 | BO112: 13.09148262 | BR112: 12.91204928 | BS112: 12.94172787 | BT112: 13.00554901 | BU112: 13.01401203 | BV112: 13.00961243 | BW112: 13.02572349 | BX112: 13.02749614 | BY112: 13.01816957 | BZ112: 13.04912958 | CA112: 0.06818274416 | CB112: 0.04914565267 | CC112: 0.0491394123 | CD112: 0.05948505328 | CG112: 0.05524241714 | CH112: 0.05836192596 | CI112: 0.05767049231 | CJ112: 0.05839232673 | CK112: 0.0589760872 | CL112: 0.05878631912 | CM112: 0.05822279834 | CN112: 0.05857285511 | CO112: 0.06246349437 | CQ112: 0.07349913747 | CR112: 0.05363354809 | CS112: 0.05354500969 | CT112: 0.06651593294 | CU112: 0.06244817618 | CV112: 0.06249726967 | CW112: 0.06365641188 | CX112: 0.06654422792 | CY112: 0.06417197677 | CZ112: 0.06459633358 | DA112: 0.06533335772 | DB112: 0.06443071823 | DC112: 0.06380978357 | DD112: 0.06472333281 | DE112: 0.06636563172 | DG112: 1 | DH112: -3.710334389 | DI112: 1.766546258 | DJ112: -0.4761151079 | DK112: 0.226685596 | DL112: -0.8410793623 | DM112: -0.107928437 | DN112: 0.4004505913 | DO112: 0.05138635943 | DP112: -0.1906605765 | DQ112: -0.02446582206 | DR112: 0.09077638096 | DS112: 0.01164854751 | DT112: -0.04322000642 | DU112: -0.005546049456 | DV112: 0.02057769802 | DW112: 4 | DY112: 0.01928057554 | DZ112: 4 | EC112: =IF(OR(ISERROR(AV29),$B$11<>"u"),"",(3097*EC100^2*EC101)/164003840+(4223867*EC101^3)/83691159552+(45*EC100^2*EC102)/21446656+(191609*EC101^2*EC102)/8453652480+(1486943*EC101*EC102^2)/526944337920+(135*EC102^3)/1388068864+(624865*EC100*EC101*EC103)/9299017728+(817771*EC100*EC102*EC103)/95808061440+(8800951*EC101*EC103^2)/154983628800+(189773*EC102*EC103^2)/23524300800+(661153*EC100*EC101*EC104)/75277762560+(27*EC100*EC102*EC104)/28327936+(11349647*EC101*EC103*EC104)/702592450560+(15851193*EC102*EC103*EC104)/7986734694400+(7824077*EC101*EC104^2)/7628146606080+(EC102*EC104^2)/9175040+(190103*EC100^2*EC105)/43015864320+(153949*EC101^2*EC105)/3874590720+(23744153*EC101*EC102*EC105)/2107777351680+(52753819*EC102^2*EC105)/77870663270400+(561811*EC100*EC103*EC105)/34217164800+(7624414019*EC103^2*EC105)/526944337920000+(940997*EC100*EC104*EC105)/454056345600+(8316926081*EC103*EC104*EC105)/2102507908300800+(45432693*EC104^2*EC105)/186465805926400+(998794747*EC101*EC105^2)/96785694720000+(58869774749*EC102*EC105^2)/42050158166016000+(543784817*EC105^3)/612976066560000+(461*EC100*EC101*EC91)/96768+(499*EC100*EC102*EC91)/709632+(17249*EC101*EC103*EC91)/2419200+(10753*EC102*EC103*EC91)/8870400+(257*EC101*EC104*EC91)/221760+(69193*EC102*EC104*EC91)/430510080+(257*EC100*EC105*EC91)/221760+(131*EC103*EC105*EC91)/70400+(34847*EC104*EC105*EC91)/123552000+(EC101*EC91^2)/4+(7*EC102*EC91^2)/120+(11*EC105*EC91^2)/160+(2309*EC100^2*EC92)/7096320+(883*EC101^2*EC92)/483840+(29*EC101*EC102*EC92)/44352+(9733*EC102^2*EC92)/215255040+(1999*EC100*EC103*EC92)/1971200+(1069*EC103^2*EC92)/1419264+(31907*EC100*EC104*EC92)/215255040+(47282731*EC103*EC104*EC92)/193729536000+(8381*EC104^2*EC92)/492011520+(481951*EC101*EC105*EC92)/479001600+(10540457*EC102*EC105*EC92)/64576512000+(44761*EC105^2*EC92)/332107776+(11*EC100*EC91*EC92)/160+(19*EC103*EC91*EC92)/240+(521*EC104*EC91*EC92)/30240+(53*EC101*EC92^2)/2880+(583*EC102*EC92^2)/120960+(179*EC105*EC92^2)/30240+(499*EC100*EC101*EC93)/709632+(27*EC100*EC102*EC93)/326144+(257*EC101*EC103*EC93)/221760+(69193*EC102*EC103*EC93)/430510080+(31573*EC101*EC104*EC93)/193729536+(EC102*EC104*EC93)/53760+(69193*EC100*EC105*EC93)/430510080+(34847*EC103*EC105*EC93)/123552000+(199*EC104*EC105*EC93)/5271552+(11*EC101*EC91*EC93)/160+(29*EC102*EC91*EC93)/2240+(521*EC105*EC91*EC93)/30240+(29*EC100*EC92*EC93)/2240+(521*EC103*EC92*EC93)/30240+(97*EC104*EC92*EC93)/33600+(EC91*EC92*EC93)/2+(47*EC101*EC93^2)/8064+(EC102*EC93^2)/1344+(49*EC105*EC93^2)/38400+(EC92*EC93^2)/8+(5*EC100^2*EC94)/146432+(3677*EC101^2*EC94)/12773376+(115*EC101*EC102*EC94)/1467648+(41*EC102^2*EC94)/9784320+(45137*EC100*EC103*EC94)/352235520+(10830899*EC103^2*EC94)/96864768000+(EC100*EC104*EC94)/66560+(2323*EC103*EC104*EC94)/79478784+(7*EC104^2*EC94)/4177920+(4004801*EC101*EC105*EC94)/27675648000+(9269*EC102*EC105*EC94)/496742400+(215113*EC105^2*EC94)/11860992000+(47*EC100*EC91*EC94)/4032+(131*EC103*EC91*EC94)/7560+(49*EC104*EC91*EC94)/19200+EC91^2*EC94+(227*EC101*EC92*EC94)/30240+(EC102*EC92*EC94)/800+(14123*EC105*EC92*EC94)/7257600+(EC92^2*EC94)/24+(EC100*EC93*EC94)/672+(49*EC103*EC93*EC94)/19200+(EC104*EC93*EC94)/3168+(EC91*EC93*EC94)/4+(EC93^2*EC94)/60+(317*EC101*EC94^2)/604800+(13*EC102*EC94^2)/221760+(13*EC105*EC94^2)/105600+(EC92*EC94^2)/120+EC94^3/3780+(257*EC100*EC101*EC95)/221760+(69193*EC100*EC102*EC95)/430510080+(433661*EC101*EC103*EC95)/239500800+(329767*EC102*EC103*EC95)/1153152000+(54136307*EC101*EC104*EC95)/193729536000+(105977*EC102*EC104*EC95)/2870067200+(34847*EC100*EC105*EC95)/123552000+(67851241*EC103*EC105*EC95)/145297152000+(89789*EC104*EC105*EC95)/1317888000+(19*EC101*EC91*EC95)/180+(683*EC102*EC91*EC95)/30240+(293*EC105*EC91*EC95)/10080+(521*EC100*EC92*EC95)/30240+(167*EC103*EC92*EC95)/7560+(1129*EC104*EC92*EC95)/268800+(EC91*EC92*EC95)/2+(1153*EC101*EC93*EC95)/60480+(59*EC102*EC93*EC95)/19200+(313*EC105*EC93*EC95)/67200+(EC92*EC93*EC95)/4+(49*EC100*EC94*EC95)/19200+(7331*EC103*EC94*EC95)/1814400+(3359*EC104*EC94*EC95)/5913600+(EC91*EC94*EC95)/3+(13*EC93*EC94*EC95)/240+(557*EC101*EC95^2)/40320+(29*EC102*EC95^2)/11200+(17797*EC105*EC95^2)/4838400+(EC92*EC95^2)/8+(3*EC94*EC95^2)/80+(31573*EC100*EC101*EC96)/193729536+(EC100*EC102*EC96)/53760+(54136307*EC101*EC103*EC96)/193729536000+(105977*EC102*EC103*EC96)/2870067200+(3097*EC101*EC104*EC96)/82001920+(45*EC102*EC104*EC96)/10723328+(199*EC100*EC105*EC96)/5271552+(89789*EC103*EC105*EC96)/1317888000+(190103*EC104*EC105*EC96)/21507932160+(1153*EC101*EC91*EC96)/60480+(59*EC102*EC91*EC96)/19200+(313*EC105*EC91*EC96)/67200+(97*EC100*EC92*EC96)/33600) -> 0 | ED112: 0 | EE112: 0.7398290895 | EF112: -84.66829722 | EI112: -32.26851798 | EJ112: 107.0699912 | EK112: -19419.16985 | EL112: -480.5937337 | EM112: 3343.881205 | EN112: -13791.90081 | EO112: 10997828.99 | EP112: 1387597661 | EQ112: -2.929857885e+10
B113: 80 | C113: 4 | AB113: 0.02474820144 | AC113: =IF(C$34="","",IF(ROW()-ROW(S$27)>B$17,"",SMALL(INDEX($C$34:$C$10033,1,1):INDEX($C$34:$C$10033,B$17,1),ROW()-ROW(S$27)))) -> 4 | AD113: 0.82 | AE113: 13.1841498 | AF113: 0.05433453858 | AG113: 13.59853102 | AH113: 13.57643319 | AI113: 13.61109098 | AJ113: 13.2648262 | AM113: 13.09998531 | AN113: 13.11934123 | AO113: 13.1841498 | AP113: 13.19021252 | AQ113: 13.1841819 | AR113: 13.20034639 | AS113: 13.20372825 | AT113: 13.19379611 | AU113: 13.21268617 | AV113: 0.06539163768 | AW113: 0.04687226824 | AX113: 0.04690323094 | AY113: 0.05592667421 | BB113: 0.05125194474 | BC113: 0.05429768005 | BD113: 0.05433453858 | BE113: 0.05512719709 | BF113: 0.05560314401 | BG113: 0.05574545398 | BH113: 0.0552674076 | BI113: 0.0553161897 | BJ113: 0.05974093711 | BL113: 13.59853102 | BM113: 13.57643319 | BN113: 13.61109098 | BO113: 13.2648262 | BR113: 13.09998531 | BS113: 13.11934123 | BT113: 13.1841498 | BU113: 13.19021252 | BV113: 13.1841819 | BW113: 13.20034639 | BX113: 13.20372825 | BY113: 13.19379611 | BZ113: 13.21268617 | CA113: 0.06539163768 | CB113: 0.04687226824 | CC113: 0.04690323094 | CD113: 0.05592667421 | CG113: 0.05125194474 | CH113: 0.05429768005 | CI113: 0.05433453858 | CJ113: 0.05512719709 | CK113: 0.05560314401 | CL113: 0.05574545398 | CM113: 0.0552674076 | CN113: 0.0553161897 | CO113: 0.05974093711 | CQ113: 0.07088524409 | CR113: 0.05139908975 | CS113: 0.0513529726 | CT113: 0.06301994055 | CU113: 0.05889649239 | CV113: 0.05894053204 | CW113: 0.05938072995 | CX113: 0.06245277655 | CY113: 0.0609486677 | CZ113: 0.06154611846 | DA113: 0.06221878771 | DB113: 0.06167230927 | DC113: 0.06105969066 | DD113: 0.0617079973 | DE113: 0.06463702523 | DG113: 1 | DH113: -3.698063343 | DI113: 1.759639637 | DJ113: -0.4758273381 | DK113: 0.2264116557 | DL113: -0.8372846445 | DM113: -0.1077328555 | DN113: 0.3984029236 | DO113: 0.05126223784 | DP113: -0.1895710027 | DQ113: -0.02439197418 | DR113: 0.09020306558 | DS113: 0.01160636815 | DT113: -0.04292108459 | DU113: -0.00552262726 | DV113: 0.02042302543 | DW113: 4 | DY113: 0.01956834532 | DZ113: 4 | EC113: =IF(OR(ISERROR(AV29),$B$11<>"u"),"", (1129*EC103*EC92*EC96)/268800 + (2309*EC104*EC92*EC96)/3548160 + (EC91*EC92*EC96)/4 + (67*EC101*EC93*EC96)/22400 + (9*EC102*EC93*EC96)/24640 + (851*EC105*EC93*EC96)/1267200 + (7*EC92*EC93*EC96)/120 + (EC100*EC94*EC96)/3168 + (3359*EC103*EC94*EC96)/5913600 + (5*EC104*EC94*EC96)/73216 + (13*EC91*EC94*EC96)/240 + (EC93*EC94*EC96)/140 + (461*EC101*EC95*EC96)/96768 + (499*EC102*EC95*EC96)/709632 + (257*EC105*EC95*EC96)/221760 + (11*EC92*EC95*EC96)/160 + (47*EC94*EC95*EC96)/4032 + (499*EC101*EC96^2)/1419264 + (27*EC102*EC96^2)/652288 + (69193*EC105*EC96^2)/861020160 + (29*EC92*EC96^2)/4480 + (EC94*EC96^2)/1344 + (6269*EC100^2*EC97)/78274560 + (106261*EC101^2*EC97)/191600640 + (1644767*EC101*EC102*EC97)/9225216000 + (137*EC102^2*EC97)/11827200 + (1452571*EC100*EC103*EC97)/5381376000 + (10481231*EC103^2*EC97)/48432384000 + (349*EC100*EC104*EC97)/9461760 + (1673759*EC103*EC104*EC97)/25830604800 + (1286963*EC104^2*EC97)/301111050240 + (17203897*EC101*EC105*EC97)/58118860800 + (636303*EC102*EC105*EC97)/14350336000 + (358559*EC105^2*EC97)/9225216000 + (1153*EC100*EC91*EC97)/60480 + (29*EC103*EC91*EC97)/1120 + (313*EC104*EC91*EC97)/67200 + (3*EC91^2*EC97)/4 + (187*EC101*EC92*EC97)/15120 + (689*EC102*EC92*EC97)/268800 + (26069*EC105*EC92*EC97)/7257600 + (EC92^2*EC97)/24 + (59*EC100*EC93*EC97)/19200 + (313*EC103*EC93*EC97)/67200 + (69*EC104*EC93*EC97)/98560 + (EC91*EC93*EC97)/4 + (13*EC93^2*EC97)/480 + (457*EC101*EC94*EC97)/207360 + (1433*EC102*EC94*EC97)/4435200 + (9901*EC105*EC94*EC97)/17740800 + (13*EC92*EC94*EC97)/480 + (11*EC94^2*EC97)/5040 + (313*EC100*EC95*EC97)/67200 + (48911*EC103*EC95*EC97)/7257600 + (19933*EC104*EC95*EC97)/17740800 + (EC91*EC95*EC97)/3 + (3*EC93*EC95*EC97)/40 + (23*EC95^2*EC97)/480 + (69*EC100*EC96*EC97)/98560 + (19933*EC103*EC96*EC97)/17740800 + (6269*EC104*EC96*EC97)/39137280 + (3*EC91*EC96*EC97)/40 + (3*EC93*EC96*EC97)/224 + (1153*EC95*EC96*EC97)/60480 + (59*EC96^2*EC97)/38400 + (28687*EC101*EC97^2)/14515200 + (69*EC102*EC97^2)/197120 + (481*EC105*EC97^2)/887040 + (3*EC92*EC97^2)/160 + (251*EC94*EC97^2)/60480 + EC97^3/448 + (EC100^2*EC98)/112640 + (4168067*EC101^2*EC98)/48432384000 + (144013*EC101*EC102*EC98)/6457651200 + (1431*EC102^2*EC98)/1219778560 + (5839*EC100*EC103*EC98)/167731200 + (1365509*EC103^2*EC98)/43051008000 + (9*EC100*EC104*EC98)/2263040 + (1626533*EC103*EC104*EC98)/202670899200 + (7*EC104^2*EC98)/15564800 + (7126751*EC101*EC105*EC98)/166053888000 + (540187*EC102*EC105*EC98)/101335449600 + (14376553*EC105^2*EC98)/2688491520000 + (67*EC100*EC91*EC98)/22400 + (13*EC103*EC91*EC98)/2688 + (851*EC104*EC91*EC98)/1267200 + (EC91^2*EC98)/4 + (1457*EC101*EC92*EC98)/604800 + (1591*EC102*EC92*EC98)/4435200 + (4621*EC105*EC92*EC98)/7603200 + (EC92^2*EC98)/60 + (9*EC100*EC93*EC98)/24640 + (851*EC103*EC93*EC98)/1267200 + (EC104*EC93*EC98)/12480 + (7*EC91*EC93*EC98)/120 + (EC93^2*EC98)/280 + (1367*EC101*EC94*EC98)/4435200 + (227*EC102*EC94*EC98)/6726720 + (160397*EC105*EC94*EC98)/2201472000 + (5*EC92*EC94*EC98)/1008 + (EC94^2*EC98)/4200 + (851*EC100*EC95*EC98)/1267200 + (4313*EC103*EC95*EC98)/3801600 + (273027*EC104*EC95*EC98)/1793792000 + (11*EC91*EC95*EC98)/120 + (3*EC93*EC95*EC98)/224 + (629*EC95^2*EC98)/60480 + (EC100*EC96*EC98)/12480 + (273027*EC103*EC96*EC98)/1793792000 + (EC104*EC96*EC98)/56320 + (3*EC91*EC96*EC98)/224 + (EC93*EC96*EC98)/600 + (67*EC95*EC96*EC98)/22400 + (9*EC96^2*EC98)/49280 + (35731*EC101*EC97*EC98)/53222400 + (7491*EC102*EC97*EC98)/81536000 + (32261*EC105*EC97*EC98)/192192000 + (559*EC92*EC97*EC98)/60480 + (43*EC94*EC97*EC98)/33600 + (EC97^2*EC98)/768 + (266977*EC101*EC98^2)/6054048000 + (EC102*EC98^2)/211200 + (1151*EC105*EC98^2)/109824000 + (EC92*EC98^2)/1400 + (19*EC94*EC98^2)/277200 + (9*EC97*EC98^2)/49280 + EC98^3/156000 + (54136307*EC100*EC101*EC99)/193729536000 + (105977*EC100*EC102*EC99)/2870067200 + (587647*EC101*EC103*EC99)/1291530240 + (175117*EC102*EC103*EC99)/2583060480 + (624865*EC101*EC104*EC99)/9299017728 + (817771*EC102*EC104*EC99)/95808061440 + (89789*EC100*EC105*EC99)/1317888000 + (3385037*EC103*EC105*EC99)/29059430400 + (561811*EC104*EC105*EC99)/34217164800 + (557*EC101*EC91*EC99)/20160 + (29*EC102*EC91*EC99)/5600 + (17797*EC105*EC91*EC99)/2419200 + (1129*EC100*EC92*EC99)/268800 + (14143*EC103*EC92*EC99)/2419200 + (1999*EC104*EC92*EC99)/1971200 + (EC91*EC92*EC99)/4 + (461*EC101*EC93*EC99)/96768 + (499*EC102*EC93*EC99)/709632 + (257*EC105*EC93*EC99)/221760 + (11*EC92*EC93*EC99)/160 + (3359*EC100*EC94*EC99)/5913600 + (841*EC103*EC94*EC99)/887040 + (45137*EC104*EC94*EC99)/352235520 + (3*EC91*EC94*EC99)/40 + (47*EC93*EC94*EC99)/4032 + (17249*EC101*EC95*EC99)/2419200 + (10753*EC102*EC95*EC99)/8870400 + (131*EC105*EC95*EC99)/70400 + (19*EC92*EC95*EC99)/240 + (131*EC94*EC95*EC99)/7560 + (257*EC101*EC96*EC99)/221760 + (69193*EC102*EC96*EC99)/430510080 + (34847*EC105*EC96*EC99)/123552000 + (521*EC92*EC96*EC99)/30240 + (49*EC94*EC96*EC99)/19200 + (19933*EC100*EC97*EC99)/17740800 + (15241*EC103*EC97*EC99)/8870400 + (1452571*EC104*EC97*EC99)/5381376000 + (23*EC91*EC97*EC99)/240 + (1153*EC93*EC97*EC99)/60480 + (29*EC95*EC97*EC99)/1120 + (313*EC96*EC97*EC99)/67200 + (273027*EC100*EC98*EC99)/1793792000 + (12963757*EC103*EC98*EC99)/48432384000 + (5839*EC104*EC98*EC99)/167731200 + (629*EC91*EC98*EC99)/30240 + (67*EC93*EC98*EC99)/22400 + (13*EC95*EC98*EC99)/2688 + (851*EC96*EC98*EC99)/1267200 + (433661*EC101*EC99^2)/479001600 + (329767*EC102*EC99^2)/2306304000 + (67851241*EC105*EC99^2)/290594304000 + (167*EC92*EC99^2)/15120 + (7331*EC94*EC99^2)/3628800 + (48911*EC97*EC99^2)/14515200 + (4313*EC98*EC99^2)/7603200 + (3097*EC101^3*PI()^2)/492011520 + (15*EC101^2*EC102*PI()^2)/21446656 + (EC100*EC101*EC103*PI()^2)/557056 + (375737*EC101*EC103^2*PI()^2)/75277762560) -> 0 | ED113: 0 | EE113: 0 | EF113: 0 | EI113: 54.82563242 | EJ113: 43.04671311 | EK113: 19704.63972 | EL113: 729.2034621 | EM113: -3193.444841 | EN113: 73274.6798 | EO113: -10858860.95 | EP113: -1346975928 | EQ113: 2.650266607e+10
